Workbook

Sheet ADP-Rank (hidden)
A1: PLAYERNAME | B1: IDPLAYER | C1: MC Pos | D1: OF Positions | E1: TEAM | F1: Age | G1: Fantrax | H1: Yahoo | I1: CBS | J1: High | K1: Low | L1: ESPN | M1: FantasyPros Avg | N1: NFBC | O1: High | P1: Low | Q1: Avg of ADP Sources | R1: RotoChamp | S1: Yahoo Staff | T1: ESPN - Points | U1: ESPN - E. Karabell | V1: FantasyPros Avg | W1: Mr. Cheatsheet | X1: Team In Sheet? | Y1: Rank Chosen | Z1: Filtered-Rank | AA1: Chosen-ADP | AB1: Filtered-ADP-Rank | AC1: ADP Round | AD1: Early | AE1: Late | AF1: Filtered-Early | AG1: Filtered-Late | AH1: ImportADP | AI1: High | AJ1: Low | AK1: =IF(VLOOKUP(A2,'Name Sort'!$D$2:$E$936,2,FALSE)="",A2,"") -> CJ Abrams | AL1: =IFERROR(INDEX($AK$1:$AK$943,SMALL(IF($AK$1:$AK$943<>"",ROW($AK$1:$AK$943)),ROW(AK1))),"") -> CJ Abrams
A2: CJ Abrams | B2: abramcj01 | C2: SS | E2: SD | F2: 21 | G2: 531 | L2: 342 | M2: 487 | N2: 620.14 | O2: 250 | P2: 679 | Q2: =IFERROR((IFERROR(N2,0)+IFERROR(M2,0)+IFERROR(I2,0)+IFERROR(G2,0)+IFERROR(L2,0)+IFERROR(H2,0))/(IF(ISERROR(N2),0,1)+IF(ISERROR(M2),0,1)+IF(ISERROR(I2),0,1)+IF(ISERROR(G2),0,1)+IF(ISERROR(L2),0,1)+IF(ISERROR(H2),0,1)),#N/A) -> 495.035 | V2: 717.5 | X2: =IFERROR(INDEX('Guts-2'!$K$1:$K$30,MATCH(E2,'Guts-2'!$J$1:$J$30,0)),TRUE) -> TRUE | Y2: =IFERROR(IF(OR(X2=FALSE,INDEX('Player Notes'!$I$3:$I$999,MATCH(A2,'Player Notes'!$A$3:$A$999,0),1)="Yes"),"",IFERROR(CHOOSE('Guts-2'!$D$27,R2,S2,T2,U2,V2,W2),"")),"") ->  | Z2: =IFERROR(RANK(Y2,$Y$2:$Y$943,1),"") ->  | AA2: =IFERROR(IF(OR(X2=FALSE,INDEX('Player Notes'!$I$3:$I$999,MATCH(A2,'Player Notes'!$A$3:$A$999,0),1)="Yes"),"",IFERROR(CHOOSE('Guts-2'!$D$26,G2,H2,I2,L2,M2,N2,Q2,AH2),"")),"") ->  | AB2: =IFERROR(IF(Settings!$L$5="Mixed (Standard)",AA2,RANK(AA2,$AA$2:$AA$943,1)),"") ->  | AC2: =IFERROR(IF(Settings!$L$5="Mixed (Standard)",(RANK(AA2,$AA$2:$AA$943,1)/('Guts-2'!$N$1+1))+1,(RANK(AB2,$AB$2:$AB$943,1)/('Guts-2'!$N$1+1))+1),"") ->  | AD2: =IFERROR(IF(Settings!$Q$5="CBS",J2,IF(Settings!$R$5="NFBC",O2,MIN(AA2*0.75,IFERROR($O2,999),IFERROR($J2,999)))),"") ->  | AE2: =IFERROR(IF(Settings!$Q$5="CBS",K2,IF(Settings!$R$5="NFBC",P2,MAX(AA2*1.33,IFERROR($P2,999),IFERROR($K2,999)))),"") ->  | AF2: =IFERROR(IF(X2=TRUE,IF((AD2-COUNTIFS($AD$2:$AD$943,"<"&AD2,$X$2:$X$943,FALSE))<1,1,AD2-COUNTIFS($AD$2:$AD$943,"<"&AD2,$X$2:$X$943,FALSE)),""),"") ->  | AG2: =IFERROR(IF(X2=FALSE,"",IF((AE2-COUNTIFS($AE$2:$AE$943,"<"&AE2,$X$2:$X$943,FALSE))<1,1,AE2-COUNTIFS($AE$2:$AE$943,"<"&AE2,$X$2:$X$943,FALSE))),"") ->  | AH2: =INDEX('Import (ADP)'!$C$2:$C$999,MATCH(A2, 'Import (ADP)'!$B$2:$B$999,0)) ->  | AI2: =IFERROR(MIN(J2,O2,ROUND(AH2*0.75,0)),ROUND(AH2*0.75,0)) ->  | AJ2: =IFERROR(MAX(K2,P2,ROUND(AH2*1.25,0)),ROUND(AI2*1.25,0)) ->  | AK2: =IF(VLOOKUP(A3,'Name Sort'!$D$2:$E$936,2,FALSE)="",A3,"") -> Jose Abreu | AL2: =IFERROR(INDEX($AK$1:$AK$943,SMALL(IF($AK$1:$AK$943<>"",ROW($AK$1:$AK$943)),ROW(AK2))),"") -> Jose Abreu
A3: Jose Abreu | B3: abreujo02 | C3: 1B | E3: CHW | F3: 35 | G3: 74 | H3: 62 | I3: 72.68 | J3: 36 | K3: 116 | L3: 61 | M3: 67 | N3: 78.38 | O3: 39 | P3: 115 | Q3: 69.17666667 | R3: 57 | S3: 62.7 | T3: 66 | U3: 61 | V3: 60.2 | X3: =IFERROR(INDEX('Guts-2'!$K$1:$K$30,MATCH(E3,'Guts-2'!$J$1:$J$30,0)),TRUE) -> TRUE | Y3: =IFERROR(IF(OR(X3=FALSE,INDEX('Player Notes'!$I$3:$I$999,MATCH(A3,'Player Notes'!$A$3:$A$999,0),1)="Yes"),"",IFERROR(CHOOSE('Guts-2'!$D$27,R3,S3,T3,U3,V3,W3),"")),"") -> 66 | Z3: 66 | AA3: =IFERROR(IF(OR(X3=FALSE,INDEX('Player Notes'!$I$3:$I$999,MATCH(A3,'Player Notes'!$A$3:$A$999,0),1)="Yes"),"",IFERROR(CHOOSE('Guts-2'!$D$26,G3,H3,I3,L3,M3,N3,Q3,AH3),"")),"") -> 72.68 | AB3: =IFERROR(IF(Settings!$L$5="Mixed (Standard)",AA3,RANK(AA3,$AA$2:$AA$943,1)),"") -> 72.68 | AC3: =IFERROR(IF(Settings!$L$5="Mixed (Standard)",(RANK(AA3,$AA$2:$AA$943,1)/('Guts-2'!$N$1+1))+1,(RANK(AB3,$AB$2:$AB$943,1)/('Guts-2'!$N$1+1))+1),"") -> 6.307692308 | AD3: =IFERROR(IF(Settings!$Q$5="CBS",J3,IF(Settings!$R$5="NFBC",O3,MIN(AA3*0.75,IFERROR($O3,999),IFERROR($J3,999)))),"") -> 36 | AE3: =IFERROR(IF(Settings!$Q$5="CBS",K3,IF(Settings!$R$5="NFBC",P3,MAX(AA3*1.33,IFERROR($P3,999),IFERROR($K3,999)))),"") -> 116 | AF3: 36 | AG3: 116 | AH3: =INDEX('Import (ADP)'!$C$2:$C$999,MATCH(A3, 'Import (ADP)'!$B$2:$B$999,0)) ->  | AK3: =IF(VLOOKUP(A4,'Name Sort'!$D$2:$E$936,2,FALSE)="",A4,"") -> Ronald Acuna Jr. | AL3: =IFERROR(INDEX($AK$1:$AK$943,SMALL(IF($AK$1:$AK$943<>"",ROW($AK$1:$AK$943)),ROW(AK3))),"") -> Ronald Acuna Jr.
A4: Ronald Acuna Jr. | B4: acunaro01 | C4: OF | D4: RF | E4: ATL | F4: 24 | G4: 10 | H4: 15 | I4: 19.5 | J4: 6 | K4: 40 | L4: 34 | M4: 11 | N4: 11.65 | O4: 2 | P4: 32 | Q4: 16.85833333 | R4: 4 | S4: 26.3 | T4: 49 | U4: 12 | V4: 15.4 | X4: =IFERROR(INDEX('Guts-2'!$K$1:$K$30,MATCH(E4,'Guts-2'!$J$1:$J$30,0)),TRUE) -> TRUE | Y4: =IFERROR(IF(OR(X4=FALSE,INDEX('Player Notes'!$I$3:$I$999,MATCH(A4,'Player Notes'!$A$3:$A$999,0),1)="Yes"),"",IFERROR(CHOOSE('Guts-2'!$D$27,R4,S4,T4,U4,V4,W4),"")),"") -> 49 | Z4: 49 | AA4: =IFERROR(IF(OR(X4=FALSE,INDEX('Player Notes'!$I$3:$I$999,MATCH(A4,'Player Notes'!$A$3:$A$999,0),1)="Yes"),"",IFERROR(CHOOSE('Guts-2'!$D$26,G4,H4,I4,L4,M4,N4,Q4,AH4),"")),"") -> 19.5 | AB4: =IFERROR(IF(Settings!$L$5="Mixed (Standard)",AA4,RANK(AA4,$AA$2:$AA$943,1)),"") -> 19.5 | AC4: =IFERROR(IF(Settings!$L$5="Mixed (Standard)",(RANK(AA4,$AA$2:$AA$943,1)/('Guts-2'!$N$1+1))+1,(RANK(AB4,$AB$2:$AB$943,1)/('Guts-2'!$N$1+1))+1),"") -> 2.153846154 | AD4: =IFERROR(IF(Settings!$Q$5="CBS",J4,IF(Settings!$R$5="NFBC",O4,MIN(AA4*0.75,IFERROR($O4,999),IFERROR($J4,999)))),"") -> 2 | AE4: =IFERROR(IF(Settings!$Q$5="CBS",K4,IF(Settings!$R$5="NFBC",P4,MAX(AA4*1.33,IFERROR($P4,999),IFERROR($K4,999)))),"") -> 40 | AF4: 2 | AG4: 40 | AH4: =INDEX('Import (ADP)'!$C$2:$C$999,MATCH(A4, 'Import (ADP)'!$B$2:$B$999,0)) ->  | AK4: =IF(VLOOKUP(A5,'Name Sort'!$D$2:$E$936,2,FALSE)="",A5,"") -> Willy Adames | AL4: =IFERROR(INDEX($AK$1:$AK$943,SMALL(IF($AK$1:$AK$943<>"",ROW($AK$1:$AK$943)),ROW(AK4))),"") -> Willy Adames
A5: Willy Adames | B5: adamewi01 | C5: SS | E5: MIL | F5: 26 | G5: 121 | H5: 115 | I5: 141.72 | J5: 78 | K5: 209 | L5: 175 | M5: 133 | N5: 123.03 | O5: 85 | P5: 166 | Q5: 134.7916667 | R5: 145 | S5: 133.7 | T5: 210 | U5: 106 | V5: 127.3 | X5: =IFERROR(INDEX('Guts-2'!$K$1:$K$30,MATCH(E5,'Guts-2'!$J$1:$J$30,0)),TRUE) -> TRUE | Y5: =IFERROR(IF(OR(X5=FALSE,INDEX('Player Notes'!$I$3:$I$999,MATCH(A5,'Player Notes'!$A$3:$A$999,0),1)="Yes"),"",IFERROR(CHOOSE('Guts-2'!$D$27,R5,S5,T5,U5,V5,W5),"")),"") -> 210 | Z5: 210 | AA5: =IFERROR(IF(OR(X5=FALSE,INDEX('Player Notes'!$I$3:$I$999,MATCH(A5,'Player Notes'!$A$3:$A$999,0),1)="Yes"),"",IFERROR(CHOOSE('Guts-2'!$D$26,G5,H5,I5,L5,M5,N5,Q5,AH5),"")),"") -> 141.72 | AB5: =IFERROR(IF(Settings!$L$5="Mixed (Standard)",AA5,RANK(AA5,$AA$2:$AA$943,1)),"") -> 141.72 | AC5: =IFERROR(IF(Settings!$L$5="Mixed (Standard)",(RANK(AA5,$AA$2:$AA$943,1)/('Guts-2'!$N$1+1))+1,(RANK(AB5,$AB$2:$AB$943,1)/('Guts-2'!$N$1+1))+1),"") -> 11.61538462 | AD5: =IFERROR(IF(Settings!$Q$5="CBS",J5,IF(Settings!$R$5="NFBC",O5,MIN(AA5*0.75,IFERROR($O5,999),IFERROR($J5,999)))),"") -> 78 | AE5: =IFERROR(IF(Settings!$Q$5="CBS",K5,IF(Settings!$R$5="NFBC",P5,MAX(AA5*1.33,IFERROR($P5,999),IFERROR($K5,999)))),"") -> 209 | AF5: 78 | AG5: 209 | AH5: =INDEX('Import (ADP)'!$C$2:$C$999,MATCH(A5, 'Import (ADP)'!$B$2:$B$999,0)) ->  | AK5: =IF(VLOOKUP(A6,'Name Sort'!$D$2:$E$936,2,FALSE)="",A6,"") -> Riley Adams | AL5: =IFERROR(INDEX($AK$1:$AK$943,SMALL(IF($AK$1:$AK$943<>"",ROW($AK$1:$AK$943)),ROW(AK5))),"") -> Riley Adams
A6: Riley Adams | B6: adamsri03 | C6: C | E6: WAS | F6: 25 | G6: 640 | M6: 839 | N6: 717.04 | O6: 411 | P6: 749 | Q6: 732.0133333 | V6: 702 | X6: =IFERROR(INDEX('Guts-2'!$K$1:$K$30,MATCH(E6,'Guts-2'!$J$1:$J$30,0)),TRUE) -> TRUE | Y6: =IFERROR(IF(OR(X6=FALSE,INDEX('Player Notes'!$I$3:$I$999,MATCH(A6,'Player Notes'!$A$3:$A$999,0),1)="Yes"),"",IFERROR(CHOOSE('Guts-2'!$D$27,R6,S6,T6,U6,V6,W6),"")),"") ->  | AA6: =IFERROR(IF(OR(X6=FALSE,INDEX('Player Notes'!$I$3:$I$999,MATCH(A6,'Player Notes'!$A$3:$A$999,0),1)="Yes"),"",IFERROR(CHOOSE('Guts-2'!$D$26,G6,H6,I6,L6,M6,N6,Q6,AH6),"")),"") ->  | AB6: =IFERROR(IF(Settings!$L$5="Mixed (Standard)",AA6,RANK(AA6,$AA$2:$AA$943,1)),"") ->  | AC6: =IFERROR(IF(Settings!$L$5="Mixed (Standard)",(RANK(AA6,$AA$2:$AA$943,1)/('Guts-2'!$N$1+1))+1,(RANK(AB6,$AB$2:$AB$943,1)/('Guts-2'!$N$1+1))+1),"") ->  | AD6: =IFERROR(IF(Settings!$Q$5="CBS",J6,IF(Settings!$R$5="NFBC",O6,MIN(AA6*0.75,IFERROR($O6,999),IFERROR($J6,999)))),"") ->  | AE6: =IFERROR(IF(Settings!$Q$5="CBS",K6,IF(Settings!$R$5="NFBC",P6,MAX(AA6*1.33,IFERROR($P6,999),IFERROR($K6,999)))),"") ->  | AH6: =INDEX('Import (ADP)'!$C$2:$C$999,MATCH(A6, 'Import (ADP)'!$B$2:$B$999,0)) ->  | AK6: =IF(VLOOKUP(A7,'Name Sort'!$D$2:$E$936,2,FALSE)="",A7,"") -> Jo Adell | AL6: =IFERROR(INDEX($AK$1:$AK$943,SMALL(IF($AK$1:$AK$943<>"",ROW($AK$1:$AK$943)),ROW(AK6))),"") -> Jo Adell
A7: Jo Adell | B7: adelljo01 | C7: OF | D7: LF,RF | E7: LAA | F7: 22 | G7: 221 | H7: 201 | I7: 211.79 | J7: 121 | K7: 292 | L7: 303 | M7: 207 | N7: 221.66 | O7: 127 | P7: 307 | Q7: 227.575 | S7: 193.7 | U7: 247 | V7: 201.6 | X7: =IFERROR(INDEX('Guts-2'!$K$1:$K$30,MATCH(E7,'Guts-2'!$J$1:$J$30,0)),TRUE) -> TRUE | Y7: =IFERROR(IF(OR(X7=FALSE,INDEX('Player Notes'!$I$3:$I$999,MATCH(A7,'Player Notes'!$A$3:$A$999,0),1)="Yes"),"",IFERROR(CHOOSE('Guts-2'!$D$27,R7,S7,T7,U7,V7,W7),"")),"") ->  | AA7: =IFERROR(IF(OR(X7=FALSE,INDEX('Player Notes'!$I$3:$I$999,MATCH(A7,'Player Notes'!$A$3:$A$999,0),1)="Yes"),"",IFERROR(CHOOSE('Guts-2'!$D$26,G7,H7,I7,L7,M7,N7,Q7,AH7),"")),"") -> 211.79 | AB7: =IFERROR(IF(Settings!$L$5="Mixed (Standard)",AA7,RANK(AA7,$AA$2:$AA$943,1)),"") -> 211.79 | AC7: =IFERROR(IF(Settings!$L$5="Mixed (Standard)",(RANK(AA7,$AA$2:$AA$943,1)/('Guts-2'!$N$1+1))+1,(RANK(AB7,$AB$2:$AB$943,1)/('Guts-2'!$N$1+1))+1),"") -> 19.92307692 | AD7: =IFERROR(IF(Settings!$Q$5="CBS",J7,IF(Settings!$R$5="NFBC",O7,MIN(AA7*0.75,IFERROR($O7,999),IFERROR($J7,999)))),"") -> 121 | AE7: =IFERROR(IF(Settings!$Q$5="CBS",K7,IF(Settings!$R$5="NFBC",P7,MAX(AA7*1.33,IFERROR($P7,999),IFERROR($K7,999)))),"") -> 307 | AF7: 121 | AG7: 307 | AH7: =INDEX('Import (ADP)'!$C$2:$C$999,MATCH(A7, 'Import (ADP)'!$B$2:$B$999,0)) ->  | AK7: =IF(VLOOKUP(A8,'Name Sort'!$D$2:$E$936,2,FALSE)="",A8,"") -> Ehire Adrianza | AL7: =IFERROR(INDEX($AK$1:$AK$943,SMALL(IF($AK$1:$AK$943<>"",ROW($AK$1:$AK$943)),ROW(AK7))),"") -> Ehire Adrianza
A8: Ehire Adrianza | B8: adriaeh01 | C8: OF | D8: LF,RF | E8: WAS | F8: 32 | N8: 750.87 | O8: 723 | P8: 739 | Q8: 750.87 | V8: 1149.5 | X8: =IFERROR(INDEX('Guts-2'!$K$1:$K$30,MATCH(E8,'Guts-2'!$J$1:$J$30,0)),TRUE) -> TRUE | Y8: =IFERROR(IF(OR(X8=FALSE,INDEX('Player Notes'!$I$3:$I$999,MATCH(A8,'Player Notes'!$A$3:$A$999,0),1)="Yes"),"",IFERROR(CHOOSE('Guts-2'!$D$27,R8,S8,T8,U8,V8,W8),"")),"") ->  | AA8: =IFERROR(IF(OR(X8=FALSE,INDEX('Player Notes'!$I$3:$I$999,MATCH(A8,'Player Notes'!$A$3:$A$999,0),1)="Yes"),"",IFERROR(CHOOSE('Guts-2'!$D$26,G8,H8,I8,L8,M8,N8,Q8,AH8),"")),"") ->  | AB8: =IFERROR(IF(Settings!$L$5="Mixed (Standard)",AA8,RANK(AA8,$AA$2:$AA$943,1)),"") ->  | AC8: =IFERROR(IF(Settings!$L$5="Mixed (Standard)",(RANK(AA8,$AA$2:$AA$943,1)/('Guts-2'!$N$1+1))+1,(RANK(AB8,$AB$2:$AB$943,1)/('Guts-2'!$N$1+1))+1),"") ->  | AD8: =IFERROR(IF(Settings!$Q$5="CBS",J8,IF(Settings!$R$5="NFBC",O8,MIN(AA8*0.75,IFERROR($O8,999),IFERROR($J8,999)))),"") ->  | AE8: =IFERROR(IF(Settings!$Q$5="CBS",K8,IF(Settings!$R$5="NFBC",P8,MAX(AA8*1.33,IFERROR($P8,999),IFERROR($K8,999)))),"") ->  | AH8: =INDEX('Import (ADP)'!$C$2:$C$999,MATCH(A8, 'Import (ADP)'!$B$2:$B$999,0)) ->  | AK8: =IF(VLOOKUP(A9,'Name Sort'!$D$2:$E$936,2,FALSE)="",A9,"") -> Jesus Aguilar | AL8: =IFERROR(INDEX($AK$1:$AK$943,SMALL(IF($AK$1:$AK$943<>"",ROW($AK$1:$AK$943)),ROW(AK8))),"") -> Jesus Aguilar
A9: Jesus Aguilar | B9: aguilje01 | C9: 1B | E9: MIA | F9: 31 | G9: 284 | H9: 203 | I9: 170.25 | J9: 88 | K9: 241 | L9: 263 | M9: 315 | N9: 293.95 | O9: 214 | P9: 378 | Q9: 254.8666667 | S9: 213.3 | T9: 230 | U9: 245 | V9: 232.6 | X9: =IFERROR(INDEX('Guts-2'!$K$1:$K$30,MATCH(E9,'Guts-2'!$J$1:$J$30,0)),TRUE) -> TRUE | Y9: =IFERROR(IF(OR(X9=FALSE,INDEX('Player Notes'!$I$3:$I$999,MATCH(A9,'Player Notes'!$A$3:$A$999,0),1)="Yes"),"",IFERROR(CHOOSE('Guts-2'!$D$27,R9,S9,T9,U9,V9,W9),"")),"") -> 230 | Z9: 230 | AA9: =IFERROR(IF(OR(X9=FALSE,INDEX('Player Notes'!$I$3:$I$999,MATCH(A9,'Player Notes'!$A$3:$A$999,0),1)="Yes"),"",IFERROR(CHOOSE('Guts-2'!$D$26,G9,H9,I9,L9,M9,N9,Q9,AH9),"")),"") -> 170.25 | AB9: =IFERROR(IF(Settings!$L$5="Mixed (Standard)",AA9,RANK(AA9,$AA$2:$AA$943,1)),"") -> 170.25 | AC9: =IFERROR(IF(Settings!$L$5="Mixed (Standard)",(RANK(AA9,$AA$2:$AA$943,1)/('Guts-2'!$N$1+1))+1,(RANK(AB9,$AB$2:$AB$943,1)/('Guts-2'!$N$1+1))+1),"") -> 14.23076923 | AD9: =IFERROR(IF(Settings!$Q$5="CBS",J9,IF(Settings!$R$5="NFBC",O9,MIN(AA9*0.75,IFERROR($O9,999),IFERROR($J9,999)))),"") -> 88 | AE9: =IFERROR(IF(Settings!$Q$5="CBS",K9,IF(Settings!$R$5="NFBC",P9,MAX(AA9*1.33,IFERROR($P9,999),IFERROR($K9,999)))),"") -> 378 | AF9: 88 | AG9: 378 | AH9: =INDEX('Import (ADP)'!$C$2:$C$999,MATCH(A9, 'Import (ADP)'!$B$2:$B$999,0)) ->  | AK9: =IF(VLOOKUP(A10,'Name Sort'!$D$2:$E$936,2,FALSE)="",A10,"") -> Nick Ahmed | AL9: =IFERROR(INDEX($AK$1:$AK$943,SMALL(IF($AK$1:$AK$943<>"",ROW($AK$1:$AK$943)),ROW(AK9))),"") -> Nick Ahmed
A10: Nick Ahmed | B10: ahmedni01 | C10: SS | E10: ARI | F10: 32 | G10: 555 | M10: 525 | N10: 686.53 | O10: 409 | P10: 731 | Q10: 588.8433333 | V10: 411.8 | X10: =IFERROR(INDEX('Guts-2'!$K$1:$K$30,MATCH(E10,'Guts-2'!$J$1:$J$30,0)),TRUE) -> TRUE | Y10: =IFERROR(IF(OR(X10=FALSE,INDEX('Player Notes'!$I$3:$I$999,MATCH(A10,'Player Notes'!$A$3:$A$999,0),1)="Yes"),"",IFERROR(CHOOSE('Guts-2'!$D$27,R10,S10,T10,U10,V10,W10),"")),"") ->  | AA10: =IFERROR(IF(OR(X10=FALSE,INDEX('Player Notes'!$I$3:$I$999,MATCH(A10,'Player Notes'!$A$3:$A$999,0),1)="Yes"),"",IFERROR(CHOOSE('Guts-2'!$D$26,G10,H10,I10,L10,M10,N10,Q10,AH10),"")),"") ->  | AB10: =IFERROR(IF(Settings!$L$5="Mixed (Standard)",AA10,RANK(AA10,$AA$2:$AA$943,1)),"") ->  | AC10: =IFERROR(IF(Settings!$L$5="Mixed (Standard)",(RANK(AA10,$AA$2:$AA$943,1)/('Guts-2'!$N$1+1))+1,(RANK(AB10,$AB$2:$AB$943,1)/('Guts-2'!$N$1+1))+1),"") ->  | AD10: =IFERROR(IF(Settings!$Q$5="CBS",J10,IF(Settings!$R$5="NFBC",O10,MIN(AA10*0.75,IFERROR($O10,999),IFERROR($J10,999)))),"") ->  | AE10: =IFERROR(IF(Settings!$Q$5="CBS",K10,IF(Settings!$R$5="NFBC",P10,MAX(AA10*1.33,IFERROR($P10,999),IFERROR($K10,999)))),"") ->  | AH10: =INDEX('Import (ADP)'!$C$2:$C$999,MATCH(A10, 'Import (ADP)'!$B$2:$B$999,0)) ->  | AK10: =IF(VLOOKUP(A11,'Name Sort'!$D$2:$E$936,2,FALSE)="",A11,"") -> Shogo Akiyama | AL10: =IFERROR(INDEX($AK$1:$AK$943,SMALL(IF($AK$1:$AK$943<>"",ROW($AK$1:$AK$943)),ROW(AK10))),"") -> Shogo Akiyama
A11: Shogo Akiyama | B11: akimash01 | C11: OF | D11: CF | E11: CIN | F11: 33 | G11: 943 | L11: 461 | N11: 749.78 | O11: 672 | P11: 731 | V11: 1176.5 | X11: =IFERROR(INDEX('Guts-2'!$K$1:$K$30,MATCH(E11,'Guts-2'!$J$1:$J$30,0)),TRUE) -> TRUE | Y11: =IFERROR(IF(OR(X11=FALSE,INDEX('Player Notes'!$I$3:$I$999,MATCH(A11,'Player Notes'!$A$3:$A$999,0),1)="Yes"),"",IFERROR(CHOOSE('Guts-2'!$D$27,R11,S11,T11,U11,V11,W11),"")),"") ->  | AA11: =IFERROR(IF(OR(X11=FALSE,INDEX('Player Notes'!$I$3:$I$999,MATCH(A11,'Player Notes'!$A$3:$A$999,0),1)="Yes"),"",IFERROR(CHOOSE('Guts-2'!$D$26,G11,H11,I11,L11,M11,N11,Q11,AH11),"")),"") ->  | AB11: =IFERROR(IF(Settings!$L$5="Mixed (Standard)",AA11,RANK(AA11,$AA$2:$AA$943,1)),"") ->  | AC11: =IFERROR(IF(Settings!$L$5="Mixed (Standard)",(RANK(AA11,$AA$2:$AA$943,1)/('Guts-2'!$N$1+1))+1,(RANK(AB11,$AB$2:$AB$943,1)/('Guts-2'!$N$1+1))+1),"") ->  | AD11: =IFERROR(IF(Settings!$Q$5="CBS",J11,IF(Settings!$R$5="NFBC",O11,MIN(AA11*0.75,IFERROR($O11,999),IFERROR($J11,999)))),"") ->  | AE11: =IFERROR(IF(Settings!$Q$5="CBS",K11,IF(Settings!$R$5="NFBC",P11,MAX(AA11*1.33,IFERROR($P11,999),IFERROR($K11,999)))),"") ->  | AH11: =INDEX('Import (ADP)'!$C$2:$C$999,MATCH(A11, 'Import (ADP)'!$B$2:$B$999,0)) ->  | AK11: =IF(VLOOKUP(A12,'Name Sort'!$D$2:$E$936,2,FALSE)="",A12,"") -> Ozzie Albies | AL11: =IFERROR(INDEX($AK$1:$AK$943,SMALL(IF($AK$1:$AK$943<>"",ROW($AK$1:$AK$943)),ROW(AK11))),"") -> Ozzie Albies
A12: Ozzie Albies | B12: albieoz01 | C12: 2B | E12: ATL | F12: 25 | G12: 17 | H12: 21 | I12: 25.89 | J12: 14 | K12: 43 | L12: 22 | M12: 19 | N12: 17.47 | O12: 9 | P12: 32 | Q12: 20.39333333 | R12: 18 | S12: 18 | T12: 25 | U12: 20 | V12: 17.3 | X12: =IFERROR(INDEX('Guts-2'!$K$1:$K$30,MATCH(E12,'Guts-2'!$J$1:$J$30,0)),TRUE) -> TRUE | Y12: =IFERROR(IF(OR(X12=FALSE,INDEX('Player Notes'!$I$3:$I$999,MATCH(A12,'Player Notes'!$A$3:$A$999,0),1)="Yes"),"",IFERROR(CHOOSE('Guts-2'!$D$27,R12,S12,T12,U12,V12,W12),"")),"") -> 25 | Z12: 25 | AA12: =IFERROR(IF(OR(X12=FALSE,INDEX('Player Notes'!$I$3:$I$999,MATCH(A12,'Player Notes'!$A$3:$A$999,0),1)="Yes"),"",IFERROR(CHOOSE('Guts-2'!$D$26,G12,H12,I12,L12,M12,N12,Q12,AH12),"")),"") -> 25.89 | AB12: =IFERROR(IF(Settings!$L$5="Mixed (Standard)",AA12,RANK(AA12,$AA$2:$AA$943,1)),"") -> 25.89 | AC12: =IFERROR(IF(Settings!$L$5="Mixed (Standard)",(RANK(AA12,$AA$2:$AA$943,1)/('Guts-2'!$N$1+1))+1,(RANK(AB12,$AB$2:$AB$943,1)/('Guts-2'!$N$1+1))+1),"") -> 2.692307692 | AD12: =IFERROR(IF(Settings!$Q$5="CBS",J12,IF(Settings!$R$5="NFBC",O12,MIN(AA12*0.75,IFERROR($O12,999),IFERROR($J12,999)))),"") -> 9 | AE12: =IFERROR(IF(Settings!$Q$5="CBS",K12,IF(Settings!$R$5="NFBC",P12,MAX(AA12*1.33,IFERROR($P12,999),IFERROR($K12,999)))),"") -> 43 | AF12: 9 | AG12: 43 | AH12: =INDEX('Import (ADP)'!$C$2:$C$999,MATCH(A12, 'Import (ADP)'!$B$2:$B$999,0)) ->  | AK12: =IF(VLOOKUP(A13,'Name Sort'!$D$2:$E$936,2,FALSE)="",A13,"") -> Jorge Alcala | AL12: =IFERROR(INDEX($AK$1:$AK$943,SMALL(IF($AK$1:$AK$943<>"",ROW($AK$1:$AK$943)),ROW(AK12))),"") -> Jorge Alcala
A13: Jorge Alcala | B13: alcaljo01 | C13: RP | E13: MIN | F13: 26 | G13: 440 | M13: 519 | N13: 560.04 | O13: 122 | P13: 627 | Q13: 506.3466667 | V13: 359 | X13: =IFERROR(INDEX('Guts-2'!$K$1:$K$30,MATCH(E13,'Guts-2'!$J$1:$J$30,0)),TRUE) -> TRUE | Y13: =IFERROR(IF(OR(X13=FALSE,INDEX('Player Notes'!$I$3:$I$999,MATCH(A13,'Player Notes'!$A$3:$A$999,0),1)="Yes"),"",IFERROR(CHOOSE('Guts-2'!$D$27,R13,S13,T13,U13,V13,W13),"")),"") ->  | AA13: =IFERROR(IF(OR(X13=FALSE,INDEX('Player Notes'!$I$3:$I$999,MATCH(A13,'Player Notes'!$A$3:$A$999,0),1)="Yes"),"",IFERROR(CHOOSE('Guts-2'!$D$26,G13,H13,I13,L13,M13,N13,Q13,AH13),"")),"") ->  | AB13: =IFERROR(IF(Settings!$L$5="Mixed (Standard)",AA13,RANK(AA13,$AA$2:$AA$943,1)),"") ->  | AC13: =IFERROR(IF(Settings!$L$5="Mixed (Standard)",(RANK(AA13,$AA$2:$AA$943,1)/('Guts-2'!$N$1+1))+1,(RANK(AB13,$AB$2:$AB$943,1)/('Guts-2'!$N$1+1))+1),"") ->  | AD13: =IFERROR(IF(Settings!$Q$5="CBS",J13,IF(Settings!$R$5="NFBC",O13,MIN(AA13*0.75,IFERROR($O13,999),IFERROR($J13,999)))),"") ->  | AE13: =IFERROR(IF(Settings!$Q$5="CBS",K13,IF(Settings!$R$5="NFBC",P13,MAX(AA13*1.33,IFERROR($P13,999),IFERROR($K13,999)))),"") ->  | AH13: =INDEX('Import (ADP)'!$C$2:$C$999,MATCH(A13, 'Import (ADP)'!$B$2:$B$999,0)) ->  | AK13: =IF(VLOOKUP(A14,'Name Sort'!$D$2:$E$936,2,FALSE)="",A14,"") -> Sandy Alcantara | AL13: =IFERROR(INDEX($AK$1:$AK$943,SMALL(IF($AK$1:$AK$943<>"",ROW($AK$1:$AK$943)),ROW(AK13))),"") -> Sandy Alcantara
A14: Sandy Alcantara | B14: alcansa01 | C14: SP | E14: ARI | F14: 26 | G14: 41 | H14: 41 | I14: 56.58 | J14: 24 | K14: 120 | L14: 33 | M14: 32 | N14: 45.92 | O14: 21 | P14: 96 | Q14: 41.58333333 | R14: 80 | S14: 53.3 | T14: 28 | U14: 38 | V14: 42.9 | X14: =IFERROR(INDEX('Guts-2'!$K$1:$K$30,MATCH(E14,'Guts-2'!$J$1:$J$30,0)),TRUE) -> TRUE | Y14: =IFERROR(IF(OR(X14=FALSE,INDEX('Player Notes'!$I$3:$I$999,MATCH(A14,'Player Notes'!$A$3:$A$999,0),1)="Yes"),"",IFERROR(CHOOSE('Guts-2'!$D$27,R14,S14,T14,U14,V14,W14),"")),"") -> 28 | Z14: 28 | AA14: =IFERROR(IF(OR(X14=FALSE,INDEX('Player Notes'!$I$3:$I$999,MATCH(A14,'Player Notes'!$A$3:$A$999,0),1)="Yes"),"",IFERROR(CHOOSE('Guts-2'!$D$26,G14,H14,I14,L14,M14,N14,Q14,AH14),"")),"") -> 56.58 | AB14: =IFERROR(IF(Settings!$L$5="Mixed (Standard)",AA14,RANK(AA14,$AA$2:$AA$943,1)),"") -> 56.58 | AC14: =IFERROR(IF(Settings!$L$5="Mixed (Standard)",(RANK(AA14,$AA$2:$AA$943,1)/('Guts-2'!$N$1+1))+1,(RANK(AB14,$AB$2:$AB$943,1)/('Guts-2'!$N$1+1))+1),"") -> 5.076923077 | AD14: =IFERROR(IF(Settings!$Q$5="CBS",J14,IF(Settings!$R$5="NFBC",O14,MIN(AA14*0.75,IFERROR($O14,999),IFERROR($J14,999)))),"") -> 21 | AE14: =IFERROR(IF(Settings!$Q$5="CBS",K14,IF(Settings!$R$5="NFBC",P14,MAX(AA14*1.33,IFERROR($P14,999),IFERROR($K14,999)))),"") -> 120 | AF14: 21 | AG14: 120 | AH14: =INDEX('Import (ADP)'!$C$2:$C$999,MATCH(A14, 'Import (ADP)'!$B$2:$B$999,0)) ->  | AK14: =IF(VLOOKUP(A15,'Name Sort'!$D$2:$E$936,2,FALSE)="",A15,"") -> Sergio Alcantara | AL14: =IFERROR(INDEX($AK$1:$AK$943,SMALL(IF($AK$1:$AK$943<>"",ROW($AK$1:$AK$943)),ROW(AK14))),"") -> Sergio Alcantara
A15: Sergio Alcantara | B15: alcanse01 | C15: SS | E15: CHC | F15: 25 | G15: 832 | L15: 402 | M15: 949 | N15: 748.56 | O15: 538 | P15: 746 | Q15: 732.89 | V15: 1207 | X15: =IFERROR(INDEX('Guts-2'!$K$1:$K$30,MATCH(E15,'Guts-2'!$J$1:$J$30,0)),TRUE) -> TRUE | Y15: =IFERROR(IF(OR(X15=FALSE,INDEX('Player Notes'!$I$3:$I$999,MATCH(A15,'Player Notes'!$A$3:$A$999,0),1)="Yes"),"",IFERROR(CHOOSE('Guts-2'!$D$27,R15,S15,T15,U15,V15,W15),"")),"") ->  | AA15: =IFERROR(IF(OR(X15=FALSE,INDEX('Player Notes'!$I$3:$I$999,MATCH(A15,'Player Notes'!$A$3:$A$999,0),1)="Yes"),"",IFERROR(CHOOSE('Guts-2'!$D$26,G15,H15,I15,L15,M15,N15,Q15,AH15),"")),"") ->  | AB15: =IFERROR(IF(Settings!$L$5="Mixed (Standard)",AA15,RANK(AA15,$AA$2:$AA$943,1)),"") ->  | AC15: =IFERROR(IF(Settings!$L$5="Mixed (Standard)",(RANK(AA15,$AA$2:$AA$943,1)/('Guts-2'!$N$1+1))+1,(RANK(AB15,$AB$2:$AB$943,1)/('Guts-2'!$N$1+1))+1),"") ->  | AD15: =IFERROR(IF(Settings!$Q$5="CBS",J15,IF(Settings!$R$5="NFBC",O15,MIN(AA15*0.75,IFERROR($O15,999),IFERROR($J15,999)))),"") ->  | AE15: =IFERROR(IF(Settings!$Q$5="CBS",K15,IF(Settings!$R$5="NFBC",P15,MAX(AA15*1.33,IFERROR($P15,999),IFERROR($K15,999)))),"") ->  | AH15: =INDEX('Import (ADP)'!$C$2:$C$999,MATCH(A15, 'Import (ADP)'!$B$2:$B$999,0)) ->  | AK15: =IF(VLOOKUP(A16,'Name Sort'!$D$2:$E$936,2,FALSE)="",A16,"") -> Tyler Alexander | AL15: =IFERROR(INDEX($AK$1:$AK$943,SMALL(IF($AK$1:$AK$943<>"",ROW($AK$1:$AK$943)),ROW(AK15))),"") -> Tyler Alexander
A16: Tyler Alexander | B16: alexaty01 | C16: RP | E16: DET | F16: 27 | G16: 568 | M16: 744 | N16: 694.68 | O16: 306 | P16: 746 | Q16: 668.8933333 | V16: 713.5 | X16: =IFERROR(INDEX('Guts-2'!$K$1:$K$30,MATCH(E16,'Guts-2'!$J$1:$J$30,0)),TRUE) -> TRUE | Y16: =IFERROR(IF(OR(X16=FALSE,INDEX('Player Notes'!$I$3:$I$999,MATCH(A16,'Player Notes'!$A$3:$A$999,0),1)="Yes"),"",IFERROR(CHOOSE('Guts-2'!$D$27,R16,S16,T16,U16,V16,W16),"")),"") ->  | AA16: =IFERROR(IF(OR(X16=FALSE,INDEX('Player Notes'!$I$3:$I$999,MATCH(A16,'Player Notes'!$A$3:$A$999,0),1)="Yes"),"",IFERROR(CHOOSE('Guts-2'!$D$26,G16,H16,I16,L16,M16,N16,Q16,AH16),"")),"") ->  | AB16: =IFERROR(IF(Settings!$L$5="Mixed (Standard)",AA16,RANK(AA16,$AA$2:$AA$943,1)),"") ->  | AC16: =IFERROR(IF(Settings!$L$5="Mixed (Standard)",(RANK(AA16,$AA$2:$AA$943,1)/('Guts-2'!$N$1+1))+1,(RANK(AB16,$AB$2:$AB$943,1)/('Guts-2'!$N$1+1))+1),"") ->  | AD16: =IFERROR(IF(Settings!$Q$5="CBS",J16,IF(Settings!$R$5="NFBC",O16,MIN(AA16*0.75,IFERROR($O16,999),IFERROR($J16,999)))),"") ->  | AE16: =IFERROR(IF(Settings!$Q$5="CBS",K16,IF(Settings!$R$5="NFBC",P16,MAX(AA16*1.33,IFERROR($P16,999),IFERROR($K16,999)))),"") ->  | AH16: =INDEX('Import (ADP)'!$C$2:$C$999,MATCH(A16, 'Import (ADP)'!$B$2:$B$999,0)) ->  | AK16: =IF(VLOOKUP(A17,'Name Sort'!$D$2:$E$936,2,FALSE)="",A17,"") -> A.J. Alexy | AL16: =IFERROR(INDEX($AK$1:$AK$943,SMALL(IF($AK$1:$AK$943<>"",ROW($AK$1:$AK$943)),ROW(AK16))),"") -> A.J. Alexy
A17: A.J. Alexy | B17: alexyaj01 | C17: SP | E17: TEX | F17: 23 | G17: 658 | M17: 719 | N17: 723.75 | O17: 449 | P17: 739 | Q17: 700.25 | V17: 835 | X17: =IFERROR(INDEX('Guts-2'!$K$1:$K$30,MATCH(E17,'Guts-2'!$J$1:$J$30,0)),TRUE) -> TRUE | Y17: =IFERROR(IF(OR(X17=FALSE,INDEX('Player Notes'!$I$3:$I$999,MATCH(A17,'Player Notes'!$A$3:$A$999,0),1)="Yes"),"",IFERROR(CHOOSE('Guts-2'!$D$27,R17,S17,T17,U17,V17,W17),"")),"") ->  | AA17: =IFERROR(IF(OR(X17=FALSE,INDEX('Player Notes'!$I$3:$I$999,MATCH(A17,'Player Notes'!$A$3:$A$999,0),1)="Yes"),"",IFERROR(CHOOSE('Guts-2'!$D$26,G17,H17,I17,L17,M17,N17,Q17,AH17),"")),"") ->  | AB17: =IFERROR(IF(Settings!$L$5="Mixed (Standard)",AA17,RANK(AA17,$AA$2:$AA$943,1)),"") ->  | AC17: =IFERROR(IF(Settings!$L$5="Mixed (Standard)",(RANK(AA17,$AA$2:$AA$943,1)/('Guts-2'!$N$1+1))+1,(RANK(AB17,$AB$2:$AB$943,1)/('Guts-2'!$N$1+1))+1),"") ->  | AD17: =IFERROR(IF(Settings!$Q$5="CBS",J17,IF(Settings!$R$5="NFBC",O17,MIN(AA17*0.75,IFERROR($O17,999),IFERROR($J17,999)))),"") ->  | AE17: =IFERROR(IF(Settings!$Q$5="CBS",K17,IF(Settings!$R$5="NFBC",P17,MAX(AA17*1.33,IFERROR($P17,999),IFERROR($K17,999)))),"") ->  | AH17: =INDEX('Import (ADP)'!$C$2:$C$999,MATCH(A17, 'Import (ADP)'!$B$2:$B$999,0)) ->  | AK17: =IF(VLOOKUP(A18,'Name Sort'!$D$2:$E$936,2,FALSE)="",A18,"") -> Jorge Alfaro | AL17: =IFERROR(INDEX($AK$1:$AK$943,SMALL(IF($AK$1:$AK$943<>"",ROW($AK$1:$AK$943)),ROW(AK17))),"") -> Jorge Alfaro
A18: Jorge Alfaro | B18: alfarjo01 | C18: C | D18: LF | E18: SD | F18: 28 | G18: 355 | M18: 443 | N18: 463.86 | O18: 258 | P18: 464 | Q18: 420.62 | V18: 409.5 | X18: =IFERROR(INDEX('Guts-2'!$K$1:$K$30,MATCH(E18,'Guts-2'!$J$1:$J$30,0)),TRUE) -> TRUE | Y18: =IFERROR(IF(OR(X18=FALSE,INDEX('Player Notes'!$I$3:$I$999,MATCH(A18,'Player Notes'!$A$3:$A$999,0),1)="Yes"),"",IFERROR(CHOOSE('Guts-2'!$D$27,R18,S18,T18,U18,V18,W18),"")),"") ->  | AA18: =IFERROR(IF(OR(X18=FALSE,INDEX('Player Notes'!$I$3:$I$999,MATCH(A18,'Player Notes'!$A$3:$A$999,0),1)="Yes"),"",IFERROR(CHOOSE('Guts-2'!$D$26,G18,H18,I18,L18,M18,N18,Q18,AH18),"")),"") ->  | AB18: =IFERROR(IF(Settings!$L$5="Mixed (Standard)",AA18,RANK(AA18,$AA$2:$AA$943,1)),"") ->  | AC18: =IFERROR(IF(Settings!$L$5="Mixed (Standard)",(RANK(AA18,$AA$2:$AA$943,1)/('Guts-2'!$N$1+1))+1,(RANK(AB18,$AB$2:$AB$943,1)/('Guts-2'!$N$1+1))+1),"") ->  | AD18: =IFERROR(IF(Settings!$Q$5="CBS",J18,IF(Settings!$R$5="NFBC",O18,MIN(AA18*0.75,IFERROR($O18,999),IFERROR($J18,999)))),"") ->  | AE18: =IFERROR(IF(Settings!$Q$5="CBS",K18,IF(Settings!$R$5="NFBC",P18,MAX(AA18*1.33,IFERROR($P18,999),IFERROR($K18,999)))),"") ->  | AH18: =INDEX('Import (ADP)'!$C$2:$C$999,MATCH(A18, 'Import (ADP)'!$B$2:$B$999,0)) ->  | AK18: =IF(VLOOKUP(A19,'Name Sort'!$D$2:$E$936,2,FALSE)="",A19,"") -> Anthony Alford | AL18: =IFERROR(INDEX($AK$1:$AK$943,SMALL(IF($AK$1:$AK$943<>"",ROW($AK$1:$AK$943)),ROW(AK18))),"") -> Anthony Alford
A19: Anthony Alford | B19: alforan01 | C19: OF | D19: LF,CF | E19: PIT | F19: 27 | G19: 503 | M19: 581 | N19: 629.62 | O19: 352 | P19: 599 | Q19: 571.2066667 | V19: 467.7 | X19: =IFERROR(INDEX('Guts-2'!$K$1:$K$30,MATCH(E19,'Guts-2'!$J$1:$J$30,0)),TRUE) -> TRUE | Y19: =IFERROR(IF(OR(X19=FALSE,INDEX('Player Notes'!$I$3:$I$999,MATCH(A19,'Player Notes'!$A$3:$A$999,0),1)="Yes"),"",IFERROR(CHOOSE('Guts-2'!$D$27,R19,S19,T19,U19,V19,W19),"")),"") ->  | AA19: =IFERROR(IF(OR(X19=FALSE,INDEX('Player Notes'!$I$3:$I$999,MATCH(A19,'Player Notes'!$A$3:$A$999,0),1)="Yes"),"",IFERROR(CHOOSE('Guts-2'!$D$26,G19,H19,I19,L19,M19,N19,Q19,AH19),"")),"") ->  | AB19: =IFERROR(IF(Settings!$L$5="Mixed (Standard)",AA19,RANK(AA19,$AA$2:$AA$943,1)),"") ->  | AC19: =IFERROR(IF(Settings!$L$5="Mixed (Standard)",(RANK(AA19,$AA$2:$AA$943,1)/('Guts-2'!$N$1+1))+1,(RANK(AB19,$AB$2:$AB$943,1)/('Guts-2'!$N$1+1))+1),"") ->  | AD19: =IFERROR(IF(Settings!$Q$5="CBS",J19,IF(Settings!$R$5="NFBC",O19,MIN(AA19*0.75,IFERROR($O19,999),IFERROR($J19,999)))),"") ->  | AE19: =IFERROR(IF(Settings!$Q$5="CBS",K19,IF(Settings!$R$5="NFBC",P19,MAX(AA19*1.33,IFERROR($P19,999),IFERROR($K19,999)))),"") ->  | AH19: =INDEX('Import (ADP)'!$C$2:$C$999,MATCH(A19, 'Import (ADP)'!$B$2:$B$999,0)) ->  | AK19: =IF(VLOOKUP(A20,'Name Sort'!$D$2:$E$936,2,FALSE)="",A20,"") -> Kolby Allard | AL19: =IFERROR(INDEX($AK$1:$AK$943,SMALL(IF($AK$1:$AK$943<>"",ROW($AK$1:$AK$943)),ROW(AK19))),"") -> Kolby Allard
A20: Kolby Allard | B20: allarko01 | C20: RP | E20: TEX | F20: 24 | G20: 766 | M20: 840 | N20: 745.67 | O20: 552 | P20: 744 | Q20: 783.89 | V20: 636.5 | X20: =IFERROR(INDEX('Guts-2'!$K$1:$K$30,MATCH(E20,'Guts-2'!$J$1:$J$30,0)),TRUE) -> TRUE | Y20: =IFERROR(IF(OR(X20=FALSE,INDEX('Player Notes'!$I$3:$I$999,MATCH(A20,'Player Notes'!$A$3:$A$999,0),1)="Yes"),"",IFERROR(CHOOSE('Guts-2'!$D$27,R20,S20,T20,U20,V20,W20),"")),"") ->  | AA20: =IFERROR(IF(OR(X20=FALSE,INDEX('Player Notes'!$I$3:$I$999,MATCH(A20,'Player Notes'!$A$3:$A$999,0),1)="Yes"),"",IFERROR(CHOOSE('Guts-2'!$D$26,G20,H20,I20,L20,M20,N20,Q20,AH20),"")),"") ->  | AB20: =IFERROR(IF(Settings!$L$5="Mixed (Standard)",AA20,RANK(AA20,$AA$2:$AA$943,1)),"") ->  | AC20: =IFERROR(IF(Settings!$L$5="Mixed (Standard)",(RANK(AA20,$AA$2:$AA$943,1)/('Guts-2'!$N$1+1))+1,(RANK(AB20,$AB$2:$AB$943,1)/('Guts-2'!$N$1+1))+1),"") ->  | AD20: =IFERROR(IF(Settings!$Q$5="CBS",J20,IF(Settings!$R$5="NFBC",O20,MIN(AA20*0.75,IFERROR($O20,999),IFERROR($J20,999)))),"") ->  | AE20: =IFERROR(IF(Settings!$Q$5="CBS",K20,IF(Settings!$R$5="NFBC",P20,MAX(AA20*1.33,IFERROR($P20,999),IFERROR($K20,999)))),"") ->  | AH20: =INDEX('Import (ADP)'!$C$2:$C$999,MATCH(A20, 'Import (ADP)'!$B$2:$B$999,0)) ->  | AK20: =IF(VLOOKUP(A21,'Name Sort'!$D$2:$E$936,2,FALSE)="",A21,"") -> Austin Allen | AL20: =IFERROR(INDEX($AK$1:$AK$943,SMALL(IF($AK$1:$AK$943<>"",ROW($AK$1:$AK$943)),ROW(AK20))),"") -> Austin Allen
A21: Austin Allen | B21: allenau01 | C21: DH | E21: OAK | F21: 28 | G21: 709 | M21: 963 | N21: 737.95 | O21: 506 | P21: 749 | Q21: 803.3166667 | V21: 949.5 | X21: =IFERROR(INDEX('Guts-2'!$K$1:$K$30,MATCH(E21,'Guts-2'!$J$1:$J$30,0)),TRUE) -> TRUE | Y21: =IFERROR(IF(OR(X21=FALSE,INDEX('Player Notes'!$I$3:$I$999,MATCH(A21,'Player Notes'!$A$3:$A$999,0),1)="Yes"),"",IFERROR(CHOOSE('Guts-2'!$D$27,R21,S21,T21,U21,V21,W21),"")),"") ->  | AA21: =IFERROR(IF(OR(X21=FALSE,INDEX('Player Notes'!$I$3:$I$999,MATCH(A21,'Player Notes'!$A$3:$A$999,0),1)="Yes"),"",IFERROR(CHOOSE('Guts-2'!$D$26,G21,H21,I21,L21,M21,N21,Q21,AH21),"")),"") ->  | AB21: =IFERROR(IF(Settings!$L$5="Mixed (Standard)",AA21,RANK(AA21,$AA$2:$AA$943,1)),"") ->  | AC21: =IFERROR(IF(Settings!$L$5="Mixed (Standard)",(RANK(AA21,$AA$2:$AA$943,1)/('Guts-2'!$N$1+1))+1,(RANK(AB21,$AB$2:$AB$943,1)/('Guts-2'!$N$1+1))+1),"") ->  | AD21: =IFERROR(IF(Settings!$Q$5="CBS",J21,IF(Settings!$R$5="NFBC",O21,MIN(AA21*0.75,IFERROR($O21,999),IFERROR($J21,999)))),"") ->  | AE21: =IFERROR(IF(Settings!$Q$5="CBS",K21,IF(Settings!$R$5="NFBC",P21,MAX(AA21*1.33,IFERROR($P21,999),IFERROR($K21,999)))),"") ->  | AH21: =INDEX('Import (ADP)'!$C$2:$C$999,MATCH(A21, 'Import (ADP)'!$B$2:$B$999,0)) ->  | AK21: =IF(VLOOKUP(A22,'Name Sort'!$D$2:$E$936,2,FALSE)="",A22,"") -> Greg Allen | AL21: =IFERROR(INDEX($AK$1:$AK$943,SMALL(IF($AK$1:$AK$943<>"",ROW($AK$1:$AK$943)),ROW(AK21))),"") -> Greg Allen
A22: Greg Allen | B22: allengr01 | C22: OF | D22: RF | E22: PIT | F22: 29 | G22: 686 | L22: 450 | M22: 915 | N22: 734.65 | O22: 536 | P22: 749 | Q22: 696.4125 | V22: 967 | X22: =IFERROR(INDEX('Guts-2'!$K$1:$K$30,MATCH(E22,'Guts-2'!$J$1:$J$30,0)),TRUE) -> TRUE | Y22: =IFERROR(IF(OR(X22=FALSE,INDEX('Player Notes'!$I$3:$I$999,MATCH(A22,'Player Notes'!$A$3:$A$999,0),1)="Yes"),"",IFERROR(CHOOSE('Guts-2'!$D$27,R22,S22,T22,U22,V22,W22),"")),"") ->  | AA22: =IFERROR(IF(OR(X22=FALSE,INDEX('Player Notes'!$I$3:$I$999,MATCH(A22,'Player Notes'!$A$3:$A$999,0),1)="Yes"),"",IFERROR(CHOOSE('Guts-2'!$D$26,G22,H22,I22,L22,M22,N22,Q22,AH22),"")),"") ->  | AB22: =IFERROR(IF(Settings!$L$5="Mixed (Standard)",AA22,RANK(AA22,$AA$2:$AA$943,1)),"") ->  | AC22: =IFERROR(IF(Settings!$L$5="Mixed (Standard)",(RANK(AA22,$AA$2:$AA$943,1)/('Guts-2'!$N$1+1))+1,(RANK(AB22,$AB$2:$AB$943,1)/('Guts-2'!$N$1+1))+1),"") ->  | AD22: =IFERROR(IF(Settings!$Q$5="CBS",J22,IF(Settings!$R$5="NFBC",O22,MIN(AA22*0.75,IFERROR($O22,999),IFERROR($J22,999)))),"") ->  | AE22: =IFERROR(IF(Settings!$Q$5="CBS",K22,IF(Settings!$R$5="NFBC",P22,MAX(AA22*1.33,IFERROR($P22,999),IFERROR($K22,999)))),"") ->  | AH22: =INDEX('Import (ADP)'!$C$2:$C$999,MATCH(A22, 'Import (ADP)'!$B$2:$B$999,0)) ->  | AK22: =IF(VLOOKUP(A23,'Name Sort'!$D$2:$E$936,2,FALSE)="",A23,"") -> Logan Allen | AL22: =IFERROR(INDEX($AK$1:$AK$943,SMALL(IF($AK$1:$AK$943<>"",ROW($AK$1:$AK$943)),ROW(AK22))),"") -> Logan Allen
A23: Logan Allen | B23: allenlo01 | C23: RP | E23: CLE | F23: 24 | N23: 750.61 | O23: 695 | P23: 744 | Q23: 750.61 | X23: =IFERROR(INDEX('Guts-2'!$K$1:$K$30,MATCH(E23,'Guts-2'!$J$1:$J$30,0)),TRUE) -> TRUE | Y23: =IFERROR(IF(OR(X23=FALSE,INDEX('Player Notes'!$I$3:$I$999,MATCH(A23,'Player Notes'!$A$3:$A$999,0),1)="Yes"),"",IFERROR(CHOOSE('Guts-2'!$D$27,R23,S23,T23,U23,V23,W23),"")),"") ->  | AA23: =IFERROR(IF(OR(X23=FALSE,INDEX('Player Notes'!$I$3:$I$999,MATCH(A23,'Player Notes'!$A$3:$A$999,0),1)="Yes"),"",IFERROR(CHOOSE('Guts-2'!$D$26,G23,H23,I23,L23,M23,N23,Q23,AH23),"")),"") ->  | AB23: =IFERROR(IF(Settings!$L$5="Mixed (Standard)",AA23,RANK(AA23,$AA$2:$AA$943,1)),"") ->  | AC23: =IFERROR(IF(Settings!$L$5="Mixed (Standard)",(RANK(AA23,$AA$2:$AA$943,1)/('Guts-2'!$N$1+1))+1,(RANK(AB23,$AB$2:$AB$943,1)/('Guts-2'!$N$1+1))+1),"") ->  | AD23: =IFERROR(IF(Settings!$Q$5="CBS",J23,IF(Settings!$R$5="NFBC",O23,MIN(AA23*0.75,IFERROR($O23,999),IFERROR($J23,999)))),"") ->  | AE23: =IFERROR(IF(Settings!$Q$5="CBS",K23,IF(Settings!$R$5="NFBC",P23,MAX(AA23*1.33,IFERROR($P23,999),IFERROR($K23,999)))),"") ->  | AH23: =INDEX('Import (ADP)'!$C$2:$C$999,MATCH(A23, 'Import (ADP)'!$B$2:$B$999,0)) ->  | AK23: =IF(VLOOKUP(A24,'Name Sort'!$D$2:$E$936,2,FALSE)="",A24,"") -> Pete Alonso | AL23: =IFERROR(INDEX($AK$1:$AK$943,SMALL(IF($AK$1:$AK$943<>"",ROW($AK$1:$AK$943)),ROW(AK23))),"") -> Pete Alonso
A24: Pete Alonso | B24: alonspe01 | C24: 1B | E24: NYM | F24: 27 | G24: 47 | H24: 34 | I24: 41.28 | J24: 19 | K24: 68 | L24: 44 | M24: 39 | N24: 44.84 | O24: 25 | P24: 84 | Q24: 41.68666667 | R24: 31 | S24: 68 | T24: 47 | U24: 54 | V24: 46.2 | X24: =IFERROR(INDEX('Guts-2'!$K$1:$K$30,MATCH(E24,'Guts-2'!$J$1:$J$30,0)),TRUE) -> TRUE | Y24: =IFERROR(IF(OR(X24=FALSE,INDEX('Player Notes'!$I$3:$I$999,MATCH(A24,'Player Notes'!$A$3:$A$999,0),1)="Yes"),"",IFERROR(CHOOSE('Guts-2'!$D$27,R24,S24,T24,U24,V24,W24),"")),"") -> 47 | Z24: 47 | AA24: =IFERROR(IF(OR(X24=FALSE,INDEX('Player Notes'!$I$3:$I$999,MATCH(A24,'Player Notes'!$A$3:$A$999,0),1)="Yes"),"",IFERROR(CHOOSE('Guts-2'!$D$26,G24,H24,I24,L24,M24,N24,Q24,AH24),"")),"") -> 41.28 | AB24: =IFERROR(IF(Settings!$L$5="Mixed (Standard)",AA24,RANK(AA24,$AA$2:$AA$943,1)),"") -> 41.28 | AC24: =IFERROR(IF(Settings!$L$5="Mixed (Standard)",(RANK(AA24,$AA$2:$AA$943,1)/('Guts-2'!$N$1+1))+1,(RANK(AB24,$AB$2:$AB$943,1)/('Guts-2'!$N$1+1))+1),"") -> 3.769230769 | AD24: =IFERROR(IF(Settings!$Q$5="CBS",J24,IF(Settings!$R$5="NFBC",O24,MIN(AA24*0.75,IFERROR($O24,999),IFERROR($J24,999)))),"") -> 19 | AE24: =IFERROR(IF(Settings!$Q$5="CBS",K24,IF(Settings!$R$5="NFBC",P24,MAX(AA24*1.33,IFERROR($P24,999),IFERROR($K24,999)))),"") -> 84 | AF24: 19 | AG24: 84 | AH24: =INDEX('Import (ADP)'!$C$2:$C$999,MATCH(A24, 'Import (ADP)'!$B$2:$B$999,0)) -> 32 | AI24: 19 | AJ24: 84 | AK24: =IF(VLOOKUP(A25,'Name Sort'!$D$2:$E$936,2,FALSE)="",A25,"") -> Jose Altuve | AL24: =IFERROR(INDEX($AK$1:$AK$943,SMALL(IF($AK$1:$AK$943<>"",ROW($AK$1:$AK$943)),ROW(AK24))),"") -> Jose Altuve
A25: Jose Altuve | B25: altuvjo01 | C25: 2B | E25: HOU | F25: 31 | G25: 70 | H25: 44 | I25: 34.65 | J25: 15 | K25: 57 | L25: 32 | M25: 59 | N25: 71.26 | O25: 38 | P25: 111 | Q25: 51.81833333 | R25: 47 | S25: 53 | T25: 34 | U25: 46 | V25: 51.3 | X25: =IFERROR(INDEX('Guts-2'!$K$1:$K$30,MATCH(E25,'Guts-2'!$J$1:$J$30,0)),TRUE) -> TRUE | Y25: =IFERROR(IF(OR(X25=FALSE,INDEX('Player Notes'!$I$3:$I$999,MATCH(A25,'Player Notes'!$A$3:$A$999,0),1)="Yes"),"",IFERROR(CHOOSE('Guts-2'!$D$27,R25,S25,T25,U25,V25,W25),"")),"") -> 34 | Z25: 34 | AA25: =IFERROR(IF(OR(X25=FALSE,INDEX('Player Notes'!$I$3:$I$999,MATCH(A25,'Player Notes'!$A$3:$A$999,0),1)="Yes"),"",IFERROR(CHOOSE('Guts-2'!$D$26,G25,H25,I25,L25,M25,N25,Q25,AH25),"")),"") -> 34.65 | AB25: =IFERROR(IF(Settings!$L$5="Mixed (Standard)",AA25,RANK(AA25,$AA$2:$AA$943,1)),"") -> 34.65 | AC25: =IFERROR(IF(Settings!$L$5="Mixed (Standard)",(RANK(AA25,$AA$2:$AA$943,1)/('Guts-2'!$N$1+1))+1,(RANK(AB25,$AB$2:$AB$943,1)/('Guts-2'!$N$1+1))+1),"") -> 3.307692308 | AD25: =IFERROR(IF(Settings!$Q$5="CBS",J25,IF(Settings!$R$5="NFBC",O25,MIN(AA25*0.75,IFERROR($O25,999),IFERROR($J25,999)))),"") -> 15 | AE25: =IFERROR(IF(Settings!$Q$5="CBS",K25,IF(Settings!$R$5="NFBC",P25,MAX(AA25*1.33,IFERROR($P25,999),IFERROR($K25,999)))),"") -> 111 | AF25: 15 | AG25: 111 | AH25: =INDEX('Import (ADP)'!$C$2:$C$999,MATCH(A25, 'Import (ADP)'!$B$2:$B$999,0)) -> 22 | AI25: 15 | AJ25: 111 | AK25: =IF(VLOOKUP(A26,'Name Sort'!$D$2:$E$936,2,FALSE)="",A26,"") -> Jose Alvarado | AL25: =IFERROR(INDEX($AK$1:$AK$943,SMALL(IF($AK$1:$AK$943<>"",ROW($AK$1:$AK$943)),ROW(AK25))),"") -> Jose Alvarado
A26: Jose Alvarado | B26: alvarjo03 | C26: RP | E26: PHI | F26: 26 | G26: 609 | L26: 443 | M26: 718 | N26: 714.42 | O26: 418 | P26: 729 | Q26: 621.105 | V26: 447.8 | X26: =IFERROR(INDEX('Guts-2'!$K$1:$K$30,MATCH(E26,'Guts-2'!$J$1:$J$30,0)),TRUE) -> TRUE | Y26: =IFERROR(IF(OR(X26=FALSE,INDEX('Player Notes'!$I$3:$I$999,MATCH(A26,'Player Notes'!$A$3:$A$999,0),1)="Yes"),"",IFERROR(CHOOSE('Guts-2'!$D$27,R26,S26,T26,U26,V26,W26),"")),"") ->  | AA26: =IFERROR(IF(OR(X26=FALSE,INDEX('Player Notes'!$I$3:$I$999,MATCH(A26,'Player Notes'!$A$3:$A$999,0),1)="Yes"),"",IFERROR(CHOOSE('Guts-2'!$D$26,G26,H26,I26,L26,M26,N26,Q26,AH26),"")),"") ->  | AB26: =IFERROR(IF(Settings!$L$5="Mixed (Standard)",AA26,RANK(AA26,$AA$2:$AA$943,1)),"") ->  | AC26: =IFERROR(IF(Settings!$L$5="Mixed (Standard)",(RANK(AA26,$AA$2:$AA$943,1)/('Guts-2'!$N$1+1))+1,(RANK(AB26,$AB$2:$AB$943,1)/('Guts-2'!$N$1+1))+1),"") ->  | AD26: =IFERROR(IF(Settings!$Q$5="CBS",J26,IF(Settings!$R$5="NFBC",O26,MIN(AA26*0.75,IFERROR($O26,999),IFERROR($J26,999)))),"") ->  | AE26: =IFERROR(IF(Settings!$Q$5="CBS",K26,IF(Settings!$R$5="NFBC",P26,MAX(AA26*1.33,IFERROR($P26,999),IFERROR($K26,999)))),"") ->  | AH26: =INDEX('Import (ADP)'!$C$2:$C$999,MATCH(A26, 'Import (ADP)'!$B$2:$B$999,0)) ->  | AK26: =IF(VLOOKUP(A27,'Name Sort'!$D$2:$E$936,2,FALSE)="",A27,"") -> Yordan Alvarez | AL26: =IFERROR(INDEX($AK$1:$AK$943,SMALL(IF($AK$1:$AK$943<>"",ROW($AK$1:$AK$943)),ROW(AK26))),"") -> Yordan Alvarez
A27: Yordan Alvarez | B27: alvaryo01 | C27: DH | D27: LF | E27: HOU | F27: 24 | G27: 24 | H27: 30 | I27: 53.65 | J27: 23 | K27: 109 | L27: 35 | M27: 23 | N27: 25.5 | O27: 13 | P27: 43 | Q27: 31.85833333 | R27: 21 | S27: 19.3 | T27: 37 | U27: 19 | V27: 23.1 | X27: =IFERROR(INDEX('Guts-2'!$K$1:$K$30,MATCH(E27,'Guts-2'!$J$1:$J$30,0)),TRUE) -> TRUE | Y27: =IFERROR(IF(OR(X27=FALSE,INDEX('Player Notes'!$I$3:$I$999,MATCH(A27,'Player Notes'!$A$3:$A$999,0),1)="Yes"),"",IFERROR(CHOOSE('Guts-2'!$D$27,R27,S27,T27,U27,V27,W27),"")),"") -> 37 | Z27: 37 | AA27: =IFERROR(IF(OR(X27=FALSE,INDEX('Player Notes'!$I$3:$I$999,MATCH(A27,'Player Notes'!$A$3:$A$999,0),1)="Yes"),"",IFERROR(CHOOSE('Guts-2'!$D$26,G27,H27,I27,L27,M27,N27,Q27,AH27),"")),"") -> 53.65 | AB27: =IFERROR(IF(Settings!$L$5="Mixed (Standard)",AA27,RANK(AA27,$AA$2:$AA$943,1)),"") -> 53.65 | AC27: =IFERROR(IF(Settings!$L$5="Mixed (Standard)",(RANK(AA27,$AA$2:$AA$943,1)/('Guts-2'!$N$1+1))+1,(RANK(AB27,$AB$2:$AB$943,1)/('Guts-2'!$N$1+1))+1),"") -> 4.923076923 | AD27: =IFERROR(IF(Settings!$Q$5="CBS",J27,IF(Settings!$R$5="NFBC",O27,MIN(AA27*0.75,IFERROR($O27,999),IFERROR($J27,999)))),"") -> 13 | AE27: =IFERROR(IF(Settings!$Q$5="CBS",K27,IF(Settings!$R$5="NFBC",P27,MAX(AA27*1.33,IFERROR($P27,999),IFERROR($K27,999)))),"") -> 109 | AF27: 13 | AG27: 109 | AH27: =INDEX('Import (ADP)'!$C$2:$C$999,MATCH(A27, 'Import (ADP)'!$B$2:$B$999,0)) ->  | AK27: =IF(VLOOKUP(A28,'Name Sort'!$D$2:$E$936,2,FALSE)="",A28,"") -> Adbert Alzolay | AL27: =IFERROR(INDEX($AK$1:$AK$943,SMALL(IF($AK$1:$AK$943<>"",ROW($AK$1:$AK$943)),ROW(AK27))),"") -> Adbert Alzolay
A28: Adbert Alzolay | B28: alzolad01 | C28: RP | E28: CHC | F28: 27 | G28: 390 | M28: 444 | N28: 567.32 | O28: 215 | P28: 739 | Q28: 467.1066667 | V28: 436.8 | X28: =IFERROR(INDEX('Guts-2'!$K$1:$K$30,MATCH(E28,'Guts-2'!$J$1:$J$30,0)),TRUE) -> TRUE | Y28: =IFERROR(IF(OR(X28=FALSE,INDEX('Player Notes'!$I$3:$I$999,MATCH(A28,'Player Notes'!$A$3:$A$999,0),1)="Yes"),"",IFERROR(CHOOSE('Guts-2'!$D$27,R28,S28,T28,U28,V28,W28),"")),"") ->  | AA28: =IFERROR(IF(OR(X28=FALSE,INDEX('Player Notes'!$I$3:$I$999,MATCH(A28,'Player Notes'!$A$3:$A$999,0),1)="Yes"),"",IFERROR(CHOOSE('Guts-2'!$D$26,G28,H28,I28,L28,M28,N28,Q28,AH28),"")),"") ->  | AB28: =IFERROR(IF(Settings!$L$5="Mixed (Standard)",AA28,RANK(AA28,$AA$2:$AA$943,1)),"") ->  | AC28: =IFERROR(IF(Settings!$L$5="Mixed (Standard)",(RANK(AA28,$AA$2:$AA$943,1)/('Guts-2'!$N$1+1))+1,(RANK(AB28,$AB$2:$AB$943,1)/('Guts-2'!$N$1+1))+1),"") ->  | AD28: =IFERROR(IF(Settings!$Q$5="CBS",J28,IF(Settings!$R$5="NFBC",O28,MIN(AA28*0.75,IFERROR($O28,999),IFERROR($J28,999)))),"") ->  | AE28: =IFERROR(IF(Settings!$Q$5="CBS",K28,IF(Settings!$R$5="NFBC",P28,MAX(AA28*1.33,IFERROR($P28,999),IFERROR($K28,999)))),"") ->  | AH28: =INDEX('Import (ADP)'!$C$2:$C$999,MATCH(A28, 'Import (ADP)'!$B$2:$B$999,0)) ->  | AK28: =IF(VLOOKUP(A29,'Name Sort'!$D$2:$E$936,2,FALSE)="",A29,"") -> Brian Anderson | AL28: =IFERROR(INDEX($AK$1:$AK$943,SMALL(IF($AK$1:$AK$943<>"",ROW($AK$1:$AK$943)),ROW(AK28))),"") -> Brian Anderson
A29: Brian Anderson | B29: anderbr06 | C29: 3B | E29: MIA | F29: 28 | G29: 394 | H29: 354 | M29: 387 | N29: 525.75 | O29: 295 | P29: 532 | Q29: 415.1875 | V29: 377.2 | X29: =IFERROR(INDEX('Guts-2'!$K$1:$K$30,MATCH(E29,'Guts-2'!$J$1:$J$30,0)),TRUE) -> TRUE | Y29: =IFERROR(IF(OR(X29=FALSE,INDEX('Player Notes'!$I$3:$I$999,MATCH(A29,'Player Notes'!$A$3:$A$999,0),1)="Yes"),"",IFERROR(CHOOSE('Guts-2'!$D$27,R29,S29,T29,U29,V29,W29),"")),"") ->  | AA29: =IFERROR(IF(OR(X29=FALSE,INDEX('Player Notes'!$I$3:$I$999,MATCH(A29,'Player Notes'!$A$3:$A$999,0),1)="Yes"),"",IFERROR(CHOOSE('Guts-2'!$D$26,G29,H29,I29,L29,M29,N29,Q29,AH29),"")),"") ->  | AB29: =IFERROR(IF(Settings!$L$5="Mixed (Standard)",AA29,RANK(AA29,$AA$2:$AA$943,1)),"") ->  | AC29: =IFERROR(IF(Settings!$L$5="Mixed (Standard)",(RANK(AA29,$AA$2:$AA$943,1)/('Guts-2'!$N$1+1))+1,(RANK(AB29,$AB$2:$AB$943,1)/('Guts-2'!$N$1+1))+1),"") ->  | AD29: =IFERROR(IF(Settings!$Q$5="CBS",J29,IF(Settings!$R$5="NFBC",O29,MIN(AA29*0.75,IFERROR($O29,999),IFERROR($J29,999)))),"") ->  | AE29: =IFERROR(IF(Settings!$Q$5="CBS",K29,IF(Settings!$R$5="NFBC",P29,MAX(AA29*1.33,IFERROR($P29,999),IFERROR($K29,999)))),"") ->  | AH29: =INDEX('Import (ADP)'!$C$2:$C$999,MATCH(A29, 'Import (ADP)'!$B$2:$B$999,0)) ->  | AK29: =IF(VLOOKUP(A30,'Name Sort'!$D$2:$E$936,2,FALSE)="",A30,"") -> Ian Anderson | AL29: =IFERROR(INDEX($AK$1:$AK$943,SMALL(IF($AK$1:$AK$943<>"",ROW($AK$1:$AK$943)),ROW(AK29))),"") -> Ian Anderson
A30: Ian Anderson | B30: anderia01 | C30: SP | E30: ATL | F30: 23 | G30: 150 | H30: 139 | I30: 129.85 | J30: 77 | K30: 180 | L30: 147 | M30: 128 | N30: 155.76 | O30: 97 | P30: 233 | Q30: 141.6016667 | R30: 195 | S30: 115.7 | T30: 135 | U30: 180 | V30: 143.3 | X30: =IFERROR(INDEX('Guts-2'!$K$1:$K$30,MATCH(E30,'Guts-2'!$J$1:$J$30,0)),TRUE) -> TRUE | Y30: =IFERROR(IF(OR(X30=FALSE,INDEX('Player Notes'!$I$3:$I$999,MATCH(A30,'Player Notes'!$A$3:$A$999,0),1)="Yes"),"",IFERROR(CHOOSE('Guts-2'!$D$27,R30,S30,T30,U30,V30,W30),"")),"") -> 135 | Z30: 135 | AA30: =IFERROR(IF(OR(X30=FALSE,INDEX('Player Notes'!$I$3:$I$999,MATCH(A30,'Player Notes'!$A$3:$A$999,0),1)="Yes"),"",IFERROR(CHOOSE('Guts-2'!$D$26,G30,H30,I30,L30,M30,N30,Q30,AH30),"")),"") -> 129.85 | AB30: =IFERROR(IF(Settings!$L$5="Mixed (Standard)",AA30,RANK(AA30,$AA$2:$AA$943,1)),"") -> 129.85 | AC30: =IFERROR(IF(Settings!$L$5="Mixed (Standard)",(RANK(AA30,$AA$2:$AA$943,1)/('Guts-2'!$N$1+1))+1,(RANK(AB30,$AB$2:$AB$943,1)/('Guts-2'!$N$1+1))+1),"") -> 10.84615385 | AD30: =IFERROR(IF(Settings!$Q$5="CBS",J30,IF(Settings!$R$5="NFBC",O30,MIN(AA30*0.75,IFERROR($O30,999),IFERROR($J30,999)))),"") -> 77 | AE30: =IFERROR(IF(Settings!$Q$5="CBS",K30,IF(Settings!$R$5="NFBC",P30,MAX(AA30*1.33,IFERROR($P30,999),IFERROR($K30,999)))),"") -> 233 | AF30: 77 | AG30: 233 | AH30: =INDEX('Import (ADP)'!$C$2:$C$999,MATCH(A30, 'Import (ADP)'!$B$2:$B$999,0)) ->  | AK30: =IF(VLOOKUP(A31,'Name Sort'!$D$2:$E$936,2,FALSE)="",A31,"") -> Nick Anderson | AL30: =IFERROR(INDEX($AK$1:$AK$943,SMALL(IF($AK$1:$AK$943<>"",ROW($AK$1:$AK$943)),ROW(AK30))),"") -> Nick Anderson
A31: Nick Anderson | B31: anderni01 | C31: RP | E31: TB | F31: 31 | G31: 811 | M31: 946 | N31: 745.88 | O31: 521 | P31: 738 | Q31: 834.2933333 | V31: 583 | X31: =IFERROR(INDEX('Guts-2'!$K$1:$K$30,MATCH(E31,'Guts-2'!$J$1:$J$30,0)),TRUE) -> TRUE | Y31: =IFERROR(IF(OR(X31=FALSE,INDEX('Player Notes'!$I$3:$I$999,MATCH(A31,'Player Notes'!$A$3:$A$999,0),1)="Yes"),"",IFERROR(CHOOSE('Guts-2'!$D$27,R31,S31,T31,U31,V31,W31),"")),"") ->  | AA31: =IFERROR(IF(OR(X31=FALSE,INDEX('Player Notes'!$I$3:$I$999,MATCH(A31,'Player Notes'!$A$3:$A$999,0),1)="Yes"),"",IFERROR(CHOOSE('Guts-2'!$D$26,G31,H31,I31,L31,M31,N31,Q31,AH31),"")),"") ->  | AB31: =IFERROR(IF(Settings!$L$5="Mixed (Standard)",AA31,RANK(AA31,$AA$2:$AA$943,1)),"") ->  | AC31: =IFERROR(IF(Settings!$L$5="Mixed (Standard)",(RANK(AA31,$AA$2:$AA$943,1)/('Guts-2'!$N$1+1))+1,(RANK(AB31,$AB$2:$AB$943,1)/('Guts-2'!$N$1+1))+1),"") ->  | AD31: =IFERROR(IF(Settings!$Q$5="CBS",J31,IF(Settings!$R$5="NFBC",O31,MIN(AA31*0.75,IFERROR($O31,999),IFERROR($J31,999)))),"") ->  | AE31: =IFERROR(IF(Settings!$Q$5="CBS",K31,IF(Settings!$R$5="NFBC",P31,MAX(AA31*1.33,IFERROR($P31,999),IFERROR($K31,999)))),"") ->  | AH31: =INDEX('Import (ADP)'!$C$2:$C$999,MATCH(A31, 'Import (ADP)'!$B$2:$B$999,0)) ->  | AK31: =IF(VLOOKUP(A32,'Name Sort'!$D$2:$E$936,2,FALSE)="",A32,"") -> Tim Anderson | AL31: =IFERROR(INDEX($AK$1:$AK$943,SMALL(IF($AK$1:$AK$943<>"",ROW($AK$1:$AK$943)),ROW(AK31))),"") -> Tim Anderson
A32: Tim Anderson | B32: anderti01 | C32: SS | E32: CHW | F32: 28 | G32: 29 | H32: 47 | I32: 71.65 | J32: 33 | K32: 107 | L32: 104 | M32: 46 | N32: 29.15 | O32: 12 | P32: 53 | Q32: 54.46666667 | R32: 26 | S32: 27.7 | T32: 122 | U32: 34 | V32: 30.3 | X32: =IFERROR(INDEX('Guts-2'!$K$1:$K$30,MATCH(E32,'Guts-2'!$J$1:$J$30,0)),TRUE) -> TRUE | Y32: =IFERROR(IF(OR(X32=FALSE,INDEX('Player Notes'!$I$3:$I$999,MATCH(A32,'Player Notes'!$A$3:$A$999,0),1)="Yes"),"",IFERROR(CHOOSE('Guts-2'!$D$27,R32,S32,T32,U32,V32,W32),"")),"") -> 122 | Z32: 122 | AA32: =IFERROR(IF(OR(X32=FALSE,INDEX('Player Notes'!$I$3:$I$999,MATCH(A32,'Player Notes'!$A$3:$A$999,0),1)="Yes"),"",IFERROR(CHOOSE('Guts-2'!$D$26,G32,H32,I32,L32,M32,N32,Q32,AH32),"")),"") -> 71.65 | AB32: =IFERROR(IF(Settings!$L$5="Mixed (Standard)",AA32,RANK(AA32,$AA$2:$AA$943,1)),"") -> 71.65 | AC32: =IFERROR(IF(Settings!$L$5="Mixed (Standard)",(RANK(AA32,$AA$2:$AA$943,1)/('Guts-2'!$N$1+1))+1,(RANK(AB32,$AB$2:$AB$943,1)/('Guts-2'!$N$1+1))+1),"") -> 6.076923077 | AD32: =IFERROR(IF(Settings!$Q$5="CBS",J32,IF(Settings!$R$5="NFBC",O32,MIN(AA32*0.75,IFERROR($O32,999),IFERROR($J32,999)))),"") -> 12 | AE32: =IFERROR(IF(Settings!$Q$5="CBS",K32,IF(Settings!$R$5="NFBC",P32,MAX(AA32*1.33,IFERROR($P32,999),IFERROR($K32,999)))),"") -> 107 | AF32: 12 | AG32: 107 | AH32: =INDEX('Import (ADP)'!$C$2:$C$999,MATCH(A32, 'Import (ADP)'!$B$2:$B$999,0)) ->  | AK32: =IF(VLOOKUP(A33,'Name Sort'!$D$2:$E$936,2,FALSE)="",A33,"") -> Tyler Anderson | AL32: =IFERROR(INDEX($AK$1:$AK$943,SMALL(IF($AK$1:$AK$943<>"",ROW($AK$1:$AK$943)),ROW(AK32))),"") -> Tyler Anderson
A33: Tyler Anderson | B33: anderty01 | C33: RP | E33: LAD | F33: 32 | G33: 493 | I33: 230.34 | J33: 154 | K33: 306 | M33: 483 | N33: 604.2 | O33: 345 | P33: 659 | Q33: 452.635 | V33: 521.5 | X33: =IFERROR(INDEX('Guts-2'!$K$1:$K$30,MATCH(E33,'Guts-2'!$J$1:$J$30,0)),TRUE) -> TRUE | Y33: =IFERROR(IF(OR(X33=FALSE,INDEX('Player Notes'!$I$3:$I$999,MATCH(A33,'Player Notes'!$A$3:$A$999,0),1)="Yes"),"",IFERROR(CHOOSE('Guts-2'!$D$27,R33,S33,T33,U33,V33,W33),"")),"") ->  | AA33: =IFERROR(IF(OR(X33=FALSE,INDEX('Player Notes'!$I$3:$I$999,MATCH(A33,'Player Notes'!$A$3:$A$999,0),1)="Yes"),"",IFERROR(CHOOSE('Guts-2'!$D$26,G33,H33,I33,L33,M33,N33,Q33,AH33),"")),"") -> 230.34 | AB33: =IFERROR(IF(Settings!$L$5="Mixed (Standard)",AA33,RANK(AA33,$AA$2:$AA$943,1)),"") -> 230.34 | AC33: =IFERROR(IF(Settings!$L$5="Mixed (Standard)",(RANK(AA33,$AA$2:$AA$943,1)/('Guts-2'!$N$1+1))+1,(RANK(AB33,$AB$2:$AB$943,1)/('Guts-2'!$N$1+1))+1),"") -> 23 | AD33: =IFERROR(IF(Settings!$Q$5="CBS",J33,IF(Settings!$R$5="NFBC",O33,MIN(AA33*0.75,IFERROR($O33,999),IFERROR($J33,999)))),"") -> 154 | AE33: =IFERROR(IF(Settings!$Q$5="CBS",K33,IF(Settings!$R$5="NFBC",P33,MAX(AA33*1.33,IFERROR($P33,999),IFERROR($K33,999)))),"") -> 659 | AF33: 154 | AG33: 659 | AH33: =INDEX('Import (ADP)'!$C$2:$C$999,MATCH(A33, 'Import (ADP)'!$B$2:$B$999,0)) ->  | AK33: =IF(VLOOKUP(A34,'Name Sort'!$D$2:$E$936,2,FALSE)="",A34,"") -> Elvis Andrus | AL33: =IFERROR(INDEX($AK$1:$AK$943,SMALL(IF($AK$1:$AK$943<>"",ROW($AK$1:$AK$943)),ROW(AK33))),"") -> Elvis Andrus
A34: Elvis Andrus | B34: andruel01 | C34: SS | E34: OAK | F34: 33 | G34: 522 | M34: 537 | N34: 653.91 | O34: 385 | P34: 612 | Q34: 570.97 | V34: 537.5 | X34: =IFERROR(INDEX('Guts-2'!$K$1:$K$30,MATCH(E34,'Guts-2'!$J$1:$J$30,0)),TRUE) -> TRUE | Y34: =IFERROR(IF(OR(X34=FALSE,INDEX('Player Notes'!$I$3:$I$999,MATCH(A34,'Player Notes'!$A$3:$A$999,0),1)="Yes"),"",IFERROR(CHOOSE('Guts-2'!$D$27,R34,S34,T34,U34,V34,W34),"")),"") ->  | AA34: =IFERROR(IF(OR(X34=FALSE,INDEX('Player Notes'!$I$3:$I$999,MATCH(A34,'Player Notes'!$A$3:$A$999,0),1)="Yes"),"",IFERROR(CHOOSE('Guts-2'!$D$26,G34,H34,I34,L34,M34,N34,Q34,AH34),"")),"") ->  | AB34: =IFERROR(IF(Settings!$L$5="Mixed (Standard)",AA34,RANK(AA34,$AA$2:$AA$943,1)),"") ->  | AC34: =IFERROR(IF(Settings!$L$5="Mixed (Standard)",(RANK(AA34,$AA$2:$AA$943,1)/('Guts-2'!$N$1+1))+1,(RANK(AB34,$AB$2:$AB$943,1)/('Guts-2'!$N$1+1))+1),"") ->  | AD34: =IFERROR(IF(Settings!$Q$5="CBS",J34,IF(Settings!$R$5="NFBC",O34,MIN(AA34*0.75,IFERROR($O34,999),IFERROR($J34,999)))),"") ->  | AE34: =IFERROR(IF(Settings!$Q$5="CBS",K34,IF(Settings!$R$5="NFBC",P34,MAX(AA34*1.33,IFERROR($P34,999),IFERROR($K34,999)))),"") ->  | AH34: =INDEX('Import (ADP)'!$C$2:$C$999,MATCH(A34, 'Import (ADP)'!$B$2:$B$999,0)) ->  | AK34: =IF(VLOOKUP(A35,'Name Sort'!$D$2:$E$936,2,FALSE)="",A35,"") -> Miguel Andujar | AL34: =IFERROR(INDEX($AK$1:$AK$943,SMALL(IF($AK$1:$AK$943<>"",ROW($AK$1:$AK$943)),ROW(AK34))),"") -> Miguel Andujar
A35: Miguel Andujar | B35: andujmi01 | C35: OF | D35: LF | E35: NYY | F35: 27 | G35: 653 | M35: 734 | N35: 728.31 | O35: 363 | P35: 720 | Q35: 705.1033333 | V35: 970.3 | X35: =IFERROR(INDEX('Guts-2'!$K$1:$K$30,MATCH(E35,'Guts-2'!$J$1:$J$30,0)),TRUE) -> TRUE | Y35: =IFERROR(IF(OR(X35=FALSE,INDEX('Player Notes'!$I$3:$I$999,MATCH(A35,'Player Notes'!$A$3:$A$999,0),1)="Yes"),"",IFERROR(CHOOSE('Guts-2'!$D$27,R35,S35,T35,U35,V35,W35),"")),"") ->  | AA35: =IFERROR(IF(OR(X35=FALSE,INDEX('Player Notes'!$I$3:$I$999,MATCH(A35,'Player Notes'!$A$3:$A$999,0),1)="Yes"),"",IFERROR(CHOOSE('Guts-2'!$D$26,G35,H35,I35,L35,M35,N35,Q35,AH35),"")),"") ->  | AB35: =IFERROR(IF(Settings!$L$5="Mixed (Standard)",AA35,RANK(AA35,$AA$2:$AA$943,1)),"") ->  | AC35: =IFERROR(IF(Settings!$L$5="Mixed (Standard)",(RANK(AA35,$AA$2:$AA$943,1)/('Guts-2'!$N$1+1))+1,(RANK(AB35,$AB$2:$AB$943,1)/('Guts-2'!$N$1+1))+1),"") ->  | AD35: =IFERROR(IF(Settings!$Q$5="CBS",J35,IF(Settings!$R$5="NFBC",O35,MIN(AA35*0.75,IFERROR($O35,999),IFERROR($J35,999)))),"") ->  | AE35: =IFERROR(IF(Settings!$Q$5="CBS",K35,IF(Settings!$R$5="NFBC",P35,MAX(AA35*1.33,IFERROR($P35,999),IFERROR($K35,999)))),"") ->  | AH35: =INDEX('Import (ADP)'!$C$2:$C$999,MATCH(A35, 'Import (ADP)'!$B$2:$B$999,0)) ->  | AK35: =IF(VLOOKUP(A36,'Name Sort'!$D$2:$E$936,2,FALSE)="",A36,"") -> Aristides Aquino | AL35: =IFERROR(INDEX($AK$1:$AK$943,SMALL(IF($AK$1:$AK$943<>"",ROW($AK$1:$AK$943)),ROW(AK35))),"") -> Aristides Aquino
A36: Aristides Aquino | B36: aquinar01 | C36: OF | D36: LF,CF,RF | E36: CIN | F36: 27 | G36: 626 | M36: 682 | N36: 690.52 | O36: 331 | P36: 705 | Q36: 666.1733333 | V36: 546.5 | X36: =IFERROR(INDEX('Guts-2'!$K$1:$K$30,MATCH(E36,'Guts-2'!$J$1:$J$30,0)),TRUE) -> TRUE | Y36: =IFERROR(IF(OR(X36=FALSE,INDEX('Player Notes'!$I$3:$I$999,MATCH(A36,'Player Notes'!$A$3:$A$999,0),1)="Yes"),"",IFERROR(CHOOSE('Guts-2'!$D$27,R36,S36,T36,U36,V36,W36),"")),"") ->  | AA36: =IFERROR(IF(OR(X36=FALSE,INDEX('Player Notes'!$I$3:$I$999,MATCH(A36,'Player Notes'!$A$3:$A$999,0),1)="Yes"),"",IFERROR(CHOOSE('Guts-2'!$D$26,G36,H36,I36,L36,M36,N36,Q36,AH36),"")),"") ->  | AB36: =IFERROR(IF(Settings!$L$5="Mixed (Standard)",AA36,RANK(AA36,$AA$2:$AA$943,1)),"") ->  | AC36: =IFERROR(IF(Settings!$L$5="Mixed (Standard)",(RANK(AA36,$AA$2:$AA$943,1)/('Guts-2'!$N$1+1))+1,(RANK(AB36,$AB$2:$AB$943,1)/('Guts-2'!$N$1+1))+1),"") ->  | AD36: =IFERROR(IF(Settings!$Q$5="CBS",J36,IF(Settings!$R$5="NFBC",O36,MIN(AA36*0.75,IFERROR($O36,999),IFERROR($J36,999)))),"") ->  | AE36: =IFERROR(IF(Settings!$Q$5="CBS",K36,IF(Settings!$R$5="NFBC",P36,MAX(AA36*1.33,IFERROR($P36,999),IFERROR($K36,999)))),"") ->  | AH36: =INDEX('Import (ADP)'!$C$2:$C$999,MATCH(A36, 'Import (ADP)'!$B$2:$B$999,0)) ->  | AK36: =IF(VLOOKUP(A37,'Name Sort'!$D$2:$E$936,2,FALSE)="",A37,"") -> Jonathan Arauz | AL36: =IFERROR(INDEX($AK$1:$AK$943,SMALL(IF($AK$1:$AK$943<>"",ROW($AK$1:$AK$943)),ROW(AK36))),"") -> Jonathan Arauz
A37: Jonathan Arauz | B37: arauzjo01 | C37: SS | E37: BOS | F37: 23 | N37: 750.93 | O37: 731 | P37: 731 | Q37: 750.93 | X37: =IFERROR(INDEX('Guts-2'!$K$1:$K$30,MATCH(E37,'Guts-2'!$J$1:$J$30,0)),TRUE) -> TRUE | Y37: =IFERROR(IF(OR(X37=FALSE,INDEX('Player Notes'!$I$3:$I$999,MATCH(A37,'Player Notes'!$A$3:$A$999,0),1)="Yes"),"",IFERROR(CHOOSE('Guts-2'!$D$27,R37,S37,T37,U37,V37,W37),"")),"") ->  | AA37: =IFERROR(IF(OR(X37=FALSE,INDEX('Player Notes'!$I$3:$I$999,MATCH(A37,'Player Notes'!$A$3:$A$999,0),1)="Yes"),"",IFERROR(CHOOSE('Guts-2'!$D$26,G37,H37,I37,L37,M37,N37,Q37,AH37),"")),"") ->  | AB37: =IFERROR(IF(Settings!$L$5="Mixed (Standard)",AA37,RANK(AA37,$AA$2:$AA$943,1)),"") ->  | AC37: =IFERROR(IF(Settings!$L$5="Mixed (Standard)",(RANK(AA37,$AA$2:$AA$943,1)/('Guts-2'!$N$1+1))+1,(RANK(AB37,$AB$2:$AB$943,1)/('Guts-2'!$N$1+1))+1),"") ->  | AD37: =IFERROR(IF(Settings!$Q$5="CBS",J37,IF(Settings!$R$5="NFBC",O37,MIN(AA37*0.75,IFERROR($O37,999),IFERROR($J37,999)))),"") ->  | AE37: =IFERROR(IF(Settings!$Q$5="CBS",K37,IF(Settings!$R$5="NFBC",P37,MAX(AA37*1.33,IFERROR($P37,999),IFERROR($K37,999)))),"") ->  | AH37: =INDEX('Import (ADP)'!$C$2:$C$999,MATCH(A37, 'Import (ADP)'!$B$2:$B$999,0)) ->  | AK37: =IF(VLOOKUP(A38,'Name Sort'!$D$2:$E$936,2,FALSE)="",A38,"") -> Chris Archer | AL37: =IFERROR(INDEX($AK$1:$AK$943,SMALL(IF($AK$1:$AK$943<>"",ROW($AK$1:$AK$943)),ROW(AK37))),"") -> Chris Archer
A38: Chris Archer | B38: archech01 | C38: RP | E38: MIN | F38: 33 | G38: 724 | M38: 824 | N38: 738.65 | O38: 487 | P38: 744 | Q38: 762.2166667 | V38: 646.3 | X38: =IFERROR(INDEX('Guts-2'!$K$1:$K$30,MATCH(E38,'Guts-2'!$J$1:$J$30,0)),TRUE) -> TRUE | Y38: =IFERROR(IF(OR(X38=FALSE,INDEX('Player Notes'!$I$3:$I$999,MATCH(A38,'Player Notes'!$A$3:$A$999,0),1)="Yes"),"",IFERROR(CHOOSE('Guts-2'!$D$27,R38,S38,T38,U38,V38,W38),"")),"") ->  | AA38: =IFERROR(IF(OR(X38=FALSE,INDEX('Player Notes'!$I$3:$I$999,MATCH(A38,'Player Notes'!$A$3:$A$999,0),1)="Yes"),"",IFERROR(CHOOSE('Guts-2'!$D$26,G38,H38,I38,L38,M38,N38,Q38,AH38),"")),"") ->  | AB38: =IFERROR(IF(Settings!$L$5="Mixed (Standard)",AA38,RANK(AA38,$AA$2:$AA$943,1)),"") ->  | AC38: =IFERROR(IF(Settings!$L$5="Mixed (Standard)",(RANK(AA38,$AA$2:$AA$943,1)/('Guts-2'!$N$1+1))+1,(RANK(AB38,$AB$2:$AB$943,1)/('Guts-2'!$N$1+1))+1),"") ->  | AD38: =IFERROR(IF(Settings!$Q$5="CBS",J38,IF(Settings!$R$5="NFBC",O38,MIN(AA38*0.75,IFERROR($O38,999),IFERROR($J38,999)))),"") ->  | AE38: =IFERROR(IF(Settings!$Q$5="CBS",K38,IF(Settings!$R$5="NFBC",P38,MAX(AA38*1.33,IFERROR($P38,999),IFERROR($K38,999)))),"") ->  | AH38: =INDEX('Import (ADP)'!$C$2:$C$999,MATCH(A38, 'Import (ADP)'!$B$2:$B$999,0)) ->  | AK38: =IF(VLOOKUP(A39,'Name Sort'!$D$2:$E$936,2,FALSE)="",A39,"") -> Orlando Arcia | AL38: =IFERROR(INDEX($AK$1:$AK$943,SMALL(IF($AK$1:$AK$943<>"",ROW($AK$1:$AK$943)),ROW(AK38))),"") -> Orlando Arcia
A39: Orlando Arcia | B39: arciaor01 | C39: DH | D39: LF | E39: ATL | F39: 27 | N39: 748.71 | O39: 567 | P39: 750 | Q39: 748.71 | V39: 954 | X39: =IFERROR(INDEX('Guts-2'!$K$1:$K$30,MATCH(E39,'Guts-2'!$J$1:$J$30,0)),TRUE) -> TRUE | Y39: =IFERROR(IF(OR(X39=FALSE,INDEX('Player Notes'!$I$3:$I$999,MATCH(A39,'Player Notes'!$A$3:$A$999,0),1)="Yes"),"",IFERROR(CHOOSE('Guts-2'!$D$27,R39,S39,T39,U39,V39,W39),"")),"") ->  | AA39: =IFERROR(IF(OR(X39=FALSE,INDEX('Player Notes'!$I$3:$I$999,MATCH(A39,'Player Notes'!$A$3:$A$999,0),1)="Yes"),"",IFERROR(CHOOSE('Guts-2'!$D$26,G39,H39,I39,L39,M39,N39,Q39,AH39),"")),"") ->  | AB39: =IFERROR(IF(Settings!$L$5="Mixed (Standard)",AA39,RANK(AA39,$AA$2:$AA$943,1)),"") ->  | AC39: =IFERROR(IF(Settings!$L$5="Mixed (Standard)",(RANK(AA39,$AA$2:$AA$943,1)/('Guts-2'!$N$1+1))+1,(RANK(AB39,$AB$2:$AB$943,1)/('Guts-2'!$N$1+1))+1),"") ->  | AD39: =IFERROR(IF(Settings!$Q$5="CBS",J39,IF(Settings!$R$5="NFBC",O39,MIN(AA39*0.75,IFERROR($O39,999),IFERROR($J39,999)))),"") ->  | AE39: =IFERROR(IF(Settings!$Q$5="CBS",K39,IF(Settings!$R$5="NFBC",P39,MAX(AA39*1.33,IFERROR($P39,999),IFERROR($K39,999)))),"") ->  | AH39: =INDEX('Import (ADP)'!$C$2:$C$999,MATCH(A39, 'Import (ADP)'!$B$2:$B$999,0)) ->  | AK39: =IF(VLOOKUP(A40,'Name Sort'!$D$2:$E$936,2,FALSE)="",A40,"") -> Nolan Arenado | AL39: =IFERROR(INDEX($AK$1:$AK$943,SMALL(IF($AK$1:$AK$943<>"",ROW($AK$1:$AK$943)),ROW(AK39))),"") -> Nolan Arenado
A40: Nolan Arenado | B40: arenano01 | C40: 3B | E40: STL | F40: 30 | G40: 68 | H40: 53 | I40: 37.88 | J40: 16 | K40: 65 | L40: 28 | M40: 60 | N40: 69.86 | O40: 28 | P40: 108 | Q40: 52.79 | R40: 86 | S40: 60 | T40: 31 | U40: 42 | V40: 63.2 | X40: =IFERROR(INDEX('Guts-2'!$K$1:$K$30,MATCH(E40,'Guts-2'!$J$1:$J$30,0)),TRUE) -> TRUE | Y40: =IFERROR(IF(OR(X40=FALSE,INDEX('Player Notes'!$I$3:$I$999,MATCH(A40,'Player Notes'!$A$3:$A$999,0),1)="Yes"),"",IFERROR(CHOOSE('Guts-2'!$D$27,R40,S40,T40,U40,V40,W40),"")),"") -> 31 | Z40: 31 | AA40: =IFERROR(IF(OR(X40=FALSE,INDEX('Player Notes'!$I$3:$I$999,MATCH(A40,'Player Notes'!$A$3:$A$999,0),1)="Yes"),"",IFERROR(CHOOSE('Guts-2'!$D$26,G40,H40,I40,L40,M40,N40,Q40,AH40),"")),"") -> 37.88 | AB40: =IFERROR(IF(Settings!$L$5="Mixed (Standard)",AA40,RANK(AA40,$AA$2:$AA$943,1)),"") -> 37.88 | AC40: =IFERROR(IF(Settings!$L$5="Mixed (Standard)",(RANK(AA40,$AA$2:$AA$943,1)/('Guts-2'!$N$1+1))+1,(RANK(AB40,$AB$2:$AB$943,1)/('Guts-2'!$N$1+1))+1),"") -> 3.461538462 | AD40: =IFERROR(IF(Settings!$Q$5="CBS",J40,IF(Settings!$R$5="NFBC",O40,MIN(AA40*0.75,IFERROR($O40,999),IFERROR($J40,999)))),"") -> 16 | AE40: =IFERROR(IF(Settings!$Q$5="CBS",K40,IF(Settings!$R$5="NFBC",P40,MAX(AA40*1.33,IFERROR($P40,999),IFERROR($K40,999)))),"") -> 108 | AF40: 16 | AG40: 108 | AH40: =INDEX('Import (ADP)'!$C$2:$C$999,MATCH(A40, 'Import (ADP)'!$B$2:$B$999,0)) -> 12 | AI40: 9 | AJ40: 108 | AK40: =IF(VLOOKUP(A41,'Name Sort'!$D$2:$E$936,2,FALSE)="",A41,"") -> Randy Arozarena | AL40: =IFERROR(INDEX($AK$1:$AK$943,SMALL(IF($AK$1:$AK$943<>"",ROW($AK$1:$AK$943)),ROW(AK40))),"") -> Randy Arozarena
A41: Randy Arozarena | B41: arozara01 | C41: OF | D41: LF,RF | E41: TB | F41: 27 | G41: 60 | H41: 73 | I41: 86.33 | J41: 53 | K41: 122 | L41: 133 | M41: 73 | N41: 66.75 | O41: 46 | P41: 98 | Q41: 82.01333333 | R41: 56 | S41: 44.3 | T41: 158 | U41: 72 | V41: 56.8 | X41: =IFERROR(INDEX('Guts-2'!$K$1:$K$30,MATCH(E41,'Guts-2'!$J$1:$J$30,0)),TRUE) -> TRUE | Y41: =IFERROR(IF(OR(X41=FALSE,INDEX('Player Notes'!$I$3:$I$999,MATCH(A41,'Player Notes'!$A$3:$A$999,0),1)="Yes"),"",IFERROR(CHOOSE('Guts-2'!$D$27,R41,S41,T41,U41,V41,W41),"")),"") -> 158 | Z41: 158 | AA41: =IFERROR(IF(OR(X41=FALSE,INDEX('Player Notes'!$I$3:$I$999,MATCH(A41,'Player Notes'!$A$3:$A$999,0),1)="Yes"),"",IFERROR(CHOOSE('Guts-2'!$D$26,G41,H41,I41,L41,M41,N41,Q41,AH41),"")),"") -> 86.33 | AB41: =IFERROR(IF(Settings!$L$5="Mixed (Standard)",AA41,RANK(AA41,$AA$2:$AA$943,1)),"") -> 86.33 | AC41: =IFERROR(IF(Settings!$L$5="Mixed (Standard)",(RANK(AA41,$AA$2:$AA$943,1)/('Guts-2'!$N$1+1))+1,(RANK(AB41,$AB$2:$AB$943,1)/('Guts-2'!$N$1+1))+1),"") -> 7.538461538 | AD41: =IFERROR(IF(Settings!$Q$5="CBS",J41,IF(Settings!$R$5="NFBC",O41,MIN(AA41*0.75,IFERROR($O41,999),IFERROR($J41,999)))),"") -> 46 | AE41: =IFERROR(IF(Settings!$Q$5="CBS",K41,IF(Settings!$R$5="NFBC",P41,MAX(AA41*1.33,IFERROR($P41,999),IFERROR($K41,999)))),"") -> 122 | AF41: 46 | AG41: 122 | AH41: =INDEX('Import (ADP)'!$C$2:$C$999,MATCH(A41, 'Import (ADP)'!$B$2:$B$999,0)) ->  | AK41: =IF(VLOOKUP(A42,'Name Sort'!$D$2:$E$936,2,FALSE)="",A42,"") -> Luis Arraez | AL41: =IFERROR(INDEX($AK$1:$AK$943,SMALL(IF($AK$1:$AK$943<>"",ROW($AK$1:$AK$943)),ROW(AK41))),"") -> Luis Arraez
A42: Luis Arraez | B42: arraelu01 | C42: 3B | D42: LF | E42: MIN | F42: 24 | G42: 312 | L42: 282 | M42: 325 | N42: 354.2 | O42: 199 | P42: 433 | Q42: 318.3 | S42: 314 | V42: 297.5 | X42: =IFERROR(INDEX('Guts-2'!$K$1:$K$30,MATCH(E42,'Guts-2'!$J$1:$J$30,0)),TRUE) -> TRUE | Y42: =IFERROR(IF(OR(X42=FALSE,INDEX('Player Notes'!$I$3:$I$999,MATCH(A42,'Player Notes'!$A$3:$A$999,0),1)="Yes"),"",IFERROR(CHOOSE('Guts-2'!$D$27,R42,S42,T42,U42,V42,W42),"")),"") ->  | AA42: =IFERROR(IF(OR(X42=FALSE,INDEX('Player Notes'!$I$3:$I$999,MATCH(A42,'Player Notes'!$A$3:$A$999,0),1)="Yes"),"",IFERROR(CHOOSE('Guts-2'!$D$26,G42,H42,I42,L42,M42,N42,Q42,AH42),"")),"") ->  | AB42: =IFERROR(IF(Settings!$L$5="Mixed (Standard)",AA42,RANK(AA42,$AA$2:$AA$943,1)),"") ->  | AC42: =IFERROR(IF(Settings!$L$5="Mixed (Standard)",(RANK(AA42,$AA$2:$AA$943,1)/('Guts-2'!$N$1+1))+1,(RANK(AB42,$AB$2:$AB$943,1)/('Guts-2'!$N$1+1))+1),"") ->  | AD42: =IFERROR(IF(Settings!$Q$5="CBS",J42,IF(Settings!$R$5="NFBC",O42,MIN(AA42*0.75,IFERROR($O42,999),IFERROR($J42,999)))),"") ->  | AE42: =IFERROR(IF(Settings!$Q$5="CBS",K42,IF(Settings!$R$5="NFBC",P42,MAX(AA42*1.33,IFERROR($P42,999),IFERROR($K42,999)))),"") ->  | AH42: =INDEX('Import (ADP)'!$C$2:$C$999,MATCH(A42, 'Import (ADP)'!$B$2:$B$999,0)) ->  | AK42: =IF(VLOOKUP(A43,'Name Sort'!$D$2:$E$936,2,FALSE)="",A43,"") -> Christian Arroyo | AL42: =IFERROR(INDEX($AK$1:$AK$943,SMALL(IF($AK$1:$AK$943<>"",ROW($AK$1:$AK$943)),ROW(AK42))),"") -> Christian Arroyo
A43: Christian Arroyo | B43: arroych01 | C43: 2B | E43: BOS | F43: 26 | G43: 666 | L43: 359 | M43: 700 | N43: 728.82 | O43: 272 | P43: 750 | Q43: 613.455 | V43: 1036 | X43: =IFERROR(INDEX('Guts-2'!$K$1:$K$30,MATCH(E43,'Guts-2'!$J$1:$J$30,0)),TRUE) -> TRUE | Y43: =IFERROR(IF(OR(X43=FALSE,INDEX('Player Notes'!$I$3:$I$999,MATCH(A43,'Player Notes'!$A$3:$A$999,0),1)="Yes"),"",IFERROR(CHOOSE('Guts-2'!$D$27,R43,S43,T43,U43,V43,W43),"")),"") ->  | AA43: =IFERROR(IF(OR(X43=FALSE,INDEX('Player Notes'!$I$3:$I$999,MATCH(A43,'Player Notes'!$A$3:$A$999,0),1)="Yes"),"",IFERROR(CHOOSE('Guts-2'!$D$26,G43,H43,I43,L43,M43,N43,Q43,AH43),"")),"") ->  | AB43: =IFERROR(IF(Settings!$L$5="Mixed (Standard)",AA43,RANK(AA43,$AA$2:$AA$943,1)),"") ->  | AC43: =IFERROR(IF(Settings!$L$5="Mixed (Standard)",(RANK(AA43,$AA$2:$AA$943,1)/('Guts-2'!$N$1+1))+1,(RANK(AB43,$AB$2:$AB$943,1)/('Guts-2'!$N$1+1))+1),"") ->  | AD43: =IFERROR(IF(Settings!$Q$5="CBS",J43,IF(Settings!$R$5="NFBC",O43,MIN(AA43*0.75,IFERROR($O43,999),IFERROR($J43,999)))),"") ->  | AE43: =IFERROR(IF(Settings!$Q$5="CBS",K43,IF(Settings!$R$5="NFBC",P43,MAX(AA43*1.33,IFERROR($P43,999),IFERROR($K43,999)))),"") ->  | AH43: =INDEX('Import (ADP)'!$C$2:$C$999,MATCH(A43, 'Import (ADP)'!$B$2:$B$999,0)) ->  | AK43: =IF(VLOOKUP(A44,'Name Sort'!$D$2:$E$936,2,FALSE)="",A44,"") -> Aaron Ashby | AL43: =IFERROR(INDEX($AK$1:$AK$943,SMALL(IF($AK$1:$AK$943<>"",ROW($AK$1:$AK$943)),ROW(AK43))),"") -> Aaron Ashby
A44: Aaron Ashby | B44: ashbyaa01 | C44: RP | E44: MIL | F44: 23 | G44: 266 | H44: 301 | I44: 225.49 | J44: 116 | K44: 312 | M44: 238 | N44: 268.63 | O44: 145 | P44: 392 | Q44: 259.824 | S44: 252.5 | V44: 282.2 | X44: =IFERROR(INDEX('Guts-2'!$K$1:$K$30,MATCH(E44,'Guts-2'!$J$1:$J$30,0)),TRUE) -> TRUE | Y44: =IFERROR(IF(OR(X44=FALSE,INDEX('Player Notes'!$I$3:$I$999,MATCH(A44,'Player Notes'!$A$3:$A$999,0),1)="Yes"),"",IFERROR(CHOOSE('Guts-2'!$D$27,R44,S44,T44,U44,V44,W44),"")),"") ->  | AA44: =IFERROR(IF(OR(X44=FALSE,INDEX('Player Notes'!$I$3:$I$999,MATCH(A44,'Player Notes'!$A$3:$A$999,0),1)="Yes"),"",IFERROR(CHOOSE('Guts-2'!$D$26,G44,H44,I44,L44,M44,N44,Q44,AH44),"")),"") -> 225.49 | AB44: =IFERROR(IF(Settings!$L$5="Mixed (Standard)",AA44,RANK(AA44,$AA$2:$AA$943,1)),"") -> 225.49 | AC44: =IFERROR(IF(Settings!$L$5="Mixed (Standard)",(RANK(AA44,$AA$2:$AA$943,1)/('Guts-2'!$N$1+1))+1,(RANK(AB44,$AB$2:$AB$943,1)/('Guts-2'!$N$1+1))+1),"") -> 22.23076923 | AD44: =IFERROR(IF(Settings!$Q$5="CBS",J44,IF(Settings!$R$5="NFBC",O44,MIN(AA44*0.75,IFERROR($O44,999),IFERROR($J44,999)))),"") -> 116 | AE44: =IFERROR(IF(Settings!$Q$5="CBS",K44,IF(Settings!$R$5="NFBC",P44,MAX(AA44*1.33,IFERROR($P44,999),IFERROR($K44,999)))),"") -> 392 | AF44: 116 | AG44: 392 | AH44: =INDEX('Import (ADP)'!$C$2:$C$999,MATCH(A44, 'Import (ADP)'!$B$2:$B$999,0)) ->  | AK44: =IF(VLOOKUP(A45,'Name Sort'!$D$2:$E$936,2,FALSE)="",A45,"") -> Willians Astudillo | AL44: =IFERROR(INDEX($AK$1:$AK$943,SMALL(IF($AK$1:$AK$943<>"",ROW($AK$1:$AK$943)),ROW(AK44))),"") -> Willians Astudillo
A45: Willians Astudillo | B45: astudwi01 | C45: 3B | E45: MIA | F45: 30 | G45: 842 | L45: 415 | N45: 747.55 | O45: 506 | P45: 741 | Q45: 668.1833333 | X45: =IFERROR(INDEX('Guts-2'!$K$1:$K$30,MATCH(E45,'Guts-2'!$J$1:$J$30,0)),TRUE) -> TRUE | Y45: =IFERROR(IF(OR(X45=FALSE,INDEX('Player Notes'!$I$3:$I$999,MATCH(A45,'Player Notes'!$A$3:$A$999,0),1)="Yes"),"",IFERROR(CHOOSE('Guts-2'!$D$27,R45,S45,T45,U45,V45,W45),"")),"") ->  | AA45: =IFERROR(IF(OR(X45=FALSE,INDEX('Player Notes'!$I$3:$I$999,MATCH(A45,'Player Notes'!$A$3:$A$999,0),1)="Yes"),"",IFERROR(CHOOSE('Guts-2'!$D$26,G45,H45,I45,L45,M45,N45,Q45,AH45),"")),"") ->  | AB45: =IFERROR(IF(Settings!$L$5="Mixed (Standard)",AA45,RANK(AA45,$AA$2:$AA$943,1)),"") ->  | AC45: =IFERROR(IF(Settings!$L$5="Mixed (Standard)",(RANK(AA45,$AA$2:$AA$943,1)/('Guts-2'!$N$1+1))+1,(RANK(AB45,$AB$2:$AB$943,1)/('Guts-2'!$N$1+1))+1),"") ->  | AD45: =IFERROR(IF(Settings!$Q$5="CBS",J45,IF(Settings!$R$5="NFBC",O45,MIN(AA45*0.75,IFERROR($O45,999),IFERROR($J45,999)))),"") ->  | AE45: =IFERROR(IF(Settings!$Q$5="CBS",K45,IF(Settings!$R$5="NFBC",P45,MAX(AA45*1.33,IFERROR($P45,999),IFERROR($K45,999)))),"") ->  | AH45: =INDEX('Import (ADP)'!$C$2:$C$999,MATCH(A45, 'Import (ADP)'!$B$2:$B$999,0)) ->  | AK45: =IF(VLOOKUP(A46,'Name Sort'!$D$2:$E$936,2,FALSE)="",A46,"") -> Akil Baddoo | AL45: =IFERROR(INDEX($AK$1:$AK$943,SMALL(IF($AK$1:$AK$943<>"",ROW($AK$1:$AK$943)),ROW(AK45))),"") -> Akil Baddoo
A46: Akil Baddoo | B46: baddoak01 | C46: OF | D46: LF,CF | E46: DET | F46: 23 | G46: 154 | H46: 177 | I46: 188.58 | J46: 117 | K46: 267 | L46: 266 | M46: 171 | N46: 160.51 | O46: 86 | P46: 258 | Q46: 186.1816667 | R46: 150 | S46: 243.3 | T46: 270 | U46: 248 | V46: 180.3 | X46: =IFERROR(INDEX('Guts-2'!$K$1:$K$30,MATCH(E46,'Guts-2'!$J$1:$J$30,0)),TRUE) -> TRUE | Y46: =IFERROR(IF(OR(X46=FALSE,INDEX('Player Notes'!$I$3:$I$999,MATCH(A46,'Player Notes'!$A$3:$A$999,0),1)="Yes"),"",IFERROR(CHOOSE('Guts-2'!$D$27,R46,S46,T46,U46,V46,W46),"")),"") -> 270 | Z46: 270 | AA46: =IFERROR(IF(OR(X46=FALSE,INDEX('Player Notes'!$I$3:$I$999,MATCH(A46,'Player Notes'!$A$3:$A$999,0),1)="Yes"),"",IFERROR(CHOOSE('Guts-2'!$D$26,G46,H46,I46,L46,M46,N46,Q46,AH46),"")),"") -> 188.58 | AB46: =IFERROR(IF(Settings!$L$5="Mixed (Standard)",AA46,RANK(AA46,$AA$2:$AA$943,1)),"") -> 188.58 | AC46: =IFERROR(IF(Settings!$L$5="Mixed (Standard)",(RANK(AA46,$AA$2:$AA$943,1)/('Guts-2'!$N$1+1))+1,(RANK(AB46,$AB$2:$AB$943,1)/('Guts-2'!$N$1+1))+1),"") -> 17 | AD46: =IFERROR(IF(Settings!$Q$5="CBS",J46,IF(Settings!$R$5="NFBC",O46,MIN(AA46*0.75,IFERROR($O46,999),IFERROR($J46,999)))),"") -> 86 | AE46: =IFERROR(IF(Settings!$Q$5="CBS",K46,IF(Settings!$R$5="NFBC",P46,MAX(AA46*1.33,IFERROR($P46,999),IFERROR($K46,999)))),"") -> 267 | AF46: 86 | AG46: 267 | AH46: =INDEX('Import (ADP)'!$C$2:$C$999,MATCH(A46, 'Import (ADP)'!$B$2:$B$999,0)) ->  | AK46: =IF(VLOOKUP(A47,'Name Sort'!$D$2:$E$936,2,FALSE)="",A47,"") -> Harrison Bader | AL46: =IFERROR(INDEX($AK$1:$AK$943,SMALL(IF($AK$1:$AK$943<>"",ROW($AK$1:$AK$943)),ROW(AK46))),"") -> Harrison Bader
A47: Harrison Bader | B47: baderha01 | C47: OF | D47: CF | E47: STL | F47: 27 | G47: 230 | H47: 270 | L47: 286 | M47: 250 | N47: 236.64 | O47: 185 | P47: 333 | Q47: 254.528 | R47: 220 | S47: 234.7 | T47: 289 | U47: 222 | V47: 224.9 | X47: =IFERROR(INDEX('Guts-2'!$K$1:$K$30,MATCH(E47,'Guts-2'!$J$1:$J$30,0)),TRUE) -> TRUE | Y47: =IFERROR(IF(OR(X47=FALSE,INDEX('Player Notes'!$I$3:$I$999,MATCH(A47,'Player Notes'!$A$3:$A$999,0),1)="Yes"),"",IFERROR(CHOOSE('Guts-2'!$D$27,R47,S47,T47,U47,V47,W47),"")),"") -> 289 | Z47: 289 | AA47: =IFERROR(IF(OR(X47=FALSE,INDEX('Player Notes'!$I$3:$I$999,MATCH(A47,'Player Notes'!$A$3:$A$999,0),1)="Yes"),"",IFERROR(CHOOSE('Guts-2'!$D$26,G47,H47,I47,L47,M47,N47,Q47,AH47),"")),"") ->  | AB47: =IFERROR(IF(Settings!$L$5="Mixed (Standard)",AA47,RANK(AA47,$AA$2:$AA$943,1)),"") ->  | AC47: =IFERROR(IF(Settings!$L$5="Mixed (Standard)",(RANK(AA47,$AA$2:$AA$943,1)/('Guts-2'!$N$1+1))+1,(RANK(AB47,$AB$2:$AB$943,1)/('Guts-2'!$N$1+1))+1),"") ->  | AD47: =IFERROR(IF(Settings!$Q$5="CBS",J47,IF(Settings!$R$5="NFBC",O47,MIN(AA47*0.75,IFERROR($O47,999),IFERROR($J47,999)))),"") ->  | AE47: =IFERROR(IF(Settings!$Q$5="CBS",K47,IF(Settings!$R$5="NFBC",P47,MAX(AA47*1.33,IFERROR($P47,999),IFERROR($K47,999)))),"") ->  | AH47: =INDEX('Import (ADP)'!$C$2:$C$999,MATCH(A47, 'Import (ADP)'!$B$2:$B$999,0)) ->  | AK47: =IF(VLOOKUP(A48,'Name Sort'!$D$2:$E$936,2,FALSE)="",A48,"") -> Javier Baez | AL47: =IFERROR(INDEX($AK$1:$AK$943,SMALL(IF($AK$1:$AK$943<>"",ROW($AK$1:$AK$943)),ROW(AK47))),"") -> Javier Baez
A48: Javier Baez | B48: baezja01 | C48: SS | E48: DET | F48: 29 | G48: 59 | H48: 70 | I48: 108.83 | J48: 52 | K48: 185 | L48: 143 | M48: 77 | N48: 59.39 | O48: 29 | P48: 92 | Q48: 86.20333333 | R48: 100 | S48: 64.7 | T48: 218 | U48: 76 | V48: 64.3 | X48: =IFERROR(INDEX('Guts-2'!$K$1:$K$30,MATCH(E48,'Guts-2'!$J$1:$J$30,0)),TRUE) -> TRUE | Y48: =IFERROR(IF(OR(X48=FALSE,INDEX('Player Notes'!$I$3:$I$999,MATCH(A48,'Player Notes'!$A$3:$A$999,0),1)="Yes"),"",IFERROR(CHOOSE('Guts-2'!$D$27,R48,S48,T48,U48,V48,W48),"")),"") -> 218 | Z48: 218 | AA48: =IFERROR(IF(OR(X48=FALSE,INDEX('Player Notes'!$I$3:$I$999,MATCH(A48,'Player Notes'!$A$3:$A$999,0),1)="Yes"),"",IFERROR(CHOOSE('Guts-2'!$D$26,G48,H48,I48,L48,M48,N48,Q48,AH48),"")),"") -> 108.83 | AB48: =IFERROR(IF(Settings!$L$5="Mixed (Standard)",AA48,RANK(AA48,$AA$2:$AA$943,1)),"") -> 108.83 | AC48: =IFERROR(IF(Settings!$L$5="Mixed (Standard)",(RANK(AA48,$AA$2:$AA$943,1)/('Guts-2'!$N$1+1))+1,(RANK(AB48,$AB$2:$AB$943,1)/('Guts-2'!$N$1+1))+1),"") -> 9.076923077 | AD48: =IFERROR(IF(Settings!$Q$5="CBS",J48,IF(Settings!$R$5="NFBC",O48,MIN(AA48*0.75,IFERROR($O48,999),IFERROR($J48,999)))),"") -> 29 | AE48: =IFERROR(IF(Settings!$Q$5="CBS",K48,IF(Settings!$R$5="NFBC",P48,MAX(AA48*1.33,IFERROR($P48,999),IFERROR($K48,999)))),"") -> 185 | AF48: 29 | AG48: 185 | AH48: =INDEX('Import (ADP)'!$C$2:$C$999,MATCH(A48, 'Import (ADP)'!$B$2:$B$999,0)) ->  | AK48: =IF(VLOOKUP(A49,'Name Sort'!$D$2:$E$936,2,FALSE)="",A49,"") -> Daniel Bard | AL48: =IFERROR(INDEX($AK$1:$AK$943,SMALL(IF($AK$1:$AK$943<>"",ROW($AK$1:$AK$943)),ROW(AK48))),"") -> Daniel Bard
A49: Daniel Bard | B49: bardda01 | C49: RP | E49: COL | F49: 36 | G49: 574 | M49: 794 | N49: 690.78 | O49: 274 | P49: 740 | Q49: 686.26 | V49: 627.8 | X49: =IFERROR(INDEX('Guts-2'!$K$1:$K$30,MATCH(E49,'Guts-2'!$J$1:$J$30,0)),TRUE) -> TRUE | Y49: =IFERROR(IF(OR(X49=FALSE,INDEX('Player Notes'!$I$3:$I$999,MATCH(A49,'Player Notes'!$A$3:$A$999,0),1)="Yes"),"",IFERROR(CHOOSE('Guts-2'!$D$27,R49,S49,T49,U49,V49,W49),"")),"") ->  | AA49: =IFERROR(IF(OR(X49=FALSE,INDEX('Player Notes'!$I$3:$I$999,MATCH(A49,'Player Notes'!$A$3:$A$999,0),1)="Yes"),"",IFERROR(CHOOSE('Guts-2'!$D$26,G49,H49,I49,L49,M49,N49,Q49,AH49),"")),"") ->  | AB49: =IFERROR(IF(Settings!$L$5="Mixed (Standard)",AA49,RANK(AA49,$AA$2:$AA$943,1)),"") ->  | AC49: =IFERROR(IF(Settings!$L$5="Mixed (Standard)",(RANK(AA49,$AA$2:$AA$943,1)/('Guts-2'!$N$1+1))+1,(RANK(AB49,$AB$2:$AB$943,1)/('Guts-2'!$N$1+1))+1),"") ->  | AD49: =IFERROR(IF(Settings!$Q$5="CBS",J49,IF(Settings!$R$5="NFBC",O49,MIN(AA49*0.75,IFERROR($O49,999),IFERROR($J49,999)))),"") ->  | AE49: =IFERROR(IF(Settings!$Q$5="CBS",K49,IF(Settings!$R$5="NFBC",P49,MAX(AA49*1.33,IFERROR($P49,999),IFERROR($K49,999)))),"") ->  | AH49: =INDEX('Import (ADP)'!$C$2:$C$999,MATCH(A49, 'Import (ADP)'!$B$2:$B$999,0)) ->  | AK49: =IF(VLOOKUP(A50,'Name Sort'!$D$2:$E$936,2,FALSE)="",A50,"") -> Joe Barlow | AL49: =IFERROR(INDEX($AK$1:$AK$943,SMALL(IF($AK$1:$AK$943<>"",ROW($AK$1:$AK$943)),ROW(AK49))),"") -> Joe Barlow
A50: Joe Barlow | B50: barlojo01 | C50: RP | E50: TEX | F50: 26 | G50: 233 | H50: 172 | I50: 203.9 | J50: 114 | K50: 290 | L50: 243 | M50: 251 | N50: 236.87 | O50: 129 | P50: 443 | Q50: 223.295 | R50: 245 | S50: 315 | T50: 278 | U50: 204 | V50: 283.6 | X50: =IFERROR(INDEX('Guts-2'!$K$1:$K$30,MATCH(E50,'Guts-2'!$J$1:$J$30,0)),TRUE) -> TRUE | Y50: =IFERROR(IF(OR(X50=FALSE,INDEX('Player Notes'!$I$3:$I$999,MATCH(A50,'Player Notes'!$A$3:$A$999,0),1)="Yes"),"",IFERROR(CHOOSE('Guts-2'!$D$27,R50,S50,T50,U50,V50,W50),"")),"") -> 278 | Z50: 278 | AA50: =IFERROR(IF(OR(X50=FALSE,INDEX('Player Notes'!$I$3:$I$999,MATCH(A50,'Player Notes'!$A$3:$A$999,0),1)="Yes"),"",IFERROR(CHOOSE('Guts-2'!$D$26,G50,H50,I50,L50,M50,N50,Q50,AH50),"")),"") -> 203.9 | AB50: =IFERROR(IF(Settings!$L$5="Mixed (Standard)",AA50,RANK(AA50,$AA$2:$AA$943,1)),"") -> 203.9 | AC50: =IFERROR(IF(Settings!$L$5="Mixed (Standard)",(RANK(AA50,$AA$2:$AA$943,1)/('Guts-2'!$N$1+1))+1,(RANK(AB50,$AB$2:$AB$943,1)/('Guts-2'!$N$1+1))+1),"") -> 18.84615385 | AD50: =IFERROR(IF(Settings!$Q$5="CBS",J50,IF(Settings!$R$5="NFBC",O50,MIN(AA50*0.75,IFERROR($O50,999),IFERROR($J50,999)))),"") -> 114 | AE50: =IFERROR(IF(Settings!$Q$5="CBS",K50,IF(Settings!$R$5="NFBC",P50,MAX(AA50*1.33,IFERROR($P50,999),IFERROR($K50,999)))),"") -> 443 | AF50: 114 | AG50: 443 | AH50: =INDEX('Import (ADP)'!$C$2:$C$999,MATCH(A50, 'Import (ADP)'!$B$2:$B$999,0)) ->  | AK50: =IF(VLOOKUP(A51,'Name Sort'!$D$2:$E$936,2,FALSE)="",A51,"") -> Scott Barlow | AL50: =IFERROR(INDEX($AK$1:$AK$943,SMALL(IF($AK$1:$AK$943<>"",ROW($AK$1:$AK$943)),ROW(AK50))),"") -> Scott Barlow
A51: Scott Barlow | B51: barlosc01 | C51: RP | E51: KC | F51: 29 | G51: 171 | H51: 150 | I51: 173.37 | J51: 94 | K51: 256 | L51: 169 | M51: 195 | N51: 172.94 | O51: 94 | P51: 379 | Q51: 171.885 | R51: 162 | S51: 251.3 | T51: 175 | U51: 202 | V51: 205.8 | X51: =IFERROR(INDEX('Guts-2'!$K$1:$K$30,MATCH(E51,'Guts-2'!$J$1:$J$30,0)),TRUE) -> TRUE | Y51: =IFERROR(IF(OR(X51=FALSE,INDEX('Player Notes'!$I$3:$I$999,MATCH(A51,'Player Notes'!$A$3:$A$999,0),1)="Yes"),"",IFERROR(CHOOSE('Guts-2'!$D$27,R51,S51,T51,U51,V51,W51),"")),"") -> 175 | Z51: 175 | AA51: =IFERROR(IF(OR(X51=FALSE,INDEX('Player Notes'!$I$3:$I$999,MATCH(A51,'Player Notes'!$A$3:$A$999,0),1)="Yes"),"",IFERROR(CHOOSE('Guts-2'!$D$26,G51,H51,I51,L51,M51,N51,Q51,AH51),"")),"") -> 173.37 | AB51: =IFERROR(IF(Settings!$L$5="Mixed (Standard)",AA51,RANK(AA51,$AA$2:$AA$943,1)),"") -> 173.37 | AC51: =IFERROR(IF(Settings!$L$5="Mixed (Standard)",(RANK(AA51,$AA$2:$AA$943,1)/('Guts-2'!$N$1+1))+1,(RANK(AB51,$AB$2:$AB$943,1)/('Guts-2'!$N$1+1))+1),"") -> 14.92307692 | AD51: =IFERROR(IF(Settings!$Q$5="CBS",J51,IF(Settings!$R$5="NFBC",O51,MIN(AA51*0.75,IFERROR($O51,999),IFERROR($J51,999)))),"") -> 94 | AE51: =IFERROR(IF(Settings!$Q$5="CBS",K51,IF(Settings!$R$5="NFBC",P51,MAX(AA51*1.33,IFERROR($P51,999),IFERROR($K51,999)))),"") -> 379 | AF51: 94 | AG51: 379 | AH51: =INDEX('Import (ADP)'!$C$2:$C$999,MATCH(A51, 'Import (ADP)'!$B$2:$B$999,0)) ->  | AK51: =IF(VLOOKUP(A52,'Name Sort'!$D$2:$E$936,2,FALSE)="",A52,"") -> Austin Barnes | AL51: =IFERROR(INDEX($AK$1:$AK$943,SMALL(IF($AK$1:$AK$943<>"",ROW($AK$1:$AK$943)),ROW(AK51))),"") -> Austin Barnes
A52: Austin Barnes | B52: barneau01 | C52: C | E52: LAD | F52: 32 | G52: 630 | M52: 797 | N52: 713.54 | O52: 467 | P52: 738 | Q52: 713.5133333 | V52: 690.5 | X52: =IFERROR(INDEX('Guts-2'!$K$1:$K$30,MATCH(E52,'Guts-2'!$J$1:$J$30,0)),TRUE) -> TRUE | Y52: =IFERROR(IF(OR(X52=FALSE,INDEX('Player Notes'!$I$3:$I$999,MATCH(A52,'Player Notes'!$A$3:$A$999,0),1)="Yes"),"",IFERROR(CHOOSE('Guts-2'!$D$27,R52,S52,T52,U52,V52,W52),"")),"") ->  | AA52: =IFERROR(IF(OR(X52=FALSE,INDEX('Player Notes'!$I$3:$I$999,MATCH(A52,'Player Notes'!$A$3:$A$999,0),1)="Yes"),"",IFERROR(CHOOSE('Guts-2'!$D$26,G52,H52,I52,L52,M52,N52,Q52,AH52),"")),"") ->  | AB52: =IFERROR(IF(Settings!$L$5="Mixed (Standard)",AA52,RANK(AA52,$AA$2:$AA$943,1)),"") ->  | AC52: =IFERROR(IF(Settings!$L$5="Mixed (Standard)",(RANK(AA52,$AA$2:$AA$943,1)/('Guts-2'!$N$1+1))+1,(RANK(AB52,$AB$2:$AB$943,1)/('Guts-2'!$N$1+1))+1),"") ->  | AD52: =IFERROR(IF(Settings!$Q$5="CBS",J52,IF(Settings!$R$5="NFBC",O52,MIN(AA52*0.75,IFERROR($O52,999),IFERROR($J52,999)))),"") ->  | AE52: =IFERROR(IF(Settings!$Q$5="CBS",K52,IF(Settings!$R$5="NFBC",P52,MAX(AA52*1.33,IFERROR($P52,999),IFERROR($K52,999)))),"") ->  | AH52: =INDEX('Import (ADP)'!$C$2:$C$999,MATCH(A52, 'Import (ADP)'!$B$2:$B$999,0)) ->  | AK52: =IF(VLOOKUP(A53,'Name Sort'!$D$2:$E$936,2,FALSE)="",A53,"") -> Matt Barnes | AL52: =IFERROR(INDEX($AK$1:$AK$943,SMALL(IF($AK$1:$AK$943<>"",ROW($AK$1:$AK$943)),ROW(AK52))),"") -> Matt Barnes
A53: Matt Barnes | B53: barnema01 | C53: RP | E53: BOS | F53: 31 | G53: 254 | H53: 194 | I53: 179.35 | J53: 79 | K53: 264 | L53: 211 | M53: 260 | N53: 242.4 | O53: 118 | P53: 423 | Q53: 223.4583333 | R53: 154 | S53: 262.3 | T53: 242 | U53: 205 | V53: 239.4 | X53: =IFERROR(INDEX('Guts-2'!$K$1:$K$30,MATCH(E53,'Guts-2'!$J$1:$J$30,0)),TRUE) -> TRUE | Y53: =IFERROR(IF(OR(X53=FALSE,INDEX('Player Notes'!$I$3:$I$999,MATCH(A53,'Player Notes'!$A$3:$A$999,0),1)="Yes"),"",IFERROR(CHOOSE('Guts-2'!$D$27,R53,S53,T53,U53,V53,W53),"")),"") -> 242 | Z53: 242 | AA53: =IFERROR(IF(OR(X53=FALSE,INDEX('Player Notes'!$I$3:$I$999,MATCH(A53,'Player Notes'!$A$3:$A$999,0),1)="Yes"),"",IFERROR(CHOOSE('Guts-2'!$D$26,G53,H53,I53,L53,M53,N53,Q53,AH53),"")),"") -> 179.35 | AB53: =IFERROR(IF(Settings!$L$5="Mixed (Standard)",AA53,RANK(AA53,$AA$2:$AA$943,1)),"") -> 179.35 | AC53: =IFERROR(IF(Settings!$L$5="Mixed (Standard)",(RANK(AA53,$AA$2:$AA$943,1)/('Guts-2'!$N$1+1))+1,(RANK(AB53,$AB$2:$AB$943,1)/('Guts-2'!$N$1+1))+1),"") -> 15.38461538 | AD53: =IFERROR(IF(Settings!$Q$5="CBS",J53,IF(Settings!$R$5="NFBC",O53,MIN(AA53*0.75,IFERROR($O53,999),IFERROR($J53,999)))),"") -> 79 | AE53: =IFERROR(IF(Settings!$Q$5="CBS",K53,IF(Settings!$R$5="NFBC",P53,MAX(AA53*1.33,IFERROR($P53,999),IFERROR($K53,999)))),"") -> 423 | AF53: 79 | AG53: 423 | AH53: =INDEX('Import (ADP)'!$C$2:$C$999,MATCH(A53, 'Import (ADP)'!$B$2:$B$999,0)) ->  | AK53: =IF(VLOOKUP(A54,'Name Sort'!$D$2:$E$936,2,FALSE)="",A54,"") -> Tucker Barnhart | AL53: =IFERROR(INDEX($AK$1:$AK$943,SMALL(IF($AK$1:$AK$943<>"",ROW($AK$1:$AK$943)),ROW(AK53))),"") -> Tucker Barnhart
A54: Tucker Barnhart | B54: barnhtu01 | C54: C | E54: DET | F54: 31 | G54: 378 | M54: 460 | N54: 489.94 | O54: 243 | P54: 480 | Q54: 442.6466667 | V54: 459.8 | X54: =IFERROR(INDEX('Guts-2'!$K$1:$K$30,MATCH(E54,'Guts-2'!$J$1:$J$30,0)),TRUE) -> TRUE | Y54: =IFERROR(IF(OR(X54=FALSE,INDEX('Player Notes'!$I$3:$I$999,MATCH(A54,'Player Notes'!$A$3:$A$999,0),1)="Yes"),"",IFERROR(CHOOSE('Guts-2'!$D$27,R54,S54,T54,U54,V54,W54),"")),"") ->  | AA54: =IFERROR(IF(OR(X54=FALSE,INDEX('Player Notes'!$I$3:$I$999,MATCH(A54,'Player Notes'!$A$3:$A$999,0),1)="Yes"),"",IFERROR(CHOOSE('Guts-2'!$D$26,G54,H54,I54,L54,M54,N54,Q54,AH54),"")),"") ->  | AB54: =IFERROR(IF(Settings!$L$5="Mixed (Standard)",AA54,RANK(AA54,$AA$2:$AA$943,1)),"") ->  | AC54: =IFERROR(IF(Settings!$L$5="Mixed (Standard)",(RANK(AA54,$AA$2:$AA$943,1)/('Guts-2'!$N$1+1))+1,(RANK(AB54,$AB$2:$AB$943,1)/('Guts-2'!$N$1+1))+1),"") ->  | AD54: =IFERROR(IF(Settings!$Q$5="CBS",J54,IF(Settings!$R$5="NFBC",O54,MIN(AA54*0.75,IFERROR($O54,999),IFERROR($J54,999)))),"") ->  | AE54: =IFERROR(IF(Settings!$Q$5="CBS",K54,IF(Settings!$R$5="NFBC",P54,MAX(AA54*1.33,IFERROR($P54,999),IFERROR($K54,999)))),"") ->  | AH54: =INDEX('Import (ADP)'!$C$2:$C$999,MATCH(A54, 'Import (ADP)'!$B$2:$B$999,0)) ->  | AK54: =IF(VLOOKUP(A55,'Name Sort'!$D$2:$E$936,2,FALSE)="",A55,"") -> Joey Bart | AL54: =IFERROR(INDEX($AK$1:$AK$943,SMALL(IF($AK$1:$AK$943<>"",ROW($AK$1:$AK$943)),ROW(AK54))),"") -> Joey Bart
A55: Joey Bart | B55: bartjo01 | C55: DH | E55: SF | F55: 25 | G55: 272 | H55: 299 | I55: 232.79 | J55: 109 | K55: 348 | M55: 311 | N55: 281.46 | O55: 170 | P55: 387 | Q55: 279.25 | V55: 393.3 | X55: =IFERROR(INDEX('Guts-2'!$K$1:$K$30,MATCH(E55,'Guts-2'!$J$1:$J$30,0)),TRUE) -> TRUE | Y55: =IFERROR(IF(OR(X55=FALSE,INDEX('Player Notes'!$I$3:$I$999,MATCH(A55,'Player Notes'!$A$3:$A$999,0),1)="Yes"),"",IFERROR(CHOOSE('Guts-2'!$D$27,R55,S55,T55,U55,V55,W55),"")),"") ->  | AA55: =IFERROR(IF(OR(X55=FALSE,INDEX('Player Notes'!$I$3:$I$999,MATCH(A55,'Player Notes'!$A$3:$A$999,0),1)="Yes"),"",IFERROR(CHOOSE('Guts-2'!$D$26,G55,H55,I55,L55,M55,N55,Q55,AH55),"")),"") -> 232.79 | AB55: =IFERROR(IF(Settings!$L$5="Mixed (Standard)",AA55,RANK(AA55,$AA$2:$AA$943,1)),"") -> 232.79 | AC55: =IFERROR(IF(Settings!$L$5="Mixed (Standard)",(RANK(AA55,$AA$2:$AA$943,1)/('Guts-2'!$N$1+1))+1,(RANK(AB55,$AB$2:$AB$943,1)/('Guts-2'!$N$1+1))+1),"") -> 23.30769231 | AD55: =IFERROR(IF(Settings!$Q$5="CBS",J55,IF(Settings!$R$5="NFBC",O55,MIN(AA55*0.75,IFERROR($O55,999),IFERROR($J55,999)))),"") -> 109 | AE55: =IFERROR(IF(Settings!$Q$5="CBS",K55,IF(Settings!$R$5="NFBC",P55,MAX(AA55*1.33,IFERROR($P55,999),IFERROR($K55,999)))),"") -> 387 | AF55: 109 | AG55: 387 | AH55: =INDEX('Import (ADP)'!$C$2:$C$999,MATCH(A55, 'Import (ADP)'!$B$2:$B$999,0)) ->  | AK55: =IF(VLOOKUP(A56,'Name Sort'!$D$2:$E$936,2,FALSE)="",A56,"") -> Chris Bassitt | AL55: =IFERROR(INDEX($AK$1:$AK$943,SMALL(IF($AK$1:$AK$943<>"",ROW($AK$1:$AK$943)),ROW(AK55))),"") -> Chris Bassitt
A56: Chris Bassitt | B56: bassich01 | C56: SP | E56: NYM | F56: 33 | G56: 126 | H56: 110 | I56: 101.98 | J56: 58 | K56: 150 | L56: 95 | M56: 115 | N56: 129.66 | O56: 87 | P56: 194 | Q56: 112.94 | R56: 127 | S56: 119 | T56: 78 | U56: 170 | V56: 119.3 | X56: =IFERROR(INDEX('Guts-2'!$K$1:$K$30,MATCH(E56,'Guts-2'!$J$1:$J$30,0)),TRUE) -> TRUE | Y56: =IFERROR(IF(OR(X56=FALSE,INDEX('Player Notes'!$I$3:$I$999,MATCH(A56,'Player Notes'!$A$3:$A$999,0),1)="Yes"),"",IFERROR(CHOOSE('Guts-2'!$D$27,R56,S56,T56,U56,V56,W56),"")),"") -> 78 | Z56: 78 | AA56: =IFERROR(IF(OR(X56=FALSE,INDEX('Player Notes'!$I$3:$I$999,MATCH(A56,'Player Notes'!$A$3:$A$999,0),1)="Yes"),"",IFERROR(CHOOSE('Guts-2'!$D$26,G56,H56,I56,L56,M56,N56,Q56,AH56),"")),"") -> 101.98 | AB56: =IFERROR(IF(Settings!$L$5="Mixed (Standard)",AA56,RANK(AA56,$AA$2:$AA$943,1)),"") -> 101.98 | AC56: =IFERROR(IF(Settings!$L$5="Mixed (Standard)",(RANK(AA56,$AA$2:$AA$943,1)/('Guts-2'!$N$1+1))+1,(RANK(AB56,$AB$2:$AB$943,1)/('Guts-2'!$N$1+1))+1),"") -> 8.461538462 | AD56: =IFERROR(IF(Settings!$Q$5="CBS",J56,IF(Settings!$R$5="NFBC",O56,MIN(AA56*0.75,IFERROR($O56,999),IFERROR($J56,999)))),"") -> 58 | AE56: =IFERROR(IF(Settings!$Q$5="CBS",K56,IF(Settings!$R$5="NFBC",P56,MAX(AA56*1.33,IFERROR($P56,999),IFERROR($K56,999)))),"") -> 194 | AF56: 58 | AG56: 194 | AH56: =INDEX('Import (ADP)'!$C$2:$C$999,MATCH(A56, 'Import (ADP)'!$B$2:$B$999,0)) ->  | AK56: =IF(VLOOKUP(A57,'Name Sort'!$D$2:$E$936,2,FALSE)="",A57,"") -> Trevor Bauer | AL56: =IFERROR(INDEX($AK$1:$AK$943,SMALL(IF($AK$1:$AK$943<>"",ROW($AK$1:$AK$943)),ROW(AK56))),"") -> Trevor Bauer
A57: Trevor Bauer | B57: bauertr01 | C57: SP | E57: LAD | F57: 31 | G57: 248 | H57: 204 | I57: 175.57 | J57: 31 | K57: 266 | L57: 215 | M57: 192 | N57: 221.37 | O57: 76 | P57: 367 | Q57: 209.3233333 | S57: 270.5 | T57: 285 | V57: 252.4 | X57: =IFERROR(INDEX('Guts-2'!$K$1:$K$30,MATCH(E57,'Guts-2'!$J$1:$J$30,0)),TRUE) -> TRUE | Y57: =IFERROR(IF(OR(X57=FALSE,INDEX('Player Notes'!$I$3:$I$999,MATCH(A57,'Player Notes'!$A$3:$A$999,0),1)="Yes"),"",IFERROR(CHOOSE('Guts-2'!$D$27,R57,S57,T57,U57,V57,W57),"")),"") -> 285 | Z57: 285 | AA57: =IFERROR(IF(OR(X57=FALSE,INDEX('Player Notes'!$I$3:$I$999,MATCH(A57,'Player Notes'!$A$3:$A$999,0),1)="Yes"),"",IFERROR(CHOOSE('Guts-2'!$D$26,G57,H57,I57,L57,M57,N57,Q57,AH57),"")),"") -> 175.57 | AB57: =IFERROR(IF(Settings!$L$5="Mixed (Standard)",AA57,RANK(AA57,$AA$2:$AA$943,1)),"") -> 175.57 | AC57: =IFERROR(IF(Settings!$L$5="Mixed (Standard)",(RANK(AA57,$AA$2:$AA$943,1)/('Guts-2'!$N$1+1))+1,(RANK(AB57,$AB$2:$AB$943,1)/('Guts-2'!$N$1+1))+1),"") -> 15.07692308 | AD57: =IFERROR(IF(Settings!$Q$5="CBS",J57,IF(Settings!$R$5="NFBC",O57,MIN(AA57*0.75,IFERROR($O57,999),IFERROR($J57,999)))),"") -> 31 | AE57: =IFERROR(IF(Settings!$Q$5="CBS",K57,IF(Settings!$R$5="NFBC",P57,MAX(AA57*1.33,IFERROR($P57,999),IFERROR($K57,999)))),"") -> 367 | AF57: 31 | AG57: 367 | AH57: =INDEX('Import (ADP)'!$C$2:$C$999,MATCH(A57, 'Import (ADP)'!$B$2:$B$999,0)) ->  | AK57: =IF(VLOOKUP(A58,'Name Sort'!$D$2:$E$936,2,FALSE)="",A58,"") -> Shane Baz | AL57: =IFERROR(INDEX($AK$1:$AK$943,SMALL(IF($AK$1:$AK$943<>"",ROW($AK$1:$AK$943)),ROW(AK57))),"") -> Shane Baz
A58: Shane Baz | B58: bazsh01 | C58: SP | E58: TB | F58: 22 | G58: 151 | H58: 182 | I58: 191.73 | J58: 97 | K58: 274 | L58: 155 | M58: 190 | N58: 165.1 | O58: 84 | P58: 385 | Q58: 172.4716667 | S58: 206.7 | T58: 125 | U58: 166 | V58: 184.8 | X58: =IFERROR(INDEX('Guts-2'!$K$1:$K$30,MATCH(E58,'Guts-2'!$J$1:$J$30,0)),TRUE) -> TRUE | Y58: =IFERROR(IF(OR(X58=FALSE,INDEX('Player Notes'!$I$3:$I$999,MATCH(A58,'Player Notes'!$A$3:$A$999,0),1)="Yes"),"",IFERROR(CHOOSE('Guts-2'!$D$27,R58,S58,T58,U58,V58,W58),"")),"") -> 125 | Z58: 125 | AA58: =IFERROR(IF(OR(X58=FALSE,INDEX('Player Notes'!$I$3:$I$999,MATCH(A58,'Player Notes'!$A$3:$A$999,0),1)="Yes"),"",IFERROR(CHOOSE('Guts-2'!$D$26,G58,H58,I58,L58,M58,N58,Q58,AH58),"")),"") -> 191.73 | AB58: =IFERROR(IF(Settings!$L$5="Mixed (Standard)",AA58,RANK(AA58,$AA$2:$AA$943,1)),"") -> 191.73 | AC58: =IFERROR(IF(Settings!$L$5="Mixed (Standard)",(RANK(AA58,$AA$2:$AA$943,1)/('Guts-2'!$N$1+1))+1,(RANK(AB58,$AB$2:$AB$943,1)/('Guts-2'!$N$1+1))+1),"") -> 17.23076923 | AD58: =IFERROR(IF(Settings!$Q$5="CBS",J58,IF(Settings!$R$5="NFBC",O58,MIN(AA58*0.75,IFERROR($O58,999),IFERROR($J58,999)))),"") -> 84 | AE58: =IFERROR(IF(Settings!$Q$5="CBS",K58,IF(Settings!$R$5="NFBC",P58,MAX(AA58*1.33,IFERROR($P58,999),IFERROR($K58,999)))),"") -> 385 | AF58: 84 | AG58: 385 | AH58: =INDEX('Import (ADP)'!$C$2:$C$999,MATCH(A58, 'Import (ADP)'!$B$2:$B$999,0)) ->  | AK58: =IF(VLOOKUP(A59,'Name Sort'!$D$2:$E$936,2,FALSE)="",A59,"") -> Matt Beaty | AL58: =IFERROR(INDEX($AK$1:$AK$943,SMALL(IF($AK$1:$AK$943<>"",ROW($AK$1:$AK$943)),ROW(AK58))),"") -> Matt Beaty
A59: Matt Beaty | B59: beatyma01 | C59: OF | D59: LF,RF | E59: SD | F59: 28 | G59: 599 | L59: 441 | M59: 664 | N59: 707.73 | O59: 371 | P59: 739 | Q59: 602.9325 | V59: 742.3 | X59: =IFERROR(INDEX('Guts-2'!$K$1:$K$30,MATCH(E59,'Guts-2'!$J$1:$J$30,0)),TRUE) -> TRUE | Y59: =IFERROR(IF(OR(X59=FALSE,INDEX('Player Notes'!$I$3:$I$999,MATCH(A59,'Player Notes'!$A$3:$A$999,0),1)="Yes"),"",IFERROR(CHOOSE('Guts-2'!$D$27,R59,S59,T59,U59,V59,W59),"")),"") ->  | AA59: =IFERROR(IF(OR(X59=FALSE,INDEX('Player Notes'!$I$3:$I$999,MATCH(A59,'Player Notes'!$A$3:$A$999,0),1)="Yes"),"",IFERROR(CHOOSE('Guts-2'!$D$26,G59,H59,I59,L59,M59,N59,Q59,AH59),"")),"") ->  | AB59: =IFERROR(IF(Settings!$L$5="Mixed (Standard)",AA59,RANK(AA59,$AA$2:$AA$943,1)),"") ->  | AC59: =IFERROR(IF(Settings!$L$5="Mixed (Standard)",(RANK(AA59,$AA$2:$AA$943,1)/('Guts-2'!$N$1+1))+1,(RANK(AB59,$AB$2:$AB$943,1)/('Guts-2'!$N$1+1))+1),"") ->  | AD59: =IFERROR(IF(Settings!$Q$5="CBS",J59,IF(Settings!$R$5="NFBC",O59,MIN(AA59*0.75,IFERROR($O59,999),IFERROR($J59,999)))),"") ->  | AE59: =IFERROR(IF(Settings!$Q$5="CBS",K59,IF(Settings!$R$5="NFBC",P59,MAX(AA59*1.33,IFERROR($P59,999),IFERROR($K59,999)))),"") ->  | AH59: =INDEX('Import (ADP)'!$C$2:$C$999,MATCH(A59, 'Import (ADP)'!$B$2:$B$999,0)) ->  | AK59: =IF(VLOOKUP(A60,'Name Sort'!$D$2:$E$936,2,FALSE)="",A60,"") -> David Bednar | AL59: =IFERROR(INDEX($AK$1:$AK$943,SMALL(IF($AK$1:$AK$943<>"",ROW($AK$1:$AK$943)),ROW(AK59))),"") -> David Bednar
A60: David Bednar | B60: bednada01 | C60: RP | E60: PIT | F60: 27 | G60: 202 | H60: 225 | I60: 222.49 | J60: 93 | K60: 302 | L60: 288 | M60: 257 | N60: 206.09 | O60: 121 | P60: 464 | Q60: 233.43 | R60: 152 | S60: 172.5 | U60: 209 | V60: 230.3 | X60: =IFERROR(INDEX('Guts-2'!$K$1:$K$30,MATCH(E60,'Guts-2'!$J$1:$J$30,0)),TRUE) -> TRUE | Y60: =IFERROR(IF(OR(X60=FALSE,INDEX('Player Notes'!$I$3:$I$999,MATCH(A60,'Player Notes'!$A$3:$A$999,0),1)="Yes"),"",IFERROR(CHOOSE('Guts-2'!$D$27,R60,S60,T60,U60,V60,W60),"")),"") ->  | AA60: =IFERROR(IF(OR(X60=FALSE,INDEX('Player Notes'!$I$3:$I$999,MATCH(A60,'Player Notes'!$A$3:$A$999,0),1)="Yes"),"",IFERROR(CHOOSE('Guts-2'!$D$26,G60,H60,I60,L60,M60,N60,Q60,AH60),"")),"") -> 222.49 | AB60: =IFERROR(IF(Settings!$L$5="Mixed (Standard)",AA60,RANK(AA60,$AA$2:$AA$943,1)),"") -> 222.49 | AC60: =IFERROR(IF(Settings!$L$5="Mixed (Standard)",(RANK(AA60,$AA$2:$AA$943,1)/('Guts-2'!$N$1+1))+1,(RANK(AB60,$AB$2:$AB$943,1)/('Guts-2'!$N$1+1))+1),"") -> 21.76923077 | AD60: =IFERROR(IF(Settings!$Q$5="CBS",J60,IF(Settings!$R$5="NFBC",O60,MIN(AA60*0.75,IFERROR($O60,999),IFERROR($J60,999)))),"") -> 93 | AE60: =IFERROR(IF(Settings!$Q$5="CBS",K60,IF(Settings!$R$5="NFBC",P60,MAX(AA60*1.33,IFERROR($P60,999),IFERROR($K60,999)))),"") -> 464 | AF60: 93 | AG60: 464 | AH60: =INDEX('Import (ADP)'!$C$2:$C$999,MATCH(A60, 'Import (ADP)'!$B$2:$B$999,0)) ->  | AK60: =IF(VLOOKUP(A61,'Name Sort'!$D$2:$E$936,2,FALSE)="",A61,"") -> Tyler Beede | AL60: =IFERROR(INDEX($AK$1:$AK$943,SMALL(IF($AK$1:$AK$943<>"",ROW($AK$1:$AK$943)),ROW(AK60))),"") -> Tyler Beede
A61: Tyler Beede | B61: beedety01 | C61: RP | E61: N/A | F61: 28 | G61: 523 | M61: 575 | N61: 665.07 | O61: 351 | P61: 705 | Q61: 587.69 | V61: 1000 | X61: =IFERROR(INDEX('Guts-2'!$K$1:$K$30,MATCH(E61,'Guts-2'!$J$1:$J$30,0)),TRUE) -> TRUE | Y61: =IFERROR(IF(OR(X61=FALSE,INDEX('Player Notes'!$I$3:$I$999,MATCH(A61,'Player Notes'!$A$3:$A$999,0),1)="Yes"),"",IFERROR(CHOOSE('Guts-2'!$D$27,R61,S61,T61,U61,V61,W61),"")),"") ->  | AA61: =IFERROR(IF(OR(X61=FALSE,INDEX('Player Notes'!$I$3:$I$999,MATCH(A61,'Player Notes'!$A$3:$A$999,0),1)="Yes"),"",IFERROR(CHOOSE('Guts-2'!$D$26,G61,H61,I61,L61,M61,N61,Q61,AH61),"")),"") ->  | AB61: =IFERROR(IF(Settings!$L$5="Mixed (Standard)",AA61,RANK(AA61,$AA$2:$AA$943,1)),"") ->  | AC61: =IFERROR(IF(Settings!$L$5="Mixed (Standard)",(RANK(AA61,$AA$2:$AA$943,1)/('Guts-2'!$N$1+1))+1,(RANK(AB61,$AB$2:$AB$943,1)/('Guts-2'!$N$1+1))+1),"") ->  | AD61: =IFERROR(IF(Settings!$Q$5="CBS",J61,IF(Settings!$R$5="NFBC",O61,MIN(AA61*0.75,IFERROR($O61,999),IFERROR($J61,999)))),"") ->  | AE61: =IFERROR(IF(Settings!$Q$5="CBS",K61,IF(Settings!$R$5="NFBC",P61,MAX(AA61*1.33,IFERROR($P61,999),IFERROR($K61,999)))),"") ->  | AH61: =INDEX('Import (ADP)'!$C$2:$C$999,MATCH(A61, 'Import (ADP)'!$B$2:$B$999,0)) ->  | AK61: =IF(VLOOKUP(A62,'Name Sort'!$D$2:$E$936,2,FALSE)="",A62,"") -> Seth Beer | AL61: =IFERROR(INDEX($AK$1:$AK$943,SMALL(IF($AK$1:$AK$943<>"",ROW($AK$1:$AK$943)),ROW(AK61))),"") -> Seth Beer
A62: Seth Beer | B62: beerse01 | C62: DH | E62: ARI | F62: 25 | G62: 511 | M62: 476 | N62: 632.15 | O62: 281 | P62: 672 | Q62: 539.7166667 | V62: 464.4 | X62: =IFERROR(INDEX('Guts-2'!$K$1:$K$30,MATCH(E62,'Guts-2'!$J$1:$J$30,0)),TRUE) -> TRUE | Y62: =IFERROR(IF(OR(X62=FALSE,INDEX('Player Notes'!$I$3:$I$999,MATCH(A62,'Player Notes'!$A$3:$A$999,0),1)="Yes"),"",IFERROR(CHOOSE('Guts-2'!$D$27,R62,S62,T62,U62,V62,W62),"")),"") ->  | AA62: =IFERROR(IF(OR(X62=FALSE,INDEX('Player Notes'!$I$3:$I$999,MATCH(A62,'Player Notes'!$A$3:$A$999,0),1)="Yes"),"",IFERROR(CHOOSE('Guts-2'!$D$26,G62,H62,I62,L62,M62,N62,Q62,AH62),"")),"") ->  | AB62: =IFERROR(IF(Settings!$L$5="Mixed (Standard)",AA62,RANK(AA62,$AA$2:$AA$943,1)),"") ->  | AC62: =IFERROR(IF(Settings!$L$5="Mixed (Standard)",(RANK(AA62,$AA$2:$AA$943,1)/('Guts-2'!$N$1+1))+1,(RANK(AB62,$AB$2:$AB$943,1)/('Guts-2'!$N$1+1))+1),"") ->  | AD62: =IFERROR(IF(Settings!$Q$5="CBS",J62,IF(Settings!$R$5="NFBC",O62,MIN(AA62*0.75,IFERROR($O62,999),IFERROR($J62,999)))),"") ->  | AE62: =IFERROR(IF(Settings!$Q$5="CBS",K62,IF(Settings!$R$5="NFBC",P62,MAX(AA62*1.33,IFERROR($P62,999),IFERROR($K62,999)))),"") ->  | AH62: =INDEX('Import (ADP)'!$C$2:$C$999,MATCH(A62, 'Import (ADP)'!$B$2:$B$999,0)) ->  | AK62: =IF(VLOOKUP(A63,'Name Sort'!$D$2:$E$936,2,FALSE)="",A63,"") -> Cody Bellinger | AL62: =IFERROR(INDEX($AK$1:$AK$943,SMALL(IF($AK$1:$AK$943<>"",ROW($AK$1:$AK$943)),ROW(AK62))),"") -> Cody Bellinger
... 77 more rows

Sheet Guts-1 (hidden)
A1: =Settings!B6 -> AB | B1: =IF(Settings!C6=0,"",Settings!C6) ->  | C1: 3 | D1: =Settings!B24 -> W | E1: =IF(Settings!C24=0,"",Settings!C24) -> 10 | F1: 2 | I1: Stats or Points or Hide? | K1: =IF('Your Points Draft'!R6=O5,1,IF('Your Points Draft'!R6=O6,2,IF('Your Points Draft'!R6=O7,3,""))) -> 1 | L1: =MAX(COUNTIF(K2:K14,">"""),COUNTIF(K20:K34,">""")) -> 13 | N1: List | O1: List | P1: Pos | Q1: Sort by ADP | R1: Show All Positions | S1: =IFERROR(INDEX($R$1:$R$24,SMALL(IF($R$1:$R$24<>"",ROW($R$1:$R$24)),ROW(B1))),"") -> Show All Positions
A2: =Settings!B8 -> Single | B2: =IF(Settings!C8=0,"",Settings!C8) -> 1 | C2: 6 | D2: =Settings!B25 -> L | E2: =IF(Settings!C25=0,"",Settings!C25) -> -5 | F2: 3 | I2: H1 | J2: =IF(Settings!C5=0,"",Settings!B5) -> PA | K2: =IFERROR(INDEX($J$1:$J$18,SMALL(IF($J$1:$J$18<>"",ROW($J$1:$J$18)),ROW(A1))),"") -> PA | L2: =IF(K$1=2,1,IF(OR(K2="AVG",K2="OBP",K2="SLG",K2="OPS"),2,IF(K2="","",1))) -> 1 | M2: =IF(OR(K2="AVG",K2="OBP",K2="SLG",K2="OPS"),2,IF(K2="","",1)) -> 1 | N2: =IFERROR(INDEX($K$1:$K$34,SMALL(IF($K$1:$K$34<>"",ROW($K$1:$K$34)),ROW(B2))),"") -> PA | O2: Stats | P2: =IF('Guts-2'!$N$2>=ROW(P1),"C","") -> C | Q2: Sort by Projected Points | R2: =IF('Guts-2'!$N2>0,"Only Show: "&'Guts-2'!M2,"") -> Only Show: C | S2: =IFERROR(INDEX($R$1:$R$24,SMALL(IF($R$1:$R$24<>"",ROW($R$1:$R$24)),ROW(B2))),"") -> Only Show: C
A3: =Settings!B9 -> Double | B3: =IF(Settings!C9=0,"",Settings!C9) -> 2 | C3: 7 | D3: =Settings!B26 -> IP | E3: =IF(Settings!C26=0,"",Settings!C26) -> 3 | F3: 4 | I3: H2 | J3: =IF(Settings!C6=0,"",Settings!B6) ->  | K3: =IFERROR(INDEX($J$1:$J$18,SMALL(IF($J$1:$J$18<>"",ROW($J$1:$J$18)),ROW(A2))),"") -> Single | L3: =IF(K$1=2,1,IF(OR(K3="AVG",K3="OBP",K3="SLG",K3="OPS"),2,IF(K3="","",1))) -> 1 | M3: =IF(OR(K3="AVG",K3="OBP",K3="SLG",K3="OPS"),2,IF(K3="","",1)) -> 1 | N3: =IFERROR(INDEX($K$1:$K$34,SMALL(IF($K$1:$K$34<>"",ROW($K$1:$K$34)),ROW(B3))),"") -> Single | O3: Ranks | P3: =IF('Guts-2'!$N$2>=ROW(P2),"C","") ->  | Q3: Sort by Expert Ranking | R3: =IF('Guts-2'!$N3>0,"Only Show: "&'Guts-2'!M3,"") -> Only Show: 1B | S3: =IFERROR(INDEX($R$1:$R$24,SMALL(IF($R$1:$R$24<>"",ROW($R$1:$R$24)),ROW(B3))),"") -> Only Show: 1B
A4: =Settings!B10 -> Triple | B4: =IF(Settings!C10=0,"",Settings!C10) -> 3 | C4: 8 | D4: =Settings!B27 -> Hits Allw | E4: =IF(Settings!C27=0,"",Settings!C27) -> -0.5 | F4: 5 | I4: H3 | J4: =IF(Settings!C7=0,"",Settings!B7) ->  | K4: =IFERROR(INDEX($J$1:$J$18,SMALL(IF($J$1:$J$18<>"",ROW($J$1:$J$18)),ROW(A3))),"") -> Double | L4: 1 | M4: 1 | N4: =IFERROR(INDEX($K$1:$K$34,SMALL(IF($K$1:$K$34<>"",ROW($K$1:$K$34)),ROW(B4))),"") -> Double | O4: List | P4: =IF('Guts-2'!$N$2>=ROW(P3),"C","") ->  | Q4: Sort by Points Above Replacement | R4: =IF('Guts-2'!$N4>0,"Only Show: "&'Guts-2'!M4,"") -> Only Show: 2B | S4: =IFERROR(INDEX($R$1:$R$24,SMALL(IF($R$1:$R$24<>"",ROW($R$1:$R$24)),ROW(B4))),"") -> Only Show: 2B
A5: =Settings!B11 -> HR | B5: =IF(Settings!C11=0,"",Settings!C11) -> 5 | C5: 9 | D5: =Settings!B28 -> Walks | E5: =IF(Settings!C28=0,"",Settings!C28) -> -1 | F5: 6 | I5: H4 | J5: =IF(Settings!C8=0,"",Settings!B8) -> Single | K5: =IFERROR(INDEX($J$1:$J$18,SMALL(IF($J$1:$J$18<>"",ROW($J$1:$J$18)),ROW(A4))),"") -> Triple | L5: 1 | M5: 1 | N5: =IFERROR(INDEX($K$1:$K$34,SMALL(IF($K$1:$K$34<>"",ROW($K$1:$K$34)),ROW(B5))),"") -> Triple | O5: Show Basic Stats | P5: =IF('Guts-2'!$N$2>=ROW(P4),"C","") ->  | Q5: Sort by Points Per IP | R5: =IF('Guts-2'!$N5>0,"Only Show: "&'Guts-2'!M5,"") -> Only Show: 3B | S5: =IFERROR(INDEX($R$1:$R$24,SMALL(IF($R$1:$R$24<>"",ROW($R$1:$R$24)),ROW(B5))),"") -> Only Show: 3B
A6: =Settings!B12 -> BB | B6: =IF(Settings!C12=0,"",Settings!C12) -> 1 | C6: 13 | D6: =Settings!B29 -> K | E6: =IF(Settings!C29=0,"",Settings!C29) -> 1 | F6: 7 | I6: H5 | J6: =IF(Settings!C9=0,"",Settings!B9) -> Double | K6: =IFERROR(INDEX($J$1:$J$18,SMALL(IF($J$1:$J$18<>"",ROW($J$1:$J$18)),ROW(A5))),"") -> HR | L6: 1 | M6: 1 | N6: =IFERROR(INDEX($K$1:$K$34,SMALL(IF($K$1:$K$34<>"",ROW($K$1:$K$34)),ROW(B6))),"") -> HR | O6: Show Point Totals | P6: =IF('Guts-2'!$N$3>=ROW(P1),"1B","") -> 1B | Q6: Sort by Points Per PA | R6: =IF('Guts-2'!$N6>0,"Only Show: "&'Guts-2'!M6,"") -> Only Show: SS | S6: =IFERROR(INDEX($R$1:$R$24,SMALL(IF($R$1:$R$24<>"",ROW($R$1:$R$24)),ROW(B6))),"") -> Only Show: SS
A7: =Settings!B13 -> SB | B7: =IF(Settings!C13=0,"",Settings!C13) -> 2 | C7: 11 | D7: =Settings!B30 -> ER | E7: =IF(Settings!C30=0,"",Settings!C30) -> -1 | F7: 8 | I7: H6 | J7: =IF(Settings!C10=0,"",Settings!B10) -> Triple | K7: =IFERROR(INDEX($J$1:$J$18,SMALL(IF($J$1:$J$18<>"",ROW($J$1:$J$18)),ROW(A6))),"") -> BB | L7: 1 | M7: 1 | N7: =IFERROR(INDEX($K$1:$K$34,SMALL(IF($K$1:$K$34<>"",ROW($K$1:$K$34)),ROW(B7))),"") -> BB | O7: Show Neither | P7: =IF('Guts-2'!$N$3>=ROW(P2),"1B","") ->  | R7: =IF('Guts-2'!$N7>0,"Only Show: "&'Guts-2'!M7,"") ->  | S7: =IFERROR(INDEX($R$1:$R$24,SMALL(IF($R$1:$R$24<>"",ROW($R$1:$R$24)),ROW(B7))),"") -> Only Show: OF
A8: =Settings!B14 -> CS | B8: =IF(Settings!C14=0,"",Settings!C14) -> -1 | C8: 12 | D8: SV | E8: =IF(Settings!C31=0,"",Settings!C31) -> 10 | F8: 9 | I8: H7 | J8: =IF(Settings!C11=0,"",Settings!B11) -> HR | K8: =IFERROR(INDEX($J$1:$J$18,SMALL(IF($J$1:$J$18<>"",ROW($J$1:$J$18)),ROW(A7))),"") -> SB | L8: 1 | M8: 1 | N8: =IFERROR(INDEX($K$1:$K$34,SMALL(IF($K$1:$K$34<>"",ROW($K$1:$K$34)),ROW(B8))),"") -> SB | O8: List | P8: =IF('Guts-2'!$N$3>=ROW(P3),"1B","") ->  | R8: =IF('Guts-2'!$N8>0,"Only Show: "&'Guts-2'!M8,"") ->  | S8: =IFERROR(INDEX($R$1:$R$24,SMALL(IF($R$1:$R$24<>"",ROW($R$1:$R$24)),ROW(B8))),"") -> Only Show: DH
A9: =Settings!B15 -> K's | B9: =IF(Settings!C15=0,"",Settings!C15) -> -1 | C9: 14 | D9: =Settings!B32 -> QS | E9: =IF(Settings!C32=0,"",Settings!C32) -> 10 | F9: 10 | I9: H8 | J9: =IF(Settings!C12=0,"",Settings!B12) -> BB | K9: =IFERROR(INDEX($J$1:$J$18,SMALL(IF($J$1:$J$18<>"",ROW($J$1:$J$18)),ROW(A8))),"") -> CS | L9: 1 | M9: 1 | N9: =IFERROR(INDEX($K$1:$K$34,SMALL(IF($K$1:$K$34<>"",ROW($K$1:$K$34)),ROW(B9))),"") -> CS | O9: Mixed (Standard) | P9: =IF('Guts-2'!$N$4>=ROW(P1),"2B","") -> 2B | R9: =IF('Guts-2'!$N9>0,"Only Show: "&'Guts-2'!M9,"") -> Only Show: OF | S9: =IFERROR(INDEX($R$1:$R$24,SMALL(IF($R$1:$R$24<>"",ROW($R$1:$R$24)),ROW(B9))),"") -> Only Show: SP
A10: =Settings!B16 -> R | B10: =IF(Settings!C16=0,"",Settings!C16) -> 1 | C10: 4 | D10: =Settings!B33 -> CG | E10: =IF(Settings!C33=0,"",Settings!C33) -> 10 | F10: 14 | I10: H9 | J10: =IF(Settings!C13=0,"",Settings!B13) -> SB | K10: =IFERROR(INDEX($J$1:$J$18,SMALL(IF($J$1:$J$18<>"",ROW($J$1:$J$18)),ROW(A9))),"") -> K's | L10: 1 | M10: 1 | N10: =IFERROR(INDEX($K$1:$K$34,SMALL(IF($K$1:$K$34<>"",ROW($K$1:$K$34)),ROW(B10))),"") -> K's | O10: AL-Only | P10: =IF('Guts-2'!$N$4>=ROW(P2),"2B","") ->  | R10: =IF('Guts-2'!$N10>0,"Only Show: "&'Guts-2'!M10,"") -> Only Show: DH | S10: =IFERROR(INDEX($R$1:$R$24,SMALL(IF($R$1:$R$24<>"",ROW($R$1:$R$24)),ROW(B10))),"") -> Only Show: RP
A11: =Settings!B17 -> RBI | B11: =IF(Settings!C17=0,"",Settings!C17) -> 1 | C11: 10 | D11: =Settings!B34 -> Shutout | E11: =IF(Settings!C34=0,"",Settings!C34) -> 10 | F11: 15 | I11: H10 | J11: =IF(Settings!C14=0,"",Settings!B14) -> CS | K11: =IFERROR(INDEX($J$1:$J$18,SMALL(IF($J$1:$J$18<>"",ROW($J$1:$J$18)),ROW(A10))),"") -> R | L11: 1 | M11: 1 | N11: =IFERROR(INDEX($K$1:$K$34,SMALL(IF($K$1:$K$34<>"",ROW($K$1:$K$34)),ROW(B11))),"") -> R | O11: NL-Only | P11: =IF('Guts-2'!$N$4>=ROW(P3),"2B","") ->  | R11: Only Show: SP | S11: =IFERROR(INDEX($R$1:$R$24,SMALL(IF($R$1:$R$24<>"",ROW($R$1:$R$24)),ROW(B11))),"") -> Only Show: P
A12: =Settings!B18 -> Errors | B12: =IF(Settings!C18=0,"",Settings!C18) -> -1 | C12: 15 | D12: =Settings!B35 -> Holds | E12: =IF(Settings!C35=0,"",Settings!C35) ->  | F12: 16 | I12: H11 | J12: =IF(Settings!C15=0,"",Settings!B15) -> K's | K12: =IFERROR(INDEX($J$1:$J$18,SMALL(IF($J$1:$J$18<>"",ROW($J$1:$J$18)),ROW(A11))),"") -> RBI | L12: 1 | M12: 1 | N12: =IFERROR(INDEX($K$1:$K$34,SMALL(IF($K$1:$K$34<>"",ROW($K$1:$K$34)),ROW(B12))),"") -> RBI | O12: Specific Teams Only | P12: =IF('Guts-2'!$N$5>=ROW(P1),"3B","") -> 3B | R12: Only Show: RP | S12: =IFERROR(INDEX($R$1:$R$24,SMALL(IF($R$1:$R$24<>"",ROW($R$1:$R$24)),ROW(B12))),"") -> Only Show: Hitters
A13: =Settings!B19 -> GIDP | B13: =IF(Settings!C19=0,"",Settings!C19) -> -1 | C13: 16 | D13: =Settings!B36 -> Game Started | E13: =IF(Settings!C36=0,"",Settings!C36) ->  | F13: 17 | I13: H12 | J13: =IF(Settings!C16=0,"",Settings!B16) -> R | K13: =IFERROR(INDEX($J$1:$J$18,SMALL(IF($J$1:$J$18<>"",ROW($J$1:$J$18)),ROW(A12))),"") -> Errors | L13: 1 | M13: 1 | N13: =IFERROR(INDEX($K$1:$K$34,SMALL(IF($K$1:$K$34<>"",ROW($K$1:$K$34)),ROW(B13))),"") -> Errors | O13: Y | P13: =IF('Guts-2'!$N$5>=ROW(P2),"3B","") ->  | R13: Only Show: P | S13: =IFERROR(INDEX($R$1:$R$24,SMALL(IF($R$1:$R$24<>"",ROW($R$1:$R$24)),ROW(B13))),"") -> Only Show: Pitchers
A14: HBP | B14: =IF(Settings!C20=0,"",Settings!C20) -> 1 | C14: 17 | D14: =Settings!B37 -> HRA | E14: =IF(Settings!C37=0,"",Settings!C37) ->  | F14: 18 | I14: H13 | J14: =IF(Settings!C17=0,"",Settings!B17) -> RBI | K14: =IFERROR(INDEX($J$1:$J$18,SMALL(IF($J$1:$J$18<>"",ROW($J$1:$J$18)),ROW(A13))),"") -> GIDP | L14: =IF(K$1=2,1,IF(OR(K14="AVG",K14="OBP",K14="SLG",K14="OPS"),2,IF(K14="","",1))) -> 1 | M14: =IF(OR(K14="AVG",K14="OBP",K14="SLG",K14="OPS"),2,IF(K14="","",1)) -> 1 | N14: =IFERROR(INDEX($K$1:$K$34,SMALL(IF($K$1:$K$34<>"",ROW($K$1:$K$34)),ROW(B14))),"") -> GIDP | O14: N | P14: =IF('Guts-2'!$N$5>=ROW(P3),"3B","") ->  | R14: =IF('Guts-2'!$N14>0,"Only Show: "&'Guts-2'!M14,"") ->  | S14: =IFERROR(INDEX($R$1:$R$24,SMALL(IF($R$1:$R$24<>"",ROW($R$1:$R$24)),ROW(B14))),"") -> 
A15: XBH | B15: =IF(Settings!C21=0,"",Settings!C21) ->  | C15: 18 | D15: Blown Save | E15: =IF(Settings!C38=0,"",Settings!C38) -> -5 | F15: 19 | I15: H14 | J15: =IF(Settings!C18=0,"",Settings!B18) -> Errors | K15: =IFERROR(INDEX($J$1:$J$18,SMALL(IF($J$1:$J$18<>"",ROW($J$1:$J$18)),ROW(A14))),"") -> HBP | N15: =IFERROR(INDEX($K$1:$K$34,SMALL(IF($K$1:$K$34<>"",ROW($K$1:$K$34)),ROW(B15))),"") -> HBP | O15: Full | P15: =IF('Guts-2'!$N$6>=ROW(P1),"SS","") -> SS | R15: =IF('Guts-2'!$N15>0,"Only Show: "&'Guts-2'!M15,"") ->  | S15: =IFERROR(INDEX($R$1:$R$24,SMALL(IF($R$1:$R$24<>"",ROW($R$1:$R$24)),ROW(B15))),"") -> 
A16: PA | B16: =IF(Settings!C5=0,"",Settings!C5) -> 1 | C16: 2 | I16: H15 | J16: =IF(Settings!C19=0,"",Settings!B19) -> GIDP | K16: =IFERROR(INDEX($J$1:$J$18,SMALL(IF($J$1:$J$18<>"",ROW($J$1:$J$18)),ROW(A15))),"") ->  | L16: =IF(K$1=2,1,IF(OR(K20="ERA",K20="WHIP"),4,IF(OR(K20="K/9",K20="K/BB"),3,IF(K20="BAA",2,IF(K20="","",1))))) -> 1 | M16: =IF(OR(K20="ERA",K20="WHIP"),4,IF(OR(K20="K/9",K20="K/BB"),3,IF(K20="BAA",2,IF(K20="","",1)))) -> 1 | N16: =IFERROR(INDEX($K$1:$K$34,SMALL(IF($K$1:$K$34<>"",ROW($K$1:$K$34)),ROW(B16))),"") -> HBP | O16: Half | P16: =IF('Guts-2'!$N$6>=ROW(P2),"SS","") ->  | R16: =IF('Guts-2'!$N16>0,"Only Show: "&'Guts-2'!M16,"") ->  | S16: =IFERROR(INDEX($R$1:$R$24,SMALL(IF($R$1:$R$24<>"",ROW($R$1:$R$24)),ROW(B16))),"") -> 
A17: Hit | B17: =IF(Settings!C7=0,"",Settings!C7) ->  | C17: 5 | I17: H16 | J17: =IF(Settings!C20=0,"",Settings!B20) -> HBP | K17: =IFERROR(INDEX($J$1:$J$18,SMALL(IF($J$1:$J$18<>"",ROW($J$1:$J$18)),ROW(A16))),"") ->  | L17: 1 | M17: =IF(OR(K21="ERA",K21="WHIP"),4,IF(OR(K21="K/9",K21="K/BB"),3,IF(K21="BAA",2,IF(K21="","",1)))) -> 1 | N17: =IFERROR(INDEX($K$1:$K$34,SMALL(IF($K$1:$K$34<>"",ROW($K$1:$K$34)),ROW(B17))),"") -> W | O17: Snake Draft | P17: =IF('Guts-2'!$N$6>=ROW(P3),"SS","") ->  | R17: =IF('Guts-2'!$N17>0,"Only Show: "&'Guts-2'!M17,"") ->  | S17: =IFERROR(INDEX($R$1:$R$24,SMALL(IF($R$1:$R$24<>"",ROW($R$1:$R$24)),ROW(B17))),"") -> 
I18: H17 | J18: =IF(Settings!C21=0,"",Settings!B21) ->  | K18: =IFERROR(INDEX($J$1:$J$18,SMALL(IF($J$1:$J$18<>"",ROW($J$1:$J$18)),ROW(A17))),"") ->  | L18: 1 | M18: 1 | N18: =IFERROR(INDEX($K$1:$K$34,SMALL(IF($K$1:$K$34<>"",ROW($K$1:$K$34)),ROW(B18))),"") -> L | O18: Same Order Every Round | P18: =IF('Guts-2'!$N$7>=ROW(P1),"CI","") ->  | R18: Only Show: Hitters
L19: 1 | M19: 1 | N19: =IFERROR(INDEX($K$1:$K$34,SMALL(IF($K$1:$K$34<>"",ROW($K$1:$K$34)),ROW(B19))),"") -> IP | O19: Show Drafted Players | P19: =IF('Guts-2'!$N$7>=ROW(P2),"CI","") ->  | R19: Only Show: Pitchers
I20: P1 | J20: =IF(Settings!C24=0,"",Settings!B24) -> W | K20: =IFERROR(INDEX($J$1:$J$34,SMALL(IF($J$1:$J$34<>"",ROW($J$1:$J$34)),COUNTIF(($K$2:$K$14),">""")+ROW(A1))),"") -> HBP | L20: 1 | M20: 1 | N20: =IFERROR(INDEX($K$1:$K$34,SMALL(IF($K$1:$K$34<>"",ROW($K$1:$K$34)),ROW(B20))),"") -> Hits Allw | O20: Hide Drafted Players | P20: =IF('Guts-2'!$N$7>=ROW(P3),"CI","") -> 
I21: P2 | J21: =IF(Settings!C25=0,"",Settings!B25) -> L | K21: =IFERROR(INDEX($J$1:$J$34,SMALL(IF($J$1:$J$34<>"",ROW($J$1:$J$34)),COUNTIF(($K$2:$K$14),">""")+ROW(A2))),"") -> W | L21: 1 | M21: 1 | N21: =IFERROR(INDEX($K$1:$K$34,SMALL(IF($K$1:$K$34<>"",ROW($K$1:$K$34)),ROW(B21))),"") -> Walks | P21: =IF('Guts-2'!$N$8>=ROW(P1),"MI","") -> 
I22: P3 | J22: =IF(Settings!C26=0,"",Settings!B26) -> IP | K22: =IFERROR(INDEX($J$1:$J$34,SMALL(IF($J$1:$J$34<>"",ROW($J$1:$J$34)),COUNTIF(($K$2:$K$14),">""")+ROW(A3))),"") -> L | L22: 1 | M22: 1 | N22: =IFERROR(INDEX($K$1:$K$34,SMALL(IF($K$1:$K$34<>"",ROW($K$1:$K$34)),ROW(B22))),"") -> K | O22: Hot | P22: =IF('Guts-2'!$N$8>=ROW(P2),"MI","") -> 
I23: P4 | J23: =IF(Settings!C27=0,"",Settings!B27) -> Hits Allw | K23: =IFERROR(INDEX($J$1:$J$34,SMALL(IF($J$1:$J$34<>"",ROW($J$1:$J$34)),COUNTIF(($K$2:$K$14),">""")+ROW(A4))),"") -> IP | L23: 1 | M23: 1 | N23: =IFERROR(INDEX($K$1:$K$34,SMALL(IF($K$1:$K$34<>"",ROW($K$1:$K$34)),ROW(B23))),"") -> ER | O23: Cold | P23: =IF('Guts-2'!$N$8>=ROW(P3),"MI","") -> 
A24: Roster Size | B24: =SUM(Settings!F5:F23) -> 25 | I24: P5 | J24: =IF(Settings!C28=0,"",Settings!B28) -> Walks | K24: =IFERROR(INDEX($J$1:$J$34,SMALL(IF($J$1:$J$34<>"",ROW($J$1:$J$34)),COUNTIF(($K$2:$K$14),">""")+ROW(A5))),"") -> Hits Allw | L24: 1 | M24: 1 | N24: =IFERROR(INDEX($K$1:$K$34,SMALL(IF($K$1:$K$34<>"",ROW($K$1:$K$34)),ROW(B24))),"") -> SV | O24: Target | P24: =IF('Guts-2'!$N$17>=ROW(P1),"IF","") -> 
A25: H-GP | B25: =Settings!R11 -> 10 | I25: P6 | J25: =IF(Settings!C29=0,"",Settings!B29) -> K | K25: =IFERROR(INDEX($J$1:$J$34,SMALL(IF($J$1:$J$34<>"",ROW($J$1:$J$34)),COUNTIF(($K$2:$K$14),">""")+ROW(A6))),"") -> Walks | L25: 1 | M25: 1 | N25: =IFERROR(INDEX($K$1:$K$34,SMALL(IF($K$1:$K$34<>"",ROW($K$1:$K$34)),ROW(B25))),"") -> QS | O25: Avoid | P25: =IF('Guts-2'!$N$17>=ROW(P2),"IF","") -> 
A26: H-GS | B26: =Settings!R12 -> 10 | I26: P7 | J26: =IF(Settings!C30=0,"",Settings!B30) -> ER | K26: =IFERROR(INDEX($J$1:$J$34,SMALL(IF($J$1:$J$34<>"",ROW($J$1:$J$34)),COUNTIF(($K$2:$K$14),">""")+ROW(A7))),"") -> K | L26: 1 | M26: 1 | O26: Injury | P26: =IF('Guts-2'!$N$17>=ROW(P3),"IF","") -> 
A27: RP-G | B27: =Settings!R14 -> 5 | I27: P8 | J27: =IF(Settings!C31=0,"",Settings!B31) -> SV | K27: =IFERROR(INDEX($J$1:$J$34,SMALL(IF($J$1:$J$34<>"",ROW($J$1:$J$34)),COUNTIF(($K$2:$K$14),">""")+ROW(A8))),"") -> ER | L27: 1 | M27: 1 | O27: Note | P27: =IF('Guts-2'!$N$17>=ROW(P4),"IF","") -> 
A28: SP-G | B28: =Settings!R13 -> 3 | I28: P9 | J28: =IF(Settings!C32=0,"",Settings!B32) -> QS | K28: =IFERROR(INDEX($J$1:$J$34,SMALL(IF($J$1:$J$34<>"",ROW($J$1:$J$34)),COUNTIF(($K$2:$K$14),">""")+ROW(A9))),"") -> SV | L28: 1 | M28: =IF(OR(K32="ERA",K32="WHIP"),4,IF(OR(K32="K/9",K32="K/BB"),3,IF(K32="BAA",2,IF(K32="","",1)))) -> 1 | O28: Sleeper | P28: =IF('Guts-2'!$N$17>=ROW(P5),"IF","") -> 
I29: P10 | J29: =IF(Settings!C33=0,"",Settings!B33) -> CG | K29: =IFERROR(INDEX($J$1:$J$34,SMALL(IF($J$1:$J$34<>"",ROW($J$1:$J$34)),COUNTIF(($K$2:$K$14),">""")+ROW(A10))),"") -> QS | M29: =IF(OR(K33="ERA",K33="WHIP"),4,IF(OR(K33="K/9",K33="K/BB"),3,IF(K33="BAA",2,IF(K33="","",1)))) ->  | O29: Bust | P29: =IF('Guts-2'!$N$17>=ROW(P6),"IF","") -> 
I30: P11 | J30: =IF(Settings!C34=0,"",Settings!B34) -> Shutout | K30: =IFERROR(INDEX($J$1:$J$34,SMALL(IF($J$1:$J$34<>"",ROW($J$1:$J$34)),COUNTIF(($K$2:$K$14),">""")+ROW(A11))),"") -> CG | M30: =IF(OR(K34="ERA",K34="WHIP"),4,IF(OR(K34="K/9",K34="K/BB"),3,IF(K34="BAA",2,IF(K34="","",1)))) ->  | P30: =IF('Guts-2'!$N$9>=ROW(P1),"OF","") -> OF
I31: P12 | J31: =IF(Settings!C35=0,"",Settings!B35) ->  | K31: =IFERROR(INDEX($J$1:$J$34,SMALL(IF($J$1:$J$34<>"",ROW($J$1:$J$34)),COUNTIF(($K$2:$K$14),">""")+ROW(A12))),"") -> Shutout | P31: =IF('Guts-2'!$N$9>=ROW(P2),"OF","") -> OF
I32: P13 | J32: =IF(Settings!C36=0,"",Settings!B36) ->  | K32: =IFERROR(INDEX($J$1:$J$34,SMALL(IF($J$1:$J$34<>"",ROW($J$1:$J$34)),COUNTIF(($K$2:$K$14),">""")+ROW(A13))),"") -> Blown Save | P32: =IF('Guts-2'!$N$9>=ROW(P3),"OF","") -> OF
I33: P14 | J33: =IF(Settings!C37=0,"",Settings!B37) ->  | K33: =IFERROR(INDEX($J$1:$J$34,SMALL(IF($J$1:$J$34<>"",ROW($J$1:$J$34)),COUNTIF(($K$2:$K$14),">""")+ROW(A14))),"") ->  | P33: =IF('Guts-2'!$N$9>=ROW(P4),"OF","") -> 
I34: P15 | J34: =IF(Settings!C38=0,"",Settings!B38) -> Blown Save | K34: =IFERROR(INDEX($J$1:$J$34,SMALL(IF($J$1:$J$34<>"",ROW($J$1:$J$34)),COUNTIF(($K$2:$K$14),">""")+ROW(A15))),"") ->  | P34: =IF('Guts-2'!$N$9>=ROW(P5),"OF","") -> 
P35: =IF('Guts-2'!$N$9>=ROW(P6),"OF","") -> 
P36: =IF('Guts-2'!$N$9>=ROW(P7),"OF","") -> 
P37: =IF('Guts-2'!$N$9>=ROW(P8),"OF","") -> 
P38: =IF('Guts-2'!$N$9>=ROW(P9),"OF","") -> 
P39: =IF('Guts-2'!$N$14>=ROW(P1),"LF","") -> 
P40: =IF('Guts-2'!$N$14>=ROW(P2),"LF","") -> 
P41: =IF('Guts-2'!$N$14>=ROW(P3),"LF","") -> 
P42: =IF('Guts-2'!$N$15>=ROW(P1),"CF","") -> 
P43: =IF('Guts-2'!$N$15>=ROW(P2),"CF","") -> 
P44: =IF('Guts-2'!$N$15>=ROW(P3),"CF","") -> 
P45: =IF('Guts-2'!$N$16>=ROW(P1),"RF","") -> 
P46: =IF('Guts-2'!$N$16>=ROW(P2),"RF","") -> 
P47: =IF('Guts-2'!$N$16>=ROW(P3),"RF","") -> 
P48: =IF('Guts-2'!$N$10>=ROW(P1),"DH","") -> DH
P49: =IF('Guts-2'!$N$10>=ROW(P2),"DH","") -> 
P50: =IF('Guts-2'!$N$10>=ROW(P3),"DH","") -> 
P51: =IF('Guts-2'!$N$10>=ROW(P4),"DH","") -> 
P52: =IF('Guts-2'!$N$10>=ROW(P5),"DH","") -> 
P53: =IF('Guts-2'!$N$10>=ROW(P6),"DH","") -> 
P54: =IF('Guts-2'!$N$11>=ROW(P1),"SP","") -> SP
P55: =IF('Guts-2'!$N$11>=ROW(P2),"SP","") -> SP
P56: =IF('Guts-2'!$N$11>=ROW(P3),"SP","") -> SP
P57: =IF('Guts-2'!$N$11>=ROW(P4),"SP","") -> SP
P58: =IF('Guts-2'!$N$11>=ROW(P5),"SP","") -> SP
P59: =IF('Guts-2'!$N$11>=ROW(P6),"SP","") -> 
P60: =IF('Guts-2'!$N$11>=ROW(P7),"SP","") -> 
P61: =IF('Guts-2'!$N$11>=ROW(P8),"SP","") -> 
P62: =IF('Guts-2'!$N$11>=ROW(P9),"SP","") -> 
P63: =IF('Guts-2'!$N$11>=ROW(P10),"SP","") -> 
P64: =IF('Guts-2'!$N$12>=ROW(P1),"RP","") -> RP
P65: =IF('Guts-2'!$N$12>=ROW(P2),"RP","") -> RP
P66: =IF('Guts-2'!$N$12>=ROW(P3),"RP","") -> 
P67: =IF('Guts-2'!$N$12>=ROW(P4),"RP","") -> 
P68: =IF('Guts-2'!$N$12>=ROW(P5),"RP","") -> 
P69: =IF('Guts-2'!$N$12>=ROW(P6),"RP","") -> 
P70: =IF('Guts-2'!$N$12>=ROW(P7),"RP","") -> 
P71: =IF('Guts-2'!$N$12>=ROW(P8),"RP","") -> 
P72: =IF('Guts-2'!$N$12>=ROW(P9),"RP","") -> 
P73: =IF('Guts-2'!$N$12>=ROW(P10),"RP","") -> 
P74: =IF('Guts-2'!$N$13>=ROW(P1),"P","") -> P
P75: =IF('Guts-2'!$N$13>=ROW(P2),"P","") -> 
P76: =IF('Guts-2'!$N$13>=ROW(P3),"P","") -> 
P77: =IF('Guts-2'!$N$13>=ROW(P4),"P","") -> 
P78: =IF('Guts-2'!$N$13>=ROW(P5),"P","") -> 
P79: =IF('Guts-2'!$N$13>=ROW(P6),"P","") -> 
P80: =IF('Guts-2'!$N$13>=ROW(P7),"P","") -> 
P81: =IF('Guts-2'!$N$13>=ROW(P8),"P","") -> 
P82: =IF('Guts-2'!$N$13>=ROW(P9),"P","") -> 
P83: =IF('Guts-2'!$N$13>=ROW(P10),"P","") -> 
P84: =IF('Guts-2'!$N$13>=ROW(P11),"P","") -> 
P85: =IF('Guts-2'!$N$13>=ROW(P12),"P","") -> 
P86: =IF('Guts-2'!$N$13>=ROW(P13),"P","") -> 
P87: =IF('Guts-2'!$N$13>=ROW(P14),"P","") -> 
P88: =IF('Guts-2'!$N$13>=ROW(P15),"P","") -> 

Sheet Guts-2 (hidden)
A1: =Settings!J10 -> Team 1 | B1: CBS - Points Leagues | D1: THE BAT | E1: Teams | F1: Starters | G1: THE BAT | H1: =IF(OR(Settings!$R$29<>100,Settings!$Q$29<>100),0,Settings!Q23) -> 20 | I1: =IF(OR(Settings!$R$29<>100,Settings!$Q$29<>100),0,Settings!R23) -> 20 | J1: LAA | K1: =IF(OR(Settings!$L$5="AL-Only",Settings!$L$5="Mixed (Standard)"),TRUE,IF(Settings!$L$5="Specific Teams Only",IF(Settings!N6="Y",TRUE,FALSE),FALSE)) -> TRUE | L1: C | M1: # of Teams | N1: =Settings!J5 -> 12 | O1: None
A2: =Settings!J11 -> Team 2 | B2: ESPN | C2: ESPN - Points Rankings | D2: Clay Davenport | E2: 6 | F2: 0 | G2: Clay Davenport | H2: =IF(OR(Settings!$R$29<>100,Settings!$Q$29<>100),0,Settings!Q24) -> 20 | I2: =IF(OR(Settings!$R$29<>100,Settings!$Q$29<>100),0,Settings!R24) -> 20 | J2: ARI | K2: =IF(OR(Settings!$L$5="NL-Only",Settings!$L$5="Mixed (Standard)"),TRUE,IF(Settings!$L$5="Specific Teams Only",IF(Settings!N7="Y",TRUE,FALSE),FALSE)) -> TRUE | L2: 1B | M2: C | N2: =Settings!F5 -> 1 | O2: Green
A3: =Settings!J12 -> Team 3 | B3: FantasyPros Avg | C3: ESPN - Karabell (Roto) | D3: Fangraphs - Depth Chart | E3: 7 | F3: 1 | G3: Fangraphs - Depth Chart | H3: =IF(OR(Settings!$R$29<>100,Settings!$Q$29<>100),0,Settings!Q25) -> 20 | I3: =IF(OR(Settings!$R$29<>100,Settings!$Q$29<>100),0,Settings!R25) -> 20 | J3: ATL | K3: =IF(OR(Settings!$L$5="NL-Only",Settings!$L$5="Mixed (Standard)"),TRUE,IF(Settings!$L$5="Specific Teams Only",IF(Settings!N8="Y",TRUE,FALSE),FALSE)) -> TRUE | L3: 2B | M3: 1B | N3: =Settings!F6 -> 1 | O3: Yellow
A4: =Settings!J13 -> Team 4 | B4: Fantrax | C4: FantasyPros Avg | D4: Mr. Cheatsheet's Special Blend | E4: 8 | F4: 2 | H4: 0 | I4: 0 | J4: BAL | K4: =IF(OR(Settings!$L$5="AL-Only",Settings!$L$5="Mixed (Standard)"),TRUE,IF(Settings!$L$5="Specific Teams Only",IF(Settings!N9="Y",TRUE,FALSE),FALSE)) -> TRUE | L4: 3B | M4: 2B | N4: =Settings!F7 -> 1 | O4: Red
A5: =Settings!J14 -> Team 5 | B5: NFBC | C5: Mr. Cheatsheet | E5: 9 | F5: 3 | G5: Steamer | H5: =IF(OR(Settings!$R$29<>100,Settings!$Q$29<>100),0,Settings!Q26) -> 25 | I5: =IF(OR(Settings!$R$29<>100,Settings!$Q$29<>100),0,Settings!R26) -> 40 | J5: BOS | K5: =IF(OR(Settings!$L$5="AL-Only",Settings!$L$5="Mixed (Standard)"),TRUE,IF(Settings!$L$5="Specific Teams Only",IF(Settings!N10="Y",TRUE,FALSE),FALSE)) -> TRUE | L5: SS | M5: 3B | N5: =Settings!F8 -> 1 | O5: Black
A6: =Settings!J15 -> Team 6 | B6: Yahoo | C6: RotoChamp | E6: 10 | F6: 4 | G6: Steamer - 600 PA | H6: =IF(OR(Settings!$R$29<>100,Settings!$Q$29<>100),0,Settings!Q27) -> 0 | I6: =IF(OR(Settings!$R$29<>100,Settings!$Q$29<>100),0,Settings!R27) -> 0 | J6: CHC | K6: =IF(OR(Settings!$L$5="NL-Only",Settings!$L$5="Mixed (Standard)"),TRUE,IF(Settings!$L$5="Specific Teams Only",IF(Settings!N11="Y",TRUE,FALSE),FALSE)) -> TRUE | L6: OF | M6: SS | N6: =Settings!F9 -> 1
A7: =IF($N$1>=ROW(A7),Settings!J16,#N/A) -> Team 7 | B7: Avg of ADP Sources | C7: Yahoo Staff | D7: Steamer | E7: 11 | F7: 5 | G7: ZiPS | H7: =IF(OR(Settings!$R$29<>100,Settings!$Q$29<>100),0,Settings!Q28) -> 15 | I7: =IF(OR(Settings!$R$29<>100,Settings!$Q$29<>100),0,Settings!R28) -> 0 | J7: CHW | K7: =IF(OR(Settings!$L$5="AL-Only",Settings!$L$5="Mixed (Standard)"),TRUE,IF(Settings!$L$5="Specific Teams Only",IF(Settings!N12="Y",TRUE,FALSE),FALSE)) -> TRUE | L7: SP | M7: CI | N7: =Settings!F12 -> 0 | O7: Treat him as a hitter only
A8: =IF($N$1>=ROW(A8),Settings!J17,#N/A) -> Team 8 | B8: Imported ADP | D8: Steamer - 600 PA | E8: 12 | F8: 6 | J8: CIN | K8: =IF(OR(Settings!$L$5="NL-Only",Settings!$L$5="Mixed (Standard)"),TRUE,IF(Settings!$L$5="Specific Teams Only",IF(Settings!N13="Y",TRUE,FALSE),FALSE)) -> TRUE | L8: RP | M8: MI | N8: =Settings!F13 -> 0 | O8: Treat him as a pitcher only
A9: =IF($N$1>=ROW(A9),Settings!J18,#N/A) -> Team 9 | B9: =IFERROR(INDEX($B$1:$B$8,SMALL(IF($B$1:$B$8<>"",ROW($B$1:$B$8)),ROW(B1))),"") -> CBS - Points Leagues | C9: =IFERROR(INDEX($C$1:$C$8,SMALL(IF($C$1:$C$8<>"",ROW($C$1:$C$8)),ROW(C1))),"") -> ESPN - Points Rankings | D9: ZiPS | E9: 13 | F9: 7 | J9: CLE | K9: =IF(OR(Settings!$L$5="AL-Only",Settings!$L$5="Mixed (Standard)"),TRUE,IF(Settings!$L$5="Specific Teams Only",IF(Settings!N14="Y",TRUE,FALSE),FALSE)) -> TRUE | L9: DH | M9: OF | N9: =Settings!F10 -> 3 | O9: Treat him as one player who gets all pitching and hitting stats
A10: =IF($N$1>=ROW(A10),Settings!J19,#N/A) -> Team 10 | B10: =IFERROR(INDEX($B$1:$B$8,SMALL(IF($B$1:$B$8<>"",ROW($B$1:$B$8)),ROW(B2))),"") -> ESPN | C10: =IFERROR(INDEX($C$1:$C$8,SMALL(IF($C$1:$C$8<>"",ROW($C$1:$C$8)),ROW(C2))),"") -> ESPN - Karabell (Roto) | D10: Import Your Own Projections | E10: 14 | F10: 8 | J10: COL | K10: =IF(OR(Settings!$L$5="NL-Only",Settings!$L$5="Mixed (Standard)"),TRUE,IF(Settings!$L$5="Specific Teams Only",IF(Settings!N15="Y",TRUE,FALSE),FALSE)) -> TRUE | M10: DH | N10: =Settings!F11 -> 1 | O10: Treat him as two separate players
A11: =IF($N$1>=ROW(A11),Settings!J20,#N/A) -> Team 11 | B11: =IFERROR(INDEX($B$1:$B$8,SMALL(IF($B$1:$B$8<>"",ROW($B$1:$B$8)),ROW(B3))),"") -> FantasyPros Avg | C11: =IFERROR(INDEX($C$1:$C$8,SMALL(IF($C$1:$C$8<>"",ROW($C$1:$C$8)),ROW(C3))),"") -> FantasyPros Avg | D11: Your Own Custom Combination | E11: 15 | F11: 9 | J11: DET | K11: =IF(OR(Settings!$L$5="AL-Only",Settings!$L$5="Mixed (Standard)"),TRUE,IF(Settings!$L$5="Specific Teams Only",IF(Settings!N16="Y",TRUE,FALSE),FALSE)) -> TRUE | M11: SP | N11: =Settings!F19 -> 5
A12: =IF($N$1>=ROW(A12),Settings!J21,#N/A) -> Team 12 | B12: =IFERROR(INDEX($B$1:$B$8,SMALL(IF($B$1:$B$8<>"",ROW($B$1:$B$8)),ROW(B4))),"") -> Fantrax | C12: =IFERROR(INDEX($C$1:$C$8,SMALL(IF($C$1:$C$8<>"",ROW($C$1:$C$8)),ROW(C4))),"") -> Mr. Cheatsheet | E12: 16 | F12: Hitter | G12: Pitcher | H12: HitterDirOF | I12: Hitter4OF | J12: HOU | K12: =IF(OR(Settings!$L$5="AL-Only",Settings!$L$5="Mixed (Standard)"),TRUE,IF(Settings!$L$5="Specific Teams Only",IF(Settings!N17="Y",TRUE,FALSE),FALSE)) -> TRUE | M12: RP | N12: =Settings!F20 -> 2
A13: =IF($N$1>=ROW(A13),Settings!J22,#N/A) ->  | B13: =IFERROR(INDEX($B$1:$B$8,SMALL(IF($B$1:$B$8<>"",ROW($B$1:$B$8)),ROW(B5))),"") -> NFBC | C13: =IFERROR(INDEX($C$1:$C$8,SMALL(IF($C$1:$C$8<>"",ROW($C$1:$C$8)),ROW(C5))),"") -> RotoChamp | E13: 17 | F13: C | G13: SP | H13: C | I13: C | J13: KC | K13: =IF(OR(Settings!$L$5="AL-Only",Settings!$L$5="Mixed (Standard)"),TRUE,IF(Settings!$L$5="Specific Teams Only",IF(Settings!N18="Y",TRUE,FALSE),FALSE)) -> TRUE | M13: P | N13: =Settings!F21 -> 1
A14: =IF($N$1>=ROW(A14),Settings!J23,#N/A) ->  | B14: =IFERROR(INDEX($B$1:$B$8,SMALL(IF($B$1:$B$8<>"",ROW($B$1:$B$8)),ROW(B6))),"") -> Yahoo | C14: =IFERROR(INDEX($C$1:$C$8,SMALL(IF($C$1:$C$8<>"",ROW($C$1:$C$8)),ROW(C6))),"") -> Yahoo Staff | D14: =IFERROR(INDEX($D$1:$D$12,SMALL(IF($D$1:$D$12<>"",ROW($D$1:$D$12)),ROW(D1))),"") -> THE BAT | E14: 18 | F14: 1B | G14: RP | H14: 1B | I14: 1B | J14: LAD | K14: =IF(OR(Settings!$L$5="NL-Only",Settings!$L$5="Mixed (Standard)"),TRUE,IF(Settings!$L$5="Specific Teams Only",IF(Settings!N19="Y",TRUE,FALSE),FALSE)) -> TRUE | M14: LF | N14: =Settings!F15 -> 0
A15: =IF($N$1>=ROW(A15),Settings!J24,#N/A) ->  | B15: =IFERROR(INDEX($B$1:$B$8,SMALL(IF($B$1:$B$8<>"",ROW($B$1:$B$8)),ROW(B7))),"") -> Avg of ADP Sources | C15: =IFERROR(INDEX($C$1:$C$8,SMALL(IF($C$1:$C$8<>"",ROW($C$1:$C$8)),ROW(C7))),"") ->  | D15: =IFERROR(INDEX($D$1:$D$12,SMALL(IF($D$1:$D$12<>"",ROW($D$1:$D$12)),ROW(D2))),"") -> Clay Davenport | E15: 19 | F15: 2B | H15: 2B | I15: 2B | J15: MIA | K15: =IF(OR(Settings!$L$5="NL-Only",Settings!$L$5="Mixed (Standard)"),TRUE,IF(Settings!$L$5="Specific Teams Only",IF(Settings!N20="Y",TRUE,FALSE),FALSE)) -> TRUE | M15: CF | N15: =Settings!F16 -> 0
A16: =IF($N$1>=ROW(A16),Settings!J25,#N/A) ->  | B16: =IFERROR(INDEX($B$1:$B$8,SMALL(IF($B$1:$B$8<>"",ROW($B$1:$B$8)),ROW(B8))),"") -> Imported ADP | C16: =IFERROR(INDEX($C$1:$C$8,SMALL(IF($C$1:$C$8<>"",ROW($C$1:$C$8)),ROW(C8))),"") ->  | D16: =IFERROR(INDEX($D$1:$D$12,SMALL(IF($D$1:$D$12<>"",ROW($D$1:$D$12)),ROW(D3))),"") -> Fangraphs - Depth Chart | E16: 20 | F16: 3B | H16: 3B | I16: 3B | J16: MIL | K16: =IF(OR(Settings!$L$5="NL-Only",Settings!$L$5="Mixed (Standard)"),TRUE,IF(Settings!$L$5="Specific Teams Only",IF(Settings!N21="Y",TRUE,FALSE),FALSE)) -> TRUE | M16: RF | N16: =Settings!F17 -> 0
A17: =IF($N$1>=ROW(A17),Settings!J26,#N/A) ->  | D17: =IFERROR(INDEX($D$1:$D$12,SMALL(IF($D$1:$D$12<>"",ROW($D$1:$D$12)),ROW(D4))),"") -> Mr. Cheatsheet's Special Blend | E17: 21 | F17: SS | H17: SS | I17: SS | J17: MIN | K17: =IF(OR(Settings!$L$5="AL-Only",Settings!$L$5="Mixed (Standard)"),TRUE,IF(Settings!$L$5="Specific Teams Only",IF(Settings!N22="Y",TRUE,FALSE),FALSE)) -> TRUE | M17: IF | N17: =Settings!F14 -> 0
A18: =IF($N$1>=ROW(A18),Settings!J27,#N/A) ->  | D18: =IFERROR(INDEX($D$1:$D$12,SMALL(IF($D$1:$D$12<>"",ROW($D$1:$D$12)),ROW(D5))),"") -> Steamer | E18: 22 | F18: OF | H18: LF | I18: OF | J18: NYM | K18: =IF(OR(Settings!$L$5="NL-Only",Settings!$L$5="Mixed (Standard)"),TRUE,IF(Settings!$L$5="Specific Teams Only",IF(Settings!N23="Y",TRUE,FALSE),FALSE)) -> TRUE
A19: =IF($N$1>=ROW(A19),Settings!J28,#N/A) ->  | D19: =IFERROR(INDEX($D$1:$D$12,SMALL(IF($D$1:$D$12<>"",ROW($D$1:$D$12)),ROW(D6))),"") -> Steamer - 600 PA | E19: 23 | H19: CF | I19: LF | J19: NYY | K19: =IF(OR(Settings!$L$5="AL-Only",Settings!$L$5="Mixed (Standard)"),TRUE,IF(Settings!$L$5="Specific Teams Only",IF(Settings!N24="Y",TRUE,FALSE),FALSE)) -> TRUE | M19: C | N19: =IF(N2>0,1,0) -> 1
A20: =IF($N$1>=ROW(A20),Settings!J29,#N/A) ->  | D20: =IFERROR(INDEX($D$1:$D$12,SMALL(IF($D$1:$D$12<>"",ROW($D$1:$D$12)),ROW(D7))),"") -> ZiPS | E20: 24 | H20: RF | I20: CF | J20: OAK | K20: =IF(OR(Settings!$L$5="AL-Only",Settings!$L$5="Mixed (Standard)"),TRUE,IF(Settings!$L$5="Specific Teams Only",IF(Settings!N25="Y",TRUE,FALSE),FALSE)) -> TRUE | M20: 1B | N20: =IF(N3>0,MAX($N$19:N19)+1,0) -> 2
A21: =IF($N$1>=ROW(A21),Settings!J30,#N/A) ->  | D21: =IFERROR(INDEX($D$1:$D$12,SMALL(IF($D$1:$D$12<>"",ROW($D$1:$D$12)),ROW(D8))),"") -> Import Your Own Projections | I21: RF | J21: PHI | K21: =IF(OR(Settings!$L$5="NL-Only",Settings!$L$5="Mixed (Standard)"),TRUE,IF(Settings!$L$5="Specific Teams Only",IF(Settings!N26="Y",TRUE,FALSE),FALSE)) -> TRUE | M21: 2B | N21: =IF(N4>0,MAX($N$19:N20)+1,0) -> 3
A22: =IF($N$1>=ROW(A22),Settings!J31,#N/A) ->  | D22: =IFERROR(INDEX($D$1:$D$12,SMALL(IF($D$1:$D$12<>"",ROW($D$1:$D$12)),ROW(D9))),"") -> Your Own Custom Combination | J22: PIT | K22: =IF(OR(Settings!$L$5="NL-Only",Settings!$L$5="Mixed (Standard)"),TRUE,IF(Settings!$L$5="Specific Teams Only",IF(Settings!N27="Y",TRUE,FALSE),FALSE)) -> TRUE | M22: 3B | N22: =IF(N5>0,MAX($N$19:N21)+1,0) -> 4
A23: =IF($N$1>=ROW(A23),Settings!J32,#N/A) ->  | D23: =IFERROR(INDEX($D$1:$D$12,SMALL(IF($D$1:$D$12<>"",ROW($D$1:$D$12)),ROW(D10))),"") ->  | J23: SD | K23: =IF(OR(Settings!$L$5="NL-Only",Settings!$L$5="Mixed (Standard)"),TRUE,IF(Settings!$L$5="Specific Teams Only",IF(Settings!N28="Y",TRUE,FALSE),FALSE)) -> TRUE | M23: SS | N23: =IF(N6>0,MAX($N$19:N22)+1,0) -> 5
A24: =IF($N$1>=ROW(A24),Settings!J33,#N/A) ->  | D24: =IFERROR(INDEX($D$1:$D$12,SMALL(IF($D$1:$D$12<>"",ROW($D$1:$D$12)),ROW(D11))),"") ->  | J24: SEA | K24: =IF(OR(Settings!$L$5="AL-Only",Settings!$L$5="Mixed (Standard)"),TRUE,IF(Settings!$L$5="Specific Teams Only",IF(Settings!N29="Y",TRUE,FALSE),FALSE)) -> TRUE | M24: OF | N24: =IF(N9>0,MAX($N$19:N23)+1,0) -> 6
D25: =IFERROR(INDEX($D$1:$D$12,SMALL(IF($D$1:$D$12<>"",ROW($D$1:$D$12)),ROW(D12))),"") ->  | J25: SF | K25: =IF(OR(Settings!$L$5="NL-Only",Settings!$L$5="Mixed (Standard)"),TRUE,IF(Settings!$L$5="Specific Teams Only",IF(Settings!N30="Y",TRUE,FALSE),FALSE)) -> TRUE | M25: LF | N25: =IF(N14>0,MAX($N$19:N24)+1,0) -> 0
A26: From Settings | B26: =Settings!Q5 -> CBS - Points Leagues | C26: ADP Site: | D26: =IF(B26="Fantrax",1,IF(B26="Yahoo",2,IF(B26="CBS - Points Leagues",3,IF(B26="ESPN",4,IF(B26="FantasyPros Avg",5,IF(B26="NFBC",6,IF(B26="Avg of ADP Sources",7,IF(B26="Imported ADP",8,0)))))))) -> 3 | J26: STL | K26: =IF(OR(Settings!$L$5="NL-Only",Settings!$L$5="Mixed (Standard)"),TRUE,IF(Settings!$L$5="Specific Teams Only",IF(Settings!N31="Y",TRUE,FALSE),FALSE)) -> TRUE | M26: CF | N26: =IF(N15>0,MAX($N$19:N25)+1,0) -> 0
A27: For a List | B27: =Settings!Q9 -> ESPN - Points Rankings | C27: Rankings: | D27: =IF(B27="RotoChamp",1,IF(B27="Yahoo Staff",2,IF(B27="ESPN - Points Rankings",3,IF(B27="ESPN - Karabell (Roto)",4,IF(B27="FantasyPros Avg",5,IF(B27="Mr. Cheatsheet",6)))))) -> 3 | J27: TB | K27: =IF(OR(Settings!$L$5="AL-Only",Settings!$L$5="Mixed (Standard)"),TRUE,IF(Settings!$L$5="Specific Teams Only",IF(Settings!N32="Y",TRUE,FALSE),FALSE)) -> TRUE | M27: RF | N27: =IF(N16>0,MAX($N$19:N26)+1,0) -> 0
A28: Controlled by Formulas | B28: =Settings!Q7 -> Mr. Cheatsheet's Special Blend | C28: Projections: | D28: =IF(B28="THE BAT",1,IF(B28="Steamer",2,IF(B28="Steamer - 600 PA",7,IF(B28="ZiPS",4,IF(B28="Fangraphs - Depth Chart",5,IF(B28="Your Own Custom Combination",8,IF(B28="Mr. Cheatsheet's Special Blend",9,IF(B28="Special Blend w/ Steamer Replacements",10,IF(B28="Fangraphs - Fan Projections",3,IF(B28="Clay Davenport",6,IF(B28="Import Your Own Projections",11,0))))))))))) -> 9 | J28: TEX | K28: =IF(OR(Settings!$L$5="AL-Only",Settings!$L$5="Mixed (Standard)"),TRUE,IF(Settings!$L$5="Specific Teams Only",IF(Settings!N33="Y",TRUE,FALSE),FALSE)) -> TRUE | M28: DH | N28: =IF(Settings!L5<>"NL-Only",MAX($N$19:N27)+1,0) -> 7
J29: TOR | K29: =IF(OR(Settings!$L$5="AL-Only",Settings!$L$5="Mixed (Standard)"),TRUE,IF(Settings!$L$5="Specific Teams Only",IF(Settings!N34="Y",TRUE,FALSE),FALSE)) -> TRUE | M29: SP | N29: =IF(OR(N11>0,N13>0),MAX($N$19:N28)+1,0) -> 8
J30: WAS | K30: =IF(OR(Settings!$L$5="NL-Only",Settings!$L$5="Mixed (Standard)"),TRUE,IF(Settings!$L$5="Specific Teams Only",IF(Settings!N35="Y",TRUE,FALSE),FALSE)) -> TRUE | M30: RP | N30: =IF(OR(N12>0,N13>0),MAX($N$19:N29)+1,0) -> 9

Sheet Name Sort (hidden)
B1: =IFERROR(INDEX($A$1:$A$936,SMALL(IF($A$1:$A$936<>"",ROW($A$1:$A$936)),ROW(A1))),"") -> Juan Soto | C1: ORDER | D1: PLAYERNAME | E1: Team | F1: Original Pos | H1: Pos to Use | I1: =IF('Your Points Draft'!$R$4="Show All Positions",1,IF(OR('Your Points Draft'!$R$4="Only Show: C",'Your Points Draft'!$R$4="Only Show: 1B",'Your Points Draft'!$R$4="Only Show: 2B",'Your Points Draft'!$R$4="Only Show: 3B",'Your Points Draft'!$R$4="Only Show: SS",'Your Points Draft'!$R$4="Only Show: OF",'Your Points Draft'!$R$4="Only Show: SP",'Your Points Draft'!$R$4="Only Show: RP",'Your Points Draft'!$R$4="Only Show: DH",'Your Points Draft'!$R$4="Only Show: LF",'Your Points Draft'!$R$4="Only Show: RF",'Your Points Draft'!$R$4="Only Show: CF"),2,IF('Your Points Draft'!$R$4="Only Show: CI",3,IF('Your Points Draft'!$R$4="Only Show: MI",4,IF('Your Points Draft'!$R$4="Only Show: IF",5,IF('Your Points Draft'!$R$4="Only Show: P",6,IF('Your Points Draft'!$R$4="Only Show: Hitters",7,IF('Your Points Draft'!$R$4="Only Show: Pitchers",8,"")))))))) -> 1 | J1: Show Team? | K1: Drafted | L1: Show or No | M1: ADP | N1: Projected Points | O1: Expert Ranking | P1: Points Above Replacement | Q1: Points Per IP | R1: Points Per PA | S1: Pos.ADPRank | W1: =IFERROR(INDEX($V$1:$V$936,SMALL(IF($V$1:$V$936<>"",ROW($V$1:$V$936)),ROW(V1))),"") -> Juan Soto
A2: =IFERROR(IF(INDEX($K$1:$K$1020,MATCH(ROW($A1),$C$1:$C$1020,0),1)=FALSE,INDEX($D$1:$D$1020,MATCH(ROW($A1),$C$1:$C$1020,0),1),""),"") -> Juan Soto | B2: =IFERROR(INDEX($A$1:$A$936,SMALL(IF($A$1:$A$936<>"",ROW($A$1:$A$936)),ROW(A2))),"") -> Trea Turner | C2: =IFERROR(IF(L2=FALSE,"",CHOOSE(MATCH(RIGHT('Your Points Draft'!$R$3,LEN('Your Points Draft'!$R$3)-8),$M$1:$R$1,0),1+SUMPRODUCT(($L$2:$L$937=TRUE)*($M$2:$M$937<M2))+COUNTIFS($L$2:L2,L2,$M$2:M2,M2)-1,1+SUMPRODUCT(($L$2:$L$937=TRUE)*($N$2:$N$937>N2))+COUNTIFS($L$2:L2,L2,$N$2:N2,N2)-1,1+SUMPRODUCT(($L$2:$L$937=TRUE)*($O$2:$O$937<O2))+COUNTIFS($L$2:L2,L2,$O$2:O2,O2)-1,1+SUMPRODUCT(($L$2:$L$937=TRUE)*($P$2:$P$937>P2))+COUNTIFS($L$2:L2,L2,$P$2:P2,P2)-1,1+SUMPRODUCT(($L$2:$L$937=TRUE)*($Q$2:$Q$937>Q2))+COUNTIFS($L$2:L2,L2,$Q$2:Q2,Q2)-1,1+SUMPRODUCT(($L$2:$L$937=TRUE)*($R$2:$R$937>R2))+COUNTIFS($L$2:L2,L2,$R$2:R2,R2)-1,)),"") -> 323 | D2: CJ Abrams | E2: =IFERROR(INDEX('Draft Log'!$D$3:$D$807,MATCH(D2,'Draft Log'!$C$3:$C$807,0)),"") ->  | F2: =IFERROR(INDEX('ADP-Rank'!$C$2:$C$814,MATCH(D2,'ADP-Rank'!$A$2:$A$814,0)),"") -> SS | H2: =IFERROR(IF(I2="",F2,IF(I2<>F2,I2,F2)),"") -> SS | I2: =IF(AND(F2="OF",'Guts-2'!$N$9=0),IF(MAX(Pre!J2:L2)=Pre!J2,"LF",IF(MAX(Pre!J2:L2)=Pre!K2,"CF",IF(MAX(Pre!J2:L2)=Pre!L2,"RF","LF"))),"") ->  | J2: =IFERROR(INDEX('ADP-Rank'!$X$2:$X$814,MATCH(D2,'ADP-Rank'!$A$2:$A$814,0)),TRUE) -> TRUE | K2: =IF(E2="",FALSE,TRUE) -> FALSE | L2: =IF(J2=FALSE,FALSE,IF(AND('Your Points Draft'!$R$5="Hide Drafted Players",K2=TRUE),FALSE,CHOOSE($I$1,TRUE,OR(RIGHT('Your Points Draft'!$R$4,LEN('Your Points Draft'!$R$4)-11)=H2,IF(RIGHT('Your Points Draft'!$R$4,LEN('Your Points Draft'!$R$4)-11)<>"C",NOT(ISERROR(SEARCH(RIGHT('Your Points Draft'!$R$4,LEN('Your Points Draft'!$R$4)-11),Pre!$CB2))),AND(NOT(ISERROR(SEARCH(RIGHT('Your Points Draft'!$R$4,LEN('Your Points Draft'!$R$4)-11),Pre!$CB2))),ISERROR(SEARCH("CF",Pre!$CB2)))),RIGHT('Your Points Draft'!$R$4,LEN('Your Points Draft'!$R$4)-11)=Pre!BP2),OR(H2="1B",H2="3B",ISNUMBER(SEARCH("1B",Pre!$CB2)),ISNUMBER(SEARCH("3B",Pre!$CB2))),OR(H2="2B",H2="SS",ISNUMBER(SEARCH("2B",Pre!$CB2)),ISNUMBER(SEARCH("SS",Pre!$CB2))),OR(H2="1B",H2="3B",H2="2B",H2="SS",ISNUMBER(SEARCH("1B",Pre!$CB2)),ISNUMBER(SEARCH("3B",Pre!$CB2)),ISNUMBER(SEARCH("2B",Pre!$CB2)),ISNUMBER(SEARCH("SS",Pre!$CB2))),OR(H2="SP",H2="RP",ISNUMBER(SEARCH("SP",Pre!$CB2)),ISNUMBER(SEARCH("RP",Pre!$CB2))),AND(H2<>"RP",H2<>"SP",NOT(ISNUMBER(SEARCH("RP",Pre!$CB2))),NOT(ISNUMBER(SEARCH("SP",Pre!$CB2)))),OR(H2="SP",H2="RP",ISNUMBER(SEARCH("SP",Pre!$CB2)),ISNUMBER(SEARCH("RP",Pre!$CB2)))))) -> TRUE | M2: =IF(J2=FALSE,10000,IF('ADP-Rank'!AB2="",9999,'ADP-Rank'!AB2)) -> 9999 | N2: =IF(LEFT($D2,15)="Unlisted Player",-1,IF(Pre!C2<>"",Pre!C2,0)) -> 226.1442391 | O2: =IF('ADP-Rank'!Z2="",9999,'ADP-Rank'!Z2) -> 9999 | P2: =IFERROR(IF($N2=0,-1000,IF(LEFT($D2,15)="Unlisted Player",-1001,IF(OR($H2="RP",$H2="SP"),VLOOKUP($D2,'Filter-P'!$A$3:$X$419,13,FALSE),$N2-(INDEX('Filter-H'!$AH$5:$AH$16,MATCH($H2,'Filter-H'!$W$5:$W$16,0),1))))),"") -> -666.1409805 | Q2: =IFERROR(IF(LEFT($D2,15)="Unlisted Player",-1001,IF(OR(H2="SP",H2="RP"),N2/INDEX('Filter-P'!$D$3:$D$520,MATCH($D2,'Filter-P'!$A$3:$A$520,0),1),-1000)),-1000) -> -1000 | R2: =IFERROR(IF(LEFT($D2,15)="Unlisted Player",-1001,IF(OR(H2="SP",H2="RP"),-1000,N2/INDEX('Filter-H'!$B$3:$B$500,MATCH(D2,'Filter-H'!$A$3:$A$500,0),1))),-1000) -> 1.480001565 | S2: =IF(H2="",#N/A,H2&"."&1+SUMPRODUCT(($H$2:$H$937=H2)*($M$2:$M$937<M2))+COUNTIFS($M$2:M2,M2,$H$2:H2,H2)-1) -> SS.33 | U2: =IF(H2="",#N/A,1+SUMPRODUCT(($H$2:$H$937=H2)*($M$2:$M$937<M2))+COUNTIFS($M$2:M2,M2,$H$2:H2,H2)-1) -> 33 | V2: =IF(ISERROR(VLOOKUP($B1,Keepers!$C$2:$D$402,2,FALSE)),B1,"") -> Juan Soto | W2: =IFERROR(INDEX($V$1:$V$936,SMALL(IF($V$1:$V$936<>"",ROW($V$1:$V$936)),ROW(V2))),"") -> Trea Turner | X2: =IF(LEFT($D2,15)="Unlisted Player",0,IF(Pre!C2<>"",Pre!C2,0)) -> 226.1442391 | Y2: =IFERROR(Pre!DL2,"") -> Bench
A3: Trea Turner | B3: =IFERROR(INDEX($A$1:$A$936,SMALL(IF($A$1:$A$936<>"",ROW($A$1:$A$936)),ROW(A3))),"") -> Vladimir Guerrero Jr. | C3: =IFERROR(IF(L3=FALSE,"",CHOOSE(MATCH(RIGHT('Your Points Draft'!$R$3,LEN('Your Points Draft'!$R$3)-8),$M$1:$R$1,0),1+SUMPRODUCT(($L$2:$L$937=TRUE)*($M$2:$M$937<M3))+COUNTIFS($L$2:L3,L3,$M$2:M3,M3)-1,1+SUMPRODUCT(($L$2:$L$937=TRUE)*($N$2:$N$937>N3))+COUNTIFS($L$2:L3,L3,$N$2:N3,N3)-1,1+SUMPRODUCT(($L$2:$L$937=TRUE)*($O$2:$O$937<O3))+COUNTIFS($L$2:L3,L3,$O$2:O3,O3)-1,1+SUMPRODUCT(($L$2:$L$937=TRUE)*($P$2:$P$937>P3))+COUNTIFS($L$2:L3,L3,$P$2:P3,P3)-1,1+SUMPRODUCT(($L$2:$L$937=TRUE)*($Q$2:$Q$937>Q3))+COUNTIFS($L$2:L3,L3,$Q$2:Q3,Q3)-1,1+SUMPRODUCT(($L$2:$L$937=TRUE)*($R$2:$R$937>R3))+COUNTIFS($L$2:L3,L3,$R$2:R3,R3)-1,)),"") -> 69 | D3: Jose Abreu | E3: =IFERROR(INDEX('Draft Log'!$D$3:$D$807,MATCH(D3,'Draft Log'!$C$3:$C$807,0)),"") ->  | F3: =IFERROR(INDEX('ADP-Rank'!$C$2:$C$814,MATCH(D3,'ADP-Rank'!$A$2:$A$814,0)),"") -> 1B | H3: 1B | I3: =IF(AND(F3="OF",'Guts-2'!$N$9=0),IF(MAX(Pre!J3:L3)=Pre!J3,"LF",IF(MAX(Pre!J3:L3)=Pre!K3,"CF",IF(MAX(Pre!J3:L3)=Pre!L3,"RF","LF"))),"") ->  | J3: =IFERROR(INDEX('ADP-Rank'!$X$2:$X$814,MATCH(D3,'ADP-Rank'!$A$2:$A$814,0)),TRUE) -> TRUE | K3: =IF(E3="",FALSE,TRUE) -> FALSE | L3: =IF(J3=FALSE,FALSE,IF(AND('Your Points Draft'!$R$5="Hide Drafted Players",K3=TRUE),FALSE,CHOOSE($I$1,TRUE,OR(RIGHT('Your Points Draft'!$R$4,LEN('Your Points Draft'!$R$4)-11)=H3,IF(RIGHT('Your Points Draft'!$R$4,LEN('Your Points Draft'!$R$4)-11)<>"C",NOT(ISERROR(SEARCH(RIGHT('Your Points Draft'!$R$4,LEN('Your Points Draft'!$R$4)-11),Pre!$CB3))),AND(NOT(ISERROR(SEARCH(RIGHT('Your Points Draft'!$R$4,LEN('Your Points Draft'!$R$4)-11),Pre!$CB3))),ISERROR(SEARCH("CF",Pre!$CB3)))),RIGHT('Your Points Draft'!$R$4,LEN('Your Points Draft'!$R$4)-11)=Pre!BP3),OR(H3="1B",H3="3B",ISNUMBER(SEARCH("1B",Pre!$CB3)),ISNUMBER(SEARCH("3B",Pre!$CB3))),OR(H3="2B",H3="SS",ISNUMBER(SEARCH("2B",Pre!$CB3)),ISNUMBER(SEARCH("SS",Pre!$CB3))),OR(H3="1B",H3="3B",H3="2B",H3="SS",ISNUMBER(SEARCH("1B",Pre!$CB3)),ISNUMBER(SEARCH("3B",Pre!$CB3)),ISNUMBER(SEARCH("2B",Pre!$CB3)),ISNUMBER(SEARCH("SS",Pre!$CB3))),OR(H3="SP",H3="RP",ISNUMBER(SEARCH("SP",Pre!$CB3)),ISNUMBER(SEARCH("RP",Pre!$CB3))),AND(H3<>"RP",H3<>"SP",NOT(ISNUMBER(SEARCH("RP",Pre!$CB3))),NOT(ISNUMBER(SEARCH("SP",Pre!$CB3)))),OR(H3="SP",H3="RP",ISNUMBER(SEARCH("SP",Pre!$CB3)),ISNUMBER(SEARCH("RP",Pre!$CB3)))))) -> TRUE | M3: =IF(J3=FALSE,10000,IF('ADP-Rank'!AB3="",9999,'ADP-Rank'!AB3)) -> 72.68 | N3: =IF(LEFT($D3,15)="Unlisted Player",-1,IF(Pre!C3<>"",Pre!C3,0)) -> 1022.225095 | O3: =IF('ADP-Rank'!Z3="",9999,'ADP-Rank'!Z3) -> 66 | P3: =IFERROR(IF($N3=0,-1000,IF(LEFT($D3,15)="Unlisted Player",-1001,IF(OR($H3="RP",$H3="SP"),VLOOKUP($D3,'Filter-P'!$A$3:$X$419,13,FALSE),$N3-(INDEX('Filter-H'!$AH$5:$AH$16,MATCH($H3,'Filter-H'!$W$5:$W$16,0),1))))),"") -> 91.10995924 | Q3: =IFERROR(IF(LEFT($D3,15)="Unlisted Player",-1001,IF(OR(H3="SP",H3="RP"),N3/INDEX('Filter-P'!$D$3:$D$520,MATCH($D3,'Filter-P'!$A$3:$A$520,0),1),-1000)),-1000) -> -1000 | R3: =IFERROR(IF(LEFT($D3,15)="Unlisted Player",-1001,IF(OR(H3="SP",H3="RP"),-1000,N3/INDEX('Filter-H'!$B$3:$B$500,MATCH(D3,'Filter-H'!$A$3:$A$500,0),1))),-1000) -> 1.591011821 | S3: =IF(H3="",#N/A,H3&"."&1+SUMPRODUCT(($H$2:$H$937=H3)*($M$2:$M$937<M3))+COUNTIFS($M$2:M3,M3,$H$2:H3,H3)-1) -> 1B.6 | U3: =IF(H3="",#N/A,1+SUMPRODUCT(($H$2:$H$937=H3)*($M$2:$M$937<M3))+COUNTIFS($M$2:M3,M3,$H$2:H3,H3)-1) -> 6 | V3: =IF(ISERROR(VLOOKUP($B2,Keepers!$C$2:$D$402,2,FALSE)),B2,"") -> Trea Turner | W3: =IFERROR(INDEX($V$1:$V$936,SMALL(IF($V$1:$V$936<>"",ROW($V$1:$V$936)),ROW(V3))),"") -> Vladimir Guerrero Jr. | X3: =IF(LEFT($D3,15)="Unlisted Player",0,IF(Pre!C3<>"",Pre!C3,0)) -> 1022.225095 | Y3: =IFERROR(Pre!DL3,"") -> Bench
A4: Vladimir Guerrero Jr. | B4: =IFERROR(INDEX($A$1:$A$936,SMALL(IF($A$1:$A$936<>"",ROW($A$1:$A$936)),ROW(A4))),"") -> Jose Ramirez | C4: =IFERROR(IF(L4=FALSE,"",CHOOSE(MATCH(RIGHT('Your Points Draft'!$R$3,LEN('Your Points Draft'!$R$3)-8),$M$1:$R$1,0),1+SUMPRODUCT(($L$2:$L$937=TRUE)*($M$2:$M$937<M4))+COUNTIFS($L$2:L4,L4,$M$2:M4,M4)-1,1+SUMPRODUCT(($L$2:$L$937=TRUE)*($N$2:$N$937>N4))+COUNTIFS($L$2:L4,L4,$N$2:N4,N4)-1,1+SUMPRODUCT(($L$2:$L$937=TRUE)*($O$2:$O$937<O4))+COUNTIFS($L$2:L4,L4,$O$2:O4,O4)-1,1+SUMPRODUCT(($L$2:$L$937=TRUE)*($P$2:$P$937>P4))+COUNTIFS($L$2:L4,L4,$P$2:P4,P4)-1,1+SUMPRODUCT(($L$2:$L$937=TRUE)*($Q$2:$Q$937>Q4))+COUNTIFS($L$2:L4,L4,$Q$2:Q4,Q4)-1,1+SUMPRODUCT(($L$2:$L$937=TRUE)*($R$2:$R$937>R4))+COUNTIFS($L$2:L4,L4,$R$2:R4,R4)-1,)),"") -> 15 | D4: Ronald Acuna Jr. | E4: =IFERROR(INDEX('Draft Log'!$D$3:$D$807,MATCH(D4,'Draft Log'!$C$3:$C$807,0)),"") ->  | F4: =IFERROR(INDEX('ADP-Rank'!$C$2:$C$814,MATCH(D4,'ADP-Rank'!$A$2:$A$814,0)),"") -> OF | H4: OF | I4: =IF(AND(F4="OF",'Guts-2'!$N$9=0),IF(MAX(Pre!J4:L4)=Pre!J4,"LF",IF(MAX(Pre!J4:L4)=Pre!K4,"CF",IF(MAX(Pre!J4:L4)=Pre!L4,"RF","LF"))),"") ->  | J4: =IFERROR(INDEX('ADP-Rank'!$X$2:$X$814,MATCH(D4,'ADP-Rank'!$A$2:$A$814,0)),TRUE) -> TRUE | K4: FALSE | L4: =IF(J4=FALSE,FALSE,IF(AND('Your Points Draft'!$R$5="Hide Drafted Players",K4=TRUE),FALSE,CHOOSE($I$1,TRUE,OR(RIGHT('Your Points Draft'!$R$4,LEN('Your Points Draft'!$R$4)-11)=H4,IF(RIGHT('Your Points Draft'!$R$4,LEN('Your Points Draft'!$R$4)-11)<>"C",NOT(ISERROR(SEARCH(RIGHT('Your Points Draft'!$R$4,LEN('Your Points Draft'!$R$4)-11),Pre!$CB4))),AND(NOT(ISERROR(SEARCH(RIGHT('Your Points Draft'!$R$4,LEN('Your Points Draft'!$R$4)-11),Pre!$CB4))),ISERROR(SEARCH("CF",Pre!$CB4)))),RIGHT('Your Points Draft'!$R$4,LEN('Your Points Draft'!$R$4)-11)=Pre!BP4),OR(H4="1B",H4="3B",ISNUMBER(SEARCH("1B",Pre!$CB4)),ISNUMBER(SEARCH("3B",Pre!$CB4))),OR(H4="2B",H4="SS",ISNUMBER(SEARCH("2B",Pre!$CB4)),ISNUMBER(SEARCH("SS",Pre!$CB4))),OR(H4="1B",H4="3B",H4="2B",H4="SS",ISNUMBER(SEARCH("1B",Pre!$CB4)),ISNUMBER(SEARCH("3B",Pre!$CB4)),ISNUMBER(SEARCH("2B",Pre!$CB4)),ISNUMBER(SEARCH("SS",Pre!$CB4))),OR(H4="SP",H4="RP",ISNUMBER(SEARCH("SP",Pre!$CB4)),ISNUMBER(SEARCH("RP",Pre!$CB4))),AND(H4<>"RP",H4<>"SP",NOT(ISNUMBER(SEARCH("RP",Pre!$CB4))),NOT(ISNUMBER(SEARCH("SP",Pre!$CB4)))),OR(H4="SP",H4="RP",ISNUMBER(SEARCH("SP",Pre!$CB4)),ISNUMBER(SEARCH("RP",Pre!$CB4)))))) -> TRUE | M4: =IF(J4=FALSE,10000,IF('ADP-Rank'!AB4="",9999,'ADP-Rank'!AB4)) -> 19.5 | N4: =IF(LEFT($D4,15)="Unlisted Player",-1,IF(Pre!C4<>"",Pre!C4,0)) -> 1046.783111 | O4: =IF('ADP-Rank'!Z4="",9999,'ADP-Rank'!Z4) -> 49 | P4: =IFERROR(IF($N4=0,-1000,IF(LEFT($D4,15)="Unlisted Player",-1001,IF(OR($H4="RP",$H4="SP"),VLOOKUP($D4,'Filter-P'!$A$3:$X$419,13,FALSE),$N4-(INDEX('Filter-H'!$AH$5:$AH$16,MATCH($H4,'Filter-H'!$W$5:$W$16,0),1))))),"") -> 128.7743329 | Q4: =IFERROR(IF(LEFT($D4,15)="Unlisted Player",-1001,IF(OR(H4="SP",H4="RP"),N4/INDEX('Filter-P'!$D$3:$D$520,MATCH($D4,'Filter-P'!$A$3:$A$520,0),1),-1000)),-1000) -> -1000 | R4: =IFERROR(IF(LEFT($D4,15)="Unlisted Player",-1001,IF(OR(H4="SP",H4="RP"),-1000,N4/INDEX('Filter-H'!$B$3:$B$500,MATCH(D4,'Filter-H'!$A$3:$A$500,0),1))),-1000) -> 1.838719675 | S4: =IF(H4="",#N/A,H4&"."&1+SUMPRODUCT(($H$2:$H$937=H4)*($M$2:$M$937<M4))+COUNTIFS($M$2:M4,M4,$H$2:H4,H4)-1) -> OF.5 | U4: =IF(H4="",#N/A,1+SUMPRODUCT(($H$2:$H$937=H4)*($M$2:$M$937<M4))+COUNTIFS($M$2:M4,M4,$H$2:H4,H4)-1) -> 5 | V4: =IF(ISERROR(VLOOKUP($B3,Keepers!$C$2:$D$402,2,FALSE)),B3,"") -> Vladimir Guerrero Jr. | W4: =IFERROR(INDEX($V$1:$V$936,SMALL(IF($V$1:$V$936<>"",ROW($V$1:$V$936)),ROW(V4))),"") -> Jose Ramirez | X4: =IF(LEFT($D4,15)="Unlisted Player",0,IF(Pre!C4<>"",Pre!C4,0)) -> 1046.783111 | Y4: =IFERROR(Pre!DL4,"") -> Bench
A5: Jose Ramirez | B5: =IFERROR(INDEX($A$1:$A$936,SMALL(IF($A$1:$A$936<>"",ROW($A$1:$A$936)),ROW(A5))),"") -> Bryce Harper | C5: =IFERROR(IF(L5=FALSE,"",CHOOSE(MATCH(RIGHT('Your Points Draft'!$R$3,LEN('Your Points Draft'!$R$3)-8),$M$1:$R$1,0),1+SUMPRODUCT(($L$2:$L$937=TRUE)*($M$2:$M$937<M5))+COUNTIFS($L$2:L5,L5,$M$2:M5,M5)-1,1+SUMPRODUCT(($L$2:$L$937=TRUE)*($N$2:$N$937>N5))+COUNTIFS($L$2:L5,L5,$N$2:N5,N5)-1,1+SUMPRODUCT(($L$2:$L$937=TRUE)*($O$2:$O$937<O5))+COUNTIFS($L$2:L5,L5,$O$2:O5,O5)-1,1+SUMPRODUCT(($L$2:$L$937=TRUE)*($P$2:$P$937>P5))+COUNTIFS($L$2:L5,L5,$P$2:P5,P5)-1,1+SUMPRODUCT(($L$2:$L$937=TRUE)*($Q$2:$Q$937>Q5))+COUNTIFS($L$2:L5,L5,$Q$2:Q5,Q5)-1,1+SUMPRODUCT(($L$2:$L$937=TRUE)*($R$2:$R$937>R5))+COUNTIFS($L$2:L5,L5,$R$2:R5,R5)-1,)),"") -> 138 | D5: Willy Adames | E5: =IFERROR(INDEX('Draft Log'!$D$3:$D$807,MATCH(D5,'Draft Log'!$C$3:$C$807,0)),"") ->  | F5: =IFERROR(INDEX('ADP-Rank'!$C$2:$C$814,MATCH(D5,'ADP-Rank'!$A$2:$A$814,0)),"") -> SS | H5: SS | I5: =IF(AND(F5="OF",'Guts-2'!$N$9=0),IF(MAX(Pre!J5:L5)=Pre!J5,"LF",IF(MAX(Pre!J5:L5)=Pre!K5,"CF",IF(MAX(Pre!J5:L5)=Pre!L5,"RF","LF"))),"") ->  | J5: =IFERROR(INDEX('ADP-Rank'!$X$2:$X$814,MATCH(D5,'ADP-Rank'!$A$2:$A$814,0)),TRUE) -> TRUE | K5: FALSE | L5: =IF(J5=FALSE,FALSE,IF(AND('Your Points Draft'!$R$5="Hide Drafted Players",K5=TRUE),FALSE,CHOOSE($I$1,TRUE,OR(RIGHT('Your Points Draft'!$R$4,LEN('Your Points Draft'!$R$4)-11)=H5,IF(RIGHT('Your Points Draft'!$R$4,LEN('Your Points Draft'!$R$4)-11)<>"C",NOT(ISERROR(SEARCH(RIGHT('Your Points Draft'!$R$4,LEN('Your Points Draft'!$R$4)-11),Pre!$CB5))),AND(NOT(ISERROR(SEARCH(RIGHT('Your Points Draft'!$R$4,LEN('Your Points Draft'!$R$4)-11),Pre!$CB5))),ISERROR(SEARCH("CF",Pre!$CB5)))),RIGHT('Your Points Draft'!$R$4,LEN('Your Points Draft'!$R$4)-11)=Pre!BP5),OR(H5="1B",H5="3B",ISNUMBER(SEARCH("1B",Pre!$CB5)),ISNUMBER(SEARCH("3B",Pre!$CB5))),OR(H5="2B",H5="SS",ISNUMBER(SEARCH("2B",Pre!$CB5)),ISNUMBER(SEARCH("SS",Pre!$CB5))),OR(H5="1B",H5="3B",H5="2B",H5="SS",ISNUMBER(SEARCH("1B",Pre!$CB5)),ISNUMBER(SEARCH("3B",Pre!$CB5)),ISNUMBER(SEARCH("2B",Pre!$CB5)),ISNUMBER(SEARCH("SS",Pre!$CB5))),OR(H5="SP",H5="RP",ISNUMBER(SEARCH("SP",Pre!$CB5)),ISNUMBER(SEARCH("RP",Pre!$CB5))),AND(H5<>"RP",H5<>"SP",NOT(ISNUMBER(SEARCH("RP",Pre!$CB5))),NOT(ISNUMBER(SEARCH("SP",Pre!$CB5)))),OR(H5="SP",H5="RP",ISNUMBER(SEARCH("SP",Pre!$CB5)),ISNUMBER(SEARCH("RP",Pre!$CB5)))))) -> TRUE | M5: =IF(J5=FALSE,10000,IF('ADP-Rank'!AB5="",9999,'ADP-Rank'!AB5)) -> 141.72 | N5: =IF(LEFT($D5,15)="Unlisted Player",-1,IF(Pre!C5<>"",Pre!C5,0)) -> 893.2321891 | O5: =IF('ADP-Rank'!Z5="",9999,'ADP-Rank'!Z5) -> 210 | P5: =IFERROR(IF($N5=0,-1000,IF(LEFT($D5,15)="Unlisted Player",-1001,IF(OR($H5="RP",$H5="SP"),VLOOKUP($D5,'Filter-P'!$A$3:$X$419,13,FALSE),$N5-(INDEX('Filter-H'!$AH$5:$AH$16,MATCH($H5,'Filter-H'!$W$5:$W$16,0),1))))),"") -> 0.9469694515 | Q5: =IFERROR(IF(LEFT($D5,15)="Unlisted Player",-1001,IF(OR(H5="SP",H5="RP"),N5/INDEX('Filter-P'!$D$3:$D$520,MATCH($D5,'Filter-P'!$A$3:$A$520,0),1),-1000)),-1000) -> -1000 | R5: =IFERROR(IF(LEFT($D5,15)="Unlisted Player",-1001,IF(OR(H5="SP",H5="RP"),-1000,N5/INDEX('Filter-H'!$B$3:$B$500,MATCH(D5,'Filter-H'!$A$3:$A$500,0),1))),-1000) -> 1.490210526 | S5: =IF(H5="",#N/A,H5&"."&1+SUMPRODUCT(($H$2:$H$937=H5)*($M$2:$M$937<M5))+COUNTIFS($M$2:M5,M5,$H$2:H5,H5)-1) -> SS.16 | U5: =IF(H5="",#N/A,1+SUMPRODUCT(($H$2:$H$937=H5)*($M$2:$M$937<M5))+COUNTIFS($M$2:M5,M5,$H$2:H5,H5)-1) -> 16 | V5: =IF(ISERROR(VLOOKUP($B4,Keepers!$C$2:$D$402,2,FALSE)),B4,"") -> Jose Ramirez | W5: =IFERROR(INDEX($V$1:$V$936,SMALL(IF($V$1:$V$936<>"",ROW($V$1:$V$936)),ROW(V5))),"") -> Bryce Harper | X5: =IF(LEFT($D5,15)="Unlisted Player",0,IF(Pre!C5<>"",Pre!C5,0)) -> 893.2321891 | Y5: =IFERROR(Pre!DL5,"") -> Bench
A6: Bryce Harper | B6: =IFERROR(INDEX($A$1:$A$936,SMALL(IF($A$1:$A$936<>"",ROW($A$1:$A$936)),ROW(A6))),"") -> Gerrit Cole | C6: =IFERROR(IF(L6=FALSE,"",CHOOSE(MATCH(RIGHT('Your Points Draft'!$R$3,LEN('Your Points Draft'!$R$3)-8),$M$1:$R$1,0),1+SUMPRODUCT(($L$2:$L$937=TRUE)*($M$2:$M$937<M6))+COUNTIFS($L$2:L6,L6,$M$2:M6,M6)-1,1+SUMPRODUCT(($L$2:$L$937=TRUE)*($N$2:$N$937>N6))+COUNTIFS($L$2:L6,L6,$N$2:N6,N6)-1,1+SUMPRODUCT(($L$2:$L$937=TRUE)*($O$2:$O$937<O6))+COUNTIFS($L$2:L6,L6,$O$2:O6,O6)-1,1+SUMPRODUCT(($L$2:$L$937=TRUE)*($P$2:$P$937>P6))+COUNTIFS($L$2:L6,L6,$P$2:P6,P6)-1,1+SUMPRODUCT(($L$2:$L$937=TRUE)*($Q$2:$Q$937>Q6))+COUNTIFS($L$2:L6,L6,$Q$2:Q6,Q6)-1,1+SUMPRODUCT(($L$2:$L$937=TRUE)*($R$2:$R$937>R6))+COUNTIFS($L$2:L6,L6,$R$2:R6,R6)-1,)),"") -> 324 | D6: Riley Adams | E6: =IFERROR(INDEX('Draft Log'!$D$3:$D$807,MATCH(D6,'Draft Log'!$C$3:$C$807,0)),"") ->  | F6: =IFERROR(INDEX('ADP-Rank'!$C$2:$C$814,MATCH(D6,'ADP-Rank'!$A$2:$A$814,0)),"") -> C | H6: C | I6: =IF(AND(F6="OF",'Guts-2'!$N$9=0),IF(MAX(Pre!J6:L6)=Pre!J6,"LF",IF(MAX(Pre!J6:L6)=Pre!K6,"CF",IF(MAX(Pre!J6:L6)=Pre!L6,"RF","LF"))),"") ->  | J6: =IFERROR(INDEX('ADP-Rank'!$X$2:$X$814,MATCH(D6,'ADP-Rank'!$A$2:$A$814,0)),TRUE) -> TRUE | K6: FALSE | L6: =IF(J6=FALSE,FALSE,IF(AND('Your Points Draft'!$R$5="Hide Drafted Players",K6=TRUE),FALSE,CHOOSE($I$1,TRUE,OR(RIGHT('Your Points Draft'!$R$4,LEN('Your Points Draft'!$R$4)-11)=H6,IF(RIGHT('Your Points Draft'!$R$4,LEN('Your Points Draft'!$R$4)-11)<>"C",NOT(ISERROR(SEARCH(RIGHT('Your Points Draft'!$R$4,LEN('Your Points Draft'!$R$4)-11),Pre!$CB6))),AND(NOT(ISERROR(SEARCH(RIGHT('Your Points Draft'!$R$4,LEN('Your Points Draft'!$R$4)-11),Pre!$CB6))),ISERROR(SEARCH("CF",Pre!$CB6)))),RIGHT('Your Points Draft'!$R$4,LEN('Your Points Draft'!$R$4)-11)=Pre!BP6),OR(H6="1B",H6="3B",ISNUMBER(SEARCH("1B",Pre!$CB6)),ISNUMBER(SEARCH("3B",Pre!$CB6))),OR(H6="2B",H6="SS",ISNUMBER(SEARCH("2B",Pre!$CB6)),ISNUMBER(SEARCH("SS",Pre!$CB6))),OR(H6="1B",H6="3B",H6="2B",H6="SS",ISNUMBER(SEARCH("1B",Pre!$CB6)),ISNUMBER(SEARCH("3B",Pre!$CB6)),ISNUMBER(SEARCH("2B",Pre!$CB6)),ISNUMBER(SEARCH("SS",Pre!$CB6))),OR(H6="SP",H6="RP",ISNUMBER(SEARCH("SP",Pre!$CB6)),ISNUMBER(SEARCH("RP",Pre!$CB6))),AND(H6<>"RP",H6<>"SP",NOT(ISNUMBER(SEARCH("RP",Pre!$CB6))),NOT(ISNUMBER(SEARCH("SP",Pre!$CB6)))),OR(H6="SP",H6="RP",ISNUMBER(SEARCH("SP",Pre!$CB6)),ISNUMBER(SEARCH("RP",Pre!$CB6)))))) -> TRUE | M6: =IF(J6=FALSE,10000,IF('ADP-Rank'!AB6="",9999,'ADP-Rank'!AB6)) -> 9999 | N6: =IF(LEFT($D6,15)="Unlisted Player",-1,IF(Pre!C6<>"",Pre!C6,0)) -> 367.8903856 | O6: =IF('ADP-Rank'!Z6="",9999,'ADP-Rank'!Z6) -> 9999 | P6: =IFERROR(IF($N6=0,-1000,IF(LEFT($D6,15)="Unlisted Player",-1001,IF(OR($H6="RP",$H6="SP"),VLOOKUP($D6,'Filter-P'!$A$3:$X$419,13,FALSE),$N6-(INDEX('Filter-H'!$AH$5:$AH$16,MATCH($H6,'Filter-H'!$W$5:$W$16,0),1))))),"") -> -247.7721821 | Q6: =IFERROR(IF(LEFT($D6,15)="Unlisted Player",-1001,IF(OR(H6="SP",H6="RP"),N6/INDEX('Filter-P'!$D$3:$D$520,MATCH($D6,'Filter-P'!$A$3:$A$520,0),1),-1000)),-1000) -> -1000 | R6: =IFERROR(IF(LEFT($D6,15)="Unlisted Player",-1001,IF(OR(H6="SP",H6="RP"),-1000,N6/INDEX('Filter-H'!$B$3:$B$500,MATCH(D6,'Filter-H'!$A$3:$A$500,0),1))),-1000) -> 1.331007184 | S6: =IF(H6="",#N/A,H6&"."&1+SUMPRODUCT(($H$2:$H$937=H6)*($M$2:$M$937<M6))+COUNTIFS($M$2:M6,M6,$H$2:H6,H6)-1) -> C.24 | U6: =IF(H6="",#N/A,1+SUMPRODUCT(($H$2:$H$937=H6)*($M$2:$M$937<M6))+COUNTIFS($M$2:M6,M6,$H$2:H6,H6)-1) -> 24 | V6: =IF(ISERROR(VLOOKUP($B5,Keepers!$C$2:$D$402,2,FALSE)),B5,"") -> Bryce Harper | W6: =IFERROR(INDEX($V$1:$V$936,SMALL(IF($V$1:$V$936<>"",ROW($V$1:$V$936)),ROW(V6))),"") -> Gerrit Cole | X6: =IF(LEFT($D6,15)="Unlisted Player",0,IF(Pre!C6<>"",Pre!C6,0)) -> 367.8903856 | Y6: =IFERROR(Pre!DL6,"") -> Bench
A7: Gerrit Cole | B7: =IFERROR(INDEX($A$1:$A$936,SMALL(IF($A$1:$A$936<>"",ROW($A$1:$A$936)),ROW(A7))),"") -> Jacob deGrom | C7: =IFERROR(IF(L7=FALSE,"",CHOOSE(MATCH(RIGHT('Your Points Draft'!$R$3,LEN('Your Points Draft'!$R$3)-8),$M$1:$R$1,0),1+SUMPRODUCT(($L$2:$L$937=TRUE)*($M$2:$M$937<M7))+COUNTIFS($L$2:L7,L7,$M$2:M7,M7)-1,1+SUMPRODUCT(($L$2:$L$937=TRUE)*($N$2:$N$937>N7))+COUNTIFS($L$2:L7,L7,$N$2:N7,N7)-1,1+SUMPRODUCT(($L$2:$L$937=TRUE)*($O$2:$O$937<O7))+COUNTIFS($L$2:L7,L7,$O$2:O7,O7)-1,1+SUMPRODUCT(($L$2:$L$937=TRUE)*($P$2:$P$937>P7))+COUNTIFS($L$2:L7,L7,$P$2:P7,P7)-1,1+SUMPRODUCT(($L$2:$L$937=TRUE)*($Q$2:$Q$937>Q7))+COUNTIFS($L$2:L7,L7,$Q$2:Q7,Q7)-1,1+SUMPRODUCT(($L$2:$L$937=TRUE)*($R$2:$R$937>R7))+COUNTIFS($L$2:L7,L7,$R$2:R7,R7)-1,)),"") -> 246 | D7: Jo Adell | E7: =IFERROR(INDEX('Draft Log'!$D$3:$D$807,MATCH(D7,'Draft Log'!$C$3:$C$807,0)),"") ->  | F7: =IFERROR(INDEX('ADP-Rank'!$C$2:$C$814,MATCH(D7,'ADP-Rank'!$A$2:$A$814,0)),"") -> OF | H7: OF | I7: =IF(AND(F7="OF",'Guts-2'!$N$9=0),IF(MAX(Pre!J7:L7)=Pre!J7,"LF",IF(MAX(Pre!J7:L7)=Pre!K7,"CF",IF(MAX(Pre!J7:L7)=Pre!L7,"RF","LF"))),"") ->  | J7: =IFERROR(INDEX('ADP-Rank'!$X$2:$X$814,MATCH(D7,'ADP-Rank'!$A$2:$A$814,0)),TRUE) -> TRUE | K7: FALSE | L7: =IF(J7=FALSE,FALSE,IF(AND('Your Points Draft'!$R$5="Hide Drafted Players",K7=TRUE),FALSE,CHOOSE($I$1,TRUE,OR(RIGHT('Your Points Draft'!$R$4,LEN('Your Points Draft'!$R$4)-11)=H7,IF(RIGHT('Your Points Draft'!$R$4,LEN('Your Points Draft'!$R$4)-11)<>"C",NOT(ISERROR(SEARCH(RIGHT('Your Points Draft'!$R$4,LEN('Your Points Draft'!$R$4)-11),Pre!$CB7))),AND(NOT(ISERROR(SEARCH(RIGHT('Your Points Draft'!$R$4,LEN('Your Points Draft'!$R$4)-11),Pre!$CB7))),ISERROR(SEARCH("CF",Pre!$CB7)))),RIGHT('Your Points Draft'!$R$4,LEN('Your Points Draft'!$R$4)-11)=Pre!BP7),OR(H7="1B",H7="3B",ISNUMBER(SEARCH("1B",Pre!$CB7)),ISNUMBER(SEARCH("3B",Pre!$CB7))),OR(H7="2B",H7="SS",ISNUMBER(SEARCH("2B",Pre!$CB7)),ISNUMBER(SEARCH("SS",Pre!$CB7))),OR(H7="1B",H7="3B",H7="2B",H7="SS",ISNUMBER(SEARCH("1B",Pre!$CB7)),ISNUMBER(SEARCH("3B",Pre!$CB7)),ISNUMBER(SEARCH("2B",Pre!$CB7)),ISNUMBER(SEARCH("SS",Pre!$CB7))),OR(H7="SP",H7="RP",ISNUMBER(SEARCH("SP",Pre!$CB7)),ISNUMBER(SEARCH("RP",Pre!$CB7))),AND(H7<>"RP",H7<>"SP",NOT(ISNUMBER(SEARCH("RP",Pre!$CB7))),NOT(ISNUMBER(SEARCH("SP",Pre!$CB7)))),OR(H7="SP",H7="RP",ISNUMBER(SEARCH("SP",Pre!$CB7)),ISNUMBER(SEARCH("RP",Pre!$CB7)))))) -> TRUE | M7: =IF(J7=FALSE,10000,IF('ADP-Rank'!AB7="",9999,'ADP-Rank'!AB7)) -> 211.79 | N7: =IF(LEFT($D7,15)="Unlisted Player",-1,IF(Pre!C7<>"",Pre!C7,0)) -> 739.6327376 | O7: =IF('ADP-Rank'!Z7="",9999,'ADP-Rank'!Z7) -> 9999 | P7: =IFERROR(IF($N7=0,-1000,IF(LEFT($D7,15)="Unlisted Player",-1001,IF(OR($H7="RP",$H7="SP"),VLOOKUP($D7,'Filter-P'!$A$3:$X$419,13,FALSE),$N7-(INDEX('Filter-H'!$AH$5:$AH$16,MATCH($H7,'Filter-H'!$W$5:$W$16,0),1))))),"") -> -178.3760408 | Q7: =IFERROR(IF(LEFT($D7,15)="Unlisted Player",-1001,IF(OR(H7="SP",H7="RP"),N7/INDEX('Filter-P'!$D$3:$D$520,MATCH($D7,'Filter-P'!$A$3:$A$520,0),1),-1000)),-1000) -> -1000 | R7: =IFERROR(IF(LEFT($D7,15)="Unlisted Player",-1001,IF(OR(H7="SP",H7="RP"),-1000,N7/INDEX('Filter-H'!$B$3:$B$500,MATCH(D7,'Filter-H'!$A$3:$A$500,0),1))),-1000) -> 1.47278522 | S7: =IF(H7="",#N/A,H7&"."&1+SUMPRODUCT(($H$2:$H$937=H7)*($M$2:$M$937<M7))+COUNTIFS($M$2:M7,M7,$H$2:H7,H7)-1) -> OF.50 | U7: =IF(H7="",#N/A,1+SUMPRODUCT(($H$2:$H$937=H7)*($M$2:$M$937<M7))+COUNTIFS($M$2:M7,M7,$H$2:H7,H7)-1) -> 50 | V7: =IF(ISERROR(VLOOKUP($B6,Keepers!$C$2:$D$402,2,FALSE)),B6,"") -> Gerrit Cole | W7: =IFERROR(INDEX($V$1:$V$936,SMALL(IF($V$1:$V$936<>"",ROW($V$1:$V$936)),ROW(V7))),"") -> Jacob deGrom | X7: =IF(LEFT($D7,15)="Unlisted Player",0,IF(Pre!C7<>"",Pre!C7,0)) -> 739.6327376 | Y7: =IFERROR(Pre!DL7,"") -> Bench
A8: Jacob deGrom | B8: =IFERROR(INDEX($A$1:$A$936,SMALL(IF($A$1:$A$936<>"",ROW($A$1:$A$936)),ROW(A8))),"") -> Mookie Betts | C8: =IFERROR(IF(L8=FALSE,"",CHOOSE(MATCH(RIGHT('Your Points Draft'!$R$3,LEN('Your Points Draft'!$R$3)-8),$M$1:$R$1,0),1+SUMPRODUCT(($L$2:$L$937=TRUE)*($M$2:$M$937<M8))+COUNTIFS($L$2:L8,L8,$M$2:M8,M8)-1,1+SUMPRODUCT(($L$2:$L$937=TRUE)*($N$2:$N$937>N8))+COUNTIFS($L$2:L8,L8,$N$2:N8,N8)-1,1+SUMPRODUCT(($L$2:$L$937=TRUE)*($O$2:$O$937<O8))+COUNTIFS($L$2:L8,L8,$O$2:O8,O8)-1,1+SUMPRODUCT(($L$2:$L$937=TRUE)*($P$2:$P$937>P8))+COUNTIFS($L$2:L8,L8,$P$2:P8,P8)-1,1+SUMPRODUCT(($L$2:$L$937=TRUE)*($Q$2:$Q$937>Q8))+COUNTIFS($L$2:L8,L8,$Q$2:Q8,Q8)-1,1+SUMPRODUCT(($L$2:$L$937=TRUE)*($R$2:$R$937>R8))+COUNTIFS($L$2:L8,L8,$R$2:R8,R8)-1,)),"") -> 325 | D8: Ehire Adrianza | E8: =IFERROR(INDEX('Draft Log'!$D$3:$D$807,MATCH(D8,'Draft Log'!$C$3:$C$807,0)),"") ->  | F8: =IFERROR(INDEX('ADP-Rank'!$C$2:$C$814,MATCH(D8,'ADP-Rank'!$A$2:$A$814,0)),"") -> OF | H8: OF | I8: =IF(AND(F8="OF",'Guts-2'!$N$9=0),IF(MAX(Pre!J8:L8)=Pre!J8,"LF",IF(MAX(Pre!J8:L8)=Pre!K8,"CF",IF(MAX(Pre!J8:L8)=Pre!L8,"RF","LF"))),"") ->  | J8: =IFERROR(INDEX('ADP-Rank'!$X$2:$X$814,MATCH(D8,'ADP-Rank'!$A$2:$A$814,0)),TRUE) -> TRUE | K8: FALSE | L8: =IF(J8=FALSE,FALSE,IF(AND('Your Points Draft'!$R$5="Hide Drafted Players",K8=TRUE),FALSE,CHOOSE($I$1,TRUE,OR(RIGHT('Your Points Draft'!$R$4,LEN('Your Points Draft'!$R$4)-11)=H8,IF(RIGHT('Your Points Draft'!$R$4,LEN('Your Points Draft'!$R$4)-11)<>"C",NOT(ISERROR(SEARCH(RIGHT('Your Points Draft'!$R$4,LEN('Your Points Draft'!$R$4)-11),Pre!$CB8))),AND(NOT(ISERROR(SEARCH(RIGHT('Your Points Draft'!$R$4,LEN('Your Points Draft'!$R$4)-11),Pre!$CB8))),ISERROR(SEARCH("CF",Pre!$CB8)))),RIGHT('Your Points Draft'!$R$4,LEN('Your Points Draft'!$R$4)-11)=Pre!BP8),OR(H8="1B",H8="3B",ISNUMBER(SEARCH("1B",Pre!$CB8)),ISNUMBER(SEARCH("3B",Pre!$CB8))),OR(H8="2B",H8="SS",ISNUMBER(SEARCH("2B",Pre!$CB8)),ISNUMBER(SEARCH("SS",Pre!$CB8))),OR(H8="1B",H8="3B",H8="2B",H8="SS",ISNUMBER(SEARCH("1B",Pre!$CB8)),ISNUMBER(SEARCH("3B",Pre!$CB8)),ISNUMBER(SEARCH("2B",Pre!$CB8)),ISNUMBER(SEARCH("SS",Pre!$CB8))),OR(H8="SP",H8="RP",ISNUMBER(SEARCH("SP",Pre!$CB8)),ISNUMBER(SEARCH("RP",Pre!$CB8))),AND(H8<>"RP",H8<>"SP",NOT(ISNUMBER(SEARCH("RP",Pre!$CB8))),NOT(ISNUMBER(SEARCH("SP",Pre!$CB8)))),OR(H8="SP",H8="RP",ISNUMBER(SEARCH("SP",Pre!$CB8)),ISNUMBER(SEARCH("RP",Pre!$CB8)))))) -> TRUE | M8: =IF(J8=FALSE,10000,IF('ADP-Rank'!AB8="",9999,'ADP-Rank'!AB8)) -> 9999 | N8: =IF(LEFT($D8,15)="Unlisted Player",-1,IF(Pre!C8<>"",Pre!C8,0)) -> 350.4106103 | O8: =IF('ADP-Rank'!Z8="",9999,'ADP-Rank'!Z8) -> 9999 | P8: =IFERROR(IF($N8=0,-1000,IF(LEFT($D8,15)="Unlisted Player",-1001,IF(OR($H8="RP",$H8="SP"),VLOOKUP($D8,'Filter-P'!$A$3:$X$419,13,FALSE),$N8-(INDEX('Filter-H'!$AH$5:$AH$16,MATCH($H8,'Filter-H'!$W$5:$W$16,0),1))))),"") -> -567.598168 | Q8: =IFERROR(IF(LEFT($D8,15)="Unlisted Player",-1001,IF(OR(H8="SP",H8="RP"),N8/INDEX('Filter-P'!$D$3:$D$520,MATCH($D8,'Filter-P'!$A$3:$A$520,0),1),-1000)),-1000) -> -1000 | R8: =IFERROR(IF(LEFT($D8,15)="Unlisted Player",-1001,IF(OR(H8="SP",H8="RP"),-1000,N8/INDEX('Filter-H'!$B$3:$B$500,MATCH(D8,'Filter-H'!$A$3:$A$500,0),1))),-1000) -> 1.455798132 | S8: =IF(H8="",#N/A,H8&"."&1+SUMPRODUCT(($H$2:$H$937=H8)*($M$2:$M$937<M8))+COUNTIFS($M$2:M8,M8,$H$2:H8,H8)-1) -> OF.67 | U8: =IF(H8="",#N/A,1+SUMPRODUCT(($H$2:$H$937=H8)*($M$2:$M$937<M8))+COUNTIFS($M$2:M8,M8,$H$2:H8,H8)-1) -> 67 | V8: =IF(ISERROR(VLOOKUP($B7,Keepers!$C$2:$D$402,2,FALSE)),B7,"") -> Jacob deGrom | W8: =IFERROR(INDEX($V$1:$V$936,SMALL(IF($V$1:$V$936<>"",ROW($V$1:$V$936)),ROW(V8))),"") -> Mookie Betts | X8: =IF(LEFT($D8,15)="Unlisted Player",0,IF(Pre!C8<>"",Pre!C8,0)) -> 350.4106103 | Y8: =IFERROR(Pre!DL8,"") -> Bench
A9: Mookie Betts | B9: =IFERROR(INDEX($A$1:$A$936,SMALL(IF($A$1:$A$936<>"",ROW($A$1:$A$936)),ROW(A9))),"") -> Freddie Freeman | C9: =IFERROR(IF(L9=FALSE,"",CHOOSE(MATCH(RIGHT('Your Points Draft'!$R$3,LEN('Your Points Draft'!$R$3)-8),$M$1:$R$1,0),1+SUMPRODUCT(($L$2:$L$937=TRUE)*($M$2:$M$937<M9))+COUNTIFS($L$2:L9,L9,$M$2:M9,M9)-1,1+SUMPRODUCT(($L$2:$L$937=TRUE)*($N$2:$N$937>N9))+COUNTIFS($L$2:L9,L9,$N$2:N9,N9)-1,1+SUMPRODUCT(($L$2:$L$937=TRUE)*($O$2:$O$937<O9))+COUNTIFS($L$2:L9,L9,$O$2:O9,O9)-1,1+SUMPRODUCT(($L$2:$L$937=TRUE)*($P$2:$P$937>P9))+COUNTIFS($L$2:L9,L9,$P$2:P9,P9)-1,1+SUMPRODUCT(($L$2:$L$937=TRUE)*($Q$2:$Q$937>Q9))+COUNTIFS($L$2:L9,L9,$Q$2:Q9,Q9)-1,1+SUMPRODUCT(($L$2:$L$937=TRUE)*($R$2:$R$937>R9))+COUNTIFS($L$2:L9,L9,$R$2:R9,R9)-1,)),"") -> 172 | D9: Jesus Aguilar | E9: =IFERROR(INDEX('Draft Log'!$D$3:$D$807,MATCH(D9,'Draft Log'!$C$3:$C$807,0)),"") ->  | F9: =IFERROR(INDEX('ADP-Rank'!$C$2:$C$814,MATCH(D9,'ADP-Rank'!$A$2:$A$814,0)),"") -> 1B | H9: 1B | I9: =IF(AND(F9="OF",'Guts-2'!$N$9=0),IF(MAX(Pre!J9:L9)=Pre!J9,"LF",IF(MAX(Pre!J9:L9)=Pre!K9,"CF",IF(MAX(Pre!J9:L9)=Pre!L9,"RF","LF"))),"") ->  | J9: =IFERROR(INDEX('ADP-Rank'!$X$2:$X$814,MATCH(D9,'ADP-Rank'!$A$2:$A$814,0)),TRUE) -> TRUE | K9: FALSE | L9: =IF(J9=FALSE,FALSE,IF(AND('Your Points Draft'!$R$5="Hide Drafted Players",K9=TRUE),FALSE,CHOOSE($I$1,TRUE,OR(RIGHT('Your Points Draft'!$R$4,LEN('Your Points Draft'!$R$4)-11)=H9,IF(RIGHT('Your Points Draft'!$R$4,LEN('Your Points Draft'!$R$4)-11)<>"C",NOT(ISERROR(SEARCH(RIGHT('Your Points Draft'!$R$4,LEN('Your Points Draft'!$R$4)-11),Pre!$CB9))),AND(NOT(ISERROR(SEARCH(RIGHT('Your Points Draft'!$R$4,LEN('Your Points Draft'!$R$4)-11),Pre!$CB9))),ISERROR(SEARCH("CF",Pre!$CB9)))),RIGHT('Your Points Draft'!$R$4,LEN('Your Points Draft'!$R$4)-11)=Pre!BP9),OR(H9="1B",H9="3B",ISNUMBER(SEARCH("1B",Pre!$CB9)),ISNUMBER(SEARCH("3B",Pre!$CB9))),OR(H9="2B",H9="SS",ISNUMBER(SEARCH("2B",Pre!$CB9)),ISNUMBER(SEARCH("SS",Pre!$CB9))),OR(H9="1B",H9="3B",H9="2B",H9="SS",ISNUMBER(SEARCH("1B",Pre!$CB9)),ISNUMBER(SEARCH("3B",Pre!$CB9)),ISNUMBER(SEARCH("2B",Pre!$CB9)),ISNUMBER(SEARCH("SS",Pre!$CB9))),OR(H9="SP",H9="RP",ISNUMBER(SEARCH("SP",Pre!$CB9)),ISNUMBER(SEARCH("RP",Pre!$CB9))),AND(H9<>"RP",H9<>"SP",NOT(ISNUMBER(SEARCH("RP",Pre!$CB9))),NOT(ISNUMBER(SEARCH("SP",Pre!$CB9)))),OR(H9="SP",H9="RP",ISNUMBER(SEARCH("SP",Pre!$CB9)),ISNUMBER(SEARCH("RP",Pre!$CB9)))))) -> TRUE | M9: =IF(J9=FALSE,10000,IF('ADP-Rank'!AB9="",9999,'ADP-Rank'!AB9)) -> 170.25 | N9: =IF(LEFT($D9,15)="Unlisted Player",-1,IF(Pre!C9<>"",Pre!C9,0)) -> 782.5337218 | O9: =IF('ADP-Rank'!Z9="",9999,'ADP-Rank'!Z9) -> 230 | P9: =IFERROR(IF($N9=0,-1000,IF(LEFT($D9,15)="Unlisted Player",-1001,IF(OR($H9="RP",$H9="SP"),VLOOKUP($D9,'Filter-P'!$A$3:$X$419,13,FALSE),$N9-(INDEX('Filter-H'!$AH$5:$AH$16,MATCH($H9,'Filter-H'!$W$5:$W$16,0),1))))),"") -> -148.5814143 | Q9: =IFERROR(IF(LEFT($D9,15)="Unlisted Player",-1001,IF(OR(H9="SP",H9="RP"),N9/INDEX('Filter-P'!$D$3:$D$520,MATCH($D9,'Filter-P'!$A$3:$A$520,0),1),-1000)),-1000) -> -1000 | R9: =IFERROR(IF(LEFT($D9,15)="Unlisted Player",-1001,IF(OR(H9="SP",H9="RP"),-1000,N9/INDEX('Filter-H'!$B$3:$B$500,MATCH(D9,'Filter-H'!$A$3:$A$500,0),1))),-1000) -> 1.561631853 | S9: =IF(H9="",#N/A,H9&"."&1+SUMPRODUCT(($H$2:$H$937=H9)*($M$2:$M$937<M9))+COUNTIFS($M$2:M9,M9,$H$2:H9,H9)-1) -> 1B.14 | U9: =IF(H9="",#N/A,1+SUMPRODUCT(($H$2:$H$937=H9)*($M$2:$M$937<M9))+COUNTIFS($M$2:M9,M9,$H$2:H9,H9)-1) -> 14 | V9: =IF(ISERROR(VLOOKUP($B8,Keepers!$C$2:$D$402,2,FALSE)),B8,"") -> Mookie Betts | W9: =IFERROR(INDEX($V$1:$V$936,SMALL(IF($V$1:$V$936<>"",ROW($V$1:$V$936)),ROW(V9))),"") -> Freddie Freeman | X9: =IF(LEFT($D9,15)="Unlisted Player",0,IF(Pre!C9<>"",Pre!C9,0)) -> 782.5337218 | Y9: =IFERROR(Pre!DL9,"") -> Bench
A10: Freddie Freeman | B10: =IFERROR(INDEX($A$1:$A$936,SMALL(IF($A$1:$A$936<>"",ROW($A$1:$A$936)),ROW(A10))),"") -> Walker Buehler | C10: =IFERROR(IF(L10=FALSE,"",CHOOSE(MATCH(RIGHT('Your Points Draft'!$R$3,LEN('Your Points Draft'!$R$3)-8),$M$1:$R$1,0),1+SUMPRODUCT(($L$2:$L$937=TRUE)*($M$2:$M$937<M10))+COUNTIFS($L$2:L10,L10,$M$2:M10,M10)-1,1+SUMPRODUCT(($L$2:$L$937=TRUE)*($N$2:$N$937>N10))+COUNTIFS($L$2:L10,L10,$N$2:N10,N10)-1,1+SUMPRODUCT(($L$2:$L$937=TRUE)*($O$2:$O$937<O10))+COUNTIFS($L$2:L10,L10,$O$2:O10,O10)-1,1+SUMPRODUCT(($L$2:$L$937=TRUE)*($P$2:$P$937>P10))+COUNTIFS($L$2:L10,L10,$P$2:P10,P10)-1,1+SUMPRODUCT(($L$2:$L$937=TRUE)*($Q$2:$Q$937>Q10))+COUNTIFS($L$2:L10,L10,$Q$2:Q10,Q10)-1,1+SUMPRODUCT(($L$2:$L$937=TRUE)*($R$2:$R$937>R10))+COUNTIFS($L$2:L10,L10,$R$2:R10,R10)-1,)),"") -> 326 | D10: Nick Ahmed | E10: =IFERROR(INDEX('Draft Log'!$D$3:$D$807,MATCH(D10,'Draft Log'!$C$3:$C$807,0)),"") ->  | F10: =IFERROR(INDEX('ADP-Rank'!$C$2:$C$814,MATCH(D10,'ADP-Rank'!$A$2:$A$814,0)),"") -> SS | H10: SS | I10: =IF(AND(F10="OF",'Guts-2'!$N$9=0),IF(MAX(Pre!J10:L10)=Pre!J10,"LF",IF(MAX(Pre!J10:L10)=Pre!K10,"CF",IF(MAX(Pre!J10:L10)=Pre!L10,"RF","LF"))),"") ->  | J10: =IFERROR(INDEX('ADP-Rank'!$X$2:$X$814,MATCH(D10,'ADP-Rank'!$A$2:$A$814,0)),TRUE) -> TRUE | K10: FALSE | L10: =IF(J10=FALSE,FALSE,IF(AND('Your Points Draft'!$R$5="Hide Drafted Players",K10=TRUE),FALSE,CHOOSE($I$1,TRUE,OR(RIGHT('Your Points Draft'!$R$4,LEN('Your Points Draft'!$R$4)-11)=H10,IF(RIGHT('Your Points Draft'!$R$4,LEN('Your Points Draft'!$R$4)-11)<>"C",NOT(ISERROR(SEARCH(RIGHT('Your Points Draft'!$R$4,LEN('Your Points Draft'!$R$4)-11),Pre!$CB10))),AND(NOT(ISERROR(SEARCH(RIGHT('Your Points Draft'!$R$4,LEN('Your Points Draft'!$R$4)-11),Pre!$CB10))),ISERROR(SEARCH("CF",Pre!$CB10)))),RIGHT('Your Points Draft'!$R$4,LEN('Your Points Draft'!$R$4)-11)=Pre!BP10),OR(H10="1B",H10="3B",ISNUMBER(SEARCH("1B",Pre!$CB10)),ISNUMBER(SEARCH("3B",Pre!$CB10))),OR(H10="2B",H10="SS",ISNUMBER(SEARCH("2B",Pre!$CB10)),ISNUMBER(SEARCH("SS",Pre!$CB10))),OR(H10="1B",H10="3B",H10="2B",H10="SS",ISNUMBER(SEARCH("1B",Pre!$CB10)),ISNUMBER(SEARCH("3B",Pre!$CB10)),ISNUMBER(SEARCH("2B",Pre!$CB10)),ISNUMBER(SEARCH("SS",Pre!$CB10))),OR(H10="SP",H10="RP",ISNUMBER(SEARCH("SP",Pre!$CB10)),ISNUMBER(SEARCH("RP",Pre!$CB10))),AND(H10<>"RP",H10<>"SP",NOT(ISNUMBER(SEARCH("RP",Pre!$CB10))),NOT(ISNUMBER(SEARCH("SP",Pre!$CB10)))),OR(H10="SP",H10="RP",ISNUMBER(SEARCH("SP",Pre!$CB10)),ISNUMBER(SEARCH("RP",Pre!$CB10)))))) -> TRUE | M10: =IF(J10=FALSE,10000,IF('ADP-Rank'!AB10="",9999,'ADP-Rank'!AB10)) -> 9999 | N10: =IF(LEFT($D10,15)="Unlisted Player",-1,IF(Pre!C10<>"",Pre!C10,0)) -> 682.5825224 | O10: =IF('ADP-Rank'!Z10="",9999,'ADP-Rank'!Z10) -> 9999 | P10: =IFERROR(IF($N10=0,-1000,IF(LEFT($D10,15)="Unlisted Player",-1001,IF(OR($H10="RP",$H10="SP"),VLOOKUP($D10,'Filter-P'!$A$3:$X$419,13,FALSE),$N10-(INDEX('Filter-H'!$AH$5:$AH$16,MATCH($H10,'Filter-H'!$W$5:$W$16,0),1))))),"") -> -209.7026972 | Q10: =IFERROR(IF(LEFT($D10,15)="Unlisted Player",-1001,IF(OR(H10="SP",H10="RP"),N10/INDEX('Filter-P'!$D$3:$D$520,MATCH($D10,'Filter-P'!$A$3:$A$520,0),1),-1000)),-1000) -> -1000 | R10: =IFERROR(IF(LEFT($D10,15)="Unlisted Player",-1001,IF(OR(H10="SP",H10="RP"),-1000,N10/INDEX('Filter-H'!$B$3:$B$500,MATCH(D10,'Filter-H'!$A$3:$A$500,0),1))),-1000) -> 1.415852567 | S10: =IF(H10="",#N/A,H10&"."&1+SUMPRODUCT(($H$2:$H$937=H10)*($M$2:$M$937<M10))+COUNTIFS($M$2:M10,M10,$H$2:H10,H10)-1) -> SS.34 | U10: =IF(H10="",#N/A,1+SUMPRODUCT(($H$2:$H$937=H10)*($M$2:$M$937<M10))+COUNTIFS($M$2:M10,M10,$H$2:H10,H10)-1) -> 34 | V10: =IF(ISERROR(VLOOKUP($B9,Keepers!$C$2:$D$402,2,FALSE)),B9,"") -> Freddie Freeman | W10: =IFERROR(INDEX($V$1:$V$936,SMALL(IF($V$1:$V$936<>"",ROW($V$1:$V$936)),ROW(V10))),"") -> Walker Buehler | X10: =IF(LEFT($D10,15)="Unlisted Player",0,IF(Pre!C10<>"",Pre!C10,0)) -> 682.5825224 | Y10: =IFERROR(Pre!DL10,"") -> Bench
A11: Walker Buehler | B11: =IFERROR(INDEX($A$1:$A$936,SMALL(IF($A$1:$A$936<>"",ROW($A$1:$A$936)),ROW(A11))),"") -> Corbin Burnes | C11: =IFERROR(IF(L11=FALSE,"",CHOOSE(MATCH(RIGHT('Your Points Draft'!$R$3,LEN('Your Points Draft'!$R$3)-8),$M$1:$R$1,0),1+SUMPRODUCT(($L$2:$L$937=TRUE)*($M$2:$M$937<M11))+COUNTIFS($L$2:L11,L11,$M$2:M11,M11)-1,1+SUMPRODUCT(($L$2:$L$937=TRUE)*($N$2:$N$937>N11))+COUNTIFS($L$2:L11,L11,$N$2:N11,N11)-1,1+SUMPRODUCT(($L$2:$L$937=TRUE)*($O$2:$O$937<O11))+COUNTIFS($L$2:L11,L11,$O$2:O11,O11)-1,1+SUMPRODUCT(($L$2:$L$937=TRUE)*($P$2:$P$937>P11))+COUNTIFS($L$2:L11,L11,$P$2:P11,P11)-1,1+SUMPRODUCT(($L$2:$L$937=TRUE)*($Q$2:$Q$937>Q11))+COUNTIFS($L$2:L11,L11,$Q$2:Q11,Q11)-1,1+SUMPRODUCT(($L$2:$L$937=TRUE)*($R$2:$R$937>R11))+COUNTIFS($L$2:L11,L11,$R$2:R11,R11)-1,)),"") -> 327 | D11: Shogo Akiyama | E11: =IFERROR(INDEX('Draft Log'!$D$3:$D$807,MATCH(D11,'Draft Log'!$C$3:$C$807,0)),"") ->  | F11: =IFERROR(INDEX('ADP-Rank'!$C$2:$C$814,MATCH(D11,'ADP-Rank'!$A$2:$A$814,0)),"") -> OF | H11: OF | I11: =IF(AND(F11="OF",'Guts-2'!$N$9=0),IF(MAX(Pre!J11:L11)=Pre!J11,"LF",IF(MAX(Pre!J11:L11)=Pre!K11,"CF",IF(MAX(Pre!J11:L11)=Pre!L11,"RF","LF"))),"") ->  | J11: =IFERROR(INDEX('ADP-Rank'!$X$2:$X$814,MATCH(D11,'ADP-Rank'!$A$2:$A$814,0)),TRUE) -> TRUE | K11: FALSE | L11: =IF(J11=FALSE,FALSE,IF(AND('Your Points Draft'!$R$5="Hide Drafted Players",K11=TRUE),FALSE,CHOOSE($I$1,TRUE,OR(RIGHT('Your Points Draft'!$R$4,LEN('Your Points Draft'!$R$4)-11)=H11,IF(RIGHT('Your Points Draft'!$R$4,LEN('Your Points Draft'!$R$4)-11)<>"C",NOT(ISERROR(SEARCH(RIGHT('Your Points Draft'!$R$4,LEN('Your Points Draft'!$R$4)-11),Pre!$CB11))),AND(NOT(ISERROR(SEARCH(RIGHT('Your Points Draft'!$R$4,LEN('Your Points Draft'!$R$4)-11),Pre!$CB11))),ISERROR(SEARCH("CF",Pre!$CB11)))),RIGHT('Your Points Draft'!$R$4,LEN('Your Points Draft'!$R$4)-11)=Pre!BP11),OR(H11="1B",H11="3B",ISNUMBER(SEARCH("1B",Pre!$CB11)),ISNUMBER(SEARCH("3B",Pre!$CB11))),OR(H11="2B",H11="SS",ISNUMBER(SEARCH("2B",Pre!$CB11)),ISNUMBER(SEARCH("SS",Pre!$CB11))),OR(H11="1B",H11="3B",H11="2B",H11="SS",ISNUMBER(SEARCH("1B",Pre!$CB11)),ISNUMBER(SEARCH("3B",Pre!$CB11)),ISNUMBER(SEARCH("2B",Pre!$CB11)),ISNUMBER(SEARCH("SS",Pre!$CB11))),OR(H11="SP",H11="RP",ISNUMBER(SEARCH("SP",Pre!$CB11)),ISNUMBER(SEARCH("RP",Pre!$CB11))),AND(H11<>"RP",H11<>"SP",NOT(ISNUMBER(SEARCH("RP",Pre!$CB11))),NOT(ISNUMBER(SEARCH("SP",Pre!$CB11)))),OR(H11="SP",H11="RP",ISNUMBER(SEARCH("SP",Pre!$CB11)),ISNUMBER(SEARCH("RP",Pre!$CB11)))))) -> TRUE | M11: =IF(J11=FALSE,10000,IF('ADP-Rank'!AB11="",9999,'ADP-Rank'!AB11)) -> 9999 | N11: =IF(LEFT($D11,15)="Unlisted Player",-1,IF(Pre!C11<>"",Pre!C11,0)) -> 379.3813895 | O11: =IF('ADP-Rank'!Z11="",9999,'ADP-Rank'!Z11) -> 9999 | P11: =IFERROR(IF($N11=0,-1000,IF(LEFT($D11,15)="Unlisted Player",-1001,IF(OR($H11="RP",$H11="SP"),VLOOKUP($D11,'Filter-P'!$A$3:$X$419,13,FALSE),$N11-(INDEX('Filter-H'!$AH$5:$AH$16,MATCH($H11,'Filter-H'!$W$5:$W$16,0),1))))),"") -> -538.6273889 | Q11: =IFERROR(IF(LEFT($D11,15)="Unlisted Player",-1001,IF(OR(H11="SP",H11="RP"),N11/INDEX('Filter-P'!$D$3:$D$520,MATCH($D11,'Filter-P'!$A$3:$A$520,0),1),-1000)),-1000) -> -1000 | R11: =IFERROR(IF(LEFT($D11,15)="Unlisted Player",-1001,IF(OR(H11="SP",H11="RP"),-1000,N11/INDEX('Filter-H'!$B$3:$B$500,MATCH(D11,'Filter-H'!$A$3:$A$500,0),1))),-1000) -> 1.477917372 | S11: =IF(H11="",#N/A,H11&"."&1+SUMPRODUCT(($H$2:$H$937=H11)*($M$2:$M$937<M11))+COUNTIFS($M$2:M11,M11,$H$2:H11,H11)-1) -> OF.68 | U11: =IF(H11="",#N/A,1+SUMPRODUCT(($H$2:$H$937=H11)*($M$2:$M$937<M11))+COUNTIFS($M$2:M11,M11,$H$2:H11,H11)-1) -> 68 | V11: =IF(ISERROR(VLOOKUP($B10,Keepers!$C$2:$D$402,2,FALSE)),B10,"") -> Walker Buehler | W11: =IFERROR(INDEX($V$1:$V$936,SMALL(IF($V$1:$V$936<>"",ROW($V$1:$V$936)),ROW(V11))),"") -> Corbin Burnes | X11: =IF(LEFT($D11,15)="Unlisted Player",0,IF(Pre!C11<>"",Pre!C11,0)) -> 379.3813895 | Y11: =IFERROR(Pre!DL11,"") -> Bench
A12: Corbin Burnes | B12: =IFERROR(INDEX($A$1:$A$936,SMALL(IF($A$1:$A$936<>"",ROW($A$1:$A$936)),ROW(A12))),"") -> Mike Trout | C12: =IFERROR(IF(L12=FALSE,"",CHOOSE(MATCH(RIGHT('Your Points Draft'!$R$3,LEN('Your Points Draft'!$R$3)-8),$M$1:$R$1,0),1+SUMPRODUCT(($L$2:$L$937=TRUE)*($M$2:$M$937<M12))+COUNTIFS($L$2:L12,L12,$M$2:M12,M12)-1,1+SUMPRODUCT(($L$2:$L$937=TRUE)*($N$2:$N$937>N12))+COUNTIFS($L$2:L12,L12,$N$2:N12,N12)-1,1+SUMPRODUCT(($L$2:$L$937=TRUE)*($O$2:$O$937<O12))+COUNTIFS($L$2:L12,L12,$O$2:O12,O12)-1,1+SUMPRODUCT(($L$2:$L$937=TRUE)*($P$2:$P$937>P12))+COUNTIFS($L$2:L12,L12,$P$2:P12,P12)-1,1+SUMPRODUCT(($L$2:$L$937=TRUE)*($Q$2:$Q$937>Q12))+COUNTIFS($L$2:L12,L12,$Q$2:Q12,Q12)-1,1+SUMPRODUCT(($L$2:$L$937=TRUE)*($R$2:$R$937>R12))+COUNTIFS($L$2:L12,L12,$R$2:R12,R12)-1,)),"") -> 22 | D12: Ozzie Albies | E12: =IFERROR(INDEX('Draft Log'!$D$3:$D$807,MATCH(D12,'Draft Log'!$C$3:$C$807,0)),"") ->  | F12: =IFERROR(INDEX('ADP-Rank'!$C$2:$C$814,MATCH(D12,'ADP-Rank'!$A$2:$A$814,0)),"") -> 2B | H12: 2B | I12: =IF(AND(F12="OF",'Guts-2'!$N$9=0),IF(MAX(Pre!J12:L12)=Pre!J12,"LF",IF(MAX(Pre!J12:L12)=Pre!K12,"CF",IF(MAX(Pre!J12:L12)=Pre!L12,"RF","LF"))),"") ->  | J12: =IFERROR(INDEX('ADP-Rank'!$X$2:$X$814,MATCH(D12,'ADP-Rank'!$A$2:$A$814,0)),TRUE) -> TRUE | K12: FALSE | L12: =IF(J12=FALSE,FALSE,IF(AND('Your Points Draft'!$R$5="Hide Drafted Players",K12=TRUE),FALSE,CHOOSE($I$1,TRUE,OR(RIGHT('Your Points Draft'!$R$4,LEN('Your Points Draft'!$R$4)-11)=H12,IF(RIGHT('Your Points Draft'!$R$4,LEN('Your Points Draft'!$R$4)-11)<>"C",NOT(ISERROR(SEARCH(RIGHT('Your Points Draft'!$R$4,LEN('Your Points Draft'!$R$4)-11),Pre!$CB12))),AND(NOT(ISERROR(SEARCH(RIGHT('Your Points Draft'!$R$4,LEN('Your Points Draft'!$R$4)-11),Pre!$CB12))),ISERROR(SEARCH("CF",Pre!$CB12)))),RIGHT('Your Points Draft'!$R$4,LEN('Your Points Draft'!$R$4)-11)=Pre!BP12),OR(H12="1B",H12="3B",ISNUMBER(SEARCH("1B",Pre!$CB12)),ISNUMBER(SEARCH("3B",Pre!$CB12))),OR(H12="2B",H12="SS",ISNUMBER(SEARCH("2B",Pre!$CB12)),ISNUMBER(SEARCH("SS",Pre!$CB12))),OR(H12="1B",H12="3B",H12="2B",H12="SS",ISNUMBER(SEARCH("1B",Pre!$CB12)),ISNUMBER(SEARCH("3B",Pre!$CB12)),ISNUMBER(SEARCH("2B",Pre!$CB12)),ISNUMBER(SEARCH("SS",Pre!$CB12))),OR(H12="SP",H12="RP",ISNUMBER(SEARCH("SP",Pre!$CB12)),ISNUMBER(SEARCH("RP",Pre!$CB12))),AND(H12<>"RP",H12<>"SP",NOT(ISNUMBER(SEARCH("RP",Pre!$CB12))),NOT(ISNUMBER(SEARCH("SP",Pre!$CB12)))),OR(H12="SP",H12="RP",ISNUMBER(SEARCH("SP",Pre!$CB12)),ISNUMBER(SEARCH("RP",Pre!$CB12)))))) -> TRUE | M12: =IF(J12=FALSE,10000,IF('ADP-Rank'!AB12="",9999,'ADP-Rank'!AB12)) -> 25.89 | N12: =IF(LEFT($D12,15)="Unlisted Player",-1,IF(Pre!C12<>"",Pre!C12,0)) -> 1140.285491 | O12: =IF('ADP-Rank'!Z12="",9999,'ADP-Rank'!Z12) -> 25 | P12: =IFERROR(IF($N12=0,-1000,IF(LEFT($D12,15)="Unlisted Player",-1001,IF(OR($H12="RP",$H12="SP"),VLOOKUP($D12,'Filter-P'!$A$3:$X$419,13,FALSE),$N12-(INDEX('Filter-H'!$AH$5:$AH$16,MATCH($H12,'Filter-H'!$W$5:$W$16,0),1))))),"") -> 303.4020441 | Q12: =IFERROR(IF(LEFT($D12,15)="Unlisted Player",-1001,IF(OR(H12="SP",H12="RP"),N12/INDEX('Filter-P'!$D$3:$D$520,MATCH($D12,'Filter-P'!$A$3:$A$520,0),1),-1000)),-1000) -> -1000 | R12: =IFERROR(IF(LEFT($D12,15)="Unlisted Player",-1001,IF(OR(H12="SP",H12="RP"),-1000,N12/INDEX('Filter-H'!$B$3:$B$500,MATCH(D12,'Filter-H'!$A$3:$A$500,0),1))),-1000) -> 1.703698627 | S12: =IF(H12="",#N/A,H12&"."&1+SUMPRODUCT(($H$2:$H$937=H12)*($M$2:$M$937<M12))+COUNTIFS($M$2:M12,M12,$H$2:H12,H12)-1) -> 2B.1 | U12: =IF(H12="",#N/A,1+SUMPRODUCT(($H$2:$H$937=H12)*($M$2:$M$937<M12))+COUNTIFS($M$2:M12,M12,$H$2:H12,H12)-1) -> 1 | V12: =IF(ISERROR(VLOOKUP($B11,Keepers!$C$2:$D$402,2,FALSE)),B11,"") -> Corbin Burnes | W12: =IFERROR(INDEX($V$1:$V$936,SMALL(IF($V$1:$V$936<>"",ROW($V$1:$V$936)),ROW(V12))),"") -> Mike Trout | X12: =IF(LEFT($D12,15)="Unlisted Player",0,IF(Pre!C12<>"",Pre!C12,0)) -> 1140.285491 | Y12: =IFERROR(Pre!DL12,"") -> Bench
A13: Mike Trout | B13: =IFERROR(INDEX($A$1:$A$936,SMALL(IF($A$1:$A$936<>"",ROW($A$1:$A$936)),ROW(A13))),"") -> Max Scherzer | C13: =IFERROR(IF(L13=FALSE,"",CHOOSE(MATCH(RIGHT('Your Points Draft'!$R$3,LEN('Your Points Draft'!$R$3)-8),$M$1:$R$1,0),1+SUMPRODUCT(($L$2:$L$937=TRUE)*($M$2:$M$937<M13))+COUNTIFS($L$2:L13,L13,$M$2:M13,M13)-1,1+SUMPRODUCT(($L$2:$L$937=TRUE)*($N$2:$N$937>N13))+COUNTIFS($L$2:L13,L13,$N$2:N13,N13)-1,1+SUMPRODUCT(($L$2:$L$937=TRUE)*($O$2:$O$937<O13))+COUNTIFS($L$2:L13,L13,$O$2:O13,O13)-1,1+SUMPRODUCT(($L$2:$L$937=TRUE)*($P$2:$P$937>P13))+COUNTIFS($L$2:L13,L13,$P$2:P13,P13)-1,1+SUMPRODUCT(($L$2:$L$937=TRUE)*($Q$2:$Q$937>Q13))+COUNTIFS($L$2:L13,L13,$Q$2:Q13,Q13)-1,1+SUMPRODUCT(($L$2:$L$937=TRUE)*($R$2:$R$937>R13))+COUNTIFS($L$2:L13,L13,$R$2:R13,R13)-1,)),"") -> 328 | D13: Jorge Alcala | E13: =IFERROR(INDEX('Draft Log'!$D$3:$D$807,MATCH(D13,'Draft Log'!$C$3:$C$807,0)),"") ->  | F13: =IFERROR(INDEX('ADP-Rank'!$C$2:$C$814,MATCH(D13,'ADP-Rank'!$A$2:$A$814,0)),"") -> RP | H13: RP | I13: =IF(AND(F13="OF",'Guts-2'!$N$9=0),IF(MAX(Pre!J13:L13)=Pre!J13,"LF",IF(MAX(Pre!J13:L13)=Pre!K13,"CF",IF(MAX(Pre!J13:L13)=Pre!L13,"RF","LF"))),"") ->  | J13: =IFERROR(INDEX('ADP-Rank'!$X$2:$X$814,MATCH(D13,'ADP-Rank'!$A$2:$A$814,0)),TRUE) -> TRUE | K13: FALSE | L13: =IF(J13=FALSE,FALSE,IF(AND('Your Points Draft'!$R$5="Hide Drafted Players",K13=TRUE),FALSE,CHOOSE($I$1,TRUE,OR(RIGHT('Your Points Draft'!$R$4,LEN('Your Points Draft'!$R$4)-11)=H13,IF(RIGHT('Your Points Draft'!$R$4,LEN('Your Points Draft'!$R$4)-11)<>"C",NOT(ISERROR(SEARCH(RIGHT('Your Points Draft'!$R$4,LEN('Your Points Draft'!$R$4)-11),Pre!$CB13))),AND(NOT(ISERROR(SEARCH(RIGHT('Your Points Draft'!$R$4,LEN('Your Points Draft'!$R$4)-11),Pre!$CB13))),ISERROR(SEARCH("CF",Pre!$CB13)))),RIGHT('Your Points Draft'!$R$4,LEN('Your Points Draft'!$R$4)-11)=Pre!BP13),OR(H13="1B",H13="3B",ISNUMBER(SEARCH("1B",Pre!$CB13)),ISNUMBER(SEARCH("3B",Pre!$CB13))),OR(H13="2B",H13="SS",ISNUMBER(SEARCH("2B",Pre!$CB13)),ISNUMBER(SEARCH("SS",Pre!$CB13))),OR(H13="1B",H13="3B",H13="2B",H13="SS",ISNUMBER(SEARCH("1B",Pre!$CB13)),ISNUMBER(SEARCH("3B",Pre!$CB13)),ISNUMBER(SEARCH("2B",Pre!$CB13)),ISNUMBER(SEARCH("SS",Pre!$CB13))),OR(H13="SP",H13="RP",ISNUMBER(SEARCH("SP",Pre!$CB13)),ISNUMBER(SEARCH("RP",Pre!$CB13))),AND(H13<>"RP",H13<>"SP",NOT(ISNUMBER(SEARCH("RP",Pre!$CB13))),NOT(ISNUMBER(SEARCH("SP",Pre!$CB13)))),OR(H13="SP",H13="RP",ISNUMBER(SEARCH("SP",Pre!$CB13)),ISNUMBER(SEARCH("RP",Pre!$CB13)))))) -> TRUE | M13: =IF(J13=FALSE,10000,IF('ADP-Rank'!AB13="",9999,'ADP-Rank'!AB13)) -> 9999 | N13: =IF(LEFT($D13,15)="Unlisted Player",-1,IF(Pre!C13<>"",Pre!C13,0)) -> 240.2329212 | O13: =IF('ADP-Rank'!Z13="",9999,'ADP-Rank'!Z13) -> 9999 | P13: =IFERROR(IF($N13=0,-1000,IF(LEFT($D13,15)="Unlisted Player",-1001,IF(OR($H13="RP",$H13="SP"),VLOOKUP($D13,'Filter-P'!$A$3:$X$419,13,FALSE),$N13-(INDEX('Filter-H'!$AH$5:$AH$16,MATCH($H13,'Filter-H'!$W$5:$W$16,0),1))))),"") -> -190.2078651 | Q13: =IFERROR(IF(LEFT($D13,15)="Unlisted Player",-1001,IF(OR(H13="SP",H13="RP"),N13/INDEX('Filter-P'!$D$3:$D$520,MATCH($D13,'Filter-P'!$A$3:$A$520,0),1),-1000)),-1000) -> 3.695891096 | R13: =IFERROR(IF(LEFT($D13,15)="Unlisted Player",-1001,IF(OR(H13="SP",H13="RP"),-1000,N13/INDEX('Filter-H'!$B$3:$B$500,MATCH(D13,'Filter-H'!$A$3:$A$500,0),1))),-1000) -> -1000 | S13: =IF(H13="",#N/A,H13&"."&1+SUMPRODUCT(($H$2:$H$937=H13)*($M$2:$M$937<M13))+COUNTIFS($M$2:M13,M13,$H$2:H13,H13)-1) -> RP.38 | U13: =IF(H13="",#N/A,1+SUMPRODUCT(($H$2:$H$937=H13)*($M$2:$M$937<M13))+COUNTIFS($M$2:M13,M13,$H$2:H13,H13)-1) -> 38 | V13: =IF(ISERROR(VLOOKUP($B12,Keepers!$C$2:$D$402,2,FALSE)),B12,"") -> Mike Trout | W13: =IFERROR(INDEX($V$1:$V$936,SMALL(IF($V$1:$V$936<>"",ROW($V$1:$V$936)),ROW(V13))),"") -> Max Scherzer | X13: =IF(LEFT($D13,15)="Unlisted Player",0,IF(Pre!C13<>"",Pre!C13,0)) -> 240.2329212 | Y13: =IFERROR(Pre!DL13,"") -> Bench
A14: Max Scherzer | B14: =IFERROR(INDEX($A$1:$A$936,SMALL(IF($A$1:$A$936<>"",ROW($A$1:$A$936)),ROW(A14))),"") -> Bo Bichette | C14: =IFERROR(IF(L14=FALSE,"",CHOOSE(MATCH(RIGHT('Your Points Draft'!$R$3,LEN('Your Points Draft'!$R$3)-8),$M$1:$R$1,0),1+SUMPRODUCT(($L$2:$L$937=TRUE)*($M$2:$M$937<M14))+COUNTIFS($L$2:L14,L14,$M$2:M14,M14)-1,1+SUMPRODUCT(($L$2:$L$937=TRUE)*($N$2:$N$937>N14))+COUNTIFS($L$2:L14,L14,$N$2:N14,N14)-1,1+SUMPRODUCT(($L$2:$L$937=TRUE)*($O$2:$O$937<O14))+COUNTIFS($L$2:L14,L14,$O$2:O14,O14)-1,1+SUMPRODUCT(($L$2:$L$937=TRUE)*($P$2:$P$937>P14))+COUNTIFS($L$2:L14,L14,$P$2:P14,P14)-1,1+SUMPRODUCT(($L$2:$L$937=TRUE)*($Q$2:$Q$937>Q14))+COUNTIFS($L$2:L14,L14,$Q$2:Q14,Q14)-1,1+SUMPRODUCT(($L$2:$L$937=TRUE)*($R$2:$R$937>R14))+COUNTIFS($L$2:L14,L14,$R$2:R14,R14)-1,)),"") -> 53 | D14: Sandy Alcantara | E14: =IFERROR(INDEX('Draft Log'!$D$3:$D$807,MATCH(D14,'Draft Log'!$C$3:$C$807,0)),"") ->  | F14: =IFERROR(INDEX('ADP-Rank'!$C$2:$C$814,MATCH(D14,'ADP-Rank'!$A$2:$A$814,0)),"") -> SP | H14: SP | I14: =IF(AND(F14="OF",'Guts-2'!$N$9=0),IF(MAX(Pre!J14:L14)=Pre!J14,"LF",IF(MAX(Pre!J14:L14)=Pre!K14,"CF",IF(MAX(Pre!J14:L14)=Pre!L14,"RF","LF"))),"") ->  | J14: =IFERROR(INDEX('ADP-Rank'!$X$2:$X$814,MATCH(D14,'ADP-Rank'!$A$2:$A$814,0)),TRUE) -> TRUE | K14: FALSE | L14: =IF(J14=FALSE,FALSE,IF(AND('Your Points Draft'!$R$5="Hide Drafted Players",K14=TRUE),FALSE,CHOOSE($I$1,TRUE,OR(RIGHT('Your Points Draft'!$R$4,LEN('Your Points Draft'!$R$4)-11)=H14,IF(RIGHT('Your Points Draft'!$R$4,LEN('Your Points Draft'!$R$4)-11)<>"C",NOT(ISERROR(SEARCH(RIGHT('Your Points Draft'!$R$4,LEN('Your Points Draft'!$R$4)-11),Pre!$CB14))),AND(NOT(ISERROR(SEARCH(RIGHT('Your Points Draft'!$R$4,LEN('Your Points Draft'!$R$4)-11),Pre!$CB14))),ISERROR(SEARCH("CF",Pre!$CB14)))),RIGHT('Your Points Draft'!$R$4,LEN('Your Points Draft'!$R$4)-11)=Pre!BP14),OR(H14="1B",H14="3B",ISNUMBER(SEARCH("1B",Pre!$CB14)),ISNUMBER(SEARCH("3B",Pre!$CB14))),OR(H14="2B",H14="SS",ISNUMBER(SEARCH("2B",Pre!$CB14)),ISNUMBER(SEARCH("SS",Pre!$CB14))),OR(H14="1B",H14="3B",H14="2B",H14="SS",ISNUMBER(SEARCH("1B",Pre!$CB14)),ISNUMBER(SEARCH("3B",Pre!$CB14)),ISNUMBER(SEARCH("2B",Pre!$CB14)),ISNUMBER(SEARCH("SS",Pre!$CB14))),OR(H14="SP",H14="RP",ISNUMBER(SEARCH("SP",Pre!$CB14)),ISNUMBER(SEARCH("RP",Pre!$CB14))),AND(H14<>"RP",H14<>"SP",NOT(ISNUMBER(SEARCH("RP",Pre!$CB14))),NOT(ISNUMBER(SEARCH("SP",Pre!$CB14)))),OR(H14="SP",H14="RP",ISNUMBER(SEARCH("SP",Pre!$CB14)),ISNUMBER(SEARCH("RP",Pre!$CB14)))))) -> TRUE | M14: =IF(J14=FALSE,10000,IF('ADP-Rank'!AB14="",9999,'ADP-Rank'!AB14)) -> 56.58 | N14: =IF(LEFT($D14,15)="Unlisted Player",-1,IF(Pre!C14<>"",Pre!C14,0)) -> 776.8360522 | O14: =IF('ADP-Rank'!Z14="",9999,'ADP-Rank'!Z14) -> 28 | P14: =IFERROR(IF($N14=0,-1000,IF(LEFT($D14,15)="Unlisted Player",-1001,IF(OR($H14="RP",$H14="SP"),VLOOKUP($D14,'Filter-P'!$A$3:$X$419,13,FALSE),$N14-(INDEX('Filter-H'!$AH$5:$AH$16,MATCH($H14,'Filter-H'!$W$5:$W$16,0),1))))),"") -> 258.8654251 | Q14: =IFERROR(IF(LEFT($D14,15)="Unlisted Player",-1001,IF(OR(H14="SP",H14="RP"),N14/INDEX('Filter-P'!$D$3:$D$520,MATCH($D14,'Filter-P'!$A$3:$A$520,0),1),-1000)),-1000) -> 4.004309547 | R14: =IFERROR(IF(LEFT($D14,15)="Unlisted Player",-1001,IF(OR(H14="SP",H14="RP"),-1000,N14/INDEX('Filter-H'!$B$3:$B$500,MATCH(D14,'Filter-H'!$A$3:$A$500,0),1))),-1000) -> -1000 | S14: =IF(H14="",#N/A,H14&"."&1+SUMPRODUCT(($H$2:$H$937=H14)*($M$2:$M$937<M14))+COUNTIFS($M$2:M14,M14,$H$2:H14,H14)-1) -> SP.17 | U14: =IF(H14="",#N/A,1+SUMPRODUCT(($H$2:$H$937=H14)*($M$2:$M$937<M14))+COUNTIFS($M$2:M14,M14,$H$2:H14,H14)-1) -> 17 | V14: =IF(ISERROR(VLOOKUP($B13,Keepers!$C$2:$D$402,2,FALSE)),B13,"") -> Max Scherzer | W14: =IFERROR(INDEX($V$1:$V$936,SMALL(IF($V$1:$V$936<>"",ROW($V$1:$V$936)),ROW(V14))),"") -> Bo Bichette | X14: =IF(LEFT($D14,15)="Unlisted Player",0,IF(Pre!C14<>"",Pre!C14,0)) -> 776.8360522 | Y14: =IFERROR(Pre!DL14,"") -> Bench
A15: Bo Bichette | B15: =IFERROR(INDEX($A$1:$A$936,SMALL(IF($A$1:$A$936<>"",ROW($A$1:$A$936)),ROW(A15))),"") -> Ronald Acuna Jr. | C15: =IFERROR(IF(L15=FALSE,"",CHOOSE(MATCH(RIGHT('Your Points Draft'!$R$3,LEN('Your Points Draft'!$R$3)-8),$M$1:$R$1,0),1+SUMPRODUCT(($L$2:$L$937=TRUE)*($M$2:$M$937<M15))+COUNTIFS($L$2:L15,L15,$M$2:M15,M15)-1,1+SUMPRODUCT(($L$2:$L$937=TRUE)*($N$2:$N$937>N15))+COUNTIFS($L$2:L15,L15,$N$2:N15,N15)-1,1+SUMPRODUCT(($L$2:$L$937=TRUE)*($O$2:$O$937<O15))+COUNTIFS($L$2:L15,L15,$O$2:O15,O15)-1,1+SUMPRODUCT(($L$2:$L$937=TRUE)*($P$2:$P$937>P15))+COUNTIFS($L$2:L15,L15,$P$2:P15,P15)-1,1+SUMPRODUCT(($L$2:$L$937=TRUE)*($Q$2:$Q$937>Q15))+COUNTIFS($L$2:L15,L15,$Q$2:Q15,Q15)-1,1+SUMPRODUCT(($L$2:$L$937=TRUE)*($R$2:$R$937>R15))+COUNTIFS($L$2:L15,L15,$R$2:R15,R15)-1,)),"") -> 329 | D15: Sergio Alcantara | E15: =IFERROR(INDEX('Draft Log'!$D$3:$D$807,MATCH(D15,'Draft Log'!$C$3:$C$807,0)),"") ->  | F15: =IFERROR(INDEX('ADP-Rank'!$C$2:$C$814,MATCH(D15,'ADP-Rank'!$A$2:$A$814,0)),"") -> SS | H15: SS | I15: =IF(AND(F15="OF",'Guts-2'!$N$9=0),IF(MAX(Pre!J15:L15)=Pre!J15,"LF",IF(MAX(Pre!J15:L15)=Pre!K15,"CF",IF(MAX(Pre!J15:L15)=Pre!L15,"RF","LF"))),"") ->  | J15: =IFERROR(INDEX('ADP-Rank'!$X$2:$X$814,MATCH(D15,'ADP-Rank'!$A$2:$A$814,0)),TRUE) -> TRUE | K15: FALSE | L15: =IF(J15=FALSE,FALSE,IF(AND('Your Points Draft'!$R$5="Hide Drafted Players",K15=TRUE),FALSE,CHOOSE($I$1,TRUE,OR(RIGHT('Your Points Draft'!$R$4,LEN('Your Points Draft'!$R$4)-11)=H15,IF(RIGHT('Your Points Draft'!$R$4,LEN('Your Points Draft'!$R$4)-11)<>"C",NOT(ISERROR(SEARCH(RIGHT('Your Points Draft'!$R$4,LEN('Your Points Draft'!$R$4)-11),Pre!$CB15))),AND(NOT(ISERROR(SEARCH(RIGHT('Your Points Draft'!$R$4,LEN('Your Points Draft'!$R$4)-11),Pre!$CB15))),ISERROR(SEARCH("CF",Pre!$CB15)))),RIGHT('Your Points Draft'!$R$4,LEN('Your Points Draft'!$R$4)-11)=Pre!BP15),OR(H15="1B",H15="3B",ISNUMBER(SEARCH("1B",Pre!$CB15)),ISNUMBER(SEARCH("3B",Pre!$CB15))),OR(H15="2B",H15="SS",ISNUMBER(SEARCH("2B",Pre!$CB15)),ISNUMBER(SEARCH("SS",Pre!$CB15))),OR(H15="1B",H15="3B",H15="2B",H15="SS",ISNUMBER(SEARCH("1B",Pre!$CB15)),ISNUMBER(SEARCH("3B",Pre!$CB15)),ISNUMBER(SEARCH("2B",Pre!$CB15)),ISNUMBER(SEARCH("SS",Pre!$CB15))),OR(H15="SP",H15="RP",ISNUMBER(SEARCH("SP",Pre!$CB15)),ISNUMBER(SEARCH("RP",Pre!$CB15))),AND(H15<>"RP",H15<>"SP",NOT(ISNUMBER(SEARCH("RP",Pre!$CB15))),NOT(ISNUMBER(SEARCH("SP",Pre!$CB15)))),OR(H15="SP",H15="RP",ISNUMBER(SEARCH("SP",Pre!$CB15)),ISNUMBER(SEARCH("RP",Pre!$CB15)))))) -> TRUE | M15: =IF(J15=FALSE,10000,IF('ADP-Rank'!AB15="",9999,'ADP-Rank'!AB15)) -> 9999 | N15: =IF(LEFT($D15,15)="Unlisted Player",-1,IF(Pre!C15<>"",Pre!C15,0)) -> 382.2076562 | O15: =IF('ADP-Rank'!Z15="",9999,'ADP-Rank'!Z15) -> 9999 | P15: =IFERROR(IF($N15=0,-1000,IF(LEFT($D15,15)="Unlisted Player",-1001,IF(OR($H15="RP",$H15="SP"),VLOOKUP($D15,'Filter-P'!$A$3:$X$419,13,FALSE),$N15-(INDEX('Filter-H'!$AH$5:$AH$16,MATCH($H15,'Filter-H'!$W$5:$W$16,0),1))))),"") -> -510.0775635 | Q15: =IFERROR(IF(LEFT($D15,15)="Unlisted Player",-1001,IF(OR(H15="SP",H15="RP"),N15/INDEX('Filter-P'!$D$3:$D$520,MATCH($D15,'Filter-P'!$A$3:$A$520,0),1),-1000)),-1000) -> -1000 | R15: =IFERROR(IF(LEFT($D15,15)="Unlisted Player",-1001,IF(OR(H15="SP",H15="RP"),-1000,N15/INDEX('Filter-H'!$B$3:$B$500,MATCH(D15,'Filter-H'!$A$3:$A$500,0),1))),-1000) -> 1.390351605 | S15: =IF(H15="",#N/A,H15&"."&1+SUMPRODUCT(($H$2:$H$937=H15)*($M$2:$M$937<M15))+COUNTIFS($M$2:M15,M15,$H$2:H15,H15)-1) -> SS.35 | U15: =IF(H15="",#N/A,1+SUMPRODUCT(($H$2:$H$937=H15)*($M$2:$M$937<M15))+COUNTIFS($M$2:M15,M15,$H$2:H15,H15)-1) -> 35 | V15: =IF(ISERROR(VLOOKUP($B14,Keepers!$C$2:$D$402,2,FALSE)),B14,"") -> Bo Bichette | W15: =IFERROR(INDEX($V$1:$V$936,SMALL(IF($V$1:$V$936<>"",ROW($V$1:$V$936)),ROW(V15))),"") -> Ronald Acuna Jr. | X15: =IF(LEFT($D15,15)="Unlisted Player",0,IF(Pre!C15<>"",Pre!C15,0)) -> 382.2076562 | Y15: =IFERROR(Pre!DL15,"") -> Bench
A16: Ronald Acuna Jr. | B16: =IFERROR(INDEX($A$1:$A$936,SMALL(IF($A$1:$A$936<>"",ROW($A$1:$A$936)),ROW(A16))),"") -> Rafael Devers | C16: =IFERROR(IF(L16=FALSE,"",CHOOSE(MATCH(RIGHT('Your Points Draft'!$R$3,LEN('Your Points Draft'!$R$3)-8),$M$1:$R$1,0),1+SUMPRODUCT(($L$2:$L$937=TRUE)*($M$2:$M$937<M16))+COUNTIFS($L$2:L16,L16,$M$2:M16,M16)-1,1+SUMPRODUCT(($L$2:$L$937=TRUE)*($N$2:$N$937>N16))+COUNTIFS($L$2:L16,L16,$N$2:N16,N16)-1,1+SUMPRODUCT(($L$2:$L$937=TRUE)*($O$2:$O$937<O16))+COUNTIFS($L$2:L16,L16,$O$2:O16,O16)-1,1+SUMPRODUCT(($L$2:$L$937=TRUE)*($P$2:$P$937>P16))+COUNTIFS($L$2:L16,L16,$P$2:P16,P16)-1,1+SUMPRODUCT(($L$2:$L$937=TRUE)*($Q$2:$Q$937>Q16))+COUNTIFS($L$2:L16,L16,$Q$2:Q16,Q16)-1,1+SUMPRODUCT(($L$2:$L$937=TRUE)*($R$2:$R$937>R16))+COUNTIFS($L$2:L16,L16,$R$2:R16,R16)-1,)),"") -> 330 | D16: Tyler Alexander | E16: =IFERROR(INDEX('Draft Log'!$D$3:$D$807,MATCH(D16,'Draft Log'!$C$3:$C$807,0)),"") ->  | F16: =IFERROR(INDEX('ADP-Rank'!$C$2:$C$814,MATCH(D16,'ADP-Rank'!$A$2:$A$814,0)),"") -> RP | H16: RP | I16: =IF(AND(F16="OF",'Guts-2'!$N$9=0),IF(MAX(Pre!J16:L16)=Pre!J16,"LF",IF(MAX(Pre!J16:L16)=Pre!K16,"CF",IF(MAX(Pre!J16:L16)=Pre!L16,"RF","LF"))),"") ->  | J16: =IFERROR(INDEX('ADP-Rank'!$X$2:$X$814,MATCH(D16,'ADP-Rank'!$A$2:$A$814,0)),TRUE) -> TRUE | K16: FALSE | L16: =IF(J16=FALSE,FALSE,IF(AND('Your Points Draft'!$R$5="Hide Drafted Players",K16=TRUE),FALSE,CHOOSE($I$1,TRUE,OR(RIGHT('Your Points Draft'!$R$4,LEN('Your Points Draft'!$R$4)-11)=H16,IF(RIGHT('Your Points Draft'!$R$4,LEN('Your Points Draft'!$R$4)-11)<>"C",NOT(ISERROR(SEARCH(RIGHT('Your Points Draft'!$R$4,LEN('Your Points Draft'!$R$4)-11),Pre!$CB16))),AND(NOT(ISERROR(SEARCH(RIGHT('Your Points Draft'!$R$4,LEN('Your Points Draft'!$R$4)-11),Pre!$CB16))),ISERROR(SEARCH("CF",Pre!$CB16)))),RIGHT('Your Points Draft'!$R$4,LEN('Your Points Draft'!$R$4)-11)=Pre!BP16),OR(H16="1B",H16="3B",ISNUMBER(SEARCH("1B",Pre!$CB16)),ISNUMBER(SEARCH("3B",Pre!$CB16))),OR(H16="2B",H16="SS",ISNUMBER(SEARCH("2B",Pre!$CB16)),ISNUMBER(SEARCH("SS",Pre!$CB16))),OR(H16="1B",H16="3B",H16="2B",H16="SS",ISNUMBER(SEARCH("1B",Pre!$CB16)),ISNUMBER(SEARCH("3B",Pre!$CB16)),ISNUMBER(SEARCH("2B",Pre!$CB16)),ISNUMBER(SEARCH("SS",Pre!$CB16))),OR(H16="SP",H16="RP",ISNUMBER(SEARCH("SP",Pre!$CB16)),ISNUMBER(SEARCH("RP",Pre!$CB16))),AND(H16<>"RP",H16<>"SP",NOT(ISNUMBER(SEARCH("RP",Pre!$CB16))),NOT(ISNUMBER(SEARCH("SP",Pre!$CB16)))),OR(H16="SP",H16="RP",ISNUMBER(SEARCH("SP",Pre!$CB16)),ISNUMBER(SEARCH("RP",Pre!$CB16)))))) -> TRUE | M16: =IF(J16=FALSE,10000,IF('ADP-Rank'!AB16="",9999,'ADP-Rank'!AB16)) -> 9999 | N16: =IF(LEFT($D16,15)="Unlisted Player",-1,IF(Pre!C16<>"",Pre!C16,0)) -> 0 | O16: =IF('ADP-Rank'!Z16="",9999,'ADP-Rank'!Z16) -> 9999 | P16: =IFERROR(IF($N16=0,-1000,IF(LEFT($D16,15)="Unlisted Player",-1001,IF(OR($H16="RP",$H16="SP"),VLOOKUP($D16,'Filter-P'!$A$3:$X$419,13,FALSE),$N16-(INDEX('Filter-H'!$AH$5:$AH$16,MATCH($H16,'Filter-H'!$W$5:$W$16,0),1))))),"") -> -1000 | Q16: =IFERROR(IF(LEFT($D16,15)="Unlisted Player",-1001,IF(OR(H16="SP",H16="RP"),N16/INDEX('Filter-P'!$D$3:$D$520,MATCH($D16,'Filter-P'!$A$3:$A$520,0),1),-1000)),-1000) -> -1000 | R16: =IFERROR(IF(LEFT($D16,15)="Unlisted Player",-1001,IF(OR(H16="SP",H16="RP"),-1000,N16/INDEX('Filter-H'!$B$3:$B$500,MATCH(D16,'Filter-H'!$A$3:$A$500,0),1))),-1000) -> -1000 | S16: =IF(H16="",#N/A,H16&"."&1+SUMPRODUCT(($H$2:$H$937=H16)*($M$2:$M$937<M16))+COUNTIFS($M$2:M16,M16,$H$2:H16,H16)-1) -> RP.39 | U16: =IF(H16="",#N/A,1+SUMPRODUCT(($H$2:$H$937=H16)*($M$2:$M$937<M16))+COUNTIFS($M$2:M16,M16,$H$2:H16,H16)-1) -> 39 | V16: =IF(ISERROR(VLOOKUP($B15,Keepers!$C$2:$D$402,2,FALSE)),B15,"") -> Ronald Acuna Jr. | W16: =IFERROR(INDEX($V$1:$V$936,SMALL(IF($V$1:$V$936<>"",ROW($V$1:$V$936)),ROW(V16))),"") -> Rafael Devers | X16: =IF(LEFT($D16,15)="Unlisted Player",0,IF(Pre!C16<>"",Pre!C16,0)) -> 0 | Y16: =IFERROR(Pre!DL16,"") -> Bench
A17: Rafael Devers | B17: =IFERROR(INDEX($A$1:$A$936,SMALL(IF($A$1:$A$936<>"",ROW($A$1:$A$936)),ROW(A17))),"") -> Shohei Ohtani | C17: =IFERROR(IF(L17=FALSE,"",CHOOSE(MATCH(RIGHT('Your Points Draft'!$R$3,LEN('Your Points Draft'!$R$3)-8),$M$1:$R$1,0),1+SUMPRODUCT(($L$2:$L$937=TRUE)*($M$2:$M$937<M17))+COUNTIFS($L$2:L17,L17,$M$2:M17,M17)-1,1+SUMPRODUCT(($L$2:$L$937=TRUE)*($N$2:$N$937>N17))+COUNTIFS($L$2:L17,L17,$N$2:N17,N17)-1,1+SUMPRODUCT(($L$2:$L$937=TRUE)*($O$2:$O$937<O17))+COUNTIFS($L$2:L17,L17,$O$2:O17,O17)-1,1+SUMPRODUCT(($L$2:$L$937=TRUE)*($P$2:$P$937>P17))+COUNTIFS($L$2:L17,L17,$P$2:P17,P17)-1,1+SUMPRODUCT(($L$2:$L$937=TRUE)*($Q$2:$Q$937>Q17))+COUNTIFS($L$2:L17,L17,$Q$2:Q17,Q17)-1,1+SUMPRODUCT(($L$2:$L$937=TRUE)*($R$2:$R$937>R17))+COUNTIFS($L$2:L17,L17,$R$2:R17,R17)-1,)),"") -> 331 | D17: A.J. Alexy | E17: =IFERROR(INDEX('Draft Log'!$D$3:$D$807,MATCH(D17,'Draft Log'!$C$3:$C$807,0)),"") ->  | F17: =IFERROR(INDEX('ADP-Rank'!$C$2:$C$814,MATCH(D17,'ADP-Rank'!$A$2:$A$814,0)),"") -> SP | H17: SP | I17: =IF(AND(F17="OF",'Guts-2'!$N$9=0),IF(MAX(Pre!J17:L17)=Pre!J17,"LF",IF(MAX(Pre!J17:L17)=Pre!K17,"CF",IF(MAX(Pre!J17:L17)=Pre!L17,"RF","LF"))),"") ->  | J17: =IFERROR(INDEX('ADP-Rank'!$X$2:$X$814,MATCH(D17,'ADP-Rank'!$A$2:$A$814,0)),TRUE) -> TRUE | K17: FALSE | L17: =IF(J17=FALSE,FALSE,IF(AND('Your Points Draft'!$R$5="Hide Drafted Players",K17=TRUE),FALSE,CHOOSE($I$1,TRUE,OR(RIGHT('Your Points Draft'!$R$4,LEN('Your Points Draft'!$R$4)-11)=H17,IF(RIGHT('Your Points Draft'!$R$4,LEN('Your Points Draft'!$R$4)-11)<>"C",NOT(ISERROR(SEARCH(RIGHT('Your Points Draft'!$R$4,LEN('Your Points Draft'!$R$4)-11),Pre!$CB17))),AND(NOT(ISERROR(SEARCH(RIGHT('Your Points Draft'!$R$4,LEN('Your Points Draft'!$R$4)-11),Pre!$CB17))),ISERROR(SEARCH("CF",Pre!$CB17)))),RIGHT('Your Points Draft'!$R$4,LEN('Your Points Draft'!$R$4)-11)=Pre!BP17),OR(H17="1B",H17="3B",ISNUMBER(SEARCH("1B",Pre!$CB17)),ISNUMBER(SEARCH("3B",Pre!$CB17))),OR(H17="2B",H17="SS",ISNUMBER(SEARCH("2B",Pre!$CB17)),ISNUMBER(SEARCH("SS",Pre!$CB17))),OR(H17="1B",H17="3B",H17="2B",H17="SS",ISNUMBER(SEARCH("1B",Pre!$CB17)),ISNUMBER(SEARCH("3B",Pre!$CB17)),ISNUMBER(SEARCH("2B",Pre!$CB17)),ISNUMBER(SEARCH("SS",Pre!$CB17))),OR(H17="SP",H17="RP",ISNUMBER(SEARCH("SP",Pre!$CB17)),ISNUMBER(SEARCH("RP",Pre!$CB17))),AND(H17<>"RP",H17<>"SP",NOT(ISNUMBER(SEARCH("RP",Pre!$CB17))),NOT(ISNUMBER(SEARCH("SP",Pre!$CB17)))),OR(H17="SP",H17="RP",ISNUMBER(SEARCH("SP",Pre!$CB17)),ISNUMBER(SEARCH("RP",Pre!$CB17)))))) -> TRUE | M17: =IF(J17=FALSE,10000,IF('ADP-Rank'!AB17="",9999,'ADP-Rank'!AB17)) -> 9999 | N17: =IF(LEFT($D17,15)="Unlisted Player",-1,IF(Pre!C17<>"",Pre!C17,0)) -> 273.5191624 | O17: =IF('ADP-Rank'!Z17="",9999,'ADP-Rank'!Z17) -> 9999 | P17: =IFERROR(IF($N17=0,-1000,IF(LEFT($D17,15)="Unlisted Player",-1001,IF(OR($H17="RP",$H17="SP"),VLOOKUP($D17,'Filter-P'!$A$3:$X$419,13,FALSE),$N17-(INDEX('Filter-H'!$AH$5:$AH$16,MATCH($H17,'Filter-H'!$W$5:$W$16,0),1))))),"") -> -244.4514647 | Q17: =IFERROR(IF(LEFT($D17,15)="Unlisted Player",-1001,IF(OR(H17="SP",H17="RP"),N17/INDEX('Filter-P'!$D$3:$D$520,MATCH($D17,'Filter-P'!$A$3:$A$520,0),1),-1000)),-1000) -> 3.1081723 | R17: =IFERROR(IF(LEFT($D17,15)="Unlisted Player",-1001,IF(OR(H17="SP",H17="RP"),-1000,N17/INDEX('Filter-H'!$B$3:$B$500,MATCH(D17,'Filter-H'!$A$3:$A$500,0),1))),-1000) -> -1000 | S17: =IF(H17="",#N/A,H17&"."&1+SUMPRODUCT(($H$2:$H$937=H17)*($M$2:$M$937<M17))+COUNTIFS($M$2:M17,M17,$H$2:H17,H17)-1) -> SP.99 | U17: =IF(H17="",#N/A,1+SUMPRODUCT(($H$2:$H$937=H17)*($M$2:$M$937<M17))+COUNTIFS($M$2:M17,M17,$H$2:H17,H17)-1) -> 99 | V17: =IF(ISERROR(VLOOKUP($B16,Keepers!$C$2:$D$402,2,FALSE)),B16,"") -> Rafael Devers | W17: =IFERROR(INDEX($V$1:$V$936,SMALL(IF($V$1:$V$936<>"",ROW($V$1:$V$936)),ROW(V17))),"") -> Shohei Ohtani | X17: =IF(LEFT($D17,15)="Unlisted Player",0,IF(Pre!C17<>"",Pre!C17,0)) -> 273.5191624 | Y17: =IFERROR(Pre!DL17,"") -> Bench
A18: Shohei Ohtani | B18: =IFERROR(INDEX($A$1:$A$936,SMALL(IF($A$1:$A$936<>"",ROW($A$1:$A$936)),ROW(A18))),"") -> Matt Olson | C18: =IFERROR(IF(L18=FALSE,"",CHOOSE(MATCH(RIGHT('Your Points Draft'!$R$3,LEN('Your Points Draft'!$R$3)-8),$M$1:$R$1,0),1+SUMPRODUCT(($L$2:$L$937=TRUE)*($M$2:$M$937<M18))+COUNTIFS($L$2:L18,L18,$M$2:M18,M18)-1,1+SUMPRODUCT(($L$2:$L$937=TRUE)*($N$2:$N$937>N18))+COUNTIFS($L$2:L18,L18,$N$2:N18,N18)-1,1+SUMPRODUCT(($L$2:$L$937=TRUE)*($O$2:$O$937<O18))+COUNTIFS($L$2:L18,L18,$O$2:O18,O18)-1,1+SUMPRODUCT(($L$2:$L$937=TRUE)*($P$2:$P$937>P18))+COUNTIFS($L$2:L18,L18,$P$2:P18,P18)-1,1+SUMPRODUCT(($L$2:$L$937=TRUE)*($Q$2:$Q$937>Q18))+COUNTIFS($L$2:L18,L18,$Q$2:Q18,Q18)-1,1+SUMPRODUCT(($L$2:$L$937=TRUE)*($R$2:$R$937>R18))+COUNTIFS($L$2:L18,L18,$R$2:R18,R18)-1,)),"") -> 332 | D18: Jorge Alfaro | E18: =IFERROR(INDEX('Draft Log'!$D$3:$D$807,MATCH(D18,'Draft Log'!$C$3:$C$807,0)),"") ->  | F18: =IFERROR(INDEX('ADP-Rank'!$C$2:$C$814,MATCH(D18,'ADP-Rank'!$A$2:$A$814,0)),"") -> C | H18: C | I18: =IF(AND(F18="OF",'Guts-2'!$N$9=0),IF(MAX(Pre!J18:L18)=Pre!J18,"LF",IF(MAX(Pre!J18:L18)=Pre!K18,"CF",IF(MAX(Pre!J18:L18)=Pre!L18,"RF","LF"))),"") ->  | J18: =IFERROR(INDEX('ADP-Rank'!$X$2:$X$814,MATCH(D18,'ADP-Rank'!$A$2:$A$814,0)),TRUE) -> TRUE | K18: FALSE | L18: =IF(J18=FALSE,FALSE,IF(AND('Your Points Draft'!$R$5="Hide Drafted Players",K18=TRUE),FALSE,CHOOSE($I$1,TRUE,OR(RIGHT('Your Points Draft'!$R$4,LEN('Your Points Draft'!$R$4)-11)=H18,IF(RIGHT('Your Points Draft'!$R$4,LEN('Your Points Draft'!$R$4)-11)<>"C",NOT(ISERROR(SEARCH(RIGHT('Your Points Draft'!$R$4,LEN('Your Points Draft'!$R$4)-11),Pre!$CB18))),AND(NOT(ISERROR(SEARCH(RIGHT('Your Points Draft'!$R$4,LEN('Your Points Draft'!$R$4)-11),Pre!$CB18))),ISERROR(SEARCH("CF",Pre!$CB18)))),RIGHT('Your Points Draft'!$R$4,LEN('Your Points Draft'!$R$4)-11)=Pre!BP18),OR(H18="1B",H18="3B",ISNUMBER(SEARCH("1B",Pre!$CB18)),ISNUMBER(SEARCH("3B",Pre!$CB18))),OR(H18="2B",H18="SS",ISNUMBER(SEARCH("2B",Pre!$CB18)),ISNUMBER(SEARCH("SS",Pre!$CB18))),OR(H18="1B",H18="3B",H18="2B",H18="SS",ISNUMBER(SEARCH("1B",Pre!$CB18)),ISNUMBER(SEARCH("3B",Pre!$CB18)),ISNUMBER(SEARCH("2B",Pre!$CB18)),ISNUMBER(SEARCH("SS",Pre!$CB18))),OR(H18="SP",H18="RP",ISNUMBER(SEARCH("SP",Pre!$CB18)),ISNUMBER(SEARCH("RP",Pre!$CB18))),AND(H18<>"RP",H18<>"SP",NOT(ISNUMBER(SEARCH("RP",Pre!$CB18))),NOT(ISNUMBER(SEARCH("SP",Pre!$CB18)))),OR(H18="SP",H18="RP",ISNUMBER(SEARCH("SP",Pre!$CB18)),ISNUMBER(SEARCH("RP",Pre!$CB18)))))) -> TRUE | M18: =IF(J18=FALSE,10000,IF('ADP-Rank'!AB18="",9999,'ADP-Rank'!AB18)) -> 9999 | N18: =IF(LEFT($D18,15)="Unlisted Player",-1,IF(Pre!C18<>"",Pre!C18,0)) -> 458.6095537 | O18: =IF('ADP-Rank'!Z18="",9999,'ADP-Rank'!Z18) -> 9999 | P18: =IFERROR(IF($N18=0,-1000,IF(LEFT($D18,15)="Unlisted Player",-1001,IF(OR($H18="RP",$H18="SP"),VLOOKUP($D18,'Filter-P'!$A$3:$X$419,13,FALSE),$N18-(INDEX('Filter-H'!$AH$5:$AH$16,MATCH($H18,'Filter-H'!$W$5:$W$16,0),1))))),"") -> -157.053014 | Q18: =IFERROR(IF(LEFT($D18,15)="Unlisted Player",-1001,IF(OR(H18="SP",H18="RP"),N18/INDEX('Filter-P'!$D$3:$D$520,MATCH($D18,'Filter-P'!$A$3:$A$520,0),1),-1000)),-1000) -> -1000 | R18: =IFERROR(IF(LEFT($D18,15)="Unlisted Player",-1001,IF(OR(H18="SP",H18="RP"),-1000,N18/INDEX('Filter-H'!$B$3:$B$500,MATCH(D18,'Filter-H'!$A$3:$A$500,0),1))),-1000) -> 1.34391078 | S18: =IF(H18="",#N/A,H18&"."&1+SUMPRODUCT(($H$2:$H$937=H18)*($M$2:$M$937<M18))+COUNTIFS($M$2:M18,M18,$H$2:H18,H18)-1) -> C.25 | U18: =IF(H18="",#N/A,1+SUMPRODUCT(($H$2:$H$937=H18)*($M$2:$M$937<M18))+COUNTIFS($M$2:M18,M18,$H$2:H18,H18)-1) -> 25 | V18: =IF(ISERROR(VLOOKUP($B17,Keepers!$C$2:$D$402,2,FALSE)),B17,"") -> Shohei Ohtani | W18: =IFERROR(INDEX($V$1:$V$936,SMALL(IF($V$1:$V$936<>"",ROW($V$1:$V$936)),ROW(V18))),"") -> Matt Olson | X18: =IF(LEFT($D18,15)="Unlisted Player",0,IF(Pre!C18<>"",Pre!C18,0)) -> 458.6095537 | Y18: =IFERROR(Pre!DL18,"") -> Bench
A19: Matt Olson | B19: =IFERROR(INDEX($A$1:$A$936,SMALL(IF($A$1:$A$936<>"",ROW($A$1:$A$936)),ROW(A19))),"") -> Manny Machado | C19: =IFERROR(IF(L19=FALSE,"",CHOOSE(MATCH(RIGHT('Your Points Draft'!$R$3,LEN('Your Points Draft'!$R$3)-8),$M$1:$R$1,0),1+SUMPRODUCT(($L$2:$L$937=TRUE)*($M$2:$M$937<M19))+COUNTIFS($L$2:L19,L19,$M$2:M19,M19)-1,1+SUMPRODUCT(($L$2:$L$937=TRUE)*($N$2:$N$937>N19))+COUNTIFS($L$2:L19,L19,$N$2:N19,N19)-1,1+SUMPRODUCT(($L$2:$L$937=TRUE)*($O$2:$O$937<O19))+COUNTIFS($L$2:L19,L19,$O$2:O19,O19)-1,1+SUMPRODUCT(($L$2:$L$937=TRUE)*($P$2:$P$937>P19))+COUNTIFS($L$2:L19,L19,$P$2:P19,P19)-1,1+SUMPRODUCT(($L$2:$L$937=TRUE)*($Q$2:$Q$937>Q19))+COUNTIFS($L$2:L19,L19,$Q$2:Q19,Q19)-1,1+SUMPRODUCT(($L$2:$L$937=TRUE)*($R$2:$R$937>R19))+COUNTIFS($L$2:L19,L19,$R$2:R19,R19)-1,)),"") -> 333 | D19: Anthony Alford | E19: =IFERROR(INDEX('Draft Log'!$D$3:$D$807,MATCH(D19,'Draft Log'!$C$3:$C$807,0)),"") ->  | F19: =IFERROR(INDEX('ADP-Rank'!$C$2:$C$814,MATCH(D19,'ADP-Rank'!$A$2:$A$814,0)),"") -> OF | H19: OF | I19: =IF(AND(F19="OF",'Guts-2'!$N$9=0),IF(MAX(Pre!J19:L19)=Pre!J19,"LF",IF(MAX(Pre!J19:L19)=Pre!K19,"CF",IF(MAX(Pre!J19:L19)=Pre!L19,"RF","LF"))),"") ->  | J19: =IFERROR(INDEX('ADP-Rank'!$X$2:$X$814,MATCH(D19,'ADP-Rank'!$A$2:$A$814,0)),TRUE) -> TRUE | K19: FALSE | L19: =IF(J19=FALSE,FALSE,IF(AND('Your Points Draft'!$R$5="Hide Drafted Players",K19=TRUE),FALSE,CHOOSE($I$1,TRUE,OR(RIGHT('Your Points Draft'!$R$4,LEN('Your Points Draft'!$R$4)-11)=H19,IF(RIGHT('Your Points Draft'!$R$4,LEN('Your Points Draft'!$R$4)-11)<>"C",NOT(ISERROR(SEARCH(RIGHT('Your Points Draft'!$R$4,LEN('Your Points Draft'!$R$4)-11),Pre!$CB19))),AND(NOT(ISERROR(SEARCH(RIGHT('Your Points Draft'!$R$4,LEN('Your Points Draft'!$R$4)-11),Pre!$CB19))),ISERROR(SEARCH("CF",Pre!$CB19)))),RIGHT('Your Points Draft'!$R$4,LEN('Your Points Draft'!$R$4)-11)=Pre!BP19),OR(H19="1B",H19="3B",ISNUMBER(SEARCH("1B",Pre!$CB19)),ISNUMBER(SEARCH("3B",Pre!$CB19))),OR(H19="2B",H19="SS",ISNUMBER(SEARCH("2B",Pre!$CB19)),ISNUMBER(SEARCH("SS",Pre!$CB19))),OR(H19="1B",H19="3B",H19="2B",H19="SS",ISNUMBER(SEARCH("1B",Pre!$CB19)),ISNUMBER(SEARCH("3B",Pre!$CB19)),ISNUMBER(SEARCH("2B",Pre!$CB19)),ISNUMBER(SEARCH("SS",Pre!$CB19))),OR(H19="SP",H19="RP",ISNUMBER(SEARCH("SP",Pre!$CB19)),ISNUMBER(SEARCH("RP",Pre!$CB19))),AND(H19<>"RP",H19<>"SP",NOT(ISNUMBER(SEARCH("RP",Pre!$CB19))),NOT(ISNUMBER(SEARCH("SP",Pre!$CB19)))),OR(H19="SP",H19="RP",ISNUMBER(SEARCH("SP",Pre!$CB19)),ISNUMBER(SEARCH("RP",Pre!$CB19)))))) -> TRUE | M19: =IF(J19=FALSE,10000,IF('ADP-Rank'!AB19="",9999,'ADP-Rank'!AB19)) -> 9999 | N19: =IF(LEFT($D19,15)="Unlisted Player",-1,IF(Pre!C19<>"",Pre!C19,0)) -> 479.7005454 | O19: =IF('ADP-Rank'!Z19="",9999,'ADP-Rank'!Z19) -> 9999 | P19: =IFERROR(IF($N19=0,-1000,IF(LEFT($D19,15)="Unlisted Player",-1001,IF(OR($H19="RP",$H19="SP"),VLOOKUP($D19,'Filter-P'!$A$3:$X$419,13,FALSE),$N19-(INDEX('Filter-H'!$AH$5:$AH$16,MATCH($H19,'Filter-H'!$W$5:$W$16,0),1))))),"") -> -438.308233 | Q19: =IFERROR(IF(LEFT($D19,15)="Unlisted Player",-1001,IF(OR(H19="SP",H19="RP"),N19/INDEX('Filter-P'!$D$3:$D$520,MATCH($D19,'Filter-P'!$A$3:$A$520,0),1),-1000)),-1000) -> -1000 | R19: =IFERROR(IF(LEFT($D19,15)="Unlisted Player",-1001,IF(OR(H19="SP",H19="RP"),-1000,N19/INDEX('Filter-H'!$B$3:$B$500,MATCH(D19,'Filter-H'!$A$3:$A$500,0),1))),-1000) -> 1.375879952 | S19: =IF(H19="",#N/A,H19&"."&1+SUMPRODUCT(($H$2:$H$937=H19)*($M$2:$M$937<M19))+COUNTIFS($M$2:M19,M19,$H$2:H19,H19)-1) -> OF.69 | U19: =IF(H19="",#N/A,1+SUMPRODUCT(($H$2:$H$937=H19)*($M$2:$M$937<M19))+COUNTIFS($M$2:M19,M19,$H$2:H19,H19)-1) -> 69 | V19: =IF(ISERROR(VLOOKUP($B18,Keepers!$C$2:$D$402,2,FALSE)),B18,"") -> Matt Olson | W19: =IFERROR(INDEX($V$1:$V$936,SMALL(IF($V$1:$V$936<>"",ROW($V$1:$V$936)),ROW(V19))),"") -> Manny Machado | X19: =IF(LEFT($D19,15)="Unlisted Player",0,IF(Pre!C19<>"",Pre!C19,0)) -> 479.7005454 | Y19: =IFERROR(Pre!DL19,"") -> Bench
A20: Manny Machado | B20: =IFERROR(INDEX($A$1:$A$936,SMALL(IF($A$1:$A$936<>"",ROW($A$1:$A$936)),ROW(A20))),"") -> Julio Urias | C20: =IFERROR(IF(L20=FALSE,"",CHOOSE(MATCH(RIGHT('Your Points Draft'!$R$3,LEN('Your Points Draft'!$R$3)-8),$M$1:$R$1,0),1+SUMPRODUCT(($L$2:$L$937=TRUE)*($M$2:$M$937<M20))+COUNTIFS($L$2:L20,L20,$M$2:M20,M20)-1,1+SUMPRODUCT(($L$2:$L$937=TRUE)*($N$2:$N$937>N20))+COUNTIFS($L$2:L20,L20,$N$2:N20,N20)-1,1+SUMPRODUCT(($L$2:$L$937=TRUE)*($O$2:$O$937<O20))+COUNTIFS($L$2:L20,L20,$O$2:O20,O20)-1,1+SUMPRODUCT(($L$2:$L$937=TRUE)*($P$2:$P$937>P20))+COUNTIFS($L$2:L20,L20,$P$2:P20,P20)-1,1+SUMPRODUCT(($L$2:$L$937=TRUE)*($Q$2:$Q$937>Q20))+COUNTIFS($L$2:L20,L20,$Q$2:Q20,Q20)-1,1+SUMPRODUCT(($L$2:$L$937=TRUE)*($R$2:$R$937>R20))+COUNTIFS($L$2:L20,L20,$R$2:R20,R20)-1,)),"") -> 334 | D20: Kolby Allard | E20: =IFERROR(INDEX('Draft Log'!$D$3:$D$807,MATCH(D20,'Draft Log'!$C$3:$C$807,0)),"") ->  | F20: =IFERROR(INDEX('ADP-Rank'!$C$2:$C$814,MATCH(D20,'ADP-Rank'!$A$2:$A$814,0)),"") -> RP | H20: RP | I20: =IF(AND(F20="OF",'Guts-2'!$N$9=0),IF(MAX(Pre!J20:L20)=Pre!J20,"LF",IF(MAX(Pre!J20:L20)=Pre!K20,"CF",IF(MAX(Pre!J20:L20)=Pre!L20,"RF","LF"))),"") ->  | J20: =IFERROR(INDEX('ADP-Rank'!$X$2:$X$814,MATCH(D20,'ADP-Rank'!$A$2:$A$814,0)),TRUE) -> TRUE | K20: FALSE | L20: =IF(J20=FALSE,FALSE,IF(AND('Your Points Draft'!$R$5="Hide Drafted Players",K20=TRUE),FALSE,CHOOSE($I$1,TRUE,OR(RIGHT('Your Points Draft'!$R$4,LEN('Your Points Draft'!$R$4)-11)=H20,IF(RIGHT('Your Points Draft'!$R$4,LEN('Your Points Draft'!$R$4)-11)<>"C",NOT(ISERROR(SEARCH(RIGHT('Your Points Draft'!$R$4,LEN('Your Points Draft'!$R$4)-11),Pre!$CB20))),AND(NOT(ISERROR(SEARCH(RIGHT('Your Points Draft'!$R$4,LEN('Your Points Draft'!$R$4)-11),Pre!$CB20))),ISERROR(SEARCH("CF",Pre!$CB20)))),RIGHT('Your Points Draft'!$R$4,LEN('Your Points Draft'!$R$4)-11)=Pre!BP20),OR(H20="1B",H20="3B",ISNUMBER(SEARCH("1B",Pre!$CB20)),ISNUMBER(SEARCH("3B",Pre!$CB20))),OR(H20="2B",H20="SS",ISNUMBER(SEARCH("2B",Pre!$CB20)),ISNUMBER(SEARCH("SS",Pre!$CB20))),OR(H20="1B",H20="3B",H20="2B",H20="SS",ISNUMBER(SEARCH("1B",Pre!$CB20)),ISNUMBER(SEARCH("3B",Pre!$CB20)),ISNUMBER(SEARCH("2B",Pre!$CB20)),ISNUMBER(SEARCH("SS",Pre!$CB20))),OR(H20="SP",H20="RP",ISNUMBER(SEARCH("SP",Pre!$CB20)),ISNUMBER(SEARCH("RP",Pre!$CB20))),AND(H20<>"RP",H20<>"SP",NOT(ISNUMBER(SEARCH("RP",Pre!$CB20))),NOT(ISNUMBER(SEARCH("SP",Pre!$CB20)))),OR(H20="SP",H20="RP",ISNUMBER(SEARCH("SP",Pre!$CB20)),ISNUMBER(SEARCH("RP",Pre!$CB20)))))) -> TRUE | M20: =IF(J20=FALSE,10000,IF('ADP-Rank'!AB20="",9999,'ADP-Rank'!AB20)) -> 9999 | N20: =IF(LEFT($D20,15)="Unlisted Player",-1,IF(Pre!C20<>"",Pre!C20,0)) -> 200.0120773 | O20: =IF('ADP-Rank'!Z20="",9999,'ADP-Rank'!Z20) -> 9999 | P20: =IFERROR(IF($N20=0,-1000,IF(LEFT($D20,15)="Unlisted Player",-1001,IF(OR($H20="RP",$H20="SP"),VLOOKUP($D20,'Filter-P'!$A$3:$X$419,13,FALSE),$N20-(INDEX('Filter-H'!$AH$5:$AH$16,MATCH($H20,'Filter-H'!$W$5:$W$16,0),1))))),"") -> -230.428709 | Q20: =IFERROR(IF(LEFT($D20,15)="Unlisted Player",-1001,IF(OR(H20="SP",H20="RP"),N20/INDEX('Filter-P'!$D$3:$D$520,MATCH($D20,'Filter-P'!$A$3:$A$520,0),1),-1000)),-1000) -> 2.898725758 | R20: =IFERROR(IF(LEFT($D20,15)="Unlisted Player",-1001,IF(OR(H20="SP",H20="RP"),-1000,N20/INDEX('Filter-H'!$B$3:$B$500,MATCH(D20,'Filter-H'!$A$3:$A$500,0),1))),-1000) -> -1000 | S20: =IF(H20="",#N/A,H20&"."&1+SUMPRODUCT(($H$2:$H$937=H20)*($M$2:$M$937<M20))+COUNTIFS($M$2:M20,M20,$H$2:H20,H20)-1) -> RP.40 | U20: =IF(H20="",#N/A,1+SUMPRODUCT(($H$2:$H$937=H20)*($M$2:$M$937<M20))+COUNTIFS($M$2:M20,M20,$H$2:H20,H20)-1) -> 40 | V20: =IF(ISERROR(VLOOKUP($B19,Keepers!$C$2:$D$402,2,FALSE)),B19,"") -> Manny Machado | W20: =IFERROR(INDEX($V$1:$V$936,SMALL(IF($V$1:$V$936<>"",ROW($V$1:$V$936)),ROW(V20))),"") -> Julio Urias | X20: =IF(LEFT($D20,15)="Unlisted Player",0,IF(Pre!C20<>"",Pre!C20,0)) -> 200.0120773 | Y20: =IFERROR(Pre!DL20,"") -> Bench
A21: Julio Urias | B21: =IFERROR(INDEX($A$1:$A$936,SMALL(IF($A$1:$A$936<>"",ROW($A$1:$A$936)),ROW(A21))),"") -> Brandon Woodruff | C21: =IFERROR(IF(L21=FALSE,"",CHOOSE(MATCH(RIGHT('Your Points Draft'!$R$3,LEN('Your Points Draft'!$R$3)-8),$M$1:$R$1,0),1+SUMPRODUCT(($L$2:$L$937=TRUE)*($M$2:$M$937<M21))+COUNTIFS($L$2:L21,L21,$M$2:M21,M21)-1,1+SUMPRODUCT(($L$2:$L$937=TRUE)*($N$2:$N$937>N21))+COUNTIFS($L$2:L21,L21,$N$2:N21,N21)-1,1+SUMPRODUCT(($L$2:$L$937=TRUE)*($O$2:$O$937<O21))+COUNTIFS($L$2:L21,L21,$O$2:O21,O21)-1,1+SUMPRODUCT(($L$2:$L$937=TRUE)*($P$2:$P$937>P21))+COUNTIFS($L$2:L21,L21,$P$2:P21,P21)-1,1+SUMPRODUCT(($L$2:$L$937=TRUE)*($Q$2:$Q$937>Q21))+COUNTIFS($L$2:L21,L21,$Q$2:Q21,Q21)-1,1+SUMPRODUCT(($L$2:$L$937=TRUE)*($R$2:$R$937>R21))+COUNTIFS($L$2:L21,L21,$R$2:R21,R21)-1,)),"") -> 335 | D21: Austin Allen | E21: =IFERROR(INDEX('Draft Log'!$D$3:$D$807,MATCH(D21,'Draft Log'!$C$3:$C$807,0)),"") ->  | F21: =IFERROR(INDEX('ADP-Rank'!$C$2:$C$814,MATCH(D21,'ADP-Rank'!$A$2:$A$814,0)),"") -> DH | H21: DH | I21: =IF(AND(F21="OF",'Guts-2'!$N$9=0),IF(MAX(Pre!J21:L21)=Pre!J21,"LF",IF(MAX(Pre!J21:L21)=Pre!K21,"CF",IF(MAX(Pre!J21:L21)=Pre!L21,"RF","LF"))),"") ->  | J21: =IFERROR(INDEX('ADP-Rank'!$X$2:$X$814,MATCH(D21,'ADP-Rank'!$A$2:$A$814,0)),TRUE) -> TRUE | K21: FALSE | L21: =IF(J21=FALSE,FALSE,IF(AND('Your Points Draft'!$R$5="Hide Drafted Players",K21=TRUE),FALSE,CHOOSE($I$1,TRUE,OR(RIGHT('Your Points Draft'!$R$4,LEN('Your Points Draft'!$R$4)-11)=H21,IF(RIGHT('Your Points Draft'!$R$4,LEN('Your Points Draft'!$R$4)-11)<>"C",NOT(ISERROR(SEARCH(RIGHT('Your Points Draft'!$R$4,LEN('Your Points Draft'!$R$4)-11),Pre!$CB21))),AND(NOT(ISERROR(SEARCH(RIGHT('Your Points Draft'!$R$4,LEN('Your Points Draft'!$R$4)-11),Pre!$CB21))),ISERROR(SEARCH("CF",Pre!$CB21)))),RIGHT('Your Points Draft'!$R$4,LEN('Your Points Draft'!$R$4)-11)=Pre!BP21),OR(H21="1B",H21="3B",ISNUMBER(SEARCH("1B",Pre!$CB21)),ISNUMBER(SEARCH("3B",Pre!$CB21))),OR(H21="2B",H21="SS",ISNUMBER(SEARCH("2B",Pre!$CB21)),ISNUMBER(SEARCH("SS",Pre!$CB21))),OR(H21="1B",H21="3B",H21="2B",H21="SS",ISNUMBER(SEARCH("1B",Pre!$CB21)),ISNUMBER(SEARCH("3B",Pre!$CB21)),ISNUMBER(SEARCH("2B",Pre!$CB21)),ISNUMBER(SEARCH("SS",Pre!$CB21))),OR(H21="SP",H21="RP",ISNUMBER(SEARCH("SP",Pre!$CB21)),ISNUMBER(SEARCH("RP",Pre!$CB21))),AND(H21<>"RP",H21<>"SP",NOT(ISNUMBER(SEARCH("RP",Pre!$CB21))),NOT(ISNUMBER(SEARCH("SP",Pre!$CB21)))),OR(H21="SP",H21="RP",ISNUMBER(SEARCH("SP",Pre!$CB21)),ISNUMBER(SEARCH("RP",Pre!$CB21)))))) -> TRUE | M21: =IF(J21=FALSE,10000,IF('ADP-Rank'!AB21="",9999,'ADP-Rank'!AB21)) -> 9999 | N21: =IF(LEFT($D21,15)="Unlisted Player",-1,IF(Pre!C21<>"",Pre!C21,0)) -> 264.6710132 | O21: =IF('ADP-Rank'!Z21="",9999,'ADP-Rank'!Z21) -> 9999 | P21: =IFERROR(IF($N21=0,-1000,IF(LEFT($D21,15)="Unlisted Player",-1001,IF(OR($H21="RP",$H21="SP"),VLOOKUP($D21,'Filter-P'!$A$3:$X$419,13,FALSE),$N21-(INDEX('Filter-H'!$AH$5:$AH$16,MATCH($H21,'Filter-H'!$W$5:$W$16,0),1))))),"") -> -666.4441229 | Q21: =IFERROR(IF(LEFT($D21,15)="Unlisted Player",-1001,IF(OR(H21="SP",H21="RP"),N21/INDEX('Filter-P'!$D$3:$D$520,MATCH($D21,'Filter-P'!$A$3:$A$520,0),1),-1000)),-1000) -> -1000 | R21: =IFERROR(IF(LEFT($D21,15)="Unlisted Player",-1001,IF(OR(H21="SP",H21="RP"),-1000,N21/INDEX('Filter-H'!$B$3:$B$500,MATCH(D21,'Filter-H'!$A$3:$A$500,0),1))),-1000) -> 1.460656806 | S21: =IF(H21="",#N/A,H21&"."&1+SUMPRODUCT(($H$2:$H$937=H21)*($M$2:$M$937<M21))+COUNTIFS($M$2:M21,M21,$H$2:H21,H21)-1) -> DH.8 | U21: =IF(H21="",#N/A,1+SUMPRODUCT(($H$2:$H$937=H21)*($M$2:$M$937<M21))+COUNTIFS($M$2:M21,M21,$H$2:H21,H21)-1) -> 8 | V21: =IF(ISERROR(VLOOKUP($B20,Keepers!$C$2:$D$402,2,FALSE)),B20,"") -> Julio Urias | W21: =IFERROR(INDEX($V$1:$V$936,SMALL(IF($V$1:$V$936<>"",ROW($V$1:$V$936)),ROW(V21))),"") -> Brandon Woodruff | X21: =IF(LEFT($D21,15)="Unlisted Player",0,IF(Pre!C21<>"",Pre!C21,0)) -> 264.6710132 | Y21: =IFERROR(Pre!DL21,"") -> Bench
A22: Brandon Woodruff | B22: =IFERROR(INDEX($A$1:$A$936,SMALL(IF($A$1:$A$936<>"",ROW($A$1:$A$936)),ROW(A22))),"") -> Ozzie Albies | C22: =IFERROR(IF(L22=FALSE,"",CHOOSE(MATCH(RIGHT('Your Points Draft'!$R$3,LEN('Your Points Draft'!$R$3)-8),$M$1:$R$1,0),1+SUMPRODUCT(($L$2:$L$937=TRUE)*($M$2:$M$937<M22))+COUNTIFS($L$2:L22,L22,$M$2:M22,M22)-1,1+SUMPRODUCT(($L$2:$L$937=TRUE)*($N$2:$N$937>N22))+COUNTIFS($L$2:L22,L22,$N$2:N22,N22)-1,1+SUMPRODUCT(($L$2:$L$937=TRUE)*($O$2:$O$937<O22))+COUNTIFS($L$2:L22,L22,$O$2:O22,O22)-1,1+SUMPRODUCT(($L$2:$L$937=TRUE)*($P$2:$P$937>P22))+COUNTIFS($L$2:L22,L22,$P$2:P22,P22)-1,1+SUMPRODUCT(($L$2:$L$937=TRUE)*($Q$2:$Q$937>Q22))+COUNTIFS($L$2:L22,L22,$Q$2:Q22,Q22)-1,1+SUMPRODUCT(($L$2:$L$937=TRUE)*($R$2:$R$937>R22))+COUNTIFS($L$2:L22,L22,$R$2:R22,R22)-1,)),"") -> 336 | D22: Greg Allen | E22: =IFERROR(INDEX('Draft Log'!$D$3:$D$807,MATCH(D22,'Draft Log'!$C$3:$C$807,0)),"") ->  | F22: =IFERROR(INDEX('ADP-Rank'!$C$2:$C$814,MATCH(D22,'ADP-Rank'!$A$2:$A$814,0)),"") -> OF | H22: OF | I22: =IF(AND(F22="OF",'Guts-2'!$N$9=0),IF(MAX(Pre!J22:L22)=Pre!J22,"LF",IF(MAX(Pre!J22:L22)=Pre!K22,"CF",IF(MAX(Pre!J22:L22)=Pre!L22,"RF","LF"))),"") ->  | J22: =IFERROR(INDEX('ADP-Rank'!$X$2:$X$814,MATCH(D22,'ADP-Rank'!$A$2:$A$814,0)),TRUE) -> TRUE | K22: FALSE | L22: =IF(J22=FALSE,FALSE,IF(AND('Your Points Draft'!$R$5="Hide Drafted Players",K22=TRUE),FALSE,CHOOSE($I$1,TRUE,OR(RIGHT('Your Points Draft'!$R$4,LEN('Your Points Draft'!$R$4)-11)=H22,IF(RIGHT('Your Points Draft'!$R$4,LEN('Your Points Draft'!$R$4)-11)<>"C",NOT(ISERROR(SEARCH(RIGHT('Your Points Draft'!$R$4,LEN('Your Points Draft'!$R$4)-11),Pre!$CB22))),AND(NOT(ISERROR(SEARCH(RIGHT('Your Points Draft'!$R$4,LEN('Your Points Draft'!$R$4)-11),Pre!$CB22))),ISERROR(SEARCH("CF",Pre!$CB22)))),RIGHT('Your Points Draft'!$R$4,LEN('Your Points Draft'!$R$4)-11)=Pre!BP22),OR(H22="1B",H22="3B",ISNUMBER(SEARCH("1B",Pre!$CB22)),ISNUMBER(SEARCH("3B",Pre!$CB22))),OR(H22="2B",H22="SS",ISNUMBER(SEARCH("2B",Pre!$CB22)),ISNUMBER(SEARCH("SS",Pre!$CB22))),OR(H22="1B",H22="3B",H22="2B",H22="SS",ISNUMBER(SEARCH("1B",Pre!$CB22)),ISNUMBER(SEARCH("3B",Pre!$CB22)),ISNUMBER(SEARCH("2B",Pre!$CB22)),ISNUMBER(SEARCH("SS",Pre!$CB22))),OR(H22="SP",H22="RP",ISNUMBER(SEARCH("SP",Pre!$CB22)),ISNUMBER(SEARCH("RP",Pre!$CB22))),AND(H22<>"RP",H22<>"SP",NOT(ISNUMBER(SEARCH("RP",Pre!$CB22))),NOT(ISNUMBER(SEARCH("SP",Pre!$CB22)))),OR(H22="SP",H22="RP",ISNUMBER(SEARCH("SP",Pre!$CB22)),ISNUMBER(SEARCH("RP",Pre!$CB22)))))) -> TRUE | M22: =IF(J22=FALSE,10000,IF('ADP-Rank'!AB22="",9999,'ADP-Rank'!AB22)) -> 9999 | N22: =IF(LEFT($D22,15)="Unlisted Player",-1,IF(Pre!C22<>"",Pre!C22,0)) -> 419.1158231 | O22: =IF('ADP-Rank'!Z22="",9999,'ADP-Rank'!Z22) -> 9999 | P22: =IFERROR(IF($N22=0,-1000,IF(LEFT($D22,15)="Unlisted Player",-1001,IF(OR($H22="RP",$H22="SP"),VLOOKUP($D22,'Filter-P'!$A$3:$X$419,13,FALSE),$N22-(INDEX('Filter-H'!$AH$5:$AH$16,MATCH($H22,'Filter-H'!$W$5:$W$16,0),1))))),"") -> -498.8929553 | Q22: =IFERROR(IF(LEFT($D22,15)="Unlisted Player",-1001,IF(OR(H22="SP",H22="RP"),N22/INDEX('Filter-P'!$D$3:$D$520,MATCH($D22,'Filter-P'!$A$3:$A$520,0),1),-1000)),-1000) -> -1000 | R22: =IFERROR(IF(LEFT($D22,15)="Unlisted Player",-1001,IF(OR(H22="SP",H22="RP"),-1000,N22/INDEX('Filter-H'!$B$3:$B$500,MATCH(D22,'Filter-H'!$A$3:$A$500,0),1))),-1000) -> 1.495240182 | S22: =IF(H22="",#N/A,H22&"."&1+SUMPRODUCT(($H$2:$H$937=H22)*($M$2:$M$937<M22))+COUNTIFS($M$2:M22,M22,$H$2:H22,H22)-1) -> OF.70 | U22: =IF(H22="",#N/A,1+SUMPRODUCT(($H$2:$H$937=H22)*($M$2:$M$937<M22))+COUNTIFS($M$2:M22,M22,$H$2:H22,H22)-1) -> 70 | V22: =IF(ISERROR(VLOOKUP($B21,Keepers!$C$2:$D$402,2,FALSE)),B21,"") -> Brandon Woodruff | W22: =IFERROR(INDEX($V$1:$V$936,SMALL(IF($V$1:$V$936<>"",ROW($V$1:$V$936)),ROW(V22))),"") -> Ozzie Albies | X22: =IF(LEFT($D22,15)="Unlisted Player",0,IF(Pre!C22<>"",Pre!C22,0)) -> 419.1158231 | Y22: =IFERROR(Pre!DL22,"") -> Bench
A23: Ozzie Albies | B23: =IFERROR(INDEX($A$1:$A$936,SMALL(IF($A$1:$A$936<>"",ROW($A$1:$A$936)),ROW(A23))),"") -> Aaron Judge | C23: =IFERROR(IF(L23=FALSE,"",CHOOSE(MATCH(RIGHT('Your Points Draft'!$R$3,LEN('Your Points Draft'!$R$3)-8),$M$1:$R$1,0),1+SUMPRODUCT(($L$2:$L$937=TRUE)*($M$2:$M$937<M23))+COUNTIFS($L$2:L23,L23,$M$2:M23,M23)-1,1+SUMPRODUCT(($L$2:$L$937=TRUE)*($N$2:$N$937>N23))+COUNTIFS($L$2:L23,L23,$N$2:N23,N23)-1,1+SUMPRODUCT(($L$2:$L$937=TRUE)*($O$2:$O$937<O23))+COUNTIFS($L$2:L23,L23,$O$2:O23,O23)-1,1+SUMPRODUCT(($L$2:$L$937=TRUE)*($P$2:$P$937>P23))+COUNTIFS($L$2:L23,L23,$P$2:P23,P23)-1,1+SUMPRODUCT(($L$2:$L$937=TRUE)*($Q$2:$Q$937>Q23))+COUNTIFS($L$2:L23,L23,$Q$2:Q23,Q23)-1,1+SUMPRODUCT(($L$2:$L$937=TRUE)*($R$2:$R$937>R23))+COUNTIFS($L$2:L23,L23,$R$2:R23,R23)-1,)),"") -> 337 | D23: Logan Allen | E23: =IFERROR(INDEX('Draft Log'!$D$3:$D$807,MATCH(D23,'Draft Log'!$C$3:$C$807,0)),"") ->  | F23: =IFERROR(INDEX('ADP-Rank'!$C$2:$C$814,MATCH(D23,'ADP-Rank'!$A$2:$A$814,0)),"") -> RP | H23: RP | I23: =IF(AND(F23="OF",'Guts-2'!$N$9=0),IF(MAX(Pre!J23:L23)=Pre!J23,"LF",IF(MAX(Pre!J23:L23)=Pre!K23,"CF",IF(MAX(Pre!J23:L23)=Pre!L23,"RF","LF"))),"") ->  | J23: =IFERROR(INDEX('ADP-Rank'!$X$2:$X$814,MATCH(D23,'ADP-Rank'!$A$2:$A$814,0)),TRUE) -> TRUE | K23: FALSE | L23: =IF(J23=FALSE,FALSE,IF(AND('Your Points Draft'!$R$5="Hide Drafted Players",K23=TRUE),FALSE,CHOOSE($I$1,TRUE,OR(RIGHT('Your Points Draft'!$R$4,LEN('Your Points Draft'!$R$4)-11)=H23,IF(RIGHT('Your Points Draft'!$R$4,LEN('Your Points Draft'!$R$4)-11)<>"C",NOT(ISERROR(SEARCH(RIGHT('Your Points Draft'!$R$4,LEN('Your Points Draft'!$R$4)-11),Pre!$CB23))),AND(NOT(ISERROR(SEARCH(RIGHT('Your Points Draft'!$R$4,LEN('Your Points Draft'!$R$4)-11),Pre!$CB23))),ISERROR(SEARCH("CF",Pre!$CB23)))),RIGHT('Your Points Draft'!$R$4,LEN('Your Points Draft'!$R$4)-11)=Pre!BP23),OR(H23="1B",H23="3B",ISNUMBER(SEARCH("1B",Pre!$CB23)),ISNUMBER(SEARCH("3B",Pre!$CB23))),OR(H23="2B",H23="SS",ISNUMBER(SEARCH("2B",Pre!$CB23)),ISNUMBER(SEARCH("SS",Pre!$CB23))),OR(H23="1B",H23="3B",H23="2B",H23="SS",ISNUMBER(SEARCH("1B",Pre!$CB23)),ISNUMBER(SEARCH("3B",Pre!$CB23)),ISNUMBER(SEARCH("2B",Pre!$CB23)),ISNUMBER(SEARCH("SS",Pre!$CB23))),OR(H23="SP",H23="RP",ISNUMBER(SEARCH("SP",Pre!$CB23)),ISNUMBER(SEARCH("RP",Pre!$CB23))),AND(H23<>"RP",H23<>"SP",NOT(ISNUMBER(SEARCH("RP",Pre!$CB23))),NOT(ISNUMBER(SEARCH("SP",Pre!$CB23)))),OR(H23="SP",H23="RP",ISNUMBER(SEARCH("SP",Pre!$CB23)),ISNUMBER(SEARCH("RP",Pre!$CB23)))))) -> TRUE | M23: =IF(J23=FALSE,10000,IF('ADP-Rank'!AB23="",9999,'ADP-Rank'!AB23)) -> 9999 | N23: =IF(LEFT($D23,15)="Unlisted Player",-1,IF(Pre!C23<>"",Pre!C23,0)) -> 188.0384067 | O23: =IF('ADP-Rank'!Z23="",9999,'ADP-Rank'!Z23) -> 9999 | P23: =IFERROR(IF($N23=0,-1000,IF(LEFT($D23,15)="Unlisted Player",-1001,IF(OR($H23="RP",$H23="SP"),VLOOKUP($D23,'Filter-P'!$A$3:$X$419,13,FALSE),$N23-(INDEX('Filter-H'!$AH$5:$AH$16,MATCH($H23,'Filter-H'!$W$5:$W$16,0),1))))),"") -> -242.4023796 | Q23: =IFERROR(IF(LEFT($D23,15)="Unlisted Player",-1001,IF(OR(H23="SP",H23="RP"),N23/INDEX('Filter-P'!$D$3:$D$520,MATCH($D23,'Filter-P'!$A$3:$A$520,0),1),-1000)),-1000) -> 2.648428263 | R23: =IFERROR(IF(LEFT($D23,15)="Unlisted Player",-1001,IF(OR(H23="SP",H23="RP"),-1000,N23/INDEX('Filter-H'!$B$3:$B$500,MATCH(D23,'Filter-H'!$A$3:$A$500,0),1))),-1000) -> -1000 | S23: =IF(H23="",#N/A,H23&"."&1+SUMPRODUCT(($H$2:$H$937=H23)*($M$2:$M$937<M23))+COUNTIFS($M$2:M23,M23,$H$2:H23,H23)-1) -> RP.41 | U23: =IF(H23="",#N/A,1+SUMPRODUCT(($H$2:$H$937=H23)*($M$2:$M$937<M23))+COUNTIFS($M$2:M23,M23,$H$2:H23,H23)-1) -> 41 | V23: =IF(ISERROR(VLOOKUP($B22,Keepers!$C$2:$D$402,2,FALSE)),B22,"") -> Ozzie Albies | W23: =IFERROR(INDEX($V$1:$V$936,SMALL(IF($V$1:$V$936<>"",ROW($V$1:$V$936)),ROW(V23))),"") -> Aaron Judge | X23: =IF(LEFT($D23,15)="Unlisted Player",0,IF(Pre!C23<>"",Pre!C23,0)) -> 188.0384067 | Y23: =IFERROR(Pre!DL23,"") -> Bench
A24: Aaron Judge | B24: =IFERROR(INDEX($A$1:$A$936,SMALL(IF($A$1:$A$936<>"",ROW($A$1:$A$936)),ROW(A24))),"") -> Trevor Story | C24: =IFERROR(IF(L24=FALSE,"",CHOOSE(MATCH(RIGHT('Your Points Draft'!$R$3,LEN('Your Points Draft'!$R$3)-8),$M$1:$R$1,0),1+SUMPRODUCT(($L$2:$L$937=TRUE)*($M$2:$M$937<M24))+COUNTIFS($L$2:L24,L24,$M$2:M24,M24)-1,1+SUMPRODUCT(($L$2:$L$937=TRUE)*($N$2:$N$937>N24))+COUNTIFS($L$2:L24,L24,$N$2:N24,N24)-1,1+SUMPRODUCT(($L$2:$L$937=TRUE)*($O$2:$O$937<O24))+COUNTIFS($L$2:L24,L24,$O$2:O24,O24)-1,1+SUMPRODUCT(($L$2:$L$937=TRUE)*($P$2:$P$937>P24))+COUNTIFS($L$2:L24,L24,$P$2:P24,P24)-1,1+SUMPRODUCT(($L$2:$L$937=TRUE)*($Q$2:$Q$937>Q24))+COUNTIFS($L$2:L24,L24,$Q$2:Q24,Q24)-1,1+SUMPRODUCT(($L$2:$L$937=TRUE)*($R$2:$R$937>R24))+COUNTIFS($L$2:L24,L24,$R$2:R24,R24)-1,)),"") -> 36 | D24: Pete Alonso | E24: =IFERROR(INDEX('Draft Log'!$D$3:$D$807,MATCH(D24,'Draft Log'!$C$3:$C$807,0)),"") ->  | F24: =IFERROR(INDEX('ADP-Rank'!$C$2:$C$814,MATCH(D24,'ADP-Rank'!$A$2:$A$814,0)),"") -> 1B | H24: 1B | I24: =IF(AND(F24="OF",'Guts-2'!$N$9=0),IF(MAX(Pre!J24:L24)=Pre!J24,"LF",IF(MAX(Pre!J24:L24)=Pre!K24,"CF",IF(MAX(Pre!J24:L24)=Pre!L24,"RF","LF"))),"") ->  | J24: =IFERROR(INDEX('ADP-Rank'!$X$2:$X$814,MATCH(D24,'ADP-Rank'!$A$2:$A$814,0)),TRUE) -> TRUE | K24: FALSE | L24: =IF(J24=FALSE,FALSE,IF(AND('Your Points Draft'!$R$5="Hide Drafted Players",K24=TRUE),FALSE,CHOOSE($I$1,TRUE,OR(RIGHT('Your Points Draft'!$R$4,LEN('Your Points Draft'!$R$4)-11)=H24,IF(RIGHT('Your Points Draft'!$R$4,LEN('Your Points Draft'!$R$4)-11)<>"C",NOT(ISERROR(SEARCH(RIGHT('Your Points Draft'!$R$4,LEN('Your Points Draft'!$R$4)-11),Pre!$CB24))),AND(NOT(ISERROR(SEARCH(RIGHT('Your Points Draft'!$R$4,LEN('Your Points Draft'!$R$4)-11),Pre!$CB24))),ISERROR(SEARCH("CF",Pre!$CB24)))),RIGHT('Your Points Draft'!$R$4,LEN('Your Points Draft'!$R$4)-11)=Pre!BP24),OR(H24="1B",H24="3B",ISNUMBER(SEARCH("1B",Pre!$CB24)),ISNUMBER(SEARCH("3B",Pre!$CB24))),OR(H24="2B",H24="SS",ISNUMBER(SEARCH("2B",Pre!$CB24)),ISNUMBER(SEARCH("SS",Pre!$CB24))),OR(H24="1B",H24="3B",H24="2B",H24="SS",ISNUMBER(SEARCH("1B",Pre!$CB24)),ISNUMBER(SEARCH("3B",Pre!$CB24)),ISNUMBER(SEARCH("2B",Pre!$CB24)),ISNUMBER(SEARCH("SS",Pre!$CB24))),OR(H24="SP",H24="RP",ISNUMBER(SEARCH("SP",Pre!$CB24)),ISNUMBER(SEARCH("RP",Pre!$CB24))),AND(H24<>"RP",H24<>"SP",NOT(ISNUMBER(SEARCH("RP",Pre!$CB24))),NOT(ISNUMBER(SEARCH("SP",Pre!$CB24)))),OR(H24="SP",H24="RP",ISNUMBER(SEARCH("SP",Pre!$CB24)),ISNUMBER(SEARCH("RP",Pre!$CB24)))))) -> TRUE | M24: =IF(J24=FALSE,10000,IF('ADP-Rank'!AB24="",9999,'ADP-Rank'!AB24)) -> 41.28 | N24: =IF(LEFT($D24,15)="Unlisted Player",-1,IF(Pre!C24<>"",Pre!C24,0)) -> 1104.949691 | O24: =IF('ADP-Rank'!Z24="",9999,'ADP-Rank'!Z24) -> 47 | P24: =IFERROR(IF($N24=0,-1000,IF(LEFT($D24,15)="Unlisted Player",-1001,IF(OR($H24="RP",$H24="SP"),VLOOKUP($D24,'Filter-P'!$A$3:$X$419,13,FALSE),$N24-(INDEX('Filter-H'!$AH$5:$AH$16,MATCH($H24,'Filter-H'!$W$5:$W$16,0),1))))),"") -> 173.8345548 | Q24: =IFERROR(IF(LEFT($D24,15)="Unlisted Player",-1001,IF(OR(H24="SP",H24="RP"),N24/INDEX('Filter-P'!$D$3:$D$520,MATCH($D24,'Filter-P'!$A$3:$A$520,0),1),-1000)),-1000) -> -1000 | R24: =IFERROR(IF(LEFT($D24,15)="Unlisted Player",-1001,IF(OR(H24="SP",H24="RP"),-1000,N24/INDEX('Filter-H'!$B$3:$B$500,MATCH(D24,'Filter-H'!$A$3:$A$500,0),1))),-1000) -> 1.705300858 | S24: =IF(H24="",#N/A,H24&"."&1+SUMPRODUCT(($H$2:$H$937=H24)*($M$2:$M$937<M24))+COUNTIFS($M$2:M24,M24,$H$2:H24,H24)-1) -> 1B.5 | U24: =IF(H24="",#N/A,1+SUMPRODUCT(($H$2:$H$937=H24)*($M$2:$M$937<M24))+COUNTIFS($M$2:M24,M24,$H$2:H24,H24)-1) -> 5 | V24: =IF(ISERROR(VLOOKUP($B23,Keepers!$C$2:$D$402,2,FALSE)),B23,"") -> Aaron Judge | W24: =IFERROR(INDEX($V$1:$V$936,SMALL(IF($V$1:$V$936<>"",ROW($V$1:$V$936)),ROW(V24))),"") -> Trevor Story | X24: =IF(LEFT($D24,15)="Unlisted Player",0,IF(Pre!C24<>"",Pre!C24,0)) -> 1104.949691 | Y24: =IFERROR(Pre!DL24,"") -> Bench
A25: Trevor Story | B25: =IFERROR(INDEX($A$1:$A$936,SMALL(IF($A$1:$A$936<>"",ROW($A$1:$A$936)),ROW(A25))),"") -> Starling Marte | C25: =IFERROR(IF(L25=FALSE,"",CHOOSE(MATCH(RIGHT('Your Points Draft'!$R$3,LEN('Your Points Draft'!$R$3)-8),$M$1:$R$1,0),1+SUMPRODUCT(($L$2:$L$937=TRUE)*($M$2:$M$937<M25))+COUNTIFS($L$2:L25,L25,$M$2:M25,M25)-1,1+SUMPRODUCT(($L$2:$L$937=TRUE)*($N$2:$N$937>N25))+COUNTIFS($L$2:L25,L25,$N$2:N25,N25)-1,1+SUMPRODUCT(($L$2:$L$937=TRUE)*($O$2:$O$937<O25))+COUNTIFS($L$2:L25,L25,$O$2:O25,O25)-1,1+SUMPRODUCT(($L$2:$L$937=TRUE)*($P$2:$P$937>P25))+COUNTIFS($L$2:L25,L25,$P$2:P25,P25)-1,1+SUMPRODUCT(($L$2:$L$937=TRUE)*($Q$2:$Q$937>Q25))+COUNTIFS($L$2:L25,L25,$Q$2:Q25,Q25)-1,1+SUMPRODUCT(($L$2:$L$937=TRUE)*($R$2:$R$937>R25))+COUNTIFS($L$2:L25,L25,$R$2:R25,R25)-1,)),"") -> 30 | D25: Jose Altuve | E25: =IFERROR(INDEX('Draft Log'!$D$3:$D$807,MATCH(D25,'Draft Log'!$C$3:$C$807,0)),"") ->  | F25: =IFERROR(INDEX('ADP-Rank'!$C$2:$C$814,MATCH(D25,'ADP-Rank'!$A$2:$A$814,0)),"") -> 2B | H25: 2B | I25: =IF(AND(F25="OF",'Guts-2'!$N$9=0),IF(MAX(Pre!J25:L25)=Pre!J25,"LF",IF(MAX(Pre!J25:L25)=Pre!K25,"CF",IF(MAX(Pre!J25:L25)=Pre!L25,"RF","LF"))),"") ->  | J25: =IFERROR(INDEX('ADP-Rank'!$X$2:$X$814,MATCH(D25,'ADP-Rank'!$A$2:$A$814,0)),TRUE) -> TRUE | K25: FALSE | L25: =IF(J25=FALSE,FALSE,IF(AND('Your Points Draft'!$R$5="Hide Drafted Players",K25=TRUE),FALSE,CHOOSE($I$1,TRUE,OR(RIGHT('Your Points Draft'!$R$4,LEN('Your Points Draft'!$R$4)-11)=H25,IF(RIGHT('Your Points Draft'!$R$4,LEN('Your Points Draft'!$R$4)-11)<>"C",NOT(ISERROR(SEARCH(RIGHT('Your Points Draft'!$R$4,LEN('Your Points Draft'!$R$4)-11),Pre!$CB25))),AND(NOT(ISERROR(SEARCH(RIGHT('Your Points Draft'!$R$4,LEN('Your Points Draft'!$R$4)-11),Pre!$CB25))),ISERROR(SEARCH("CF",Pre!$CB25)))),RIGHT('Your Points Draft'!$R$4,LEN('Your Points Draft'!$R$4)-11)=Pre!BP25),OR(H25="1B",H25="3B",ISNUMBER(SEARCH("1B",Pre!$CB25)),ISNUMBER(SEARCH("3B",Pre!$CB25))),OR(H25="2B",H25="SS",ISNUMBER(SEARCH("2B",Pre!$CB25)),ISNUMBER(SEARCH("SS",Pre!$CB25))),OR(H25="1B",H25="3B",H25="2B",H25="SS",ISNUMBER(SEARCH("1B",Pre!$CB25)),ISNUMBER(SEARCH("3B",Pre!$CB25)),ISNUMBER(SEARCH("2B",Pre!$CB25)),ISNUMBER(SEARCH("SS",Pre!$CB25))),OR(H25="SP",H25="RP",ISNUMBER(SEARCH("SP",Pre!$CB25)),ISNUMBER(SEARCH("RP",Pre!$CB25))),AND(H25<>"RP",H25<>"SP",NOT(ISNUMBER(SEARCH("RP",Pre!$CB25))),NOT(ISNUMBER(SEARCH("SP",Pre!$CB25)))),OR(H25="SP",H25="RP",ISNUMBER(SEARCH("SP",Pre!$CB25)),ISNUMBER(SEARCH("RP",Pre!$CB25)))))) -> TRUE | M25: =IF(J25=FALSE,10000,IF('ADP-Rank'!AB25="",9999,'ADP-Rank'!AB25)) -> 34.65 | N25: =IF(LEFT($D25,15)="Unlisted Player",-1,IF(Pre!C25<>"",Pre!C25,0)) -> 1061.682927 | O25: =IF('ADP-Rank'!Z25="",9999,'ADP-Rank'!Z25) -> 34 | P25: =IFERROR(IF($N25=0,-1000,IF(LEFT($D25,15)="Unlisted Player",-1001,IF(OR($H25="RP",$H25="SP"),VLOOKUP($D25,'Filter-P'!$A$3:$X$419,13,FALSE),$N25-(INDEX('Filter-H'!$AH$5:$AH$16,MATCH($H25,'Filter-H'!$W$5:$W$16,0),1))))),"") -> 224.7994803 | Q25: =IFERROR(IF(LEFT($D25,15)="Unlisted Player",-1001,IF(OR(H25="SP",H25="RP"),N25/INDEX('Filter-P'!$D$3:$D$520,MATCH($D25,'Filter-P'!$A$3:$A$520,0),1),-1000)),-1000) -> -1000 | R25: =IFERROR(IF(LEFT($D25,15)="Unlisted Player",-1001,IF(OR(H25="SP",H25="RP"),-1000,N25/INDEX('Filter-H'!$B$3:$B$500,MATCH(D25,'Filter-H'!$A$3:$A$500,0),1))),-1000) -> 1.668394637 | S25: =IF(H25="",#N/A,H25&"."&1+SUMPRODUCT(($H$2:$H$937=H25)*($M$2:$M$937<M25))+COUNTIFS($M$2:M25,M25,$H$2:H25,H25)-1) -> 2B.2 | U25: =IF(H25="",#N/A,1+SUMPRODUCT(($H$2:$H$937=H25)*($M$2:$M$937<M25))+COUNTIFS($M$2:M25,M25,$H$2:H25,H25)-1) -> 2 | V25: =IF(ISERROR(VLOOKUP($B24,Keepers!$C$2:$D$402,2,FALSE)),B24,"") -> Trevor Story | W25: =IFERROR(INDEX($V$1:$V$936,SMALL(IF($V$1:$V$936<>"",ROW($V$1:$V$936)),ROW(V25))),"") -> Starling Marte | X25: =IF(LEFT($D25,15)="Unlisted Player",0,IF(Pre!C25<>"",Pre!C25,0)) -> 1061.682927 | Y25: =IFERROR(Pre!DL25,"") -> Bench
A26: Starling Marte | B26: =IFERROR(INDEX($A$1:$A$936,SMALL(IF($A$1:$A$936<>"",ROW($A$1:$A$936)),ROW(A26))),"") -> Kyle Tucker | C26: =IFERROR(IF(L26=FALSE,"",CHOOSE(MATCH(RIGHT('Your Points Draft'!$R$3,LEN('Your Points Draft'!$R$3)-8),$M$1:$R$1,0),1+SUMPRODUCT(($L$2:$L$937=TRUE)*($M$2:$M$937<M26))+COUNTIFS($L$2:L26,L26,$M$2:M26,M26)-1,1+SUMPRODUCT(($L$2:$L$937=TRUE)*($N$2:$N$937>N26))+COUNTIFS($L$2:L26,L26,$N$2:N26,N26)-1,1+SUMPRODUCT(($L$2:$L$937=TRUE)*($O$2:$O$937<O26))+COUNTIFS($L$2:L26,L26,$O$2:O26,O26)-1,1+SUMPRODUCT(($L$2:$L$937=TRUE)*($P$2:$P$937>P26))+COUNTIFS($L$2:L26,L26,$P$2:P26,P26)-1,1+SUMPRODUCT(($L$2:$L$937=TRUE)*($Q$2:$Q$937>Q26))+COUNTIFS($L$2:L26,L26,$Q$2:Q26,Q26)-1,1+SUMPRODUCT(($L$2:$L$937=TRUE)*($R$2:$R$937>R26))+COUNTIFS($L$2:L26,L26,$R$2:R26,R26)-1,)),"") -> 338 | D26: Jose Alvarado | E26: =IFERROR(INDEX('Draft Log'!$D$3:$D$807,MATCH(D26,'Draft Log'!$C$3:$C$807,0)),"") ->  | F26: =IFERROR(INDEX('ADP-Rank'!$C$2:$C$814,MATCH(D26,'ADP-Rank'!$A$2:$A$814,0)),"") -> RP | H26: RP | I26: =IF(AND(F26="OF",'Guts-2'!$N$9=0),IF(MAX(Pre!J26:L26)=Pre!J26,"LF",IF(MAX(Pre!J26:L26)=Pre!K26,"CF",IF(MAX(Pre!J26:L26)=Pre!L26,"RF","LF"))),"") ->  | J26: =IFERROR(INDEX('ADP-Rank'!$X$2:$X$814,MATCH(D26,'ADP-Rank'!$A$2:$A$814,0)),TRUE) -> TRUE | K26: FALSE | L26: =IF(J26=FALSE,FALSE,IF(AND('Your Points Draft'!$R$5="Hide Drafted Players",K26=TRUE),FALSE,CHOOSE($I$1,TRUE,OR(RIGHT('Your Points Draft'!$R$4,LEN('Your Points Draft'!$R$4)-11)=H26,IF(RIGHT('Your Points Draft'!$R$4,LEN('Your Points Draft'!$R$4)-11)<>"C",NOT(ISERROR(SEARCH(RIGHT('Your Points Draft'!$R$4,LEN('Your Points Draft'!$R$4)-11),Pre!$CB26))),AND(NOT(ISERROR(SEARCH(RIGHT('Your Points Draft'!$R$4,LEN('Your Points Draft'!$R$4)-11),Pre!$CB26))),ISERROR(SEARCH("CF",Pre!$CB26)))),RIGHT('Your Points Draft'!$R$4,LEN('Your Points Draft'!$R$4)-11)=Pre!BP26),OR(H26="1B",H26="3B",ISNUMBER(SEARCH("1B",Pre!$CB26)),ISNUMBER(SEARCH("3B",Pre!$CB26))),OR(H26="2B",H26="SS",ISNUMBER(SEARCH("2B",Pre!$CB26)),ISNUMBER(SEARCH("SS",Pre!$CB26))),OR(H26="1B",H26="3B",H26="2B",H26="SS",ISNUMBER(SEARCH("1B",Pre!$CB26)),ISNUMBER(SEARCH("3B",Pre!$CB26)),ISNUMBER(SEARCH("2B",Pre!$CB26)),ISNUMBER(SEARCH("SS",Pre!$CB26))),OR(H26="SP",H26="RP",ISNUMBER(SEARCH("SP",Pre!$CB26)),ISNUMBER(SEARCH("RP",Pre!$CB26))),AND(H26<>"RP",H26<>"SP",NOT(ISNUMBER(SEARCH("RP",Pre!$CB26))),NOT(ISNUMBER(SEARCH("SP",Pre!$CB26)))),OR(H26="SP",H26="RP",ISNUMBER(SEARCH("SP",Pre!$CB26)),ISNUMBER(SEARCH("RP",Pre!$CB26)))))) -> TRUE | M26: =IF(J26=FALSE,10000,IF('ADP-Rank'!AB26="",9999,'ADP-Rank'!AB26)) -> 9999 | N26: =IF(LEFT($D26,15)="Unlisted Player",-1,IF(Pre!C26<>"",Pre!C26,0)) -> 214.2099443 | O26: =IF('ADP-Rank'!Z26="",9999,'ADP-Rank'!Z26) -> 9999 | P26: =IFERROR(IF($N26=0,-1000,IF(LEFT($D26,15)="Unlisted Player",-1001,IF(OR($H26="RP",$H26="SP"),VLOOKUP($D26,'Filter-P'!$A$3:$X$419,13,FALSE),$N26-(INDEX('Filter-H'!$AH$5:$AH$16,MATCH($H26,'Filter-H'!$W$5:$W$16,0),1))))),"") -> -216.230842 | Q26: =IFERROR(IF(LEFT($D26,15)="Unlisted Player",-1001,IF(OR(H26="SP",H26="RP"),N26/INDEX('Filter-P'!$D$3:$D$520,MATCH($D26,'Filter-P'!$A$3:$A$520,0),1),-1000)),-1000) -> 3.511638431 | R26: =IFERROR(IF(LEFT($D26,15)="Unlisted Player",-1001,IF(OR(H26="SP",H26="RP"),-1000,N26/INDEX('Filter-H'!$B$3:$B$500,MATCH(D26,'Filter-H'!$A$3:$A$500,0),1))),-1000) -> -1000 | S26: =IF(H26="",#N/A,H26&"."&1+SUMPRODUCT(($H$2:$H$937=H26)*($M$2:$M$937<M26))+COUNTIFS($M$2:M26,M26,$H$2:H26,H26)-1) -> RP.42 | U26: =IF(H26="",#N/A,1+SUMPRODUCT(($H$2:$H$937=H26)*($M$2:$M$937<M26))+COUNTIFS($M$2:M26,M26,$H$2:H26,H26)-1) -> 42 | V26: =IF(ISERROR(VLOOKUP($B25,Keepers!$C$2:$D$402,2,FALSE)),B25,"") -> Starling Marte | W26: =IFERROR(INDEX($V$1:$V$936,SMALL(IF($V$1:$V$936<>"",ROW($V$1:$V$936)),ROW(V26))),"") -> Kyle Tucker | X26: =IF(LEFT($D26,15)="Unlisted Player",0,IF(Pre!C26<>"",Pre!C26,0)) -> 214.2099443 | Y26: =IFERROR(Pre!DL26,"") -> Bench
A27: Kyle Tucker | B27: =IFERROR(INDEX($A$1:$A$936,SMALL(IF($A$1:$A$936<>"",ROW($A$1:$A$936)),ROW(A27))),"") -> Zack Wheeler | C27: =IFERROR(IF(L27=FALSE,"",CHOOSE(MATCH(RIGHT('Your Points Draft'!$R$3,LEN('Your Points Draft'!$R$3)-8),$M$1:$R$1,0),1+SUMPRODUCT(($L$2:$L$937=TRUE)*($M$2:$M$937<M27))+COUNTIFS($L$2:L27,L27,$M$2:M27,M27)-1,1+SUMPRODUCT(($L$2:$L$937=TRUE)*($N$2:$N$937>N27))+COUNTIFS($L$2:L27,L27,$N$2:N27,N27)-1,1+SUMPRODUCT(($L$2:$L$937=TRUE)*($O$2:$O$937<O27))+COUNTIFS($L$2:L27,L27,$O$2:O27,O27)-1,1+SUMPRODUCT(($L$2:$L$937=TRUE)*($P$2:$P$937>P27))+COUNTIFS($L$2:L27,L27,$P$2:P27,P27)-1,1+SUMPRODUCT(($L$2:$L$937=TRUE)*($Q$2:$Q$937>Q27))+COUNTIFS($L$2:L27,L27,$Q$2:Q27,Q27)-1,1+SUMPRODUCT(($L$2:$L$937=TRUE)*($R$2:$R$937>R27))+COUNTIFS($L$2:L27,L27,$R$2:R27,R27)-1,)),"") -> 51 | D27: Yordan Alvarez | E27: =IFERROR(INDEX('Draft Log'!$D$3:$D$807,MATCH(D27,'Draft Log'!$C$3:$C$807,0)),"") ->  | F27: =IFERROR(INDEX('ADP-Rank'!$C$2:$C$814,MATCH(D27,'ADP-Rank'!$A$2:$A$814,0)),"") -> DH | H27: DH | I27: =IF(AND(F27="OF",'Guts-2'!$N$9=0),IF(MAX(Pre!J27:L27)=Pre!J27,"LF",IF(MAX(Pre!J27:L27)=Pre!K27,"CF",IF(MAX(Pre!J27:L27)=Pre!L27,"RF","LF"))),"") ->  | J27: =IFERROR(INDEX('ADP-Rank'!$X$2:$X$814,MATCH(D27,'ADP-Rank'!$A$2:$A$814,0)),TRUE) -> TRUE | K27: FALSE | L27: =IF(J27=FALSE,FALSE,IF(AND('Your Points Draft'!$R$5="Hide Drafted Players",K27=TRUE),FALSE,CHOOSE($I$1,TRUE,OR(RIGHT('Your Points Draft'!$R$4,LEN('Your Points Draft'!$R$4)-11)=H27,IF(RIGHT('Your Points Draft'!$R$4,LEN('Your Points Draft'!$R$4)-11)<>"C",NOT(ISERROR(SEARCH(RIGHT('Your Points Draft'!$R$4,LEN('Your Points Draft'!$R$4)-11),Pre!$CB27))),AND(NOT(ISERROR(SEARCH(RIGHT('Your Points Draft'!$R$4,LEN('Your Points Draft'!$R$4)-11),Pre!$CB27))),ISERROR(SEARCH("CF",Pre!$CB27)))),RIGHT('Your Points Draft'!$R$4,LEN('Your Points Draft'!$R$4)-11)=Pre!BP27),OR(H27="1B",H27="3B",ISNUMBER(SEARCH("1B",Pre!$CB27)),ISNUMBER(SEARCH("3B",Pre!$CB27))),OR(H27="2B",H27="SS",ISNUMBER(SEARCH("2B",Pre!$CB27)),ISNUMBER(SEARCH("SS",Pre!$CB27))),OR(H27="1B",H27="3B",H27="2B",H27="SS",ISNUMBER(SEARCH("1B",Pre!$CB27)),ISNUMBER(SEARCH("3B",Pre!$CB27)),ISNUMBER(SEARCH("2B",Pre!$CB27)),ISNUMBER(SEARCH("SS",Pre!$CB27))),OR(H27="SP",H27="RP",ISNUMBER(SEARCH("SP",Pre!$CB27)),ISNUMBER(SEARCH("RP",Pre!$CB27))),AND(H27<>"RP",H27<>"SP",NOT(ISNUMBER(SEARCH("RP",Pre!$CB27))),NOT(ISNUMBER(SEARCH("SP",Pre!$CB27)))),OR(H27="SP",H27="RP",ISNUMBER(SEARCH("SP",Pre!$CB27)),ISNUMBER(SEARCH("RP",Pre!$CB27)))))) -> TRUE | M27: =IF(J27=FALSE,10000,IF('ADP-Rank'!AB27="",9999,'ADP-Rank'!AB27)) -> 53.65 | N27: =IF(LEFT($D27,15)="Unlisted Player",-1,IF(Pre!C27<>"",Pre!C27,0)) -> 1061.72753 | O27: =IF('ADP-Rank'!Z27="",9999,'ADP-Rank'!Z27) -> 37 | P27: =IFERROR(IF($N27=0,-1000,IF(LEFT($D27,15)="Unlisted Player",-1001,IF(OR($H27="RP",$H27="SP"),VLOOKUP($D27,'Filter-P'!$A$3:$X$419,13,FALSE),$N27-(INDEX('Filter-H'!$AH$5:$AH$16,MATCH($H27,'Filter-H'!$W$5:$W$16,0),1))))),"") -> 130.6123943 | Q27: =IFERROR(IF(LEFT($D27,15)="Unlisted Player",-1001,IF(OR(H27="SP",H27="RP"),N27/INDEX('Filter-P'!$D$3:$D$520,MATCH($D27,'Filter-P'!$A$3:$A$520,0),1),-1000)),-1000) -> -1000 | R27: =IFERROR(IF(LEFT($D27,15)="Unlisted Player",-1001,IF(OR(H27="SP",H27="RP"),-1000,N27/INDEX('Filter-H'!$B$3:$B$500,MATCH(D27,'Filter-H'!$A$3:$A$500,0),1))),-1000) -> 1.719118411 | S27: =IF(H27="",#N/A,H27&"."&1+SUMPRODUCT(($H$2:$H$937=H27)*($M$2:$M$937<M27))+COUNTIFS($M$2:M27,M27,$H$2:H27,H27)-1) -> DH.2 | U27: =IF(H27="",#N/A,1+SUMPRODUCT(($H$2:$H$937=H27)*($M$2:$M$937<M27))+COUNTIFS($M$2:M27,M27,$H$2:H27,H27)-1) -> 2 | V27: =IF(ISERROR(VLOOKUP($B26,Keepers!$C$2:$D$402,2,FALSE)),B26,"") -> Kyle Tucker | W27: =IFERROR(INDEX($V$1:$V$936,SMALL(IF($V$1:$V$936<>"",ROW($V$1:$V$936)),ROW(V27))),"") -> Zack Wheeler | X27: =IF(LEFT($D27,15)="Unlisted Player",0,IF(Pre!C27<>"",Pre!C27,0)) -> 1061.72753 | Y27: =IFERROR(Pre!DL27,"") -> Bench
A28: Zack Wheeler | B28: =IFERROR(INDEX($A$1:$A$936,SMALL(IF($A$1:$A$936<>"",ROW($A$1:$A$936)),ROW(A28))),"") -> Shane Bieber | C28: =IFERROR(IF(L28=FALSE,"",CHOOSE(MATCH(RIGHT('Your Points Draft'!$R$3,LEN('Your Points Draft'!$R$3)-8),$M$1:$R$1,0),1+SUMPRODUCT(($L$2:$L$937=TRUE)*($M$2:$M$937<M28))+COUNTIFS($L$2:L28,L28,$M$2:M28,M28)-1,1+SUMPRODUCT(($L$2:$L$937=TRUE)*($N$2:$N$937>N28))+COUNTIFS($L$2:L28,L28,$N$2:N28,N28)-1,1+SUMPRODUCT(($L$2:$L$937=TRUE)*($O$2:$O$937<O28))+COUNTIFS($L$2:L28,L28,$O$2:O28,O28)-1,1+SUMPRODUCT(($L$2:$L$937=TRUE)*($P$2:$P$937>P28))+COUNTIFS($L$2:L28,L28,$P$2:P28,P28)-1,1+SUMPRODUCT(($L$2:$L$937=TRUE)*($Q$2:$Q$937>Q28))+COUNTIFS($L$2:L28,L28,$Q$2:Q28,Q28)-1,1+SUMPRODUCT(($L$2:$L$937=TRUE)*($R$2:$R$937>R28))+COUNTIFS($L$2:L28,L28,$R$2:R28,R28)-1,)),"") -> 339 | D28: Adbert Alzolay | E28: =IFERROR(INDEX('Draft Log'!$D$3:$D$807,MATCH(D28,'Draft Log'!$C$3:$C$807,0)),"") ->  | F28: =IFERROR(INDEX('ADP-Rank'!$C$2:$C$814,MATCH(D28,'ADP-Rank'!$A$2:$A$814,0)),"") -> RP | H28: RP | I28: =IF(AND(F28="OF",'Guts-2'!$N$9=0),IF(MAX(Pre!J28:L28)=Pre!J28,"LF",IF(MAX(Pre!J28:L28)=Pre!K28,"CF",IF(MAX(Pre!J28:L28)=Pre!L28,"RF","LF"))),"") ->  | J28: =IFERROR(INDEX('ADP-Rank'!$X$2:$X$814,MATCH(D28,'ADP-Rank'!$A$2:$A$814,0)),TRUE) -> TRUE | K28: FALSE | L28: =IF(J28=FALSE,FALSE,IF(AND('Your Points Draft'!$R$5="Hide Drafted Players",K28=TRUE),FALSE,CHOOSE($I$1,TRUE,OR(RIGHT('Your Points Draft'!$R$4,LEN('Your Points Draft'!$R$4)-11)=H28,IF(RIGHT('Your Points Draft'!$R$4,LEN('Your Points Draft'!$R$4)-11)<>"C",NOT(ISERROR(SEARCH(RIGHT('Your Points Draft'!$R$4,LEN('Your Points Draft'!$R$4)-11),Pre!$CB28))),AND(NOT(ISERROR(SEARCH(RIGHT('Your Points Draft'!$R$4,LEN('Your Points Draft'!$R$4)-11),Pre!$CB28))),ISERROR(SEARCH("CF",Pre!$CB28)))),RIGHT('Your Points Draft'!$R$4,LEN('Your Points Draft'!$R$4)-11)=Pre!BP28),OR(H28="1B",H28="3B",ISNUMBER(SEARCH("1B",Pre!$CB28)),ISNUMBER(SEARCH("3B",Pre!$CB28))),OR(H28="2B",H28="SS",ISNUMBER(SEARCH("2B",Pre!$CB28)),ISNUMBER(SEARCH("SS",Pre!$CB28))),OR(H28="1B",H28="3B",H28="2B",H28="SS",ISNUMBER(SEARCH("1B",Pre!$CB28)),ISNUMBER(SEARCH("3B",Pre!$CB28)),ISNUMBER(SEARCH("2B",Pre!$CB28)),ISNUMBER(SEARCH("SS",Pre!$CB28))),OR(H28="SP",H28="RP",ISNUMBER(SEARCH("SP",Pre!$CB28)),ISNUMBER(SEARCH("RP",Pre!$CB28))),AND(H28<>"RP",H28<>"SP",NOT(ISNUMBER(SEARCH("RP",Pre!$CB28))),NOT(ISNUMBER(SEARCH("SP",Pre!$CB28)))),OR(H28="SP",H28="RP",ISNUMBER(SEARCH("SP",Pre!$CB28)),ISNUMBER(SEARCH("RP",Pre!$CB28)))))) -> TRUE | M28: =IF(J28=FALSE,10000,IF('ADP-Rank'!AB28="",9999,'ADP-Rank'!AB28)) -> 9999 | N28: =IF(LEFT($D28,15)="Unlisted Player",-1,IF(Pre!C28<>"",Pre!C28,0)) -> 356.7151238 | O28: =IF('ADP-Rank'!Z28="",9999,'ADP-Rank'!Z28) -> 9999 | P28: =IFERROR(IF($N28=0,-1000,IF(LEFT($D28,15)="Unlisted Player",-1001,IF(OR($H28="RP",$H28="SP"),VLOOKUP($D28,'Filter-P'!$A$3:$X$419,13,FALSE),$N28-(INDEX('Filter-H'!$AH$5:$AH$16,MATCH($H28,'Filter-H'!$W$5:$W$16,0),1))))),"") -> -73.72566253 | Q28: =IFERROR(IF(LEFT($D28,15)="Unlisted Player",-1001,IF(OR(H28="SP",H28="RP"),N28/INDEX('Filter-P'!$D$3:$D$520,MATCH($D28,'Filter-P'!$A$3:$A$520,0),1),-1000)),-1000) -> 3.794841742 | R28: =IFERROR(IF(LEFT($D28,15)="Unlisted Player",-1001,IF(OR(H28="SP",H28="RP"),-1000,N28/INDEX('Filter-H'!$B$3:$B$500,MATCH(D28,'Filter-H'!$A$3:$A$500,0),1))),-1000) -> -1000 | S28: =IF(H28="",#N/A,H28&"."&1+SUMPRODUCT(($H$2:$H$937=H28)*($M$2:$M$937<M28))+COUNTIFS($M$2:M28,M28,$H$2:H28,H28)-1) -> RP.43 | U28: =IF(H28="",#N/A,1+SUMPRODUCT(($H$2:$H$937=H28)*($M$2:$M$937<M28))+COUNTIFS($M$2:M28,M28,$H$2:H28,H28)-1) -> 43 | V28: =IF(ISERROR(VLOOKUP($B27,Keepers!$C$2:$D$402,2,FALSE)),B27,"") -> Zack Wheeler | W28: =IFERROR(INDEX($V$1:$V$936,SMALL(IF($V$1:$V$936<>"",ROW($V$1:$V$936)),ROW(V28))),"") -> Shane Bieber | X28: =IF(LEFT($D28,15)="Unlisted Player",0,IF(Pre!C28<>"",Pre!C28,0)) -> 356.7151238 | Y28: =IFERROR(Pre!DL28,"") -> Bench
A29: Shane Bieber | B29: =IFERROR(INDEX($A$1:$A$936,SMALL(IF($A$1:$A$936<>"",ROW($A$1:$A$936)),ROW(A29))),"") -> Nick Castellanos | C29: =IFERROR(IF(L29=FALSE,"",CHOOSE(MATCH(RIGHT('Your Points Draft'!$R$3,LEN('Your Points Draft'!$R$3)-8),$M$1:$R$1,0),1+SUMPRODUCT(($L$2:$L$937=TRUE)*($M$2:$M$937<M29))+COUNTIFS($L$2:L29,L29,$M$2:M29,M29)-1,1+SUMPRODUCT(($L$2:$L$937=TRUE)*($N$2:$N$937>N29))+COUNTIFS($L$2:L29,L29,$N$2:N29,N29)-1,1+SUMPRODUCT(($L$2:$L$937=TRUE)*($O$2:$O$937<O29))+COUNTIFS($L$2:L29,L29,$O$2:O29,O29)-1,1+SUMPRODUCT(($L$2:$L$937=TRUE)*($P$2:$P$937>P29))+COUNTIFS($L$2:L29,L29,$P$2:P29,P29)-1,1+SUMPRODUCT(($L$2:$L$937=TRUE)*($Q$2:$Q$937>Q29))+COUNTIFS($L$2:L29,L29,$Q$2:Q29,Q29)-1,1+SUMPRODUCT(($L$2:$L$937=TRUE)*($R$2:$R$937>R29))+COUNTIFS($L$2:L29,L29,$R$2:R29,R29)-1,)),"") -> 340 | D29: Brian Anderson | E29: =IFERROR(INDEX('Draft Log'!$D$3:$D$807,MATCH(D29,'Draft Log'!$C$3:$C$807,0)),"") ->  | F29: =IFERROR(INDEX('ADP-Rank'!$C$2:$C$814,MATCH(D29,'ADP-Rank'!$A$2:$A$814,0)),"") -> 3B | H29: 3B | I29: =IF(AND(F29="OF",'Guts-2'!$N$9=0),IF(MAX(Pre!J29:L29)=Pre!J29,"LF",IF(MAX(Pre!J29:L29)=Pre!K29,"CF",IF(MAX(Pre!J29:L29)=Pre!L29,"RF","LF"))),"") ->  | J29: =IFERROR(INDEX('ADP-Rank'!$X$2:$X$814,MATCH(D29,'ADP-Rank'!$A$2:$A$814,0)),TRUE) -> TRUE | K29: FALSE | L29: =IF(J29=FALSE,FALSE,IF(AND('Your Points Draft'!$R$5="Hide Drafted Players",K29=TRUE),FALSE,CHOOSE($I$1,TRUE,OR(RIGHT('Your Points Draft'!$R$4,LEN('Your Points Draft'!$R$4)-11)=H29,IF(RIGHT('Your Points Draft'!$R$4,LEN('Your Points Draft'!$R$4)-11)<>"C",NOT(ISERROR(SEARCH(RIGHT('Your Points Draft'!$R$4,LEN('Your Points Draft'!$R$4)-11),Pre!$CB29))),AND(NOT(ISERROR(SEARCH(RIGHT('Your Points Draft'!$R$4,LEN('Your Points Draft'!$R$4)-11),Pre!$CB29))),ISERROR(SEARCH("CF",Pre!$CB29)))),RIGHT('Your Points Draft'!$R$4,LEN('Your Points Draft'!$R$4)-11)=Pre!BP29),OR(H29="1B",H29="3B",ISNUMBER(SEARCH("1B",Pre!$CB29)),ISNUMBER(SEARCH("3B",Pre!$CB29))),OR(H29="2B",H29="SS",ISNUMBER(SEARCH("2B",Pre!$CB29)),ISNUMBER(SEARCH("SS",Pre!$CB29))),OR(H29="1B",H29="3B",H29="2B",H29="SS",ISNUMBER(SEARCH("1B",Pre!$CB29)),ISNUMBER(SEARCH("3B",Pre!$CB29)),ISNUMBER(SEARCH("2B",Pre!$CB29)),ISNUMBER(SEARCH("SS",Pre!$CB29))),OR(H29="SP",H29="RP",ISNUMBER(SEARCH("SP",Pre!$CB29)),ISNUMBER(SEARCH("RP",Pre!$CB29))),AND(H29<>"RP",H29<>"SP",NOT(ISNUMBER(SEARCH("RP",Pre!$CB29))),NOT(ISNUMBER(SEARCH("SP",Pre!$CB29)))),OR(H29="SP",H29="RP",ISNUMBER(SEARCH("SP",Pre!$CB29)),ISNUMBER(SEARCH("RP",Pre!$CB29)))))) -> TRUE | M29: =IF(J29=FALSE,10000,IF('ADP-Rank'!AB29="",9999,'ADP-Rank'!AB29)) -> 9999 | N29: =IF(LEFT($D29,15)="Unlisted Player",-1,IF(Pre!C29<>"",Pre!C29,0)) -> 710.3346117 | O29: =IF('ADP-Rank'!Z29="",9999,'ADP-Rank'!Z29) -> 9999 | P29: =IFERROR(IF($N29=0,-1000,IF(LEFT($D29,15)="Unlisted Player",-1001,IF(OR($H29="RP",$H29="SP"),VLOOKUP($D29,'Filter-P'!$A$3:$X$419,13,FALSE),$N29-(INDEX('Filter-H'!$AH$5:$AH$16,MATCH($H29,'Filter-H'!$W$5:$W$16,0),1))))),"") -> -164.0154185 | Q29: =IFERROR(IF(LEFT($D29,15)="Unlisted Player",-1001,IF(OR(H29="SP",H29="RP"),N29/INDEX('Filter-P'!$D$3:$D$520,MATCH($D29,'Filter-P'!$A$3:$A$520,0),1),-1000)),-1000) -> -1000 | R29: =IFERROR(IF(LEFT($D29,15)="Unlisted Player",-1001,IF(OR(H29="SP",H29="RP"),-1000,N29/INDEX('Filter-H'!$B$3:$B$500,MATCH(D29,'Filter-H'!$A$3:$A$500,0),1))),-1000) -> 1.466572957 | S29: =IF(H29="",#N/A,H29&"."&1+SUMPRODUCT(($H$2:$H$937=H29)*($M$2:$M$937<M29))+COUNTIFS($M$2:M29,M29,$H$2:H29,H29)-1) -> 3B.19 | U29: =IF(H29="",#N/A,1+SUMPRODUCT(($H$2:$H$937=H29)*($M$2:$M$937<M29))+COUNTIFS($M$2:M29,M29,$H$2:H29,H29)-1) -> 19 | V29: =IF(ISERROR(VLOOKUP($B28,Keepers!$C$2:$D$402,2,FALSE)),B28,"") -> Shane Bieber | W29: =IFERROR(INDEX($V$1:$V$936,SMALL(IF($V$1:$V$936<>"",ROW($V$1:$V$936)),ROW(V29))),"") -> Nick Castellanos | X29: =IF(LEFT($D29,15)="Unlisted Player",0,IF(Pre!C29<>"",Pre!C29,0)) -> 710.3346117 | Y29: =IFERROR(Pre!DL29,"") -> Bench
A30: Nick Castellanos | B30: =IFERROR(INDEX($A$1:$A$936,SMALL(IF($A$1:$A$936<>"",ROW($A$1:$A$936)),ROW(A30))),"") -> Jose Altuve | C30: =IFERROR(IF(L30=FALSE,"",CHOOSE(MATCH(RIGHT('Your Points Draft'!$R$3,LEN('Your Points Draft'!$R$3)-8),$M$1:$R$1,0),1+SUMPRODUCT(($L$2:$L$937=TRUE)*($M$2:$M$937<M30))+COUNTIFS($L$2:L30,L30,$M$2:M30,M30)-1,1+SUMPRODUCT(($L$2:$L$937=TRUE)*($N$2:$N$937>N30))+COUNTIFS($L$2:L30,L30,$N$2:N30,N30)-1,1+SUMPRODUCT(($L$2:$L$937=TRUE)*($O$2:$O$937<O30))+COUNTIFS($L$2:L30,L30,$O$2:O30,O30)-1,1+SUMPRODUCT(($L$2:$L$937=TRUE)*($P$2:$P$937>P30))+COUNTIFS($L$2:L30,L30,$P$2:P30,P30)-1,1+SUMPRODUCT(($L$2:$L$937=TRUE)*($Q$2:$Q$937>Q30))+COUNTIFS($L$2:L30,L30,$Q$2:Q30,Q30)-1,1+SUMPRODUCT(($L$2:$L$937=TRUE)*($R$2:$R$937>R30))+COUNTIFS($L$2:L30,L30,$R$2:R30,R30)-1,)),"") -> 128 | D30: Ian Anderson | E30: =IFERROR(INDEX('Draft Log'!$D$3:$D$807,MATCH(D30,'Draft Log'!$C$3:$C$807,0)),"") ->  | F30: =IFERROR(INDEX('ADP-Rank'!$C$2:$C$814,MATCH(D30,'ADP-Rank'!$A$2:$A$814,0)),"") -> SP | H30: SP | I30: =IF(AND(F30="OF",'Guts-2'!$N$9=0),IF(MAX(Pre!J30:L30)=Pre!J30,"LF",IF(MAX(Pre!J30:L30)=Pre!K30,"CF",IF(MAX(Pre!J30:L30)=Pre!L30,"RF","LF"))),"") ->  | J30: =IFERROR(INDEX('ADP-Rank'!$X$2:$X$814,MATCH(D30,'ADP-Rank'!$A$2:$A$814,0)),TRUE) -> TRUE | K30: FALSE | L30: =IF(J30=FALSE,FALSE,IF(AND('Your Points Draft'!$R$5="Hide Drafted Players",K30=TRUE),FALSE,CHOOSE($I$1,TRUE,OR(RIGHT('Your Points Draft'!$R$4,LEN('Your Points Draft'!$R$4)-11)=H30,IF(RIGHT('Your Points Draft'!$R$4,LEN('Your Points Draft'!$R$4)-11)<>"C",NOT(ISERROR(SEARCH(RIGHT('Your Points Draft'!$R$4,LEN('Your Points Draft'!$R$4)-11),Pre!$CB30))),AND(NOT(ISERROR(SEARCH(RIGHT('Your Points Draft'!$R$4,LEN('Your Points Draft'!$R$4)-11),Pre!$CB30))),ISERROR(SEARCH("CF",Pre!$CB30)))),RIGHT('Your Points Draft'!$R$4,LEN('Your Points Draft'!$R$4)-11)=Pre!BP30),OR(H30="1B",H30="3B",ISNUMBER(SEARCH("1B",Pre!$CB30)),ISNUMBER(SEARCH("3B",Pre!$CB30))),OR(H30="2B",H30="SS",ISNUMBER(SEARCH("2B",Pre!$CB30)),ISNUMBER(SEARCH("SS",Pre!$CB30))),OR(H30="1B",H30="3B",H30="2B",H30="SS",ISNUMBER(SEARCH("1B",Pre!$CB30)),ISNUMBER(SEARCH("3B",Pre!$CB30)),ISNUMBER(SEARCH("2B",Pre!$CB30)),ISNUMBER(SEARCH("SS",Pre!$CB30))),OR(H30="SP",H30="RP",ISNUMBER(SEARCH("SP",Pre!$CB30)),ISNUMBER(SEARCH("RP",Pre!$CB30))),AND(H30<>"RP",H30<>"SP",NOT(ISNUMBER(SEARCH("RP",Pre!$CB30))),NOT(ISNUMBER(SEARCH("SP",Pre!$CB30)))),OR(H30="SP",H30="RP",ISNUMBER(SEARCH("SP",Pre!$CB30)),ISNUMBER(SEARCH("RP",Pre!$CB30)))))) -> TRUE | M30: =IF(J30=FALSE,10000,IF('ADP-Rank'!AB30="",9999,'ADP-Rank'!AB30)) -> 129.85 | N30: =IF(LEFT($D30,15)="Unlisted Player",-1,IF(Pre!C30<>"",Pre!C30,0)) -> 546.8845275 | O30: =IF('ADP-Rank'!Z30="",9999,'ADP-Rank'!Z30) -> 135 | P30: =IFERROR(IF($N30=0,-1000,IF(LEFT($D30,15)="Unlisted Player",-1001,IF(OR($H30="RP",$H30="SP"),VLOOKUP($D30,'Filter-P'!$A$3:$X$419,13,FALSE),$N30-(INDEX('Filter-H'!$AH$5:$AH$16,MATCH($H30,'Filter-H'!$W$5:$W$16,0),1))))),"") -> 28.91390039 | Q30: =IFERROR(IF(LEFT($D30,15)="Unlisted Player",-1001,IF(OR(H30="SP",H30="RP"),N30/INDEX('Filter-P'!$D$3:$D$520,MATCH($D30,'Filter-P'!$A$3:$A$520,0),1),-1000)),-1000) -> 3.720302908 | R30: =IFERROR(IF(LEFT($D30,15)="Unlisted Player",-1001,IF(OR(H30="SP",H30="RP"),-1000,N30/INDEX('Filter-H'!$B$3:$B$500,MATCH(D30,'Filter-H'!$A$3:$A$500,0),1))),-1000) -> -1000 | S30: =IF(H30="",#N/A,H30&"."&1+SUMPRODUCT(($H$2:$H$937=H30)*($M$2:$M$937<M30))+COUNTIFS($M$2:M30,M30,$H$2:H30,H30)-1) -> SP.37 | U30: =IF(H30="",#N/A,1+SUMPRODUCT(($H$2:$H$937=H30)*($M$2:$M$937<M30))+COUNTIFS($M$2:M30,M30,$H$2:H30,H30)-1) -> 37 | V30: =IF(ISERROR(VLOOKUP($B29,Keepers!$C$2:$D$402,2,FALSE)),B29,"") -> Nick Castellanos | W30: =IFERROR(INDEX($V$1:$V$936,SMALL(IF($V$1:$V$936<>"",ROW($V$1:$V$936)),ROW(V30))),"") -> Jose Altuve | X30: =IF(LEFT($D30,15)="Unlisted Player",0,IF(Pre!C30<>"",Pre!C30,0)) -> 546.8845275 | Y30: =IFERROR(Pre!DL30,"") -> Bench
A31: Jose Altuve | B31: =IFERROR(INDEX($A$1:$A$936,SMALL(IF($A$1:$A$936<>"",ROW($A$1:$A$936)),ROW(A31))),"") -> Francisco Lindor | C31: =IFERROR(IF(L31=FALSE,"",CHOOSE(MATCH(RIGHT('Your Points Draft'!$R$3,LEN('Your Points Draft'!$R$3)-8),$M$1:$R$1,0),1+SUMPRODUCT(($L$2:$L$937=TRUE)*($M$2:$M$937<M31))+COUNTIFS($L$2:L31,L31,$M$2:M31,M31)-1,1+SUMPRODUCT(($L$2:$L$937=TRUE)*($N$2:$N$937>N31))+COUNTIFS($L$2:L31,L31,$N$2:N31,N31)-1,1+SUMPRODUCT(($L$2:$L$937=TRUE)*($O$2:$O$937<O31))+COUNTIFS($L$2:L31,L31,$O$2:O31,O31)-1,1+SUMPRODUCT(($L$2:$L$937=TRUE)*($P$2:$P$937>P31))+COUNTIFS($L$2:L31,L31,$P$2:P31,P31)-1,1+SUMPRODUCT(($L$2:$L$937=TRUE)*($Q$2:$Q$937>Q31))+COUNTIFS($L$2:L31,L31,$Q$2:Q31,Q31)-1,1+SUMPRODUCT(($L$2:$L$937=TRUE)*($R$2:$R$937>R31))+COUNTIFS($L$2:L31,L31,$R$2:R31,R31)-1,)),"") -> 341 | D31: Nick Anderson | E31: =IFERROR(INDEX('Draft Log'!$D$3:$D$807,MATCH(D31,'Draft Log'!$C$3:$C$807,0)),"") ->  | F31: =IFERROR(INDEX('ADP-Rank'!$C$2:$C$814,MATCH(D31,'ADP-Rank'!$A$2:$A$814,0)),"") -> RP | H31: RP | I31: =IF(AND(F31="OF",'Guts-2'!$N$9=0),IF(MAX(Pre!J31:L31)=Pre!J31,"LF",IF(MAX(Pre!J31:L31)=Pre!K31,"CF",IF(MAX(Pre!J31:L31)=Pre!L31,"RF","LF"))),"") ->  | J31: =IFERROR(INDEX('ADP-Rank'!$X$2:$X$814,MATCH(D31,'ADP-Rank'!$A$2:$A$814,0)),TRUE) -> TRUE | K31: FALSE | L31: =IF(J31=FALSE,FALSE,IF(AND('Your Points Draft'!$R$5="Hide Drafted Players",K31=TRUE),FALSE,CHOOSE($I$1,TRUE,OR(RIGHT('Your Points Draft'!$R$4,LEN('Your Points Draft'!$R$4)-11)=H31,IF(RIGHT('Your Points Draft'!$R$4,LEN('Your Points Draft'!$R$4)-11)<>"C",NOT(ISERROR(SEARCH(RIGHT('Your Points Draft'!$R$4,LEN('Your Points Draft'!$R$4)-11),Pre!$CB31))),AND(NOT(ISERROR(SEARCH(RIGHT('Your Points Draft'!$R$4,LEN('Your Points Draft'!$R$4)-11),Pre!$CB31))),ISERROR(SEARCH("CF",Pre!$CB31)))),RIGHT('Your Points Draft'!$R$4,LEN('Your Points Draft'!$R$4)-11)=Pre!BP31),OR(H31="1B",H31="3B",ISNUMBER(SEARCH("1B",Pre!$CB31)),ISNUMBER(SEARCH("3B",Pre!$CB31))),OR(H31="2B",H31="SS",ISNUMBER(SEARCH("2B",Pre!$CB31)),ISNUMBER(SEARCH("SS",Pre!$CB31))),OR(H31="1B",H31="3B",H31="2B",H31="SS",ISNUMBER(SEARCH("1B",Pre!$CB31)),ISNUMBER(SEARCH("3B",Pre!$CB31)),ISNUMBER(SEARCH("2B",Pre!$CB31)),ISNUMBER(SEARCH("SS",Pre!$CB31))),OR(H31="SP",H31="RP",ISNUMBER(SEARCH("SP",Pre!$CB31)),ISNUMBER(SEARCH("RP",Pre!$CB31))),AND(H31<>"RP",H31<>"SP",NOT(ISNUMBER(SEARCH("RP",Pre!$CB31))),NOT(ISNUMBER(SEARCH("SP",Pre!$CB31)))),OR(H31="SP",H31="RP",ISNUMBER(SEARCH("SP",Pre!$CB31)),ISNUMBER(SEARCH("RP",Pre!$CB31)))))) -> TRUE | M31: =IF(J31=FALSE,10000,IF('ADP-Rank'!AB31="",9999,'ADP-Rank'!AB31)) -> 9999 | N31: =IF(LEFT($D31,15)="Unlisted Player",-1,IF(Pre!C31<>"",Pre!C31,0)) -> 0 | O31: =IF('ADP-Rank'!Z31="",9999,'ADP-Rank'!Z31) -> 9999 | P31: =IFERROR(IF($N31=0,-1000,IF(LEFT($D31,15)="Unlisted Player",-1001,IF(OR($H31="RP",$H31="SP"),VLOOKUP($D31,'Filter-P'!$A$3:$X$419,13,FALSE),$N31-(INDEX('Filter-H'!$AH$5:$AH$16,MATCH($H31,'Filter-H'!$W$5:$W$16,0),1))))),"") -> -1000 | Q31: =IFERROR(IF(LEFT($D31,15)="Unlisted Player",-1001,IF(OR(H31="SP",H31="RP"),N31/INDEX('Filter-P'!$D$3:$D$520,MATCH($D31,'Filter-P'!$A$3:$A$520,0),1),-1000)),-1000) -> -1000 | R31: =IFERROR(IF(LEFT($D31,15)="Unlisted Player",-1001,IF(OR(H31="SP",H31="RP"),-1000,N31/INDEX('Filter-H'!$B$3:$B$500,MATCH(D31,'Filter-H'!$A$3:$A$500,0),1))),-1000) -> -1000 | S31: =IF(H31="",#N/A,H31&"."&1+SUMPRODUCT(($H$2:$H$937=H31)*($M$2:$M$937<M31))+COUNTIFS($M$2:M31,M31,$H$2:H31,H31)-1) -> RP.44 | U31: =IF(H31="",#N/A,1+SUMPRODUCT(($H$2:$H$937=H31)*($M$2:$M$937<M31))+COUNTIFS($M$2:M31,M31,$H$2:H31,H31)-1) -> 44 | V31: =IF(ISERROR(VLOOKUP($B30,Keepers!$C$2:$D$402,2,FALSE)),B30,"") -> Jose Altuve | W31: =IFERROR(INDEX($V$1:$V$936,SMALL(IF($V$1:$V$936<>"",ROW($V$1:$V$936)),ROW(V31))),"") -> Francisco Lindor | X31: =IF(LEFT($D31,15)="Unlisted Player",0,IF(Pre!C31<>"",Pre!C31,0)) -> 0 | Y31: =IFERROR(Pre!DL31,"") -> Bench
A32: Francisco Lindor | B32: =IFERROR(INDEX($A$1:$A$936,SMALL(IF($A$1:$A$936<>"",ROW($A$1:$A$936)),ROW(A32))),"") -> Nolan Arenado | C32: =IFERROR(IF(L32=FALSE,"",CHOOSE(MATCH(RIGHT('Your Points Draft'!$R$3,LEN('Your Points Draft'!$R$3)-8),$M$1:$R$1,0),1+SUMPRODUCT(($L$2:$L$937=TRUE)*($M$2:$M$937<M32))+COUNTIFS($L$2:L32,L32,$M$2:M32,M32)-1,1+SUMPRODUCT(($L$2:$L$937=TRUE)*($N$2:$N$937>N32))+COUNTIFS($L$2:L32,L32,$N$2:N32,N32)-1,1+SUMPRODUCT(($L$2:$L$937=TRUE)*($O$2:$O$937<O32))+COUNTIFS($L$2:L32,L32,$O$2:O32,O32)-1,1+SUMPRODUCT(($L$2:$L$937=TRUE)*($P$2:$P$937>P32))+COUNTIFS($L$2:L32,L32,$P$2:P32,P32)-1,1+SUMPRODUCT(($L$2:$L$937=TRUE)*($Q$2:$Q$937>Q32))+COUNTIFS($L$2:L32,L32,$Q$2:Q32,Q32)-1,1+SUMPRODUCT(($L$2:$L$937=TRUE)*($R$2:$R$937>R32))+COUNTIFS($L$2:L32,L32,$R$2:R32,R32)-1,)),"") -> 66 | D32: Tim Anderson | E32: =IFERROR(INDEX('Draft Log'!$D$3:$D$807,MATCH(D32,'Draft Log'!$C$3:$C$807,0)),"") ->  | F32: =IFERROR(INDEX('ADP-Rank'!$C$2:$C$814,MATCH(D32,'ADP-Rank'!$A$2:$A$814,0)),"") -> SS | H32: SS | I32: =IF(AND(F32="OF",'Guts-2'!$N$9=0),IF(MAX(Pre!J32:L32)=Pre!J32,"LF",IF(MAX(Pre!J32:L32)=Pre!K32,"CF",IF(MAX(Pre!J32:L32)=Pre!L32,"RF","LF"))),"") ->  | J32: =IFERROR(INDEX('ADP-Rank'!$X$2:$X$814,MATCH(D32,'ADP-Rank'!$A$2:$A$814,0)),TRUE) -> TRUE | K32: FALSE | L32: =IF(J32=FALSE,FALSE,IF(AND('Your Points Draft'!$R$5="Hide Drafted Players",K32=TRUE),FALSE,CHOOSE($I$1,TRUE,OR(RIGHT('Your Points Draft'!$R$4,LEN('Your Points Draft'!$R$4)-11)=H32,IF(RIGHT('Your Points Draft'!$R$4,LEN('Your Points Draft'!$R$4)-11)<>"C",NOT(ISERROR(SEARCH(RIGHT('Your Points Draft'!$R$4,LEN('Your Points Draft'!$R$4)-11),Pre!$CB32))),AND(NOT(ISERROR(SEARCH(RIGHT('Your Points Draft'!$R$4,LEN('Your Points Draft'!$R$4)-11),Pre!$CB32))),ISERROR(SEARCH("CF",Pre!$CB32)))),RIGHT('Your Points Draft'!$R$4,LEN('Your Points Draft'!$R$4)-11)=Pre!BP32),OR(H32="1B",H32="3B",ISNUMBER(SEARCH("1B",Pre!$CB32)),ISNUMBER(SEARCH("3B",Pre!$CB32))),OR(H32="2B",H32="SS",ISNUMBER(SEARCH("2B",Pre!$CB32)),ISNUMBER(SEARCH("SS",Pre!$CB32))),OR(H32="1B",H32="3B",H32="2B",H32="SS",ISNUMBER(SEARCH("1B",Pre!$CB32)),ISNUMBER(SEARCH("3B",Pre!$CB32)),ISNUMBER(SEARCH("2B",Pre!$CB32)),ISNUMBER(SEARCH("SS",Pre!$CB32))),OR(H32="SP",H32="RP",ISNUMBER(SEARCH("SP",Pre!$CB32)),ISNUMBER(SEARCH("RP",Pre!$CB32))),AND(H32<>"RP",H32<>"SP",NOT(ISNUMBER(SEARCH("RP",Pre!$CB32))),NOT(ISNUMBER(SEARCH("SP",Pre!$CB32)))),OR(H32="SP",H32="RP",ISNUMBER(SEARCH("SP",Pre!$CB32)),ISNUMBER(SEARCH("RP",Pre!$CB32)))))) -> TRUE | M32: =IF(J32=FALSE,10000,IF('ADP-Rank'!AB32="",9999,'ADP-Rank'!AB32)) -> 71.65 | N32: =IF(LEFT($D32,15)="Unlisted Player",-1,IF(Pre!C32<>"",Pre!C32,0)) -> 991.1566931 | O32: =IF('ADP-Rank'!Z32="",9999,'ADP-Rank'!Z32) -> 122 | P32: =IFERROR(IF($N32=0,-1000,IF(LEFT($D32,15)="Unlisted Player",-1001,IF(OR($H32="RP",$H32="SP"),VLOOKUP($D32,'Filter-P'!$A$3:$X$419,13,FALSE),$N32-(INDEX('Filter-H'!$AH$5:$AH$16,MATCH($H32,'Filter-H'!$W$5:$W$16,0),1))))),"") -> 98.87147351 | Q32: =IFERROR(IF(LEFT($D32,15)="Unlisted Player",-1001,IF(OR(H32="SP",H32="RP"),N32/INDEX('Filter-P'!$D$3:$D$520,MATCH($D32,'Filter-P'!$A$3:$A$520,0),1),-1000)),-1000) -> -1000 | R32: =IFERROR(IF(LEFT($D32,15)="Unlisted Player",-1001,IF(OR(H32="SP",H32="RP"),-1000,N32/INDEX('Filter-H'!$B$3:$B$500,MATCH(D32,'Filter-H'!$A$3:$A$500,0),1))),-1000) -> 1.570646848 | S32: =IF(H32="",#N/A,H32&"."&1+SUMPRODUCT(($H$2:$H$937=H32)*($M$2:$M$937<M32))+COUNTIFS($M$2:M32,M32,$H$2:H32,H32)-1) -> SS.10 | U32: =IF(H32="",#N/A,1+SUMPRODUCT(($H$2:$H$937=H32)*($M$2:$M$937<M32))+COUNTIFS($M$2:M32,M32,$H$2:H32,H32)-1) -> 10 | V32: =IF(ISERROR(VLOOKUP($B31,Keepers!$C$2:$D$402,2,FALSE)),B31,"") -> Francisco Lindor | W32: =IFERROR(INDEX($V$1:$V$936,SMALL(IF($V$1:$V$936<>"",ROW($V$1:$V$936)),ROW(V32))),"") -> Nolan Arenado | X32: =IF(LEFT($D32,15)="Unlisted Player",0,IF(Pre!C32<>"",Pre!C32,0)) -> 991.1566931 | Y32: =IFERROR(Pre!DL32,"") -> Bench
A33: Nolan Arenado | B33: =IFERROR(INDEX($A$1:$A$936,SMALL(IF($A$1:$A$936<>"",ROW($A$1:$A$936)),ROW(A33))),"") -> Lucas Giolito | C33: =IFERROR(IF(L33=FALSE,"",CHOOSE(MATCH(RIGHT('Your Points Draft'!$R$3,LEN('Your Points Draft'!$R$3)-8),$M$1:$R$1,0),1+SUMPRODUCT(($L$2:$L$937=TRUE)*($M$2:$M$937<M33))+COUNTIFS($L$2:L33,L33,$M$2:M33,M33)-1,1+SUMPRODUCT(($L$2:$L$937=TRUE)*($N$2:$N$937>N33))+COUNTIFS($L$2:L33,L33,$N$2:N33,N33)-1,1+SUMPRODUCT(($L$2:$L$937=TRUE)*($O$2:$O$937<O33))+COUNTIFS($L$2:L33,L33,$O$2:O33,O33)-1,1+SUMPRODUCT(($L$2:$L$937=TRUE)*($P$2:$P$937>P33))+COUNTIFS($L$2:L33,L33,$P$2:P33,P33)-1,1+SUMPRODUCT(($L$2:$L$937=TRUE)*($Q$2:$Q$937>Q33))+COUNTIFS($L$2:L33,L33,$Q$2:Q33,Q33)-1,1+SUMPRODUCT(($L$2:$L$937=TRUE)*($R$2:$R$937>R33))+COUNTIFS($L$2:L33,L33,$R$2:R33,R33)-1,)),"") -> 286 | D33: Tyler Anderson | E33: =IFERROR(INDEX('Draft Log'!$D$3:$D$807,MATCH(D33,'Draft Log'!$C$3:$C$807,0)),"") ->  | F33: =IFERROR(INDEX('ADP-Rank'!$C$2:$C$814,MATCH(D33,'ADP-Rank'!$A$2:$A$814,0)),"") -> RP | H33: RP | I33: =IF(AND(F33="OF",'Guts-2'!$N$9=0),IF(MAX(Pre!J33:L33)=Pre!J33,"LF",IF(MAX(Pre!J33:L33)=Pre!K33,"CF",IF(MAX(Pre!J33:L33)=Pre!L33,"RF","LF"))),"") ->  | J33: =IFERROR(INDEX('ADP-Rank'!$X$2:$X$814,MATCH(D33,'ADP-Rank'!$A$2:$A$814,0)),TRUE) -> TRUE | K33: FALSE | L33: =IF(J33=FALSE,FALSE,IF(AND('Your Points Draft'!$R$5="Hide Drafted Players",K33=TRUE),FALSE,CHOOSE($I$1,TRUE,OR(RIGHT('Your Points Draft'!$R$4,LEN('Your Points Draft'!$R$4)-11)=H33,IF(RIGHT('Your Points Draft'!$R$4,LEN('Your Points Draft'!$R$4)-11)<>"C",NOT(ISERROR(SEARCH(RIGHT('Your Points Draft'!$R$4,LEN('Your Points Draft'!$R$4)-11),Pre!$CB33))),AND(NOT(ISERROR(SEARCH(RIGHT('Your Points Draft'!$R$4,LEN('Your Points Draft'!$R$4)-11),Pre!$CB33))),ISERROR(SEARCH("CF",Pre!$CB33)))),RIGHT('Your Points Draft'!$R$4,LEN('Your Points Draft'!$R$4)-11)=Pre!BP33),OR(H33="1B",H33="3B",ISNUMBER(SEARCH("1B",Pre!$CB33)),ISNUMBER(SEARCH("3B",Pre!$CB33))),OR(H33="2B",H33="SS",ISNUMBER(SEARCH("2B",Pre!$CB33)),ISNUMBER(SEARCH("SS",Pre!$CB33))),OR(H33="1B",H33="3B",H33="2B",H33="SS",ISNUMBER(SEARCH("1B",Pre!$CB33)),ISNUMBER(SEARCH("3B",Pre!$CB33)),ISNUMBER(SEARCH("2B",Pre!$CB33)),ISNUMBER(SEARCH("SS",Pre!$CB33))),OR(H33="SP",H33="RP",ISNUMBER(SEARCH("SP",Pre!$CB33)),ISNUMBER(SEARCH("RP",Pre!$CB33))),AND(H33<>"RP",H33<>"SP",NOT(ISNUMBER(SEARCH("RP",Pre!$CB33))),NOT(ISNUMBER(SEARCH("SP",Pre!$CB33)))),OR(H33="SP",H33="RP",ISNUMBER(SEARCH("SP",Pre!$CB33)),ISNUMBER(SEARCH("RP",Pre!$CB33)))))) -> TRUE | M33: =IF(J33=FALSE,10000,IF('ADP-Rank'!AB33="",9999,'ADP-Rank'!AB33)) -> 230.34 | N33: =IF(LEFT($D33,15)="Unlisted Player",-1,IF(Pre!C33<>"",Pre!C33,0)) -> 381.6001101 | O33: =IF('ADP-Rank'!Z33="",9999,'ADP-Rank'!Z33) -> 9999 | P33: =IFERROR(IF($N33=0,-1000,IF(LEFT($D33,15)="Unlisted Player",-1001,IF(OR($H33="RP",$H33="SP"),VLOOKUP($D33,'Filter-P'!$A$3:$X$419,13,FALSE),$N33-(INDEX('Filter-H'!$AH$5:$AH$16,MATCH($H33,'Filter-H'!$W$5:$W$16,0),1))))),"") -> -48.84067618 | Q33: =IFERROR(IF(LEFT($D33,15)="Unlisted Player",-1001,IF(OR(H33="SP",H33="RP"),N33/INDEX('Filter-P'!$D$3:$D$520,MATCH($D33,'Filter-P'!$A$3:$A$520,0),1),-1000)),-1000) -> 3.533334353 | R33: =IFERROR(IF(LEFT($D33,15)="Unlisted Player",-1001,IF(OR(H33="SP",H33="RP"),-1000,N33/INDEX('Filter-H'!$B$3:$B$500,MATCH(D33,'Filter-H'!$A$3:$A$500,0),1))),-1000) -> -1000 | S33: =IF(H33="",#N/A,H33&"."&1+SUMPRODUCT(($H$2:$H$937=H33)*($M$2:$M$937<M33))+COUNTIFS($M$2:M33,M33,$H$2:H33,H33)-1) -> RP.35 | U33: =IF(H33="",#N/A,1+SUMPRODUCT(($H$2:$H$937=H33)*($M$2:$M$937<M33))+COUNTIFS($M$2:M33,M33,$H$2:H33,H33)-1) -> 35 | V33: =IF(ISERROR(VLOOKUP($B32,Keepers!$C$2:$D$402,2,FALSE)),B32,"") -> Nolan Arenado | W33: =IFERROR(INDEX($V$1:$V$936,SMALL(IF($V$1:$V$936<>"",ROW($V$1:$V$936)),ROW(V33))),"") -> Lucas Giolito | X33: =IF(LEFT($D33,15)="Unlisted Player",0,IF(Pre!C33<>"",Pre!C33,0)) -> 381.6001101 | Y33: =IFERROR(Pre!DL33,"") -> Bench
A34: Lucas Giolito | B34: =IFERROR(INDEX($A$1:$A$936,SMALL(IF($A$1:$A$936<>"",ROW($A$1:$A$936)),ROW(A34))),"") -> Paul Goldschmidt | C34: =IFERROR(IF(L34=FALSE,"",CHOOSE(MATCH(RIGHT('Your Points Draft'!$R$3,LEN('Your Points Draft'!$R$3)-8),$M$1:$R$1,0),1+SUMPRODUCT(($L$2:$L$937=TRUE)*($M$2:$M$937<M34))+COUNTIFS($L$2:L34,L34,$M$2:M34,M34)-1,1+SUMPRODUCT(($L$2:$L$937=TRUE)*($N$2:$N$937>N34))+COUNTIFS($L$2:L34,L34,$N$2:N34,N34)-1,1+SUMPRODUCT(($L$2:$L$937=TRUE)*($O$2:$O$937<O34))+COUNTIFS($L$2:L34,L34,$O$2:O34,O34)-1,1+SUMPRODUCT(($L$2:$L$937=TRUE)*($P$2:$P$937>P34))+COUNTIFS($L$2:L34,L34,$P$2:P34,P34)-1,1+SUMPRODUCT(($L$2:$L$937=TRUE)*($Q$2:$Q$937>Q34))+COUNTIFS($L$2:L34,L34,$Q$2:Q34,Q34)-1,1+SUMPRODUCT(($L$2:$L$937=TRUE)*($R$2:$R$937>R34))+COUNTIFS($L$2:L34,L34,$R$2:R34,R34)-1,)),"") -> 342 | D34: Elvis Andrus | E34: =IFERROR(INDEX('Draft Log'!$D$3:$D$807,MATCH(D34,'Draft Log'!$C$3:$C$807,0)),"") ->  | F34: =IFERROR(INDEX('ADP-Rank'!$C$2:$C$814,MATCH(D34,'ADP-Rank'!$A$2:$A$814,0)),"") -> SS | H34: SS | I34: =IF(AND(F34="OF",'Guts-2'!$N$9=0),IF(MAX(Pre!J34:L34)=Pre!J34,"LF",IF(MAX(Pre!J34:L34)=Pre!K34,"CF",IF(MAX(Pre!J34:L34)=Pre!L34,"RF","LF"))),"") ->  | J34: =IFERROR(INDEX('ADP-Rank'!$X$2:$X$814,MATCH(D34,'ADP-Rank'!$A$2:$A$814,0)),TRUE) -> TRUE | K34: FALSE | L34: =IF(J34=FALSE,FALSE,IF(AND('Your Points Draft'!$R$5="Hide Drafted Players",K34=TRUE),FALSE,CHOOSE($I$1,TRUE,OR(RIGHT('Your Points Draft'!$R$4,LEN('Your Points Draft'!$R$4)-11)=H34,IF(RIGHT('Your Points Draft'!$R$4,LEN('Your Points Draft'!$R$4)-11)<>"C",NOT(ISERROR(SEARCH(RIGHT('Your Points Draft'!$R$4,LEN('Your Points Draft'!$R$4)-11),Pre!$CB34))),AND(NOT(ISERROR(SEARCH(RIGHT('Your Points Draft'!$R$4,LEN('Your Points Draft'!$R$4)-11),Pre!$CB34))),ISERROR(SEARCH("CF",Pre!$CB34)))),RIGHT('Your Points Draft'!$R$4,LEN('Your Points Draft'!$R$4)-11)=Pre!BP34),OR(H34="1B",H34="3B",ISNUMBER(SEARCH("1B",Pre!$CB34)),ISNUMBER(SEARCH("3B",Pre!$CB34))),OR(H34="2B",H34="SS",ISNUMBER(SEARCH("2B",Pre!$CB34)),ISNUMBER(SEARCH("SS",Pre!$CB34))),OR(H34="1B",H34="3B",H34="2B",H34="SS",ISNUMBER(SEARCH("1B",Pre!$CB34)),ISNUMBER(SEARCH("3B",Pre!$CB34)),ISNUMBER(SEARCH("2B",Pre!$CB34)),ISNUMBER(SEARCH("SS",Pre!$CB34))),OR(H34="SP",H34="RP",ISNUMBER(SEARCH("SP",Pre!$CB34)),ISNUMBER(SEARCH("RP",Pre!$CB34))),AND(H34<>"RP",H34<>"SP",NOT(ISNUMBER(SEARCH("RP",Pre!$CB34))),NOT(ISNUMBER(SEARCH("SP",Pre!$CB34)))),OR(H34="SP",H34="RP",ISNUMBER(SEARCH("SP",Pre!$CB34)),ISNUMBER(SEARCH("RP",Pre!$CB34)))))) -> TRUE | M34: =IF(J34=FALSE,10000,IF('ADP-Rank'!AB34="",9999,'ADP-Rank'!AB34)) -> 9999 | N34: =IF(LEFT($D34,15)="Unlisted Player",-1,IF(Pre!C34<>"",Pre!C34,0)) -> 730.8677056 | O34: =IF('ADP-Rank'!Z34="",9999,'ADP-Rank'!Z34) -> 9999 | P34: =IFERROR(IF($N34=0,-1000,IF(LEFT($D34,15)="Unlisted Player",-1001,IF(OR($H34="RP",$H34="SP"),VLOOKUP($D34,'Filter-P'!$A$3:$X$419,13,FALSE),$N34-(INDEX('Filter-H'!$AH$5:$AH$16,MATCH($H34,'Filter-H'!$W$5:$W$16,0),1))))),"") -> -161.417514 | Q34: =IFERROR(IF(LEFT($D34,15)="Unlisted Player",-1001,IF(OR(H34="SP",H34="RP"),N34/INDEX('Filter-P'!$D$3:$D$520,MATCH($D34,'Filter-P'!$A$3:$A$520,0),1),-1000)),-1000) -> -1000 | R34: =IFERROR(IF(LEFT($D34,15)="Unlisted Player",-1001,IF(OR(H34="SP",H34="RP"),-1000,N34/INDEX('Filter-H'!$B$3:$B$500,MATCH(D34,'Filter-H'!$A$3:$A$500,0),1))),-1000) -> 1.418885082 | S34: =IF(H34="",#N/A,H34&"."&1+SUMPRODUCT(($H$2:$H$937=H34)*($M$2:$M$937<M34))+COUNTIFS($M$2:M34,M34,$H$2:H34,H34)-1) -> SS.36 | U34: =IF(H34="",#N/A,1+SUMPRODUCT(($H$2:$H$937=H34)*($M$2:$M$937<M34))+COUNTIFS($M$2:M34,M34,$H$2:H34,H34)-1) -> 36 | V34: =IF(ISERROR(VLOOKUP($B33,Keepers!$C$2:$D$402,2,FALSE)),B33,"") -> Lucas Giolito | W34: =IFERROR(INDEX($V$1:$V$936,SMALL(IF($V$1:$V$936<>"",ROW($V$1:$V$936)),ROW(V34))),"") -> Paul Goldschmidt | X34: =IF(LEFT($D34,15)="Unlisted Player",0,IF(Pre!C34<>"",Pre!C34,0)) -> 730.8677056 | Y34: =IFERROR(Pre!DL34,"") -> Bench
A35: Paul Goldschmidt | B35: =IFERROR(INDEX($A$1:$A$936,SMALL(IF($A$1:$A$936<>"",ROW($A$1:$A$936)),ROW(A35))),"") -> Salvador Perez | C35: =IFERROR(IF(L35=FALSE,"",CHOOSE(MATCH(RIGHT('Your Points Draft'!$R$3,LEN('Your Points Draft'!$R$3)-8),$M$1:$R$1,0),1+SUMPRODUCT(($L$2:$L$937=TRUE)*($M$2:$M$937<M35))+COUNTIFS($L$2:L35,L35,$M$2:M35,M35)-1,1+SUMPRODUCT(($L$2:$L$937=TRUE)*($N$2:$N$937>N35))+COUNTIFS($L$2:L35,L35,$N$2:N35,N35)-1,1+SUMPRODUCT(($L$2:$L$937=TRUE)*($O$2:$O$937<O35))+COUNTIFS($L$2:L35,L35,$O$2:O35,O35)-1,1+SUMPRODUCT(($L$2:$L$937=TRUE)*($P$2:$P$937>P35))+COUNTIFS($L$2:L35,L35,$P$2:P35,P35)-1,1+SUMPRODUCT(($L$2:$L$937=TRUE)*($Q$2:$Q$937>Q35))+COUNTIFS($L$2:L35,L35,$Q$2:Q35,Q35)-1,1+SUMPRODUCT(($L$2:$L$937=TRUE)*($R$2:$R$937>R35))+COUNTIFS($L$2:L35,L35,$R$2:R35,R35)-1,)),"") -> 343 | D35: Miguel Andujar | E35: =IFERROR(INDEX('Draft Log'!$D$3:$D$807,MATCH(D35,'Draft Log'!$C$3:$C$807,0)),"") ->  | F35: =IFERROR(INDEX('ADP-Rank'!$C$2:$C$814,MATCH(D35,'ADP-Rank'!$A$2:$A$814,0)),"") -> OF | H35: OF | I35: =IF(AND(F35="OF",'Guts-2'!$N$9=0),IF(MAX(Pre!J35:L35)=Pre!J35,"LF",IF(MAX(Pre!J35:L35)=Pre!K35,"CF",IF(MAX(Pre!J35:L35)=Pre!L35,"RF","LF"))),"") ->  | J35: =IFERROR(INDEX('ADP-Rank'!$X$2:$X$814,MATCH(D35,'ADP-Rank'!$A$2:$A$814,0)),TRUE) -> TRUE | K35: FALSE | L35: =IF(J35=FALSE,FALSE,IF(AND('Your Points Draft'!$R$5="Hide Drafted Players",K35=TRUE),FALSE,CHOOSE($I$1,TRUE,OR(RIGHT('Your Points Draft'!$R$4,LEN('Your Points Draft'!$R$4)-11)=H35,IF(RIGHT('Your Points Draft'!$R$4,LEN('Your Points Draft'!$R$4)-11)<>"C",NOT(ISERROR(SEARCH(RIGHT('Your Points Draft'!$R$4,LEN('Your Points Draft'!$R$4)-11),Pre!$CB35))),AND(NOT(ISERROR(SEARCH(RIGHT('Your Points Draft'!$R$4,LEN('Your Points Draft'!$R$4)-11),Pre!$CB35))),ISERROR(SEARCH("CF",Pre!$CB35)))),RIGHT('Your Points Draft'!$R$4,LEN('Your Points Draft'!$R$4)-11)=Pre!BP35),OR(H35="1B",H35="3B",ISNUMBER(SEARCH("1B",Pre!$CB35)),ISNUMBER(SEARCH("3B",Pre!$CB35))),OR(H35="2B",H35="SS",ISNUMBER(SEARCH("2B",Pre!$CB35)),ISNUMBER(SEARCH("SS",Pre!$CB35))),OR(H35="1B",H35="3B",H35="2B",H35="SS",ISNUMBER(SEARCH("1B",Pre!$CB35)),ISNUMBER(SEARCH("3B",Pre!$CB35)),ISNUMBER(SEARCH("2B",Pre!$CB35)),ISNUMBER(SEARCH("SS",Pre!$CB35))),OR(H35="SP",H35="RP",ISNUMBER(SEARCH("SP",Pre!$CB35)),ISNUMBER(SEARCH("RP",Pre!$CB35))),AND(H35<>"RP",H35<>"SP",NOT(ISNUMBER(SEARCH("RP",Pre!$CB35))),NOT(ISNUMBER(SEARCH("SP",Pre!$CB35)))),OR(H35="SP",H35="RP",ISNUMBER(SEARCH("SP",Pre!$CB35)),ISNUMBER(SEARCH("RP",Pre!$CB35)))))) -> TRUE | M35: =IF(J35=FALSE,10000,IF('ADP-Rank'!AB35="",9999,'ADP-Rank'!AB35)) -> 9999 | N35: =IF(LEFT($D35,15)="Unlisted Player",-1,IF(Pre!C35<>"",Pre!C35,0)) -> 220.8638152 | O35: =IF('ADP-Rank'!Z35="",9999,'ADP-Rank'!Z35) -> 9999 | P35: =IFERROR(IF($N35=0,-1000,IF(LEFT($D35,15)="Unlisted Player",-1001,IF(OR($H35="RP",$H35="SP"),VLOOKUP($D35,'Filter-P'!$A$3:$X$419,13,FALSE),$N35-(INDEX('Filter-H'!$AH$5:$AH$16,MATCH($H35,'Filter-H'!$W$5:$W$16,0),1))))),"") -> -697.1449632 | Q35: =IFERROR(IF(LEFT($D35,15)="Unlisted Player",-1001,IF(OR(H35="SP",H35="RP"),N35/INDEX('Filter-P'!$D$3:$D$520,MATCH($D35,'Filter-P'!$A$3:$A$520,0),1),-1000)),-1000) -> -1000 | R35: =IFERROR(IF(LEFT($D35,15)="Unlisted Player",-1001,IF(OR(H35="SP",H35="RP"),-1000,N35/INDEX('Filter-H'!$B$3:$B$500,MATCH(D35,'Filter-H'!$A$3:$A$500,0),1))),-1000) -> 1.617457453 | S35: =IF(H35="",#N/A,H35&"."&1+SUMPRODUCT(($H$2:$H$937=H35)*($M$2:$M$937<M35))+COUNTIFS($M$2:M35,M35,$H$2:H35,H35)-1) -> OF.71 | U35: =IF(H35="",#N/A,1+SUMPRODUCT(($H$2:$H$937=H35)*($M$2:$M$937<M35))+COUNTIFS($M$2:M35,M35,$H$2:H35,H35)-1) -> 71 | V35: =IF(ISERROR(VLOOKUP($B34,Keepers!$C$2:$D$402,2,FALSE)),B34,"") -> Paul Goldschmidt | W35: =IFERROR(INDEX($V$1:$V$936,SMALL(IF($V$1:$V$936<>"",ROW($V$1:$V$936)),ROW(V35))),"") -> Salvador Perez | X35: =IF(LEFT($D35,15)="Unlisted Player",0,IF(Pre!C35<>"",Pre!C35,0)) -> 220.8638152 | Y35: =IFERROR(Pre!DL35,"") -> Bench
A36: Salvador Perez | B36: =IFERROR(INDEX($A$1:$A$936,SMALL(IF($A$1:$A$936<>"",ROW($A$1:$A$936)),ROW(A36))),"") -> Pete Alonso | C36: =IFERROR(IF(L36=FALSE,"",CHOOSE(MATCH(RIGHT('Your Points Draft'!$R$3,LEN('Your Points Draft'!$R$3)-8),$M$1:$R$1,0),1+SUMPRODUCT(($L$2:$L$937=TRUE)*($M$2:$M$937<M36))+COUNTIFS($L$2:L36,L36,$M$2:M36,M36)-1,1+SUMPRODUCT(($L$2:$L$937=TRUE)*($N$2:$N$937>N36))+COUNTIFS($L$2:L36,L36,$N$2:N36,N36)-1,1+SUMPRODUCT(($L$2:$L$937=TRUE)*($O$2:$O$937<O36))+COUNTIFS($L$2:L36,L36,$O$2:O36,O36)-1,1+SUMPRODUCT(($L$2:$L$937=TRUE)*($P$2:$P$937>P36))+COUNTIFS($L$2:L36,L36,$P$2:P36,P36)-1,1+SUMPRODUCT(($L$2:$L$937=TRUE)*($Q$2:$Q$937>Q36))+COUNTIFS($L$2:L36,L36,$Q$2:Q36,Q36)-1,1+SUMPRODUCT(($L$2:$L$937=TRUE)*($R$2:$R$937>R36))+COUNTIFS($L$2:L36,L36,$R$2:R36,R36)-1,)),"") -> 344 | D36: Aristides Aquino | E36: =IFERROR(INDEX('Draft Log'!$D$3:$D$807,MATCH(D36,'Draft Log'!$C$3:$C$807,0)),"") ->  | F36: =IFERROR(INDEX('ADP-Rank'!$C$2:$C$814,MATCH(D36,'ADP-Rank'!$A$2:$A$814,0)),"") -> OF | H36: OF | I36: =IF(AND(F36="OF",'Guts-2'!$N$9=0),IF(MAX(Pre!J36:L36)=Pre!J36,"LF",IF(MAX(Pre!J36:L36)=Pre!K36,"CF",IF(MAX(Pre!J36:L36)=Pre!L36,"RF","LF"))),"") ->  | J36: =IFERROR(INDEX('ADP-Rank'!$X$2:$X$814,MATCH(D36,'ADP-Rank'!$A$2:$A$814,0)),TRUE) -> TRUE | K36: FALSE | L36: =IF(J36=FALSE,FALSE,IF(AND('Your Points Draft'!$R$5="Hide Drafted Players",K36=TRUE),FALSE,CHOOSE($I$1,TRUE,OR(RIGHT('Your Points Draft'!$R$4,LEN('Your Points Draft'!$R$4)-11)=H36,IF(RIGHT('Your Points Draft'!$R$4,LEN('Your Points Draft'!$R$4)-11)<>"C",NOT(ISERROR(SEARCH(RIGHT('Your Points Draft'!$R$4,LEN('Your Points Draft'!$R$4)-11),Pre!$CB36))),AND(NOT(ISERROR(SEARCH(RIGHT('Your Points Draft'!$R$4,LEN('Your Points Draft'!$R$4)-11),Pre!$CB36))),ISERROR(SEARCH("CF",Pre!$CB36)))),RIGHT('Your Points Draft'!$R$4,LEN('Your Points Draft'!$R$4)-11)=Pre!BP36),OR(H36="1B",H36="3B",ISNUMBER(SEARCH("1B",Pre!$CB36)),ISNUMBER(SEARCH("3B",Pre!$CB36))),OR(H36="2B",H36="SS",ISNUMBER(SEARCH("2B",Pre!$CB36)),ISNUMBER(SEARCH("SS",Pre!$CB36))),OR(H36="1B",H36="3B",H36="2B",H36="SS",ISNUMBER(SEARCH("1B",Pre!$CB36)),ISNUMBER(SEARCH("3B",Pre!$CB36)),ISNUMBER(SEARCH("2B",Pre!$CB36)),ISNUMBER(SEARCH("SS",Pre!$CB36))),OR(H36="SP",H36="RP",ISNUMBER(SEARCH("SP",Pre!$CB36)),ISNUMBER(SEARCH("RP",Pre!$CB36))),AND(H36<>"RP",H36<>"SP",NOT(ISNUMBER(SEARCH("RP",Pre!$CB36))),NOT(ISNUMBER(SEARCH("SP",Pre!$CB36)))),OR(H36="SP",H36="RP",ISNUMBER(SEARCH("SP",Pre!$CB36)),ISNUMBER(SEARCH("RP",Pre!$CB36)))))) -> TRUE | M36: =IF(J36=FALSE,10000,IF('ADP-Rank'!AB36="",9999,'ADP-Rank'!AB36)) -> 9999 | N36: =IF(LEFT($D36,15)="Unlisted Player",-1,IF(Pre!C36<>"",Pre!C36,0)) -> 599.199883 | O36: =IF('ADP-Rank'!Z36="",9999,'ADP-Rank'!Z36) -> 9999 | P36: =IFERROR(IF($N36=0,-1000,IF(LEFT($D36,15)="Unlisted Player",-1001,IF(OR($H36="RP",$H36="SP"),VLOOKUP($D36,'Filter-P'!$A$3:$X$419,13,FALSE),$N36-(INDEX('Filter-H'!$AH$5:$AH$16,MATCH($H36,'Filter-H'!$W$5:$W$16,0),1))))),"") -> -318.8088953 | Q36: =IFERROR(IF(LEFT($D36,15)="Unlisted Player",-1001,IF(OR(H36="SP",H36="RP"),N36/INDEX('Filter-P'!$D$3:$D$520,MATCH($D36,'Filter-P'!$A$3:$A$520,0),1),-1000)),-1000) -> -1000 | R36: =IFERROR(IF(LEFT($D36,15)="Unlisted Player",-1001,IF(OR(H36="SP",H36="RP"),-1000,N36/INDEX('Filter-H'!$B$3:$B$500,MATCH(D36,'Filter-H'!$A$3:$A$500,0),1))),-1000) -> 1.550523698 | S36: =IF(H36="",#N/A,H36&"."&1+SUMPRODUCT(($H$2:$H$937=H36)*($M$2:$M$937<M36))+COUNTIFS($M$2:M36,M36,$H$2:H36,H36)-1) -> OF.72 | U36: =IF(H36="",#N/A,1+SUMPRODUCT(($H$2:$H$937=H36)*($M$2:$M$937<M36))+COUNTIFS($M$2:M36,M36,$H$2:H36,H36)-1) -> 72 | V36: =IF(ISERROR(VLOOKUP($B35,Keepers!$C$2:$D$402,2,FALSE)),B35,"") -> Salvador Perez | W36: =IFERROR(INDEX($V$1:$V$936,SMALL(IF($V$1:$V$936<>"",ROW($V$1:$V$936)),ROW(V36))),"") -> Pete Alonso | X36: =IF(LEFT($D36,15)="Unlisted Player",0,IF(Pre!C36<>"",Pre!C36,0)) -> 599.199883 | Y36: =IFERROR(Pre!DL36,"") -> Bench
A37: Pete Alonso | B37: =IFERROR(INDEX($A$1:$A$936,SMALL(IF($A$1:$A$936<>"",ROW($A$1:$A$936)),ROW(A37))),"") -> Aaron Nola | C37: =IFERROR(IF(L37=FALSE,"",CHOOSE(MATCH(RIGHT('Your Points Draft'!$R$3,LEN('Your Points Draft'!$R$3)-8),$M$1:$R$1,0),1+SUMPRODUCT(($L$2:$L$937=TRUE)*($M$2:$M$937<M37))+COUNTIFS($L$2:L37,L37,$M$2:M37,M37)-1,1+SUMPRODUCT(($L$2:$L$937=TRUE)*($N$2:$N$937>N37))+COUNTIFS($L$2:L37,L37,$N$2:N37,N37)-1,1+SUMPRODUCT(($L$2:$L$937=TRUE)*($O$2:$O$937<O37))+COUNTIFS($L$2:L37,L37,$O$2:O37,O37)-1,1+SUMPRODUCT(($L$2:$L$937=TRUE)*($P$2:$P$937>P37))+COUNTIFS($L$2:L37,L37,$P$2:P37,P37)-1,1+SUMPRODUCT(($L$2:$L$937=TRUE)*($Q$2:$Q$937>Q37))+COUNTIFS($L$2:L37,L37,$Q$2:Q37,Q37)-1,1+SUMPRODUCT(($L$2:$L$937=TRUE)*($R$2:$R$937>R37))+COUNTIFS($L$2:L37,L37,$R$2:R37,R37)-1,)),"") -> 345 | D37: Jonathan Arauz | E37: =IFERROR(INDEX('Draft Log'!$D$3:$D$807,MATCH(D37,'Draft Log'!$C$3:$C$807,0)),"") ->  | F37: =IFERROR(INDEX('ADP-Rank'!$C$2:$C$814,MATCH(D37,'ADP-Rank'!$A$2:$A$814,0)),"") -> SS | H37: SS | I37: =IF(AND(F37="OF",'Guts-2'!$N$9=0),IF(MAX(Pre!J37:L37)=Pre!J37,"LF",IF(MAX(Pre!J37:L37)=Pre!K37,"CF",IF(MAX(Pre!J37:L37)=Pre!L37,"RF","LF"))),"") ->  | J37: =IFERROR(INDEX('ADP-Rank'!$X$2:$X$814,MATCH(D37,'ADP-Rank'!$A$2:$A$814,0)),TRUE) -> TRUE | K37: FALSE | L37: =IF(J37=FALSE,FALSE,IF(AND('Your Points Draft'!$R$5="Hide Drafted Players",K37=TRUE),FALSE,CHOOSE($I$1,TRUE,OR(RIGHT('Your Points Draft'!$R$4,LEN('Your Points Draft'!$R$4)-11)=H37,IF(RIGHT('Your Points Draft'!$R$4,LEN('Your Points Draft'!$R$4)-11)<>"C",NOT(ISERROR(SEARCH(RIGHT('Your Points Draft'!$R$4,LEN('Your Points Draft'!$R$4)-11),Pre!$CB37))),AND(NOT(ISERROR(SEARCH(RIGHT('Your Points Draft'!$R$4,LEN('Your Points Draft'!$R$4)-11),Pre!$CB37))),ISERROR(SEARCH("CF",Pre!$CB37)))),RIGHT('Your Points Draft'!$R$4,LEN('Your Points Draft'!$R$4)-11)=Pre!BP37),OR(H37="1B",H37="3B",ISNUMBER(SEARCH("1B",Pre!$CB37)),ISNUMBER(SEARCH("3B",Pre!$CB37))),OR(H37="2B",H37="SS",ISNUMBER(SEARCH("2B",Pre!$CB37)),ISNUMBER(SEARCH("SS",Pre!$CB37))),OR(H37="1B",H37="3B",H37="2B",H37="SS",ISNUMBER(SEARCH("1B",Pre!$CB37)),ISNUMBER(SEARCH("3B",Pre!$CB37)),ISNUMBER(SEARCH("2B",Pre!$CB37)),ISNUMBER(SEARCH("SS",Pre!$CB37))),OR(H37="SP",H37="RP",ISNUMBER(SEARCH("SP",Pre!$CB37)),ISNUMBER(SEARCH("RP",Pre!$CB37))),AND(H37<>"RP",H37<>"SP",NOT(ISNUMBER(SEARCH("RP",Pre!$CB37))),NOT(ISNUMBER(SEARCH("SP",Pre!$CB37)))),OR(H37="SP",H37="RP",ISNUMBER(SEARCH("SP",Pre!$CB37)),ISNUMBER(SEARCH("RP",Pre!$CB37)))))) -> TRUE | M37: =IF(J37=FALSE,10000,IF('ADP-Rank'!AB37="",9999,'ADP-Rank'!AB37)) -> 9999 | N37: =IF(LEFT($D37,15)="Unlisted Player",-1,IF(Pre!C37<>"",Pre!C37,0)) -> 219.229984 | O37: =IF('ADP-Rank'!Z37="",9999,'ADP-Rank'!Z37) -> 9999 | P37: =IFERROR(IF($N37=0,-1000,IF(LEFT($D37,15)="Unlisted Player",-1001,IF(OR($H37="RP",$H37="SP"),VLOOKUP($D37,'Filter-P'!$A$3:$X$419,13,FALSE),$N37-(INDEX('Filter-H'!$AH$5:$AH$16,MATCH($H37,'Filter-H'!$W$5:$W$16,0),1))))),"") -> -673.0552356 | Q37: =IFERROR(IF(LEFT($D37,15)="Unlisted Player",-1001,IF(OR(H37="SP",H37="RP"),N37/INDEX('Filter-P'!$D$3:$D$520,MATCH($D37,'Filter-P'!$A$3:$A$520,0),1),-1000)),-1000) -> -1000 | R37: =IFERROR(IF(LEFT($D37,15)="Unlisted Player",-1001,IF(OR(H37="SP",H37="RP"),-1000,N37/INDEX('Filter-H'!$B$3:$B$500,MATCH(D37,'Filter-H'!$A$3:$A$500,0),1))),-1000) -> 1.455227242 | S37: =IF(H37="",#N/A,H37&"."&1+SUMPRODUCT(($H$2:$H$937=H37)*($M$2:$M$937<M37))+COUNTIFS($M$2:M37,M37,$H$2:H37,H37)-1) -> SS.37 | U37: =IF(H37="",#N/A,1+SUMPRODUCT(($H$2:$H$937=H37)*($M$2:$M$937<M37))+COUNTIFS($M$2:M37,M37,$H$2:H37,H37)-1) -> 37 | V37: =IF(ISERROR(VLOOKUP($B36,Keepers!$C$2:$D$402,2,FALSE)),B36,"") -> Pete Alonso | W37: =IFERROR(INDEX($V$1:$V$936,SMALL(IF($V$1:$V$936<>"",ROW($V$1:$V$936)),ROW(V37))),"") -> Aaron Nola | X37: =IF(LEFT($D37,15)="Unlisted Player",0,IF(Pre!C37<>"",Pre!C37,0)) -> 219.229984 | Y37: =IFERROR(Pre!DL37,"") -> Bench
A38: Aaron Nola | B38: =IFERROR(INDEX($A$1:$A$936,SMALL(IF($A$1:$A$936<>"",ROW($A$1:$A$936)),ROW(A38))),"") -> Xander Bogaerts | C38: =IFERROR(IF(L38=FALSE,"",CHOOSE(MATCH(RIGHT('Your Points Draft'!$R$3,LEN('Your Points Draft'!$R$3)-8),$M$1:$R$1,0),1+SUMPRODUCT(($L$2:$L$937=TRUE)*($M$2:$M$937<M38))+COUNTIFS($L$2:L38,L38,$M$2:M38,M38)-1,1+SUMPRODUCT(($L$2:$L$937=TRUE)*($N$2:$N$937>N38))+COUNTIFS($L$2:L38,L38,$N$2:N38,N38)-1,1+SUMPRODUCT(($L$2:$L$937=TRUE)*($O$2:$O$937<O38))+COUNTIFS($L$2:L38,L38,$O$2:O38,O38)-1,1+SUMPRODUCT(($L$2:$L$937=TRUE)*($P$2:$P$937>P38))+COUNTIFS($L$2:L38,L38,$P$2:P38,P38)-1,1+SUMPRODUCT(($L$2:$L$937=TRUE)*($Q$2:$Q$937>Q38))+COUNTIFS($L$2:L38,L38,$Q$2:Q38,Q38)-1,1+SUMPRODUCT(($L$2:$L$937=TRUE)*($R$2:$R$937>R38))+COUNTIFS($L$2:L38,L38,$R$2:R38,R38)-1,)),"") -> 346 | D38: Chris Archer | E38: =IFERROR(INDEX('Draft Log'!$D$3:$D$807,MATCH(D38,'Draft Log'!$C$3:$C$807,0)),"") ->  | F38: =IFERROR(INDEX('ADP-Rank'!$C$2:$C$814,MATCH(D38,'ADP-Rank'!$A$2:$A$814,0)),"") -> RP | H38: RP | I38: =IF(AND(F38="OF",'Guts-2'!$N$9=0),IF(MAX(Pre!J38:L38)=Pre!J38,"LF",IF(MAX(Pre!J38:L38)=Pre!K38,"CF",IF(MAX(Pre!J38:L38)=Pre!L38,"RF","LF"))),"") ->  | J38: =IFERROR(INDEX('ADP-Rank'!$X$2:$X$814,MATCH(D38,'ADP-Rank'!$A$2:$A$814,0)),TRUE) -> TRUE | K38: FALSE | L38: =IF(J38=FALSE,FALSE,IF(AND('Your Points Draft'!$R$5="Hide Drafted Players",K38=TRUE),FALSE,CHOOSE($I$1,TRUE,OR(RIGHT('Your Points Draft'!$R$4,LEN('Your Points Draft'!$R$4)-11)=H38,IF(RIGHT('Your Points Draft'!$R$4,LEN('Your Points Draft'!$R$4)-11)<>"C",NOT(ISERROR(SEARCH(RIGHT('Your Points Draft'!$R$4,LEN('Your Points Draft'!$R$4)-11),Pre!$CB38))),AND(NOT(ISERROR(SEARCH(RIGHT('Your Points Draft'!$R$4,LEN('Your Points Draft'!$R$4)-11),Pre!$CB38))),ISERROR(SEARCH("CF",Pre!$CB38)))),RIGHT('Your Points Draft'!$R$4,LEN('Your Points Draft'!$R$4)-11)=Pre!BP38),OR(H38="1B",H38="3B",ISNUMBER(SEARCH("1B",Pre!$CB38)),ISNUMBER(SEARCH("3B",Pre!$CB38))),OR(H38="2B",H38="SS",ISNUMBER(SEARCH("2B",Pre!$CB38)),ISNUMBER(SEARCH("SS",Pre!$CB38))),OR(H38="1B",H38="3B",H38="2B",H38="SS",ISNUMBER(SEARCH("1B",Pre!$CB38)),ISNUMBER(SEARCH("3B",Pre!$CB38)),ISNUMBER(SEARCH("2B",Pre!$CB38)),ISNUMBER(SEARCH("SS",Pre!$CB38))),OR(H38="SP",H38="RP",ISNUMBER(SEARCH("SP",Pre!$CB38)),ISNUMBER(SEARCH("RP",Pre!$CB38))),AND(H38<>"RP",H38<>"SP",NOT(ISNUMBER(SEARCH("RP",Pre!$CB38))),NOT(ISNUMBER(SEARCH("SP",Pre!$CB38)))),OR(H38="SP",H38="RP",ISNUMBER(SEARCH("SP",Pre!$CB38)),ISNUMBER(SEARCH("RP",Pre!$CB38)))))) -> TRUE | M38: =IF(J38=FALSE,10000,IF('ADP-Rank'!AB38="",9999,'ADP-Rank'!AB38)) -> 9999 | N38: =IF(LEFT($D38,15)="Unlisted Player",-1,IF(Pre!C38<>"",Pre!C38,0)) -> 368.1250709 | O38: =IF('ADP-Rank'!Z38="",9999,'ADP-Rank'!Z38) -> 9999 | P38: =IFERROR(IF($N38=0,-1000,IF(LEFT($D38,15)="Unlisted Player",-1001,IF(OR($H38="RP",$H38="SP"),VLOOKUP($D38,'Filter-P'!$A$3:$X$419,13,FALSE),$N38-(INDEX('Filter-H'!$AH$5:$AH$16,MATCH($H38,'Filter-H'!$W$5:$W$16,0),1))))),"") -> -62.31571539 | Q38: =IFERROR(IF(LEFT($D38,15)="Unlisted Player",-1001,IF(OR(H38="SP",H38="RP"),N38/INDEX('Filter-P'!$D$3:$D$520,MATCH($D38,'Filter-P'!$A$3:$A$520,0),1),-1000)),-1000) -> 3.377294229 | R38: =IFERROR(IF(LEFT($D38,15)="Unlisted Player",-1001,IF(OR(H38="SP",H38="RP"),-1000,N38/INDEX('Filter-H'!$B$3:$B$500,MATCH(D38,'Filter-H'!$A$3:$A$500,0),1))),-1000) -> -1000 | S38: =IF(H38="",#N/A,H38&"."&1+SUMPRODUCT(($H$2:$H$937=H38)*($M$2:$M$937<M38))+COUNTIFS($M$2:M38,M38,$H$2:H38,H38)-1) -> RP.45 | U38: =IF(H38="",#N/A,1+SUMPRODUCT(($H$2:$H$937=H38)*($M$2:$M$937<M38))+COUNTIFS($M$2:M38,M38,$H$2:H38,H38)-1) -> 45 | V38: =IF(ISERROR(VLOOKUP($B37,Keepers!$C$2:$D$402,2,FALSE)),B37,"") -> Aaron Nola | W38: =IFERROR(INDEX($V$1:$V$936,SMALL(IF($V$1:$V$936<>"",ROW($V$1:$V$936)),ROW(V38))),"") -> Xander Bogaerts | X38: =IF(LEFT($D38,15)="Unlisted Player",0,IF(Pre!C38<>"",Pre!C38,0)) -> 368.1250709 | Y38: =IFERROR(Pre!DL38,"") -> Bench
A39: Xander Bogaerts | B39: =IFERROR(INDEX($A$1:$A$936,SMALL(IF($A$1:$A$936<>"",ROW($A$1:$A$936)),ROW(A39))),"") -> Lance Lynn | C39: =IFERROR(IF(L39=FALSE,"",CHOOSE(MATCH(RIGHT('Your Points Draft'!$R$3,LEN('Your Points Draft'!$R$3)-8),$M$1:$R$1,0),1+SUMPRODUCT(($L$2:$L$937=TRUE)*($M$2:$M$937<M39))+COUNTIFS($L$2:L39,L39,$M$2:M39,M39)-1,1+SUMPRODUCT(($L$2:$L$937=TRUE)*($N$2:$N$937>N39))+COUNTIFS($L$2:L39,L39,$N$2:N39,N39)-1,1+SUMPRODUCT(($L$2:$L$937=TRUE)*($O$2:$O$937<O39))+COUNTIFS($L$2:L39,L39,$O$2:O39,O39)-1,1+SUMPRODUCT(($L$2:$L$937=TRUE)*($P$2:$P$937>P39))+COUNTIFS($L$2:L39,L39,$P$2:P39,P39)-1,1+SUMPRODUCT(($L$2:$L$937=TRUE)*($Q$2:$Q$937>Q39))+COUNTIFS($L$2:L39,L39,$Q$2:Q39,Q39)-1,1+SUMPRODUCT(($L$2:$L$937=TRUE)*($R$2:$R$937>R39))+COUNTIFS($L$2:L39,L39,$R$2:R39,R39)-1,)),"") -> 347 | D39: Orlando Arcia | E39: =IFERROR(INDEX('Draft Log'!$D$3:$D$807,MATCH(D39,'Draft Log'!$C$3:$C$807,0)),"") ->  | F39: =IFERROR(INDEX('ADP-Rank'!$C$2:$C$814,MATCH(D39,'ADP-Rank'!$A$2:$A$814,0)),"") -> DH | H39: DH | I39: =IF(AND(F39="OF",'Guts-2'!$N$9=0),IF(MAX(Pre!J39:L39)=Pre!J39,"LF",IF(MAX(Pre!J39:L39)=Pre!K39,"CF",IF(MAX(Pre!J39:L39)=Pre!L39,"RF","LF"))),"") ->  | J39: =IFERROR(INDEX('ADP-Rank'!$X$2:$X$814,MATCH(D39,'ADP-Rank'!$A$2:$A$814,0)),TRUE) -> TRUE | K39: FALSE | L39: =IF(J39=FALSE,FALSE,IF(AND('Your Points Draft'!$R$5="Hide Drafted Players",K39=TRUE),FALSE,CHOOSE($I$1,TRUE,OR(RIGHT('Your Points Draft'!$R$4,LEN('Your Points Draft'!$R$4)-11)=H39,IF(RIGHT('Your Points Draft'!$R$4,LEN('Your Points Draft'!$R$4)-11)<>"C",NOT(ISERROR(SEARCH(RIGHT('Your Points Draft'!$R$4,LEN('Your Points Draft'!$R$4)-11),Pre!$CB39))),AND(NOT(ISERROR(SEARCH(RIGHT('Your Points Draft'!$R$4,LEN('Your Points Draft'!$R$4)-11),Pre!$CB39))),ISERROR(SEARCH("CF",Pre!$CB39)))),RIGHT('Your Points Draft'!$R$4,LEN('Your Points Draft'!$R$4)-11)=Pre!BP39),OR(H39="1B",H39="3B",ISNUMBER(SEARCH("1B",Pre!$CB39)),ISNUMBER(SEARCH("3B",Pre!$CB39))),OR(H39="2B",H39="SS",ISNUMBER(SEARCH("2B",Pre!$CB39)),ISNUMBER(SEARCH("SS",Pre!$CB39))),OR(H39="1B",H39="3B",H39="2B",H39="SS",ISNUMBER(SEARCH("1B",Pre!$CB39)),ISNUMBER(SEARCH("3B",Pre!$CB39)),ISNUMBER(SEARCH("2B",Pre!$CB39)),ISNUMBER(SEARCH("SS",Pre!$CB39))),OR(H39="SP",H39="RP",ISNUMBER(SEARCH("SP",Pre!$CB39)),ISNUMBER(SEARCH("RP",Pre!$CB39))),AND(H39<>"RP",H39<>"SP",NOT(ISNUMBER(SEARCH("RP",Pre!$CB39))),NOT(ISNUMBER(SEARCH("SP",Pre!$CB39)))),OR(H39="SP",H39="RP",ISNUMBER(SEARCH("SP",Pre!$CB39)),ISNUMBER(SEARCH("RP",Pre!$CB39)))))) -> TRUE | M39: =IF(J39=FALSE,10000,IF('ADP-Rank'!AB39="",9999,'ADP-Rank'!AB39)) -> 9999 | N39: =IF(LEFT($D39,15)="Unlisted Player",-1,IF(Pre!C39<>"",Pre!C39,0)) -> 365.9306431 | O39: =IF('ADP-Rank'!Z39="",9999,'ADP-Rank'!Z39) -> 9999 | P39: =IFERROR(IF($N39=0,-1000,IF(LEFT($D39,15)="Unlisted Player",-1001,IF(OR($H39="RP",$H39="SP"),VLOOKUP($D39,'Filter-P'!$A$3:$X$419,13,FALSE),$N39-(INDEX('Filter-H'!$AH$5:$AH$16,MATCH($H39,'Filter-H'!$W$5:$W$16,0),1))))),"") -> -565.1844929 | Q39: =IFERROR(IF(LEFT($D39,15)="Unlisted Player",-1001,IF(OR(H39="SP",H39="RP"),N39/INDEX('Filter-P'!$D$3:$D$520,MATCH($D39,'Filter-P'!$A$3:$A$520,0),1),-1000)),-1000) -> -1000 | R39: =IFERROR(IF(LEFT($D39,15)="Unlisted Player",-1001,IF(OR(H39="SP",H39="RP"),-1000,N39/INDEX('Filter-H'!$B$3:$B$500,MATCH(D39,'Filter-H'!$A$3:$A$500,0),1))),-1000) -> 1.548585032 | S39: =IF(H39="",#N/A,H39&"."&1+SUMPRODUCT(($H$2:$H$937=H39)*($M$2:$M$937<M39))+COUNTIFS($M$2:M39,M39,$H$2:H39,H39)-1) -> DH.9 | U39: =IF(H39="",#N/A,1+SUMPRODUCT(($H$2:$H$937=H39)*($M$2:$M$937<M39))+COUNTIFS($M$2:M39,M39,$H$2:H39,H39)-1) -> 9 | V39: =IF(ISERROR(VLOOKUP($B38,Keepers!$C$2:$D$402,2,FALSE)),B38,"") -> Xander Bogaerts | W39: =IFERROR(INDEX($V$1:$V$936,SMALL(IF($V$1:$V$936<>"",ROW($V$1:$V$936)),ROW(V39))),"") -> Lance Lynn | X39: =IF(LEFT($D39,15)="Unlisted Player",0,IF(Pre!C39<>"",Pre!C39,0)) -> 365.9306431 | Y39: =IFERROR(Pre!DL39,"") -> Bench
A40: Lance Lynn | B40: =IFERROR(INDEX($A$1:$A$936,SMALL(IF($A$1:$A$936<>"",ROW($A$1:$A$936)),ROW(A40))),"") -> George Springer | C40: =IFERROR(IF(L40=FALSE,"",CHOOSE(MATCH(RIGHT('Your Points Draft'!$R$3,LEN('Your Points Draft'!$R$3)-8),$M$1:$R$1,0),1+SUMPRODUCT(($L$2:$L$937=TRUE)*($M$2:$M$937<M40))+COUNTIFS($L$2:L40,L40,$M$2:M40,M40)-1,1+SUMPRODUCT(($L$2:$L$937=TRUE)*($N$2:$N$937>N40))+COUNTIFS($L$2:L40,L40,$N$2:N40,N40)-1,1+SUMPRODUCT(($L$2:$L$937=TRUE)*($O$2:$O$937<O40))+COUNTIFS($L$2:L40,L40,$O$2:O40,O40)-1,1+SUMPRODUCT(($L$2:$L$937=TRUE)*($P$2:$P$937>P40))+COUNTIFS($L$2:L40,L40,$P$2:P40,P40)-1,1+SUMPRODUCT(($L$2:$L$937=TRUE)*($Q$2:$Q$937>Q40))+COUNTIFS($L$2:L40,L40,$Q$2:Q40,Q40)-1,1+SUMPRODUCT(($L$2:$L$937=TRUE)*($R$2:$R$937>R40))+COUNTIFS($L$2:L40,L40,$R$2:R40,R40)-1,)),"") -> 32 | D40: Nolan Arenado | E40: =IFERROR(INDEX('Draft Log'!$D$3:$D$807,MATCH(D40,'Draft Log'!$C$3:$C$807,0)),"") ->  | F40: =IFERROR(INDEX('ADP-Rank'!$C$2:$C$814,MATCH(D40,'ADP-Rank'!$A$2:$A$814,0)),"") -> 3B | H40: 3B | I40: =IF(AND(F40="OF",'Guts-2'!$N$9=0),IF(MAX(Pre!J40:L40)=Pre!J40,"LF",IF(MAX(Pre!J40:L40)=Pre!K40,"CF",IF(MAX(Pre!J40:L40)=Pre!L40,"RF","LF"))),"") ->  | J40: =IFERROR(INDEX('ADP-Rank'!$X$2:$X$814,MATCH(D40,'ADP-Rank'!$A$2:$A$814,0)),TRUE) -> TRUE | K40: FALSE | L40: =IF(J40=FALSE,FALSE,IF(AND('Your Points Draft'!$R$5="Hide Drafted Players",K40=TRUE),FALSE,CHOOSE($I$1,TRUE,OR(RIGHT('Your Points Draft'!$R$4,LEN('Your Points Draft'!$R$4)-11)=H40,IF(RIGHT('Your Points Draft'!$R$4,LEN('Your Points Draft'!$R$4)-11)<>"C",NOT(ISERROR(SEARCH(RIGHT('Your Points Draft'!$R$4,LEN('Your Points Draft'!$R$4)-11),Pre!$CB40))),AND(NOT(ISERROR(SEARCH(RIGHT('Your Points Draft'!$R$4,LEN('Your Points Draft'!$R$4)-11),Pre!$CB40))),ISERROR(SEARCH("CF",Pre!$CB40)))),RIGHT('Your Points Draft'!$R$4,LEN('Your Points Draft'!$R$4)-11)=Pre!BP40),OR(H40="1B",H40="3B",ISNUMBER(SEARCH("1B",Pre!$CB40)),ISNUMBER(SEARCH("3B",Pre!$CB40))),OR(H40="2B",H40="SS",ISNUMBER(SEARCH("2B",Pre!$CB40)),ISNUMBER(SEARCH("SS",Pre!$CB40))),OR(H40="1B",H40="3B",H40="2B",H40="SS",ISNUMBER(SEARCH("1B",Pre!$CB40)),ISNUMBER(SEARCH("3B",Pre!$CB40)),ISNUMBER(SEARCH("2B",Pre!$CB40)),ISNUMBER(SEARCH("SS",Pre!$CB40))),OR(H40="SP",H40="RP",ISNUMBER(SEARCH("SP",Pre!$CB40)),ISNUMBER(SEARCH("RP",Pre!$CB40))),AND(H40<>"RP",H40<>"SP",NOT(ISNUMBER(SEARCH("RP",Pre!$CB40))),NOT(ISNUMBER(SEARCH("SP",Pre!$CB40)))),OR(H40="SP",H40="RP",ISNUMBER(SEARCH("SP",Pre!$CB40)),ISNUMBER(SEARCH("RP",Pre!$CB40)))))) -> TRUE | M40: =IF(J40=FALSE,10000,IF('ADP-Rank'!AB40="",9999,'ADP-Rank'!AB40)) -> 37.88 | N40: =IF(LEFT($D40,15)="Unlisted Player",-1,IF(Pre!C40<>"",Pre!C40,0)) -> 1067.474592 | O40: =IF('ADP-Rank'!Z40="",9999,'ADP-Rank'!Z40) -> 31 | P40: =IFERROR(IF($N40=0,-1000,IF(LEFT($D40,15)="Unlisted Player",-1001,IF(OR($H40="RP",$H40="SP"),VLOOKUP($D40,'Filter-P'!$A$3:$X$419,13,FALSE),$N40-(INDEX('Filter-H'!$AH$5:$AH$16,MATCH($H40,'Filter-H'!$W$5:$W$16,0),1))))),"") -> 193.1245619 | Q40: =IFERROR(IF(LEFT($D40,15)="Unlisted Player",-1001,IF(OR(H40="SP",H40="RP"),N40/INDEX('Filter-P'!$D$3:$D$520,MATCH($D40,'Filter-P'!$A$3:$A$520,0),1),-1000)),-1000) -> -1000 | R40: =IFERROR(IF(LEFT($D40,15)="Unlisted Player",-1001,IF(OR(H40="SP",H40="RP"),-1000,N40/INDEX('Filter-H'!$B$3:$B$500,MATCH(D40,'Filter-H'!$A$3:$A$500,0),1))),-1000) -> 1.648991414 | S40: =IF(H40="",#N/A,H40&"."&1+SUMPRODUCT(($H$2:$H$937=H40)*($M$2:$M$937<M40))+COUNTIFS($M$2:M40,M40,$H$2:H40,H40)-1) -> 3B.4 | U40: =IF(H40="",#N/A,1+SUMPRODUCT(($H$2:$H$937=H40)*($M$2:$M$937<M40))+COUNTIFS($M$2:M40,M40,$H$2:H40,H40)-1) -> 4 | V40: =IF(ISERROR(VLOOKUP($B39,Keepers!$C$2:$D$402,2,FALSE)),B39,"") -> Lance Lynn | W40: =IFERROR(INDEX($V$1:$V$936,SMALL(IF($V$1:$V$936<>"",ROW($V$1:$V$936)),ROW(V40))),"") -> George Springer | X40: =IF(LEFT($D40,15)="Unlisted Player",0,IF(Pre!C40<>"",Pre!C40,0)) -> 1067.474592 | Y40: =IFERROR(Pre!DL40,"") -> Bench
A41: George Springer | B41: =IFERROR(INDEX($A$1:$A$936,SMALL(IF($A$1:$A$936<>"",ROW($A$1:$A$936)),ROW(A41))),"") -> Max Muncy | C41: =IFERROR(IF(L41=FALSE,"",CHOOSE(MATCH(RIGHT('Your Points Draft'!$R$3,LEN('Your Points Draft'!$R$3)-8),$M$1:$R$1,0),1+SUMPRODUCT(($L$2:$L$937=TRUE)*($M$2:$M$937<M41))+COUNTIFS($L$2:L41,L41,$M$2:M41,M41)-1,1+SUMPRODUCT(($L$2:$L$937=TRUE)*($N$2:$N$937>N41))+COUNTIFS($L$2:L41,L41,$N$2:N41,N41)-1,1+SUMPRODUCT(($L$2:$L$937=TRUE)*($O$2:$O$937<O41))+COUNTIFS($L$2:L41,L41,$O$2:O41,O41)-1,1+SUMPRODUCT(($L$2:$L$937=TRUE)*($P$2:$P$937>P41))+COUNTIFS($L$2:L41,L41,$P$2:P41,P41)-1,1+SUMPRODUCT(($L$2:$L$937=TRUE)*($Q$2:$Q$937>Q41))+COUNTIFS($L$2:L41,L41,$Q$2:Q41,Q41)-1,1+SUMPRODUCT(($L$2:$L$937=TRUE)*($R$2:$R$937>R41))+COUNTIFS($L$2:L41,L41,$R$2:R41,R41)-1,)),"") -> 85 | D41: Randy Arozarena | E41: =IFERROR(INDEX('Draft Log'!$D$3:$D$807,MATCH(D41,'Draft Log'!$C$3:$C$807,0)),"") ->  | F41: =IFERROR(INDEX('ADP-Rank'!$C$2:$C$814,MATCH(D41,'ADP-Rank'!$A$2:$A$814,0)),"") -> OF | H41: OF | I41: =IF(AND(F41="OF",'Guts-2'!$N$9=0),IF(MAX(Pre!J41:L41)=Pre!J41,"LF",IF(MAX(Pre!J41:L41)=Pre!K41,"CF",IF(MAX(Pre!J41:L41)=Pre!L41,"RF","LF"))),"") ->  | J41: =IFERROR(INDEX('ADP-Rank'!$X$2:$X$814,MATCH(D41,'ADP-Rank'!$A$2:$A$814,0)),TRUE) -> TRUE | K41: FALSE | L41: =IF(J41=FALSE,FALSE,IF(AND('Your Points Draft'!$R$5="Hide Drafted Players",K41=TRUE),FALSE,CHOOSE($I$1,TRUE,OR(RIGHT('Your Points Draft'!$R$4,LEN('Your Points Draft'!$R$4)-11)=H41,IF(RIGHT('Your Points Draft'!$R$4,LEN('Your Points Draft'!$R$4)-11)<>"C",NOT(ISERROR(SEARCH(RIGHT('Your Points Draft'!$R$4,LEN('Your Points Draft'!$R$4)-11),Pre!$CB41))),AND(NOT(ISERROR(SEARCH(RIGHT('Your Points Draft'!$R$4,LEN('Your Points Draft'!$R$4)-11),Pre!$CB41))),ISERROR(SEARCH("CF",Pre!$CB41)))),RIGHT('Your Points Draft'!$R$4,LEN('Your Points Draft'!$R$4)-11)=Pre!BP41),OR(H41="1B",H41="3B",ISNUMBER(SEARCH("1B",Pre!$CB41)),ISNUMBER(SEARCH("3B",Pre!$CB41))),OR(H41="2B",H41="SS",ISNUMBER(SEARCH("2B",Pre!$CB41)),ISNUMBER(SEARCH("SS",Pre!$CB41))),OR(H41="1B",H41="3B",H41="2B",H41="SS",ISNUMBER(SEARCH("1B",Pre!$CB41)),ISNUMBER(SEARCH("3B",Pre!$CB41)),ISNUMBER(SEARCH("2B",Pre!$CB41)),ISNUMBER(SEARCH("SS",Pre!$CB41))),OR(H41="SP",H41="RP",ISNUMBER(SEARCH("SP",Pre!$CB41)),ISNUMBER(SEARCH("RP",Pre!$CB41))),AND(H41<>"RP",H41<>"SP",NOT(ISNUMBER(SEARCH("RP",Pre!$CB41))),NOT(ISNUMBER(SEARCH("SP",Pre!$CB41)))),OR(H41="SP",H41="RP",ISNUMBER(SEARCH("SP",Pre!$CB41)),ISNUMBER(SEARCH("RP",Pre!$CB41)))))) -> TRUE | M41: =IF(J41=FALSE,10000,IF('ADP-Rank'!AB41="",9999,'ADP-Rank'!AB41)) -> 86.33 | N41: =IF(LEFT($D41,15)="Unlisted Player",-1,IF(Pre!C41<>"",Pre!C41,0)) -> 944.7614119 | O41: =IF('ADP-Rank'!Z41="",9999,'ADP-Rank'!Z41) -> 158 | P41: =IFERROR(IF($N41=0,-1000,IF(LEFT($D41,15)="Unlisted Player",-1001,IF(OR($H41="RP",$H41="SP"),VLOOKUP($D41,'Filter-P'!$A$3:$X$419,13,FALSE),$N41-(INDEX('Filter-H'!$AH$5:$AH$16,MATCH($H41,'Filter-H'!$W$5:$W$16,0),1))))),"") -> 26.75263359 | Q41: =IFERROR(IF(LEFT($D41,15)="Unlisted Player",-1001,IF(OR(H41="SP",H41="RP"),N41/INDEX('Filter-P'!$D$3:$D$520,MATCH($D41,'Filter-P'!$A$3:$A$520,0),1),-1000)),-1000) -> -1000 | R41: =IFERROR(IF(LEFT($D41,15)="Unlisted Player",-1001,IF(OR(H41="SP",H41="RP"),-1000,N41/INDEX('Filter-H'!$B$3:$B$500,MATCH(D41,'Filter-H'!$A$3:$A$500,0),1))),-1000) -> 1.565470442 | S41: =IF(H41="",#N/A,H41&"."&1+SUMPRODUCT(($H$2:$H$937=H41)*($M$2:$M$937<M41))+COUNTIFS($M$2:M41,M41,$H$2:H41,H41)-1) -> OF.20 | U41: =IF(H41="",#N/A,1+SUMPRODUCT(($H$2:$H$937=H41)*($M$2:$M$937<M41))+COUNTIFS($M$2:M41,M41,$H$2:H41,H41)-1) -> 20 | V41: =IF(ISERROR(VLOOKUP($B40,Keepers!$C$2:$D$402,2,FALSE)),B40,"") -> George Springer | W41: =IFERROR(INDEX($V$1:$V$936,SMALL(IF($V$1:$V$936<>"",ROW($V$1:$V$936)),ROW(V41))),"") -> Max Muncy | X41: =IF(LEFT($D41,15)="Unlisted Player",0,IF(Pre!C41<>"",Pre!C41,0)) -> 944.7614119 | Y41: =IFERROR(Pre!DL41,"") -> Bench
A42: Max Muncy | B42: =IFERROR(INDEX($A$1:$A$936,SMALL(IF($A$1:$A$936<>"",ROW($A$1:$A$936)),ROW(A42))),"") -> Luis Robert | C42: =IFERROR(IF(L42=FALSE,"",CHOOSE(MATCH(RIGHT('Your Points Draft'!$R$3,LEN('Your Points Draft'!$R$3)-8),$M$1:$R$1,0),1+SUMPRODUCT(($L$2:$L$937=TRUE)*($M$2:$M$937<M42))+COUNTIFS($L$2:L42,L42,$M$2:M42,M42)-1,1+SUMPRODUCT(($L$2:$L$937=TRUE)*($N$2:$N$937>N42))+COUNTIFS($L$2:L42,L42,$N$2:N42,N42)-1,1+SUMPRODUCT(($L$2:$L$937=TRUE)*($O$2:$O$937<O42))+COUNTIFS($L$2:L42,L42,$O$2:O42,O42)-1,1+SUMPRODUCT(($L$2:$L$937=TRUE)*($P$2:$P$937>P42))+COUNTIFS($L$2:L42,L42,$P$2:P42,P42)-1,1+SUMPRODUCT(($L$2:$L$937=TRUE)*($Q$2:$Q$937>Q42))+COUNTIFS($L$2:L42,L42,$Q$2:Q42,Q42)-1,1+SUMPRODUCT(($L$2:$L$937=TRUE)*($R$2:$R$937>R42))+COUNTIFS($L$2:L42,L42,$R$2:R42,R42)-1,)),"") -> 348 | D42: Luis Arraez | E42: =IFERROR(INDEX('Draft Log'!$D$3:$D$807,MATCH(D42,'Draft Log'!$C$3:$C$807,0)),"") ->  | F42: =IFERROR(INDEX('ADP-Rank'!$C$2:$C$814,MATCH(D42,'ADP-Rank'!$A$2:$A$814,0)),"") -> 3B | H42: 3B | I42: =IF(AND(F42="OF",'Guts-2'!$N$9=0),IF(MAX(Pre!J42:L42)=Pre!J42,"LF",IF(MAX(Pre!J42:L42)=Pre!K42,"CF",IF(MAX(Pre!J42:L42)=Pre!L42,"RF","LF"))),"") ->  | J42: =IFERROR(INDEX('ADP-Rank'!$X$2:$X$814,MATCH(D42,'ADP-Rank'!$A$2:$A$814,0)),TRUE) -> TRUE | K42: FALSE | L42: =IF(J42=FALSE,FALSE,IF(AND('Your Points Draft'!$R$5="Hide Drafted Players",K42=TRUE),FALSE,CHOOSE($I$1,TRUE,OR(RIGHT('Your Points Draft'!$R$4,LEN('Your Points Draft'!$R$4)-11)=H42,IF(RIGHT('Your Points Draft'!$R$4,LEN('Your Points Draft'!$R$4)-11)<>"C",NOT(ISERROR(SEARCH(RIGHT('Your Points Draft'!$R$4,LEN('Your Points Draft'!$R$4)-11),Pre!$CB42))),AND(NOT(ISERROR(SEARCH(RIGHT('Your Points Draft'!$R$4,LEN('Your Points Draft'!$R$4)-11),Pre!$CB42))),ISERROR(SEARCH("CF",Pre!$CB42)))),RIGHT('Your Points Draft'!$R$4,LEN('Your Points Draft'!$R$4)-11)=Pre!BP42),OR(H42="1B",H42="3B",ISNUMBER(SEARCH("1B",Pre!$CB42)),ISNUMBER(SEARCH("3B",Pre!$CB42))),OR(H42="2B",H42="SS",ISNUMBER(SEARCH("2B",Pre!$CB42)),ISNUMBER(SEARCH("SS",Pre!$CB42))),OR(H42="1B",H42="3B",H42="2B",H42="SS",ISNUMBER(SEARCH("1B",Pre!$CB42)),ISNUMBER(SEARCH("3B",Pre!$CB42)),ISNUMBER(SEARCH("2B",Pre!$CB42)),ISNUMBER(SEARCH("SS",Pre!$CB42))),OR(H42="SP",H42="RP",ISNUMBER(SEARCH("SP",Pre!$CB42)),ISNUMBER(SEARCH("RP",Pre!$CB42))),AND(H42<>"RP",H42<>"SP",NOT(ISNUMBER(SEARCH("RP",Pre!$CB42))),NOT(ISNUMBER(SEARCH("SP",Pre!$CB42)))),OR(H42="SP",H42="RP",ISNUMBER(SEARCH("SP",Pre!$CB42)),ISNUMBER(SEARCH("RP",Pre!$CB42)))))) -> TRUE | M42: =IF(J42=FALSE,10000,IF('ADP-Rank'!AB42="",9999,'ADP-Rank'!AB42)) -> 9999 | N42: =IF(LEFT($D42,15)="Unlisted Player",-1,IF(Pre!C42<>"",Pre!C42,0)) -> 858.9218936 | O42: =IF('ADP-Rank'!Z42="",9999,'ADP-Rank'!Z42) -> 9999 | P42: =IFERROR(IF($N42=0,-1000,IF(LEFT($D42,15)="Unlisted Player",-1001,IF(OR($H42="RP",$H42="SP"),VLOOKUP($D42,'Filter-P'!$A$3:$X$419,13,FALSE),$N42-(INDEX('Filter-H'!$AH$5:$AH$16,MATCH($H42,'Filter-H'!$W$5:$W$16,0),1))))),"") -> -15.4281366 | Q42: =IFERROR(IF(LEFT($D42,15)="Unlisted Player",-1001,IF(OR(H42="SP",H42="RP"),N42/INDEX('Filter-P'!$D$3:$D$520,MATCH($D42,'Filter-P'!$A$3:$A$520,0),1),-1000)),-1000) -> -1000 | R42: =IFERROR(IF(LEFT($D42,15)="Unlisted Player",-1001,IF(OR(H42="SP",H42="RP"),-1000,N42/INDEX('Filter-H'!$B$3:$B$500,MATCH(D42,'Filter-H'!$A$3:$A$500,0),1))),-1000) -> 1.552081485 | S42: =IF(H42="",#N/A,H42&"."&1+SUMPRODUCT(($H$2:$H$937=H42)*($M$2:$M$937<M42))+COUNTIFS($M$2:M42,M42,$H$2:H42,H42)-1) -> 3B.20 | U42: =IF(H42="",#N/A,1+SUMPRODUCT(($H$2:$H$937=H42)*($M$2:$M$937<M42))+COUNTIFS($M$2:M42,M42,$H$2:H42,H42)-1) -> 20 | V42: =IF(ISERROR(VLOOKUP($B41,Keepers!$C$2:$D$402,2,FALSE)),B41,"") -> Max Muncy | W42: =IFERROR(INDEX($V$1:$V$936,SMALL(IF($V$1:$V$936<>"",ROW($V$1:$V$936)),ROW(V42))),"") -> Luis Robert | X42: =IF(LEFT($D42,15)="Unlisted Player",0,IF(Pre!C42<>"",Pre!C42,0)) -> 858.9218936 | Y42: =IFERROR(Pre!DL42,"") -> Bench
A43: Luis Robert | B43: =IFERROR(INDEX($A$1:$A$936,SMALL(IF($A$1:$A$936<>"",ROW($A$1:$A$936)),ROW(A43))),"") -> Josh Hader | C43: =IFERROR(IF(L43=FALSE,"",CHOOSE(MATCH(RIGHT('Your Points Draft'!$R$3,LEN('Your Points Draft'!$R$3)-8),$M$1:$R$1,0),1+SUMPRODUCT(($L$2:$L$937=TRUE)*($M$2:$M$937<M43))+COUNTIFS($L$2:L43,L43,$M$2:M43,M43)-1,1+SUMPRODUCT(($L$2:$L$937=TRUE)*($N$2:$N$937>N43))+COUNTIFS($L$2:L43,L43,$N$2:N43,N43)-1,1+SUMPRODUCT(($L$2:$L$937=TRUE)*($O$2:$O$937<O43))+COUNTIFS($L$2:L43,L43,$O$2:O43,O43)-1,1+SUMPRODUCT(($L$2:$L$937=TRUE)*($P$2:$P$937>P43))+COUNTIFS($L$2:L43,L43,$P$2:P43,P43)-1,1+SUMPRODUCT(($L$2:$L$937=TRUE)*($Q$2:$Q$937>Q43))+COUNTIFS($L$2:L43,L43,$Q$2:Q43,Q43)-1,1+SUMPRODUCT(($L$2:$L$937=TRUE)*($R$2:$R$937>R43))+COUNTIFS($L$2:L43,L43,$R$2:R43,R43)-1,)),"") -> 349 | D43: Christian Arroyo | E43: =IFERROR(INDEX('Draft Log'!$D$3:$D$807,MATCH(D43,'Draft Log'!$C$3:$C$807,0)),"") ->  | F43: =IFERROR(INDEX('ADP-Rank'!$C$2:$C$814,MATCH(D43,'ADP-Rank'!$A$2:$A$814,0)),"") -> 2B | H43: 2B | I43: =IF(AND(F43="OF",'Guts-2'!$N$9=0),IF(MAX(Pre!J43:L43)=Pre!J43,"LF",IF(MAX(Pre!J43:L43)=Pre!K43,"CF",IF(MAX(Pre!J43:L43)=Pre!L43,"RF","LF"))),"") ->  | J43: =IFERROR(INDEX('ADP-Rank'!$X$2:$X$814,MATCH(D43,'ADP-Rank'!$A$2:$A$814,0)),TRUE) -> TRUE | K43: FALSE | L43: =IF(J43=FALSE,FALSE,IF(AND('Your Points Draft'!$R$5="Hide Drafted Players",K43=TRUE),FALSE,CHOOSE($I$1,TRUE,OR(RIGHT('Your Points Draft'!$R$4,LEN('Your Points Draft'!$R$4)-11)=H43,IF(RIGHT('Your Points Draft'!$R$4,LEN('Your Points Draft'!$R$4)-11)<>"C",NOT(ISERROR(SEARCH(RIGHT('Your Points Draft'!$R$4,LEN('Your Points Draft'!$R$4)-11),Pre!$CB43))),AND(NOT(ISERROR(SEARCH(RIGHT('Your Points Draft'!$R$4,LEN('Your Points Draft'!$R$4)-11),Pre!$CB43))),ISERROR(SEARCH("CF",Pre!$CB43)))),RIGHT('Your Points Draft'!$R$4,LEN('Your Points Draft'!$R$4)-11)=Pre!BP43),OR(H43="1B",H43="3B",ISNUMBER(SEARCH("1B",Pre!$CB43)),ISNUMBER(SEARCH("3B",Pre!$CB43))),OR(H43="2B",H43="SS",ISNUMBER(SEARCH("2B",Pre!$CB43)),ISNUMBER(SEARCH("SS",Pre!$CB43))),OR(H43="1B",H43="3B",H43="2B",H43="SS",ISNUMBER(SEARCH("1B",Pre!$CB43)),ISNUMBER(SEARCH("3B",Pre!$CB43)),ISNUMBER(SEARCH("2B",Pre!$CB43)),ISNUMBER(SEARCH("SS",Pre!$CB43))),OR(H43="SP",H43="RP",ISNUMBER(SEARCH("SP",Pre!$CB43)),ISNUMBER(SEARCH("RP",Pre!$CB43))),AND(H43<>"RP",H43<>"SP",NOT(ISNUMBER(SEARCH("RP",Pre!$CB43))),NOT(ISNUMBER(SEARCH("SP",Pre!$CB43)))),OR(H43="SP",H43="RP",ISNUMBER(SEARCH("SP",Pre!$CB43)),ISNUMBER(SEARCH("RP",Pre!$CB43)))))) -> TRUE | M43: =IF(J43=FALSE,10000,IF('ADP-Rank'!AB43="",9999,'ADP-Rank'!AB43)) -> 9999 | N43: =IF(LEFT($D43,15)="Unlisted Player",-1,IF(Pre!C43<>"",Pre!C43,0)) -> 311.2764819 | O43: =IF('ADP-Rank'!Z43="",9999,'ADP-Rank'!Z43) -> 9999 | P43: =IFERROR(IF($N43=0,-1000,IF(LEFT($D43,15)="Unlisted Player",-1001,IF(OR($H43="RP",$H43="SP"),VLOOKUP($D43,'Filter-P'!$A$3:$X$419,13,FALSE),$N43-(INDEX('Filter-H'!$AH$5:$AH$16,MATCH($H43,'Filter-H'!$W$5:$W$16,0),1))))),"") -> -525.6069648 | Q43: =IFERROR(IF(LEFT($D43,15)="Unlisted Player",-1001,IF(OR(H43="SP",H43="RP"),N43/INDEX('Filter-P'!$D$3:$D$520,MATCH($D43,'Filter-P'!$A$3:$A$520,0),1),-1000)),-1000) -> -1000 | R43: =IFERROR(IF(LEFT($D43,15)="Unlisted Player",-1001,IF(OR(H43="SP",H43="RP"),-1000,N43/INDEX('Filter-H'!$B$3:$B$500,MATCH(D43,'Filter-H'!$A$3:$A$500,0),1))),-1000) -> 1.512519349 | S43: =IF(H43="",#N/A,H43&"."&1+SUMPRODUCT(($H$2:$H$937=H43)*($M$2:$M$937<M43))+COUNTIFS($M$2:M43,M43,$H$2:H43,H43)-1) -> 2B.21 | U43: =IF(H43="",#N/A,1+SUMPRODUCT(($H$2:$H$937=H43)*($M$2:$M$937<M43))+COUNTIFS($M$2:M43,M43,$H$2:H43,H43)-1) -> 21 | V43: =IF(ISERROR(VLOOKUP($B42,Keepers!$C$2:$D$402,2,FALSE)),B42,"") -> Luis Robert | W43: =IFERROR(INDEX($V$1:$V$936,SMALL(IF($V$1:$V$936<>"",ROW($V$1:$V$936)),ROW(V43))),"") -> Josh Hader | X43: =IF(LEFT($D43,15)="Unlisted Player",0,IF(Pre!C43<>"",Pre!C43,0)) -> 311.2764819 | Y43: =IFERROR(Pre!DL43,"") -> Bench
A44: Josh Hader | B44: =IFERROR(INDEX($A$1:$A$936,SMALL(IF($A$1:$A$936<>"",ROW($A$1:$A$936)),ROW(A44))),"") -> Jose Berrios | C44: =IFERROR(IF(L44=FALSE,"",CHOOSE(MATCH(RIGHT('Your Points Draft'!$R$3,LEN('Your Points Draft'!$R$3)-8),$M$1:$R$1,0),1+SUMPRODUCT(($L$2:$L$937=TRUE)*($M$2:$M$937<M44))+COUNTIFS($L$2:L44,L44,$M$2:M44,M44)-1,1+SUMPRODUCT(($L$2:$L$937=TRUE)*($N$2:$N$937>N44))+COUNTIFS($L$2:L44,L44,$N$2:N44,N44)-1,1+SUMPRODUCT(($L$2:$L$937=TRUE)*($O$2:$O$937<O44))+COUNTIFS($L$2:L44,L44,$O$2:O44,O44)-1,1+SUMPRODUCT(($L$2:$L$937=TRUE)*($P$2:$P$937>P44))+COUNTIFS($L$2:L44,L44,$P$2:P44,P44)-1,1+SUMPRODUCT(($L$2:$L$937=TRUE)*($Q$2:$Q$937>Q44))+COUNTIFS($L$2:L44,L44,$Q$2:Q44,Q44)-1,1+SUMPRODUCT(($L$2:$L$937=TRUE)*($R$2:$R$937>R44))+COUNTIFS($L$2:L44,L44,$R$2:R44,R44)-1,)),"") -> 276 | D44: Aaron Ashby | E44: =IFERROR(INDEX('Draft Log'!$D$3:$D$807,MATCH(D44,'Draft Log'!$C$3:$C$807,0)),"") ->  | F44: =IFERROR(INDEX('ADP-Rank'!$C$2:$C$814,MATCH(D44,'ADP-Rank'!$A$2:$A$814,0)),"") -> RP | H44: RP | I44: =IF(AND(F44="OF",'Guts-2'!$N$9=0),IF(MAX(Pre!J44:L44)=Pre!J44,"LF",IF(MAX(Pre!J44:L44)=Pre!K44,"CF",IF(MAX(Pre!J44:L44)=Pre!L44,"RF","LF"))),"") ->  | J44: =IFERROR(INDEX('ADP-Rank'!$X$2:$X$814,MATCH(D44,'ADP-Rank'!$A$2:$A$814,0)),TRUE) -> TRUE | K44: FALSE | L44: =IF(J44=FALSE,FALSE,IF(AND('Your Points Draft'!$R$5="Hide Drafted Players",K44=TRUE),FALSE,CHOOSE($I$1,TRUE,OR(RIGHT('Your Points Draft'!$R$4,LEN('Your Points Draft'!$R$4)-11)=H44,IF(RIGHT('Your Points Draft'!$R$4,LEN('Your Points Draft'!$R$4)-11)<>"C",NOT(ISERROR(SEARCH(RIGHT('Your Points Draft'!$R$4,LEN('Your Points Draft'!$R$4)-11),Pre!$CB44))),AND(NOT(ISERROR(SEARCH(RIGHT('Your Points Draft'!$R$4,LEN('Your Points Draft'!$R$4)-11),Pre!$CB44))),ISERROR(SEARCH("CF",Pre!$CB44)))),RIGHT('Your Points Draft'!$R$4,LEN('Your Points Draft'!$R$4)-11)=Pre!BP44),OR(H44="1B",H44="3B",ISNUMBER(SEARCH("1B",Pre!$CB44)),ISNUMBER(SEARCH("3B",Pre!$CB44))),OR(H44="2B",H44="SS",ISNUMBER(SEARCH("2B",Pre!$CB44)),ISNUMBER(SEARCH("SS",Pre!$CB44))),OR(H44="1B",H44="3B",H44="2B",H44="SS",ISNUMBER(SEARCH("1B",Pre!$CB44)),ISNUMBER(SEARCH("3B",Pre!$CB44)),ISNUMBER(SEARCH("2B",Pre!$CB44)),ISNUMBER(SEARCH("SS",Pre!$CB44))),OR(H44="SP",H44="RP",ISNUMBER(SEARCH("SP",Pre!$CB44)),ISNUMBER(SEARCH("RP",Pre!$CB44))),AND(H44<>"RP",H44<>"SP",NOT(ISNUMBER(SEARCH("RP",Pre!$CB44))),NOT(ISNUMBER(SEARCH("SP",Pre!$CB44)))),OR(H44="SP",H44="RP",ISNUMBER(SEARCH("SP",Pre!$CB44)),ISNUMBER(SEARCH("RP",Pre!$CB44)))))) -> TRUE | M44: =IF(J44=FALSE,10000,IF('ADP-Rank'!AB44="",9999,'ADP-Rank'!AB44)) -> 225.49 | N44: =IF(LEFT($D44,15)="Unlisted Player",-1,IF(Pre!C44<>"",Pre!C44,0)) -> 315.8725321 | O44: =IF('ADP-Rank'!Z44="",9999,'ADP-Rank'!Z44) -> 9999 | P44: =IFERROR(IF($N44=0,-1000,IF(LEFT($D44,15)="Unlisted Player",-1001,IF(OR($H44="RP",$H44="SP"),VLOOKUP($D44,'Filter-P'!$A$3:$X$419,13,FALSE),$N44-(INDEX('Filter-H'!$AH$5:$AH$16,MATCH($H44,'Filter-H'!$W$5:$W$16,0),1))))),"") -> -114.5682542 | Q44: =IFERROR(IF(LEFT($D44,15)="Unlisted Player",-1001,IF(OR(H44="SP",H44="RP"),N44/INDEX('Filter-P'!$D$3:$D$520,MATCH($D44,'Filter-P'!$A$3:$A$520,0),1),-1000)),-1000) -> 3.509694802 | R44: =IFERROR(IF(LEFT($D44,15)="Unlisted Player",-1001,IF(OR(H44="SP",H44="RP"),-1000,N44/INDEX('Filter-H'!$B$3:$B$500,MATCH(D44,'Filter-H'!$A$3:$A$500,0),1))),-1000) -> -1000 | S44: =IF(H44="",#N/A,H44&"."&1+SUMPRODUCT(($H$2:$H$937=H44)*($M$2:$M$937<M44))+COUNTIFS($M$2:M44,M44,$H$2:H44,H44)-1) -> RP.34 | U44: =IF(H44="",#N/A,1+SUMPRODUCT(($H$2:$H$937=H44)*($M$2:$M$937<M44))+COUNTIFS($M$2:M44,M44,$H$2:H44,H44)-1) -> 34 | V44: =IF(ISERROR(VLOOKUP($B43,Keepers!$C$2:$D$402,2,FALSE)),B43,"") -> Josh Hader | W44: =IFERROR(INDEX($V$1:$V$936,SMALL(IF($V$1:$V$936<>"",ROW($V$1:$V$936)),ROW(V44))),"") -> Jose Berrios | X44: =IF(LEFT($D44,15)="Unlisted Player",0,IF(Pre!C44<>"",Pre!C44,0)) -> 315.8725321 | Y44: =IFERROR(Pre!DL44,"") -> Bench
A45: Jose Berrios | B45: =IFERROR(INDEX($A$1:$A$936,SMALL(IF($A$1:$A$936<>"",ROW($A$1:$A$936)),ROW(A45))),"") -> Austin Riley | C45: =IFERROR(IF(L45=FALSE,"",CHOOSE(MATCH(RIGHT('Your Points Draft'!$R$3,LEN('Your Points Draft'!$R$3)-8),$M$1:$R$1,0),1+SUMPRODUCT(($L$2:$L$937=TRUE)*($M$2:$M$937<M45))+COUNTIFS($L$2:L45,L45,$M$2:M45,M45)-1,1+SUMPRODUCT(($L$2:$L$937=TRUE)*($N$2:$N$937>N45))+COUNTIFS($L$2:L45,L45,$N$2:N45,N45)-1,1+SUMPRODUCT(($L$2:$L$937=TRUE)*($O$2:$O$937<O45))+COUNTIFS($L$2:L45,L45,$O$2:O45,O45)-1,1+SUMPRODUCT(($L$2:$L$937=TRUE)*($P$2:$P$937>P45))+COUNTIFS($L$2:L45,L45,$P$2:P45,P45)-1,1+SUMPRODUCT(($L$2:$L$937=TRUE)*($Q$2:$Q$937>Q45))+COUNTIFS($L$2:L45,L45,$Q$2:Q45,Q45)-1,1+SUMPRODUCT(($L$2:$L$937=TRUE)*($R$2:$R$937>R45))+COUNTIFS($L$2:L45,L45,$R$2:R45,R45)-1,)),"") -> 350 | D45: Willians Astudillo | E45: =IFERROR(INDEX('Draft Log'!$D$3:$D$807,MATCH(D45,'Draft Log'!$C$3:$C$807,0)),"") ->  | F45: =IFERROR(INDEX('ADP-Rank'!$C$2:$C$814,MATCH(D45,'ADP-Rank'!$A$2:$A$814,0)),"") -> 3B | H45: 3B | I45: =IF(AND(F45="OF",'Guts-2'!$N$9=0),IF(MAX(Pre!J45:L45)=Pre!J45,"LF",IF(MAX(Pre!J45:L45)=Pre!K45,"CF",IF(MAX(Pre!J45:L45)=Pre!L45,"RF","LF"))),"") ->  | J45: =IFERROR(INDEX('ADP-Rank'!$X$2:$X$814,MATCH(D45,'ADP-Rank'!$A$2:$A$814,0)),TRUE) -> TRUE | K45: FALSE | L45: =IF(J45=FALSE,FALSE,IF(AND('Your Points Draft'!$R$5="Hide Drafted Players",K45=TRUE),FALSE,CHOOSE($I$1,TRUE,OR(RIGHT('Your Points Draft'!$R$4,LEN('Your Points Draft'!$R$4)-11)=H45,IF(RIGHT('Your Points Draft'!$R$4,LEN('Your Points Draft'!$R$4)-11)<>"C",NOT(ISERROR(SEARCH(RIGHT('Your Points Draft'!$R$4,LEN('Your Points Draft'!$R$4)-11),Pre!$CB45))),AND(NOT(ISERROR(SEARCH(RIGHT('Your Points Draft'!$R$4,LEN('Your Points Draft'!$R$4)-11),Pre!$CB45))),ISERROR(SEARCH("CF",Pre!$CB45)))),RIGHT('Your Points Draft'!$R$4,LEN('Your Points Draft'!$R$4)-11)=Pre!BP45),OR(H45="1B",H45="3B",ISNUMBER(SEARCH("1B",Pre!$CB45)),ISNUMBER(SEARCH("3B",Pre!$CB45))),OR(H45="2B",H45="SS",ISNUMBER(SEARCH("2B",Pre!$CB45)),ISNUMBER(SEARCH("SS",Pre!$CB45))),OR(H45="1B",H45="3B",H45="2B",H45="SS",ISNUMBER(SEARCH("1B",Pre!$CB45)),ISNUMBER(SEARCH("3B",Pre!$CB45)),ISNUMBER(SEARCH("2B",Pre!$CB45)),ISNUMBER(SEARCH("SS",Pre!$CB45))),OR(H45="SP",H45="RP",ISNUMBER(SEARCH("SP",Pre!$CB45)),ISNUMBER(SEARCH("RP",Pre!$CB45))),AND(H45<>"RP",H45<>"SP",NOT(ISNUMBER(SEARCH("RP",Pre!$CB45))),NOT(ISNUMBER(SEARCH("SP",Pre!$CB45)))),OR(H45="SP",H45="RP",ISNUMBER(SEARCH("SP",Pre!$CB45)),ISNUMBER(SEARCH("RP",Pre!$CB45)))))) -> TRUE | M45: =IF(J45=FALSE,10000,IF('ADP-Rank'!AB45="",9999,'ADP-Rank'!AB45)) -> 9999 | N45: =IF(LEFT($D45,15)="Unlisted Player",-1,IF(Pre!C45<>"",Pre!C45,0)) -> 0 | O45: =IF('ADP-Rank'!Z45="",9999,'ADP-Rank'!Z45) -> 9999 | P45: =IFERROR(IF($N45=0,-1000,IF(LEFT($D45,15)="Unlisted Player",-1001,IF(OR($H45="RP",$H45="SP"),VLOOKUP($D45,'Filter-P'!$A$3:$X$419,13,FALSE),$N45-(INDEX('Filter-H'!$AH$5:$AH$16,MATCH($H45,'Filter-H'!$W$5:$W$16,0),1))))),"") -> -1000 | Q45: =IFERROR(IF(LEFT($D45,15)="Unlisted Player",-1001,IF(OR(H45="SP",H45="RP"),N45/INDEX('Filter-P'!$D$3:$D$520,MATCH($D45,'Filter-P'!$A$3:$A$520,0),1),-1000)),-1000) -> -1000 | R45: =IFERROR(IF(LEFT($D45,15)="Unlisted Player",-1001,IF(OR(H45="SP",H45="RP"),-1000,N45/INDEX('Filter-H'!$B$3:$B$500,MATCH(D45,'Filter-H'!$A$3:$A$500,0),1))),-1000) -> -1000 | S45: =IF(H45="",#N/A,H45&"."&1+SUMPRODUCT(($H$2:$H$937=H45)*($M$2:$M$937<M45))+COUNTIFS($M$2:M45,M45,$H$2:H45,H45)-1) -> 3B.21 | U45: =IF(H45="",#N/A,1+SUMPRODUCT(($H$2:$H$937=H45)*($M$2:$M$937<M45))+COUNTIFS($M$2:M45,M45,$H$2:H45,H45)-1) -> 21 | V45: =IF(ISERROR(VLOOKUP($B44,Keepers!$C$2:$D$402,2,FALSE)),B44,"") -> Jose Berrios | W45: =IFERROR(INDEX($V$1:$V$936,SMALL(IF($V$1:$V$936<>"",ROW($V$1:$V$936)),ROW(V45))),"") -> Austin Riley | X45: =IF(LEFT($D45,15)="Unlisted Player",0,IF(Pre!C45<>"",Pre!C45,0)) -> 0 | Y45: =IFERROR(Pre!DL45,"") -> Bench
